{"text_format":"1","workbook":"xlsx","n_sheets":9,"sheets":["①漢字入力","合体クイズ","迷路１","迷路２","迷路3","編集","②漢字データ","Sheet1","データ"],"not_rendered":{"charts":0,"images":0,"macros":1,"external_links":3,"defined_names":15,"comments":0,"pivot_tables":0},"unopened":[],"bounds":{"document_bytes":16777216,"sheet_cells":100000,"rows_first":2000,"rows_last":500,"rows_between":2000,"halvings":0,"cell_chars":16384,"cell_head_chars":4096},"cells_cut":0,"cells_raw":0,"read":"whole","date_system":"1900"}

{"sheet":"①漢字入力","index":0,"n_rows":1034,"n_cols":35,"rows_kept":1034,"cut":false,"hidden":false,"merged":[[12,9,12,11],[1,0,1,1]]}
[]
["④修正",null,{"$f":"R2&S2","v":"2年"},"年",null,null,"最後に習った漢字",null,null,null,null,"①",null,"歩",null,null,{"$f":"VLOOKUP(N2,$O$5:$P$1033,2,FALSE)","v":2.0459999999999998},{"$f":"INT(Q2)","v":2},"年",{"$f":"(Q2-R2)*1000","v":45.999999999999815},"番目に習う漢字"]
[]
[]
[null,"古",{"$f":"VLOOKUP(B5,$O$5:$P$1033,2,FALSE)","v":2.1070000000000002},{"$f":"1000*C5","v":2107},{"$f":"IF(D5=\"\",\"\",VLOOKUP(D5,②漢字データ!$A$2:$H$1496,6,0))","v":"十"},{"$f":"VLOOKUP(E5,$O$5:$P$1060,2,FALSE)","v":1.0129999999999999},{"$f":"IF(F5>$Q$2,\"×\",\"〇\")","v":"〇"},{"$f":"IF(D5=\"\",\"\",VLOOKUP(D5,②漢字データ!$A$2:$H$1496,8,0))","v":"口"},{"$f":"VLOOKUP(H5,$O$5:$P$1060,2,FALSE)","v":1.0669999999999999},{"$f":"IF(I5>$Q$2,\"×\",\"〇\")","v":"〇"},null,null,null,null,"木",1.0009999999999999,{"$f":"IF(P5>$Q$2,\"0\",\"1\")","v":"1"}]
[1,"歩",2.0459999999999998,2045.9999999999998,{"$f":"IF(D6=\"\",\"\",VLOOKUP(D6,②漢字データ!$A$2:$H$1496,6,0))","v":"止"},2.11,"×",{"$f":"IF(D6=\"\",\"\",VLOOKUP(D6,②漢字データ!$A$2:$H$1496,8,0))","v":"少"},2.1440000000000001,"×",null,null,null,null,"大",1.002,{"$f":"IF(P6>$Q$2,\"0\",\"1\")","v":"1"}]
[2,"姉",2.04,2040,{"$f":"IF(D7=\"\",\"\",VLOOKUP(D7,②漢字データ!$A$2:$H$1496,6,0))","v":"女"},1.0169999999999999,"〇",{"$f":"IF(D7=\"\",\"\",VLOOKUP(D7,②漢字データ!$A$2:$H$1496,8,0))","v":"市"},2.1349999999999998,"×",null,null,null,null,"小",1.0029999999999999,"1"]
[3,"切",2.0369999999999999,2037,{"$f":"IF(D8=\"\",\"\",VLOOKUP(D8,②漢字データ!$A$2:$H$1496,6,0))","v":"七"},1.01,"〇",{"$f":"IF(D8=\"\",\"\",VLOOKUP(D8,②漢字データ!$A$2:$H$1496,8,0))","v":"刀"},2.036,"〇",null,null,null,null,"一",1.004,"1"]
[4,"社",2.0350000000000001,2035.0000000000002,{"$f":"IF(D9=\"\",\"\",VLOOKUP(D9,②漢字データ!$A$2:$H$1496,6,0))","v":"ネ"},{"$error":"#N/A"},{"$error":"#N/A"},{"$f":"IF(D9=\"\",\"\",VLOOKUP(D9,②漢字データ!$A$2:$H$1496,8,0))","v":"土"},1.0549999999999999,"〇",null,null,null,null,"二",1.0049999999999999,"1"]
[5,"体",2.0299999999999998,2029.9999999999998,{"$f":"IF(D10=\"\",\"\",VLOOKUP(D10,②漢字データ!$A$2:$H$1496,6,0))","v":"イ"},{"$error":"#N/A"},{"$error":"#N/A"},{"$f":"IF(D10=\"\",\"\",VLOOKUP(D10,②漢字データ!$A$2:$H$1496,8,0))","v":"本"},1.042,"〇",null,null,null,null,"三",1.006,"1"]
[6,"多",2.0259999999999998,2025.9999999999998,{"$f":"IF(D11=\"\",\"\",VLOOKUP(D11,②漢字データ!$A$2:$H$1496,6,0))","v":"タ"},{"$error":"#N/A"},{"$error":"#N/A"},{"$f":"IF(D11=\"\",\"\",VLOOKUP(D11,②漢字データ!$A$2:$H$1496,8,0))","v":"タ"},{"$error":"#N/A"},{"$error":"#N/A"},null,null,"②",null,"四",1.0069999999999999,"1",null,null,null,"止","+","少",null,null,null,"＝","歩"]
[null,null,null,null,null,null,null,null,null,null,{"$f":"IF(K16=12,\"○\",\"×\")","v":"×"},null,null,null,"五",1.008,"1",null,null,null,"女","+","市",null,null,null,"＝","姉"]
[null,{"$f":"E6","v":"止"},{"$f":"COUNTIF($E$6:$H$11,B13)","v":1},{"$f":"E9","v":"ネ"},{"$f":"COUNTIF($E$6:$H$11,D13)","v":1},{"$f":"H6","v":"少"},{"$f":"COUNTIF($E$6:$H$11,F13)","v":1},{"$f":"H9","v":"土"},{"$f":"COUNTIF($E$6:$H$11,H13)","v":1},"③チェック",null,null,null,null,"六",1.0089999999999999,"1",null,null,null,"七","+","刀",null,null,null,"＝","切"]
[null,{"$f":"E7","v":"女"},{"$f":"COUNTIF($E$6:$H$11,B14)","v":1},{"$f":"E10","v":"イ"},{"$f":"COUNTIF($E$6:$H$11,D14)","v":1},{"$f":"H7","v":"市"},{"$f":"COUNTIF($E$6:$H$11,F14)","v":1},{"$f":"H10","v":"本"},{"$f":"COUNTIF($E$6:$H$11,H14)","v":1},null,null,null,null,null,"七",1.01,"1",null,null,null,"ネ","+","土",null,null,null,"＝","社"]
[null,{"$f":"E8","v":"七"},{"$f":"COUNTIF($E$6:$H$11,B15)","v":1},{"$f":"E11","v":"タ"},{"$f":"COUNTIF($E$6:$H$11,D15)","v":2},{"$f":"H8","v":"刀"},{"$f":"COUNTIF($E$6:$H$11,F15)","v":1},{"$f":"H11","v":"タ"},{"$f":"COUNTIF($E$6:$H$11,H15)","v":2},null,null,null,null,null,"八",1.0109999999999999,"1",null,"・・",null,"イ","+","本",null,null,null,"＝","体"]
[null,null,{"$f":"SUM(C13:C15)","v":3},null,{"$f":"SUM(E13:E15)","v":4},null,{"$f":"SUM(G13:G15)","v":3},null,{"$f":"SUM(I13:I15)","v":4},null,{"$f":"C16+E16+G16+I16","v":14},null,null,null,"九",1.012,"1",null,null,null,"タ","+","タ",null,null,null,"＝","多"]
[null,null,null,null,null,null,null,null,null,null,null,null,null,null,"十",1.0129999999999999,"1",null,null,null,"日","+","青",null,null,null,"＝","晴"]
[null,null,null,null,null,null,null,null,null,null,null,null,null,null,"子",1.014,"1",null,null,null,"田","+","心",null,null,null,"＝","思"]
[null,null,null,null,null,null,null,null,null,null,null,null,null,null,"空",1.0149999999999999,"1",null,null,null,"八","+","刀",null,null,null,"＝","分"]
[null,null,null,null,null,null,null,null,null,null,null,null,null,null,"男",1.016,"1",null,null,null,"糸","+","会",null,null,null,"＝","絵"]
[null,null,null,null,null,null,null,null,null,null,null,null,null,null,"女",1.0169999999999999,"1",null,null,null,"言","+","売",null,null,null,"＝","読"]
[null,null,null,null,null,null,null,null,null,null,null,null,null,null,"手",1.018,"1",null,null,null,"木","+","木",null,null,null,"＝","林"]
[null,null,null,null,null,null,null,null,null,null,null,null,null,null,"天",1.0189999999999999,"1",null,null,null,"日","+","生",null,null,null,"＝","計"]
[null,null,null,null,null,null,null,null,null,null,null,null,null,null,"青",1.02,"1",null,null,null,"小","+","ノ",null,null,null,"＝","少"]
[null,null,null,null,null,null,null,null,null,null,null,null,null,null,"見",1.0209999999999999,"1"]
[null,null,null,null,null,null,null,null,null,null,null,null,null,null,"学",1.022,"1"]
[null,null,null,null,null,null,null,null,null,null,null,null,null,null,"校",1.0229999999999999,"1","木","交"]
[null,null,null,null,null,null,null,null,null,null,null,null,null,null,"虫",1.024,"1"]
[null,null,null,null,null,null,null,null,null,null,null,null,null,null,"文",1.0249999999999999,"1"]
[null,null,null,null,null,null,null,null,null,null,null,null,null,null,"正",1.026,"1"]
[null,null,null,null,null,null,null,null,null,null,null,null,null,null,"字",1.0269999999999999,"1"]
[null,null,null,null,null,null,null,null,null,null,null,null,null,null,"山",1.028,"1"]
[null,null,null,null,null,null,null,null,null,null,null,null,null,null,"水",1.0289999999999999,"1"]
[null,null,null,null,null,null,null,null,null,null,null,null,null,null,"雨",1.03,"1"]
[null,null,null,null,null,null,null,null,null,null,null,null,null,null,"上",1.0309999999999999,"1"]
[null,null,null,null,null,null,null,null,null,null,null,null,null,null,"下",1.032,"1"]
[null,null,null,null,null,null,null,null,null,null,null,null,null,null,"日",1.0329999999999999,"1"]
[null,null,null,null,null,null,null,null,null,null,null,null,null,null,"火",1.034,"1"]
[null,null,null,null,null,null,null,null,null,null,null,null,null,null,"田",1.0349999999999999,"1"]
[null,null,null,null,null,null,null,null,null,null,null,null,null,null,"川",1.036,"1"]
[null,null,null,null,null,null,null,null,null,null,null,null,null,null,"竹",1.0369999999999999,"1"]
[null,null,null,null,null,null,null,null,null,null,null,null,null,null,"月",1.038,"1"]
[null,null,null,null,null,null,null,null,null,null,null,null,null,null,"車",1.0389999999999999,"1"]
[null,null,null,null,null,null,null,null,null,null,null,null,null,null,"人",1.04,"1"]
[null,null,null,null,null,null,null,null,null,null,null,null,null,null,"気",1.0409999999999999,"1"]
[null,null,null,null,null,null,null,null,null,null,null,null,null,null,"本",1.042,"1"]
[null,null,null,null,null,null,null,null,null,null,null,null,null,null,"森",1.0429999999999999,"1"]
[null,null,null,null,null,null,null,null,null,null,null,null,null,null,"出",1.044,"1"]
[null,null,null,null,null,null,null,null,null,null,null,null,null,null,"中",1.0449999999999999,"1"]
[null,null,null,null,null,null,null,null,null,null,null,null,null,null,"町",1.046,"1"]
[null,null,null,null,null,null,null,null,null,null,null,null,null,null,"入",1.0469999999999999,"1"]
[null,null,null,null,null,null,null,null,null,null,null,null,null,null,"名",1.048,"1"]
[null,null,null,null,null,null,null,null,null,null,null,null,null,null,"夕",1.0489999999999999,"1"]
[null,null,null,null,null,null,null,null,null,null,null,null,null,null,"百",1.05,"1"]
[null,null,null,null,null,null,null,null,null,null,null,null,null,null,"円",1.0509999999999999,"1"]
[null,null,null,null,null,null,null,null,null,null,null,null,null,null,"花",1.052,"1"]
[null,null,null,null,null,null,null,null,null,null,null,null,null,null,"休",1.0529999999999999,"1"]
[null,null,null,null,null,null,null,null,null,null,null,null,null,null,"金",1.054,"1"]
[null,null,null,null,null,null,null,null,null,null,null,null,null,null,"土",1.0549999999999999,"1"]
[null,null,null,null,null,null,null,null,null,null,null,null,null,null,"千",1.056,"1"]
[null,null,null,null,null,null,null,null,null,null,null,null,null,null,"糸",1.0569999999999999,"1"]
[null,null,null,null,null,null,null,null,null,null,null,null,null,null,"目",1.0580000000000001,"1"]
[null,null,null,null,null,null,null,null,null,null,null,null,null,null,"玉",1.0589999999999999,"1"]
[null,null,null,null,null,null,null,null,null,null,null,null,null,null,"村",1.06,"1"]
[null,null,null,null,null,null,null,null,null,null,null,null,null,null,"白",1.0609999999999999,"1"]
[null,null,null,null,null,null,null,null,null,null,null,null,null,null,"音",1.0620000000000001,"1"]
[null,null,null,null,null,null,null,null,null,null,null,null,null,null,"赤",1.0629999999999999,"1"]
[null,null,null,null,null,null,null,null,null,null,null,null,null,null,"生",1.0640000000000001,"1"]
[null,null,null,null,null,null,null,null,null,null,null,null,null,null,"耳",1.0649999999999999,"1"]
[null,null,null,null,null,null,null,null,null,null,null,null,null,null,"王",1.0660000000000001,{"$f":"IF(P70>$Q$2,\"0\",\"1\")","v":"1"}]
[null,null,null,null,null,null,null,null,null,null,null,null,null,null,"口",1.0669999999999999,"1"]
[null,null,null,null,null,null,null,null,null,null,null,null,null,null,"年",1.0680000000000001,"1"]
[null,null,null,null,null,null,null,null,null,null,null,null,null,null,"立",1.069,"1"]
[null,null,null,null,null,null,null,null,null,null,null,null,null,null,"草",1.07,"1"]
[null,null,null,null,null,null,null,null,null,null,null,null,null,null,"先",1.071,"1"]
[null,null,null,null,null,null,null,null,null,null,null,null,null,null,"犬",1.0720000000000001,"1"]
[null,null,null,null,null,null,null,null,null,null,null,null,null,null,"早",1.073,"1"]
[null,null,null,null,null,null,null,null,null,null,null,null,null,null,"貝",1.0740000000000001,"1"]
[null,null,null,null,null,null,null,null,null,null,null,null,null,null,"林",1.075,"1"]
[null,null,null,null,null,null,null,null,null,null,null,null,null,null,"右",1.0760000000000001,"1"]
[null,null,null,null,null,null,null,null,null,null,null,null,null,null,"足",1.077,"1"]
[null,null,null,null,null,null,null,null,null,null,null,null,null,null,"石",1.0780000000000001,"1"]
[null,null,null,null,null,null,null,null,null,null,null,null,null,null,"左",1.079,"1"]
[null,null,null,null,null,null,null,null,null,null,null,null,null,null,"力",1.08,"1"]
[null,null,null,null,null,null,null,null,null,null,null,null,null,null,"読",2.0009999999999999,"1"]
[null,null,null,null,null,null,null,null,null,null,null,null,null,null,"雪",2.0019999999999998,"1"]
[null,null,null,null,null,null,null,null,null,null,null,null,null,null,"言",2.0030000000000001,"1"]
[null,null,null,null,null,null,null,null,null,null,null,null,null,null,"行",2.004,"1"]
[null,null,null,null,null,null,null,null,null,null,null,null,null,null,"南",2.0049999999999999,"1"]
[null,null,null,null,null,null,null,null,null,null,null,null,null,null,"書",2.0059999999999998,"1"]
[null,null,null,null,null,null,null,null,null,null,null,null,null,null,"絵",2.0070000000000001,"1","糸","会"]
[null,null,null,null,null,null,null,null,null,null,null,null,null,null,"図",2.008,"1"]
[null,null,null,null,null,null,null,null,null,null,null,null,null,null,"分",2.0089999999999999,"1"]
[null,null,null,null,null,null,null,null,null,null,null,null,null,null,"方",2.0099999999999998,"1"]
[null,null,null,null,null,null,null,null,null,null,null,null,null,null,"春",2.0110000000000001,"1"]
[null,null,null,null,null,null,null,null,null,null,null,null,null,null,"思",2.012,"1"]
[null,null,null,null,null,null,null,null,null,null,null,null,null,null,"記",2.0129999999999999,"1"]
[null,null,null,null,null,null,null,null,null,null,null,null,null,null,"曜",2.0139999999999998,"1"]
[null,null,null,null,null,null,null,null,null,null,null,null,null,null,"肉",2.0150000000000001,"1"]
[null,null,null,null,null,null,null,null,null,null,null,null,null,null,"話",2.016,"1"]
[null,null,null,null,null,null,null,null,null,null,null,null,null,null,"聞",2.0169999999999999,"1"]
[null,null,null,null,null,null,null,null,null,null,null,null,null,null,"黄",2.0179999999999998,"1"]
[null,null,null,null,null,null,null,null,null,null,null,null,null,null,"色",2.0190000000000001,"1"]
[null,null,null,null,null,null,null,null,null,null,null,null,null,null,"黒",2.02,"1"]
[null,null,null,null,null,null,null,null,null,null,null,null,null,null,"太",2.0209999999999999,"1"]
[null,null,null,null,null,null,null,null,null,null,null,null,null,null,"毛",2.0219999999999998,"1"]
[null,null,null,null,null,null,null,null,null,null,null,null,null,null,"高",2.0230000000000001,"1"]
[null,null,null,null,null,null,null,null,null,null,null,null,null,null,"風",2.024,"1"]
[null,null,null,null,null,null,null,null,null,null,null,null,null,null,"晴",2.0249999999999999,"1"]
[null,null,null,null,null,null,null,null,null,null,null,null,null,null,"多",2.0259999999999998,"1"]
[null,null,null,null,null,null,null,null,null,null,null,null,null,null,"形",2.0270000000000001,"1"]
[null,null,null,null,null,null,null,null,null,null,null,null,null,null,"長",2.028,"1"]
[null,null,null,null,null,null,null,null,null,null,null,null,null,null,"数",2.0289999999999999,"1"]
[null,null,null,null,null,null,null,null,null,null,null,null,null,null,"体",2.0299999999999998,"1"]
[null,null,null,null,null,null,null,null,null,null,null,null,null,null,"近",2.0310000000000001,"1"]
[null,null,null,null,null,null,null,null,null,null,null,null,null,null,"同",2.032,"1"]
[null,null,null,null,null,null,null,null,null,null,null,null,null,null,"今",2.0329999999999999,"1"]
[null,null,null,null,null,null,null,null,null,null,null,null,null,null,"会",2.0339999999999998,"1"]
[null,null,null,null,null,null,null,null,null,null,null,null,null,null,"社",2.0350000000000001,"1"]
[null,null,null,null,null,null,null,null,null,null,null,null,null,null,"刀",2.036,"1"]
[null,null,null,null,null,null,null,null,null,null,null,null,null,null,"切",2.0369999999999999,"1"]
[null,null,null,null,null,null,null,null,null,null,null,null,null,null,"内",2.0379999999999998,"1"]
[null,null,null,null,null,null,null,null,null,null,null,null,null,null,"店",2.0390000000000001,"1"]
[null,null,null,null,null,null,null,null,null,null,null,null,null,null,"姉",2.04,"1"]
[null,null,null,null,null,null,null,null,null,null,null,null,null,null,"妹",2.0409999999999999,"1"]
[null,null,null,null,null,null,null,null,null,null,null,null,null,null,"線",2.0419999999999998,"1"]
[null,null,null,null,null,null,null,null,null,null,null,null,null,null,"汽",2.0430000000000001,"1"]
[null,null,null,null,null,null,null,null,null,null,null,null,null,null,"海",2.044,"1"]
[null,null,null,null,null,null,null,null,null,null,null,null,null,null,"回",2.0449999999999999,"1"]
[null,null,null,null,null,null,null,null,null,null,null,null,null,null,"歩",2.0459999999999998,"1"]
[null,null,null,null,null,null,null,null,null,null,null,null,null,null,"魚",2.0470000000000002,"0"]
[null,null,null,null,null,null,null,null,null,null,null,null,null,null,"広",2.048,"0"]
[null,null,null,null,null,null,null,null,null,null,null,null,null,null,"前",2.0489999999999999,"0"]
[null,null,null,null,null,null,null,null,null,null,null,null,null,null,"元",2.0499999999999998,{"$f":"IF(P134>$Q$2,\"0\",\"1\")","v":"0"}]
[null,null,null,null,null,null,null,null,null,null,null,null,null,null,"岩",2.0510000000000002,"0"]
[null,null,null,null,null,null,null,null,null,null,null,null,null,null,"教",2.052,"0"]
[null,null,null,null,null,null,null,null,null,null,null,null,null,null,"光",2.0529999999999999,"0"]
[null,null,null,null,null,null,null,null,null,null,null,null,null,null,"知",2.0539999999999998,"0"]
[null,null,null,null,null,null,null,null,null,null,null,null,null,null,"考",2.0550000000000002,"0"]
[null,null,null,null,null,null,null,null,null,null,null,null,null,null,"室",2.056,"0"]
[null,null,null,null,null,null,null,null,null,null,null,null,null,null,"組",2.0569999999999999,"0"]
[null,null,null,null,null,null,null,null,null,null,null,null,null,null,"後",2.0579999999999998,"0"]
[null,null,null,null,null,null,null,null,null,null,null,null,null,null,"丸",2.0590000000000002,"0"]
[null,null,null,null,null,null,null,null,null,null,null,null,null,null,"点",2.06,"0"]
[null,null,null,null,null,null,null,null,null,null,null,null,null,null,"買",2.0609999999999999,"0"]
[null,null,null,null,null,null,null,null,null,null,null,null,null,null,"友",2.0619999999999998,"0"]
[null,null,null,null,null,null,null,null,null,null,null,null,null,null,"羽",2.0630000000000002,"0"]
[null,null,null,null,null,null,null,null,null,null,null,null,null,null,"雲",2.0640000000000001,"0"]
[null,null,null,null,null,null,null,null,null,null,null,null,null,null,"夏",2.0649999999999999,"0"]
[null,null,null,null,null,null,null,null,null,null,null,null,null,null,"公",2.0659999999999998,"0"]
[null,null,null,null,null,null,null,null,null,null,null,null,null,null,"園",2.0670000000000002,"0"]
[null,null,null,null,null,null,null,null,null,null,null,null,null,null,"通",2.0680000000000001,"0"]
[null,null,null,null,null,null,null,null,null,null,null,null,null,null,"万",2.069,"0"]
[null,null,null,null,null,null,null,null,null,null,null,null,null,null,"頭",2.0699999999999998,"0"]
[null,null,null,null,null,null,null,null,null,null,null,null,null,null,"鳥",2.0710000000000002,"0"]
[null,null,null,null,null,null,null,null,null,null,null,null,null,null,"朝　",2.0720000000000001,"0"]
[null,null,null,null,null,null,null,null,null,null,null,null,null,null,"顔",2.073,"0"]
[null,null,null,null,null,null,null,null,null,null,null,null,null,null,"毎",2.0739999999999998,"0"]
[null,null,null,null,null,null,null,null,null,null,null,null,null,null,"家",2.0750000000000002,"0"]
[null,null,null,null,null,null,null,null,null,null,null,null,null,null,"当",2.0760000000000001,"0"]
[null,null,null,null,null,null,null,null,null,null,null,null,null,null,"間",2.077,"0"]
[null,null,null,null,null,null,null,null,null,null,null,null,null,null,"昼",2.0779999999999998,"0"]
[null,null,null,null,null,null,null,null,null,null,null,null,null,null,"半",2.0790000000000002,"0"]
[null,null,null,null,null,null,null,null,null,null,null,null,null,null,"電",2.08,"0"]
[null,null,null,null,null,null,null,null,null,null,null,null,null,null,"外",2.081,"0"]
[null,null,null,null,null,null,null,null,null,null,null,null,null,null,"声",2.0819999999999999,"0"]
[null,null,null,null,null,null,null,null,null,null,null,null,null,null,"楽",2.0830000000000002,"0"]
[null,null,null,null,null,null,null,null,null,null,null,null,null,null,"親",2.0840000000000001,"0"]
[null,null,null,null,null,null,null,null,null,null,null,null,null,null,"父",2.085,"0"]
[null,null,null,null,null,null,null,null,null,null,null,null,null,null,"母",2.0859999999999999,"0"]
[null,null,null,null,null,null,null,null,null,null,null,null,null,null,"兄",2.0870000000000002,"0"]
[null,null,null,null,null,null,null,null,null,null,null,null,null,null,"弟",2.0880000000000001,"0"]
[null,null,null,null,null,null,null,null,null,null,null,null,null,null,"午",2.089,"0"]
[null,null,null,null,null,null,null,null,null,null,null,null,null,null,"夜",2.09,"0"]
[null,null,null,null,null,null,null,null,null,null,null,null,null,null,"国",2.0910000000000002,"0"]
[null,null,null,null,null,null,null,null,null,null,null,null,null,null,"語",2.0920000000000001,"0"]
[null,null,null,null,null,null,null,null,null,null,null,null,null,null,"算",2.093,"0"]
[null,null,null,null,null,null,null,null,null,null,null,null,null,null,"紙",2.0939999999999999,"0"]
[null,null,null,null,null,null,null,null,null,null,null,null,null,null,"来",2.0950000000000002,"0"]
[null,null,null,null,null,null,null,null,null,null,null,null,null,null,"時",2.0960000000000001,"0"]
[null,null,null,null,null,null,null,null,null,null,null,null,null,null,"帰",2.097,"0"]
[null,null,null,null,null,null,null,null,null,null,null,null,null,null,"何",2.0979999999999999,"0"]
[null,null,null,null,null,null,null,null,null,null,null,null,null,null,"里",2.0990000000000002,"0"]
[null,null,null,null,null,null,null,null,null,null,null,null,null,null,"食",2.1,"0"]
[null,null,null,null,null,null,null,null,null,null,null,null,null,null,"明",2.101,"0"]
[null,null,null,null,null,null,null,null,null,null,null,null,null,null,"池",2.1019999999999999,"0"]
[null,null,null,null,null,null,null,null,null,null,null,null,null,null,"週",2.1030000000000002,"0"]
[null,null,null,null,null,null,null,null,null,null,null,null,null,null,"番",2.1040000000000001,"0"]
[null,null,null,null,null,null,null,null,null,null,null,null,null,null,"東",2.105,"0"]
[null,null,null,null,null,null,null,null,null,null,null,null,null,null,"京",2.1059999999999999,"0"]
[null,null,null,null,null,null,null,null,null,null,null,null,null,null,"古",2.1070000000000002,"0"]
[null,null,null,null,null,null,null,null,null,null,null,null,null,null,"寺",2.1080000000000001,"0"]
[null,null,null,null,null,null,null,null,null,null,null,null,null,null,"西",2.109,"0"]
[null,null,null,null,null,null,null,null,null,null,null,null,null,null,"止",2.11,"0"]
[null,null,null,null,null,null,null,null,null,null,null,null,null,null,"道",2.1110000000000002,"0"]
[null,null,null,null,null,null,null,null,null,null,null,null,null,null,"場",2.1120000000000001,"0"]
[null,null,null,null,null,null,null,null,null,null,null,null,null,null,"台",2.113,"0"]
[null,null,null,null,null,null,null,null,null,null,null,null,null,null,"新",2.1139999999999999,{"$f":"IF(P198>$Q$2,\"0\",\"1\")","v":"0"}]
[null,null,null,null,null,null,null,null,null,null,null,null,null,null,"船",2.1150000000000002,"0"]
[null,null,null,null,null,null,null,null,null,null,null,null,null,null,"米",2.1160000000000001,"0"]
[null,null,null,null,null,null,null,null,null,null,null,null,null,null,"秋",2.117,"0"]
[null,null,null,null,null,null,null,null,null,null,null,null,null,null,"合",2.1179999999999999,"0"]
[null,null,null,null,null,null,null,null,null,null,null,null,null,null,"活",2.1189999999999998,"0"]
[null,null,null,null,null,null,null,null,null,null,null,null,null,null,"理",2.12,"0"]
[null,null,null,null,null,null,null,null,null,null,null,null,null,null,"作",2.121,"0"]
[null,null,null,null,null,null,null,null,null,null,null,null,null,null,"馬",2.1219999999999999,"0"]
[null,null,null,null,null,null,null,null,null,null,null,null,null,null,"画",2.1230000000000002,"0"]
[null,null,null,null,null,null,null,null,null,null,null,null,null,null,"用",2.1240000000000001,"0"]
[null,null,null,null,null,null,null,null,null,null,null,null,null,null,"首",2.125,"0"]
[null,null,null,null,null,null,null,null,null,null,null,null,null,null,"細",2.1259999999999999,"0"]
[null,null,null,null,null,null,null,null,null,null,null,null,null,null,"角",2.1269999999999998,"0"]
[null,null,null,null,null,null,null,null,null,null,null,null,null,null,"工",2.1280000000000001,"0"]
[null,null,null,null,null,null,null,null,null,null,null,null,null,null,"科",2.129,"0"]
[null,null,null,null,null,null,null,null,null,null,null,null,null,null,"鳴",2.13,"0"]
[null,null,null,null,null,null,null,null,null,null,null,null,null,null,"戸",2.1310000000000002,"0"]
[null,null,null,null,null,null,null,null,null,null,null,null,null,null,"麦",2.1320000000000001,"0"]
[null,null,null,null,null,null,null,null,null,null,null,null,null,null,"茶",2.133,"0"]
[null,null,null,null,null,null,null,null,null,null,null,null,null,null,"地",2.1339999999999999,"0"]
[null,null,null,null,null,null,null,null,null,null,null,null,null,null,"市",2.1349999999999998,"0"]
[null,null,null,null,null,null,null,null,null,null,null,null,null,null,"自",2.1360000000000001,"0"]
[null,null,null,null,null,null,null,null,null,null,null,null,null,null,"歌",2.137,"0"]
[null,null,null,null,null,null,null,null,null,null,null,null,null,null,"心",2.1379999999999999,"0"]
[null,null,null,null,null,null,null,null,null,null,null,null,null,null,"答",2.1390000000000002,"0"]
[null,null,null,null,null,null,null,null,null,null,null,null,null,null,"野",2.14,"0"]
[null,null,null,null,null,null,null,null,null,null,null,null,null,null,"原",2.141,"0"]
[null,null,null,null,null,null,null,null,null,null,null,null,null,null,"冬",2.1419999999999999,"0"]
[null,null,null,null,null,null,null,null,null,null,null,null,null,null,"星",2.1429999999999998,"0"]
[null,null,null,null,null,null,null,null,null,null,null,null,null,null,"少",2.1440000000000001,"0"]
[null,null,null,null,null,null,null,null,null,null,null,null,null,null,"走",2.145,"0"]
[null,null,null,null,null,null,null,null,null,null,null,null,null,null,"交",2.1459999999999999,"0"]
[null,null,null,null,null,null,null,null,null,null,null,null,null,null,"遠",2.1469999999999998,"0"]
[null,null,null,null,null,null,null,null,null,null,null,null,null,null,"強",2.1480000000000001,"0"]
[null,null,null,null,null,null,null,null,null,null,null,null,null,null,"才",2.149,"0"]
[null,null,null,null,null,null,null,null,null,null,null,null,null,null,"門",2.15,"0"]
[null,null,null,null,null,null,null,null,null,null,null,null,null,null,"弓",2.1509999999999998,"0"]
[null,null,null,null,null,null,null,null,null,null,null,null,null,null,"矢",2.1520000000000001,"0"]
[null,null,null,null,null,null,null,null,null,null,null,null,null,null,"谷",2.153,"0"]
[null,null,null,null,null,null,null,null,null,null,null,null,null,null,"北",2.1539999999999999,"0"]
[null,null,null,null,null,null,null,null,null,null,null,null,null,null,"牛",2.1549999999999998,"0"]
[null,null,null,null,null,null,null,null,null,null,null,null,null,null,"引",2.1560000000000001,"0"]
[null,null,null,null,null,null,null,null,null,null,null,null,null,null,"売",2.157,"0"]
[null,null,null,null,null,null,null,null,null,null,null,null,null,null,"弱",2.1579999999999999,"0"]
[null,null,null,null,null,null,null,null,null,null,null,null,null,null,"計",2.1589999999999998,"0"]
[null,null,null,null,null,null,null,null,null,null,null,null,null,null,"直　",2.16,"0"]
[null,null,null,null,null,null,null,null,null,null,null,null,null,null,"詩",3.0009999999999999,"0","言","寺"]
[null,null,null,null,null,null,null,null,null,null,null,null,null,null,"習",3.0019999999999998,"0","羽","白"]
[null,null,null,null,null,null,null,null,null,null,null,null,null,null,"商",3.0030000000000001,"0"]
[null,null,null,null,null,null,null,null,null,null,null,null,null,null,"動",3.004,"0"]
[null,null,null,null,null,null,null,null,null,null,null,null,null,null,"物",3.0049999999999999,"0"]
[null,null,null,null,null,null,null,null,null,null,null,null,null,null,"開",3.0059999999999998,"0"]
[null,null,null,null,null,null,null,null,null,null,null,null,null,null,"族",3.0070000000000001,"0"]
[null,null,null,null,null,null,null,null,null,null,null,null,null,null,"葉",3.008,"0"]
[null,null,null,null,null,null,null,null,null,null,null,null,null,null,"実",3.0089999999999999,"0"]
[null,null,null,null,null,null,null,null,null,null,null,null,null,null,"所",3.01,"0"]
[null,null,null,null,null,null,null,null,null,null,null,null,null,null,"面",3.0110000000000001,"0"]
[null,null,null,null,null,null,null,null,null,null,null,null,null,null,"登",3.012,"0"]
[null,null,null,null,null,null,null,null,null,null,null,null,null,null,"事",3.0129999999999999,"0"]
[null,null,null,null,null,null,null,null,null,null,null,null,null,null,"館",3.0139999999999998,"0"]
[null,null,null,null,null,null,null,null,null,null,null,null,null,null,"号",3.0150000000000001,"0"]
[null,null,null,null,null,null,null,null,null,null,null,null,null,null,"使",3.016,"0"]
[null,null,null,null,null,null,null,null,null,null,null,null,null,null,"深",3.0169999999999999,"0"]
[null,null,null,null,null,null,null,null,null,null,null,null,null,null,"意",3.0179999999999998,{"$f":"IF(P262>$Q$2,\"0\",\"1\")","v":"0"},"音","心"]
[null,null,null,null,null,null,null,null,null,null,null,null,null,null,"味",3.0190000000000001,"0"]
[null,null,null,null,null,null,null,null,null,null,null,null,null,null,"漢",3.02,"0"]
[null,null,null,null,null,null,null,null,null,null,null,null,null,null,"調",3.0209999999999999,"0"]
[null,null,null,null,null,null,null,null,null,null,null,null,null,null,"由",3.0219999999999998,"0"]
[null,null,null,null,null,null,null,null,null,null,null,null,null,null,"温",3.0230000000000001,"0"]
[null,null,null,null,null,null,null,null,null,null,null,null,null,null,"酒",3.024,"0"]
[null,null,null,null,null,null,null,null,null,null,null,null,null,null,"問",3.0249999999999999,"0","門","口"]
[null,null,null,null,null,null,null,null,null,null,null,null,null,null,"題",3.0259999999999998,"0"]
[null,null,null,null,null,null,null,null,null,null,null,null,null,null,"章",3.0270000000000001,"0","音","早"]
[null,null,null,null,null,null,null,null,null,null,null,null,null,null,"平",3.028,"0"]
[null,null,null,null,null,null,null,null,null,null,null,null,null,null,"次",3.0289999999999999,"0"]
[null,null,null,null,null,null,null,null,null,null,null,null,null,null,"昔",3.03,"0"]
[null,null,null,null,null,null,null,null,null,null,null,null,null,null,"表",3.0310000000000001,"0"]
[null,null,null,null,null,null,null,null,null,null,null,null,null,null,"発",3.032,"0"]
[null,null,null,null,null,null,null,null,null,null,null,null,null,null,"県",3.0329999999999999,"0"]
[null,null,null,null,null,null,null,null,null,null,null,null,null,null,"有",3.0339999999999998,"0"]
[null,null,null,null,null,null,null,null,null,null,null,null,null,null,"氷",3.0350000000000001,"0"]
[null,null,null,null,null,null,null,null,null,null,null,null,null,null,"秒",3.036,"0"]
[null,null,null,null,null,null,null,null,null,null,null,null,null,null,"農",3.0369999999999999,"0"]
[null,null,null,null,null,null,null,null,null,null,null,null,null,null,"球",3.0379999999999998,"0"]
[null,null,null,null,null,null,null,null,null,null,null,null,null,null,"局",3.0390000000000001,"0"]
[null,null,null,null,null,null,null,null,null,null,null,null,null,null,"決",3.04,"0"]
[null,null,null,null,null,null,null,null,null,null,null,null,null,null,"整",3.0409999999999999,"0"]
[null,null,null,null,null,null,null,null,null,null,null,null,null,null,"相",3.0419999999999998,"0","木","目"]
[null,null,null,null,null,null,null,null,null,null,null,null,null,null,"落",3.0430000000000001,"0"]
[null,null,null,null,null,null,null,null,null,null,null,null,null,null,"着",3.044,"0"]
[null,null,null,null,null,null,null,null,null,null,null,null,null,null,"洋",3.0449999999999999,"0"]
[null,null,null,null,null,null,null,null,null,null,null,null,null,null,"服",3.0459999999999998,"0"]
[null,null,null,null,null,null,null,null,null,null,null,null,null,null,"遊",3.0470000000000002,"0"]
[null,null,null,null,null,null,null,null,null,null,null,null,null,null,"全",3.048,"0"]
[null,null,null,null,null,null,null,null,null,null,null,null,null,null,"短",3.0489999999999999,"0"]
[null,null,null,null,null,null,null,null,null,null,null,null,null,null,"世",3.05,"0"]
[null,null,null,null,null,null,null,null,null,null,null,null,null,null,"界",3.0510000000000002,"0"]
[null,null,null,null,null,null,null,null,null,null,null,null,null,null,"横",3.052,"0","木","黄"]
[null,null,null,null,null,null,null,null,null,null,null,null,null,null,"指",3.0529999999999999,"0"]
[null,null,null,null,null,null,null,null,null,null,null,null,null,null,"鉄",3.0539999999999998,"0"]
[null,null,null,null,null,null,null,null,null,null,null,null,null,null,"安",3.0550000000000002,"0"]
[null,null,null,null,null,null,null,null,null,null,null,null,null,null,"定",3.056,"0"]
[null,null,null,null,null,null,null,null,null,null,null,null,null,null,"様",3.0569999999999999,"0"]
[null,null,null,null,null,null,null,null,null,null,null,null,null,null,"運",3.0579999999999998,"0"]
[null,null,null,null,null,null,null,null,null,null,null,null,null,null,"予",3.0590000000000002,"0"]
[null,null,null,null,null,null,null,null,null,null,null,null,null,null,"返",3.06,"0"]
[null,null,null,null,null,null,null,null,null,null,null,null,null,null,"緑",3.0609999999999999,"0"]
[null,null,null,null,null,null,null,null,null,null,null,null,null,null,"送",3.0619999999999998,"0"]
[null,null,null,null,null,null,null,null,null,null,null,null,null,null,"住",3.0630000000000002,"0"]
[null,null,null,null,null,null,null,null,null,null,null,null,null,null,"感",3.0640000000000001,"0"]
[null,null,null,null,null,null,null,null,null,null,null,null,null,null,"想",3.0649999999999999,"0","相","心"]
[null,null,null,null,null,null,null,null,null,null,null,null,null,null,"具",3.0659999999999998,"0"]
[null,null,null,null,null,null,null,null,null,null,null,null,null,null,"悪",3.0670000000000002,"0"]
[null,null,null,null,null,null,null,null,null,null,null,null,null,null,"拾　　",3.0680000000000001,"0"]
[null,null,null,null,null,null,null,null,null,null,null,null,null,null,"持",3.069,"0"]
[null,null,null,null,null,null,null,null,null,null,null,null,null,null,"向",3.07,"0"]
[null,null,null,null,null,null,null,null,null,null,null,null,null,null,"坂",3.0710000000000002,"0"]
[null,null,null,null,null,null,null,null,null,null,null,null,null,null,"悲",3.0720000000000001,"0"]
[null,null,null,null,null,null,null,null,null,null,null,null,null,null,"岸",3.0750000000000002,"0"]
[null,null,null,null,null,null,null,null,null,null,null,null,null,null,"路",3.0760000000000001,"0"]
[null,null,null,null,null,null,null,null,null,null,null,null,null,null,"陽",3.0760000000000001,"0"]
[null,null,null,null,null,null,null,null,null,null,null,null,null,null,"泳",3.077,"0"]
[null,null,null,null,null,null,null,null,null,null,null,null,null,null,"区",3.077,"0"]
[null,null,null,null,null,null,null,null,null,null,null,null,null,null,"練",3.0779999999999998,"0","糸","東"]
[null,null,null,null,null,null,null,null,null,null,null,null,null,null,"助",3.0790000000000002,"0"]
[null,null,null,null,null,null,null,null,null,null,null,null,null,null,"童",3.08,"0"]
[null,null,null,null,null,null,null,null,null,null,null,null,null,null,"申",3.081,"0"]
[null,null,null,null,null,null,null,null,null,null,null,null,null,null,"仕",3.0819999999999999,{"$f":"IF(P326>$Q$2,\"0\",\"1\")","v":"0"}]
[null,null,null,null,null,null,null,null,null,null,null,null,null,null,"身",3.0830000000000002,"0"]
[null,null,null,null,null,null,null,null,null,null,null,null,null,null,"品",3.0840000000000001,"0"]
[null,null,null,null,null,null,null,null,null,null,null,null,null,null,"客",3.085,"0"]
[null,null,null,null,null,null,null,null,null,null,null,null,null,null,"終　　　",3.0859999999999999,"0","糸","冬"]
[null,null,null,null,null,null,null,null,null,null,null,null,null,null,"銀",3.0870000000000002,"0"]
[null,null,null,null,null,null,null,null,null,null,null,null,null,null,"去",3.0880000000000001,"0"]
[null,null,null,null,null,null,null,null,null,null,null,null,null,null,"筆",3.089,"0"]
[null,null,null,null,null,null,null,null,null,null,null,null,null,null,"式",3.09,"0"]
[null,null,null,null,null,null,null,null,null,null,null,null,null,null,"植",3.0910000000000002,"0","木","直"]
[null,null,null,null,null,null,null,null,null,null,null,null,null,null,"集　",3.0920000000000001,"0"]
[null,null,null,null,null,null,null,null,null,null,null,null,null,null,"化",3.093,"0"]
[null,null,null,null,null,null,null,null,null,null,null,null,null,null,"死",3.0939999999999999,"0"]
[null,null,null,null,null,null,null,null,null,null,null,null,null,null,"都",3.0950000000000002,"0"]
[null,null,null,null,null,null,null,null,null,null,null,null,null,null,"両",3.0960000000000001,"0"]
[null,null,null,null,null,null,null,null,null,null,null,null,null,null,"負",3.097,"0"]
[null,null,null,null,null,null,null,null,null,null,null,null,null,null,"対",3.0979999999999999,"0"]
[null,null,null,null,null,null,null,null,null,null,null,null,null,null,"屋",3.0990000000000002,"0"]
[null,null,null,null,null,null,null,null,null,null,null,null,null,null,"員",3.1,"0","口","貝"]
[null,null,null,null,null,null,null,null,null,null,null,null,null,null,"写",3.101,"0"]
[null,null,null,null,null,null,null,null,null,null,null,null,null,null,"真",3.1019999999999999,"0"]
[null,null,null,null,null,null,null,null,null,null,null,null,null,null,"祭",3.1030000000000002,"0"]
[null,null,null,null,null,null,null,null,null,null,null,null,null,null,"部",3.1040000000000001,"0"]
[null,null,null,null,null,null,null,null,null,null,null,null,null,null,"係",3.105,"0"]
[null,null,null,null,null,null,null,null,null,null,null,null,null,null,"板",3.1059999999999999,"0"]
[null,null,null,null,null,null,null,null,null,null,null,null,null,null,"柱",3.1070000000000002,"0"]
[null,null,null,null,null,null,null,null,null,null,null,null,null,null,"油",3.1080000000000001,"0"]
[null,null,null,null,null,null,null,null,null,null,null,null,null,null,"港",3.109,"0"]
[null,null,null,null,null,null,null,null,null,null,null,null,null,null,"起",3.11,"0"]
[null,null,null,null,null,null,null,null,null,null,null,null,null,null,"列",3.1110000000000002,"0"]
[null,null,null,null,null,null,null,null,null,null,null,null,null,null,"乗",3.1120000000000001,"0"]
[null,null,null,null,null,null,null,null,null,null,null,null,null,null,"急",3.113,"0"]
[null,null,null,null,null,null,null,null,null,null,null,null,null,null,"追",3.1139999999999999,"0"]
[null,null,null,null,null,null,null,null,null,null,null,null,null,null,"血",3.1150000000000002,"0"]
[null,null,null,null,null,null,null,null,null,null,null,null,null,null,"暗",3.1160000000000001,"0","日","音"]
[null,null,null,null,null,null,null,null,null,null,null,null,null,null,"橋",3.117,"0"]
[null,null,null,null,null,null,null,null,null,null,null,null,null,null,"暑",3.1179999999999999,"0","日","者"]
[null,null,null,null,null,null,null,null,null,null,null,null,null,null,"寒",3.1189999999999998,"0"]
[null,null,null,null,null,null,null,null,null,null,null,null,null,null,"軽",3.12,"0"]
[null,null,null,null,null,null,null,null,null,null,null,null,null,null,"命",3.121,"0"]
[null,null,null,null,null,null,null,null,null,null,null,null,null,null,"第",3.1219999999999999,"0"]
[null,null,null,null,null,null,null,null,null,null,null,null,null,null,"主",3.1230000000000002,"0"]
[null,null,null,null,null,null,null,null,null,null,null,null,null,null,"州",3.1240000000000001,"0"]
[null,null,null,null,null,null,null,null,null,null,null,null,null,null,"根",3.125,"0",null,null,null,"火"]
[null,null,null,null,null,null,null,null,null,null,null,null,null,null,"流",3.1259999999999999,"0"]
[null,null,null,null,null,null,null,null,null,null,null,null,null,null,"荷",3.1269999999999998,"0"]
[null,null,null,null,null,null,null,null,null,null,null,null,null,null,"君",3.1280000000000001,"0"]
[null,null,null,null,null,null,null,null,null,null,null,null,null,null,"守",3.129,"0"]
[null,null,null,null,null,null,null,null,null,null,null,null,null,null,"進",3.13,"0"]
[null,null,null,null,null,null,null,null,null,null,null,null,null,null,"役",3.1310000000000002,"0"]
[null,null,null,null,null,null,null,null,null,null,null,null,null,null,"他",3.1320000000000001,"0"]
[null,null,null,null,null,null,null,null,null,null,null,null,null,null,"豆",3.133,"0"]
[null,null,null,null,null,null,null,null,null,null,null,null,null,null,"者",3.1339999999999999,"0"]
[null,null,null,null,null,null,null,null,null,null,null,null,null,null,"育",3.1349999999999998,"0"]
[null,null,null,null,null,null,null,null,null,null,null,null,null,null,"消",3.1360000000000001,"0"]
[null,null,null,null,null,null,null,null,null,null,null,null,null,null,"取",3.137,"0"]
[null,null,null,null,null,null,null,null,null,null,null,null,null,null,"期",3.1379999999999999,"0"]
[null,null,null,null,null,null,null,null,null,null,null,null,null,null,"畑",3.1390000000000002,"0","火","田"]
[null,null,null,null,null,null,null,null,null,null,null,null,null,null,"福",3.14,"0"]
[null,null,null,null,null,null,null,null,null,null,null,null,null,null,"苦",3.141,"0"]
[null,null,null,null,null,null,null,null,null,null,null,null,null,null,"倍",3.1419999999999999,"0"]
[null,null,null,null,null,null,null,null,null,null,null,null,null,null,"談",3.1429999999999998,"0","言","★","火"]
[null,null,null,null,null,null,null,null,null,null,null,null,null,null,"鼻",3.1440000000000001,"0"]
[null,null,null,null,null,null,null,null,null,null,null,null,null,null,"歯",3.145,"0"]
[null,null,null,null,null,null,null,null,null,null,null,null,null,null,"階",3.1459999999999999,{"$f":"IF(P390>$Q$2,\"0\",\"1\")","v":"0"}]
[null,null,null,null,null,null,null,null,null,null,null,null,null,null,"央",3.1469999999999998,"0"]
[null,null,null,null,null,null,null,null,null,null,null,null,null,null,"旅",3.1480000000000001,"0"]
[null,null,null,null,null,null,null,null,null,null,null,null,null,null,"委",3.149,"0"]
[null,null,null,null,null,null,null,null,null,null,null,null,null,null,"級",3.15,"0"]
[null,null,null,null,null,null,null,null,null,null,null,null,null,null,"昭",3.1509999999999998,"0"]
[null,null,null,null,null,null,null,null,null,null,null,null,null,null,"和",3.1520000000000001,"0"]
[null,null,null,null,null,null,null,null,null,null,null,null,null,null,"駅",3.153,"0"]
[null,null,null,null,null,null,null,null,null,null,null,null,null,null,"業",3.1539999999999999,"0"]
[null,null,null,null,null,null,null,null,null,null,null,null,null,null,"皮",3.1549999999999998,"0"]
[null,null,null,null,null,null,null,null,null,null,null,null,null,null,"皿",3.1560000000000001,"0"]
[null,null,null,null,null,null,null,null,null,null,null,null,null,null,"息",3.157,"0","自","心"]
[null,null,null,null,null,null,null,null,null,null,null,null,null,null,"美",3.1579999999999999,"0"]
[null,null,null,null,null,null,null,null,null,null,null,null,null,null,"転",3.1589999999999998,"0"]
[null,null,null,null,null,null,null,null,null,null,null,null,null,null,"病",3.16,"0"]
[null,null,null,null,null,null,null,null,null,null,null,null,null,null,"医",3.161,"0"]
[null,null,null,null,null,null,null,null,null,null,null,null,null,null,"薬",3.1619999999999999,"0"]
[null,null,null,null,null,null,null,null,null,null,null,null,null,null,"飲",3.1629999999999998,"0"]
[null,null,null,null,null,null,null,null,null,null,null,null,null,null,"重",3.1640000000000001,"0"]
[null,null,null,null,null,null,null,null,null,null,null,null,null,null,"配",3.165,"0"]
[null,null,null,null,null,null,null,null,null,null,null,null,null,null,"度",3.1659999999999999,"0"]
[null,null,null,null,null,null,null,null,null,null,null,null,null,null,"幸",3.1669999999999998,"0"]
[null,null,null,null,null,null,null,null,null,null,null,null,null,null,"始",3.1680000000000001,"0","女","台"]
[null,null,null,null,null,null,null,null,null,null,null,null,null,null,"島",3.169,"0"]
[null,null,null,null,null,null,null,null,null,null,null,null,null,null,"待",3.17,"0"]
[null,null,null,null,null,null,null,null,null,null,null,null,null,null,"受",3.1709999999999998,"0"]
[null,null,null,null,null,null,null,null,null,null,null,null,null,null,"代",3.1720000000000002,"0"]
[null,null,null,null,null,null,null,null,null,null,null,null,null,null,"曲",3.173,"0"]
[null,null,null,null,null,null,null,null,null,null,null,null,null,null,"投",3.1739999999999999,"0"]
[null,null,null,null,null,null,null,null,null,null,null,null,null,null,"炭",3.1749999999999998,"0"]
[null,null,null,null,null,null,null,null,null,null,null,null,null,null,"庫",3.1760000000000002,"0"]
[null,null,null,null,null,null,null,null,null,null,null,null,null,null,"羊",3.177,"0"]
[null,null,null,null,null,null,null,null,null,null,null,null,null,null,"勝",3.1779999999999999,"0"]
[null,null,null,null,null,null,null,null,null,null,null,null,null,null,"宿",3.1789999999999998,"0"]
[null,null,null,null,null,null,null,null,null,null,null,null,null,null,"丁",3.18,"0"]
[null,null,null,null,null,null,null,null,null,null,null,null,null,null,"帳",3.181,"0"]
[null,null,null,null,null,null,null,null,null,null,null,null,null,null,"宮",3.1819999999999999,"0"]
[null,null,null,null,null,null,null,null,null,null,null,null,null,null,"院",3.1829999999999998,"0"]
[null,null,null,null,null,null,null,null,null,null,null,null,null,null,"笛",3.1840000000000002,"0"]
[null,null,null,null,null,null,null,null,null,null,null,null,null,null,"礼",3.1850000000000001,"0"]
[null,null,null,null,null,null,null,null,null,null,null,null,null,null,"研",3.1859999999999999,"0"]
[null,null,null,null,null,null,null,null,null,null,null,null,null,null,"究",3.1869999999999998,"0"]
[null,null,null,null,null,null,null,null,null,null,null,null,null,null,"庭",3.1880000000000002,"0"]
[null,null,null,null,null,null,null,null,null,null,null,null,null,null,"等",3.1890000000000001,"0","竹","寺"]
[null,null,null,null,null,null,null,null,null,null,null,null,null,null,"湖",3.19,"0"]
[null,null,null,null,null,null,null,null,null,null,null,null,null,null,"注",3.1909999999999998,"0"]
[null,null,null,null,null,null,null,null,null,null,null,null,null,null,"反",3.1920000000000002,"0"]
[null,null,null,null,null,null,null,null,null,null,null,null,null,null,"波",3.1930000000000001,"0"]
[null,null,null,null,null,null,null,null,null,null,null,null,null,null,"勉",3.194,"0"]
[null,null,null,null,null,null,null,null,null,null,null,null,null,null,"放",3.1949999999999998,"0"]
[null,null,null,null,null,null,null,null,null,null,null,null,null,null,"打",3.1960000000000002,"0"]
[null,null,null,null,null,null,null,null,null,null,null,null,null,null,"速",3.1970000000000001,"0"]
[null,null,null,null,null,null,null,null,null,null,null,null,null,null,"神",3.198,"0",null,null,null,null,null,null,null,null,null,null,null,null,null,null,null,"神",3.198,"1"]
[null,null,null,null,null,null,null,null,null,null,null,null,null,null,"箱",3.1989999999999998,"0","竹",null,null,null,null,null,null,null,null,null,null,null,null,null,null,"箱",3.1989999999999998,"1"]
[null,null,null,null,null,null,null,null,null,null,null,null,null,null,"湯",3.2,"0",null,null,null,null,null,null,null,null,null,null,null,null,null,null,null,"湯",3.2,"1"]
[null,null,null,null,null,null,null,null,null,null,null,null,null,null,"信",4.0010000000000003,"0",null,null,null,null,null,null,null,null,null,null,null,null,null,null,null,"信",4.0010000000000003,"1"]
[null,null,null,null,null,null,null,null,null,null,null,null,null,null,"達",4.0019999999999998,"0",null,null,null,null,null,null,null,null,null,null,null,null,null,null,null,"達",4.0019999999999998,"1"]
[null,null,null,null,null,null,null,null,null,null,null,null,null,null,"飛",4.0030000000000001,"0",null,null,null,null,null,null,null,null,null,null,null,null,null,null,null,"飛",4.0030000000000001,"1"]
[null,null,null,null,null,null,null,null,null,null,null,null,null,null,"席",4.0039999999999996,"0",null,null,null,null,null,null,null,null,null,null,null,null,null,null,null,"席",4.0039999999999996,"1"]
[null,null,null,null,null,null,null,null,null,null,null,null,null,null,"建",4.0049999999999999,"0",null,null,null,null,null,null,null,null,null,null,null,null,null,null,null,"建",4.0049999999999999,"1"]
[null,null,null,null,null,null,null,null,null,null,null,null,null,null,"菜",4.0060000000000002,"0",null,null,null,null,null,null,null,null,null,null,null,null,null,null,null,"菜",4.0060000000000002,"1"]
[null,null,null,null,null,null,null,null,null,null,null,null,null,null,"例",4.0069999999999997,"0",null,null,null,null,null,null,null,null,null,null,null,null,null,null,null,"例",4.0069999999999997,"1"]
[null,null,null,null,null,null,null,null,null,null,null,null,null,null,"料",4.008,"0",null,null,null,null,null,null,null,null,null,null,null,null,null,null,null,"料",4.008,"1"]
[null,null,null,null,null,null,null,null,null,null,null,null,null,null,"良",4.0090000000000003,"0",null,null,null,null,null,null,null,null,null,null,null,null,null,null,null,"良",4.0090000000000003,"1"]
[null,null,null,null,null,null,null,null,null,null,null,null,null,null,"照",4.01,{"$f":"IF(P454>$Q$2,\"0\",\"1\")","v":"0"},null,null,null,null,null,null,null,null,null,null,null,null,null,null,null,"照",4.01,"1"]
[null,null,null,null,null,null,null,null,null,null,null,null,null,null,"熱",4.0110000000000001,"0",null,null,null,null,null,null,null,null,null,null,null,null,null,null,null,"熱",4.0110000000000001,"1"]
[null,null,null,null,null,null,null,null,null,null,null,null,null,null,"府",4.0119999999999996,"0",null,null,null,null,null,null,null,null,null,null,null,null,null,null,null,"府",4.0119999999999996,"1"]
[null,null,null,null,null,null,null,null,null,null,null,null,null,null,"児",4.0129999999999999,"0",null,null,null,null,null,null,null,null,null,null,null,null,null,null,null,"児",4.0129999999999999,"1"]
[null,null,null,null,null,null,null,null,null,null,null,null,null,null,"関",4.0140000000000002,"0",null,null,null,null,null,null,null,null,null,null,null,null,null,null,null,"関",4.0140000000000002,"1"]
[null,null,null,null,null,null,null,null,null,null,null,null,null,null,"辞",4.0149999999999997,"0",null,null,null,null,null,null,null,null,null,null,null,null,null,null,null,"辞",4.0149999999999997,"1"]
[null,null,null,null,null,null,null,null,null,null,null,null,null,null,"典",4.016,"0",null,null,null,null,null,null,null,null,null,null,null,null,null,null,null,"典",4.016,"1"]
[null,null,null,null,null,null,null,null,null,null,null,null,null,null,"成",4.0170000000000003,"0",null,null,null,null,null,null,null,null,null,null,null,null,null,null,null,"成",4.0170000000000003,"1"]
[null,null,null,null,null,null,null,null,null,null,null,null,null,null,"訓",4.0179999999999998,"0",null,null,null,null,null,null,null,null,null,null,null,null,null,null,null,"訓",4.0179999999999998,"1"]
[null,null,null,null,null,null,null,null,null,null,null,null,null,null,"類",4.0190000000000001,"0",null,null,null,null,null,null,null,null,null,null,null,null,null,null,null,"類",4.0190000000000001,"1"]
[null,null,null,null,null,null,null,null,null,null,null,null,null,null,"順",4.0199999999999996,"0",null,null,null,null,null,null,null,null,null,null,null,null,null,null,null,"順",4.0199999999999996,"1"]
[null,null,null,null,null,null,null,null,null,null,null,null,null,null,"愛　",4.0209999999999999,"0",null,null,null,null,null,null,null,null,null,null,null,null,null,null,null,"愛　",4.0209999999999999,"1"]
[null,null,null,null,null,null,null,null,null,null,null,null,null,null,"昨",4.0220000000000002,"0",null,null,null,null,null,null,null,null,null,null,null,null,null,null,null,"昨",4.0220000000000002,"1"]
[null,null,null,null,null,null,null,null,null,null,null,null,null,null,"城",4.0229999999999997,"0",null,null,null,null,null,null,null,null,null,null,null,null,null,null,null,"城",4.0229999999999997,"1"]
[null,null,null,null,null,null,null,null,null,null,null,null,null,null,"覚",4.024,"0",null,null,null,null,null,null,null,null,null,null,null,null,null,null,null,"覚",4.024,"1"]
[null,null,null,null,null,null,null,null,null,null,null,null,null,null,"伝",4.0250000000000004,"0",null,null,null,null,null,null,null,null,null,null,null,null,null,null,null,"伝",4.0250000000000004,"1"]
[null,null,null,null,null,null,null,null,null,null,null,null,null,null,"説",4.0259999999999998,"0",null,null,null,null,null,null,null,null,null,null,null,null,null,null,null,"説",4.0259999999999998,"1"]
[null,null,null,null,null,null,null,null,null,null,null,null,null,null,"好",4.0270000000000001,"0",null,null,null,null,null,null,null,null,null,null,null,null,null,null,null,"好",4.0270000000000001,"1"]
[null,null,null,null,null,null,null,null,null,null,null,null,null,null,"印",4.0279999999999996,"0",null,null,null,null,null,null,null,null,null,null,null,null,null,null,null,"印",4.0279999999999996,"1"]
[null,null,null,null,null,null,null,null,null,null,null,null,null,null,"要",4.0289999999999999,"0",null,null,null,null,null,null,null,null,null,null,null,null,null,null,null,"要",4.0289999999999999,"1"]
[null,null,null,null,null,null,null,null,null,null,null,null,null,null,"的",4.03,"0",null,null,null,null,null,null,null,null,null,null,null,null,null,null,null,"的",4.03,"1"]
[null,null,null,null,null,null,null,null,null,null,null,null,null,null,"必",4.0309999999999997,"0",null,null,null,null,null,null,null,null,null,null,null,null,null,null,null,"必",4.0309999999999997,"1"]
[null,null,null,null,null,null,null,null,null,null,null,null,null,null,"初",4.032,"0",null,null,null,null,null,null,null,null,null,null,null,null,null,null,null,"初",4.032,"1"]
[null,null,null,null,null,null,null,null,null,null,null,null,null,null,"案",4.0330000000000004,"0",null,null,null,null,null,null,null,null,null,null,null,null,null,null,null,"案",4.0330000000000004,"1"]
[null,null,null,null,null,null,null,null,null,null,null,null,null,null,"街",4.0339999999999998,"0",null,null,null,null,null,null,null,null,null,null,null,null,null,null,null,"街",4.0339999999999998,"1"]
[null,null,null,null,null,null,null,null,null,null,null,null,null,null,"試",4.0350000000000001,"0",null,null,null,null,null,null,null,null,null,null,null,null,null,null,null,"試",4.0350000000000001,"1"]
[null,null,null,null,null,null,null,null,null,null,null,null,null,null,"選",4.0359999999999996,"0",null,null,null,null,null,null,null,null,null,null,null,null,null,null,null,"選",4.0359999999999996,"1"]
[null,null,null,null,null,null,null,null,null,null,null,null,null,null,"観",4.0369999999999999,"0",null,null,null,null,null,null,null,null,null,null,null,null,null,null,null,"観",4.0369999999999999,"1"]
[null,null,null,null,null,null,null,null,null,null,null,null,null,null,"静",4.0380000000000003,"0",null,null,null,null,null,null,null,null,null,null,null,null,null,null,null,"静",4.0380000000000003,"1"]
[null,null,null,null,null,null,null,null,null,null,null,null,null,null,"旗",4.0389999999999997,"0",null,null,null,null,null,null,null,null,null,null,null,null,null,null,null,"旗",4.0389999999999997,"1"]
[null,null,null,null,null,null,null,null,null,null,null,null,null,null,"材",4.04,"0",null,null,null,null,null,null,null,null,null,null,null,null,null,null,null,"材",4.04,"1"]
[null,null,null,null,null,null,null,null,null,null,null,null,null,null,"栃",4.0410000000000004,"0",null,null,null,null,null,null,null,null,null,null,null,null,null,null,null,"栃",4.0410000000000004,"1"]
[null,null,null,null,null,null,null,null,null,null,null,null,null,null,"群",4.0419999999999998,"0",null,null,null,null,null,null,null,null,null,null,null,null,null,null,null,"群",4.0419999999999998,"1"]
[null,null,null,null,null,null,null,null,null,null,null,null,null,null,"埼",4.0430000000000001,"0",null,null,null,null,null,null,null,null,null,null,null,null,null,null,null,"埼",4.0430000000000001,"0"]
[null,null,null,null,null,null,null,null,null,null,null,null,null,null,"潟",4.0439999999999996,"0",null,null,null,null,null,null,null,null,null,null,null,null,null,null,null,"潟",4.0439999999999996,"0"]
[null,null,null,null,null,null,null,null,null,null,null,null,null,null,"井",4.0449999999999999,"0",null,null,null,null,null,null,null,null,null,null,null,null,null,null,null,"井",4.0449999999999999,"0"]
[null,null,null,null,null,null,null,null,null,null,null,null,null,null,"梨",4.0460000000000003,"0",null,null,null,null,null,null,null,null,null,null,null,null,null,null,null,"梨",4.0460000000000003,"0"]
[null,null,null,null,null,null,null,null,null,null,null,null,null,null,"岡",4.0469999999999997,"0",null,null,null,null,null,null,null,null,null,null,null,null,null,null,null,"岡",4.0469999999999997,"0"]
[null,null,null,null,null,null,null,null,null,null,null,null,null,null,"茨",4.048,"0",null,null,null,null,null,null,null,null,null,null,null,null,null,null,null,"茨",4.048,"0"]
[null,null,null,null,null,null,null,null,null,null,null,null,null,null,"奈",4.0490000000000004,"0",null,null,null,null,null,null,null,null,null,null,null,null,null,null,null,"奈",4.0490000000000004,"0"]
[null,null,null,null,null,null,null,null,null,null,null,null,null,null,"富",4.05,"0",null,null,null,null,null,null,null,null,null,null,null,null,null,null,null,"富",4.05,"0"]
[null,null,null,null,null,null,null,null,null,null,null,null,null,null,"岐",4.0510000000000002,"0",null,null,null,null,null,null,null,null,null,null,null,null,null,null,null,"岐",4.0510000000000002,"0"]
[null,null,null,null,null,null,null,null,null,null,null,null,null,null,"阜",4.0519999999999996,"0",null,null,null,null,null,null,null,null,null,null,null,null,null,null,null,"阜",4.0519999999999996,"0"]
[null,null,null,null,null,null,null,null,null,null,null,null,null,null,"季",4.0529999999999999,"0",null,null,null,null,null,null,null,null,null,null,null,null,null,null,null,"季",4.0529999999999999,"0"]
[null,null,null,null,null,null,null,null,null,null,null,null,null,null,"節",4.0540000000000003,"0",null,null,null,null,null,null,null,null,null,null,null,null,null,null,null,"節",4.0540000000000003,"0"]
[null,null,null,null,null,null,null,null,null,null,null,null,null,null,"別",4.0549999999999997,"0",null,null,null,null,null,null,null,null,null,null,null,null,null,null,null,"別",4.0549999999999997,"0"]
[null,null,null,null,null,null,null,null,null,null,null,null,null,null,"郡",4.056,"0",null,null,null,null,null,null,null,null,null,null,null,null,null,null,null,"郡",4.056,"0"]
[null,null,null,null,null,null,null,null,null,null,null,null,null,null,"戦",4.0570000000000004,"0",null,null,null,null,null,null,null,null,null,null,null,null,null,null,null,"戦",4.0570000000000004,"0"]
[null,null,null,null,null,null,null,null,null,null,null,null,null,null,"争",4.0579999999999998,"0",null,null,null,null,null,null,null,null,null,null,null,null,null,null,null,"争",4.0579999999999998,"0"]
[null,null,null,null,null,null,null,null,null,null,null,null,null,null,"最",4.0590000000000002,"0",null,null,null,null,null,null,null,null,null,null,null,null,null,null,null,"最",4.0590000000000002,"0"]
[null,null,null,null,null,null,null,null,null,null,null,null,null,null,"給",4.0599999999999996,"0",null,null,null,null,null,null,null,null,null,null,null,null,null,null,null,"給",4.0599999999999996,"0"]
[null,null,null,null,null,null,null,null,null,null,null,null,null,null,"機",4.0609999999999999,"0",null,null,null,null,null,null,null,null,null,null,null,null,null,null,null,"機",4.0609999999999999,"0"]
[null,null,null,null,null,null,null,null,null,null,null,null,null,null,"包",4.0620000000000003,"0",null,null,null,null,null,null,null,null,null,null,null,null,null,null,null,"包",4.0620000000000003,"0"]
[null,null,null,null,null,null,null,null,null,null,null,null,null,null,"帯",4.0629999999999997,"0",null,null,null,null,null,null,null,null,null,null,null,null,null,null,null,"帯",4.0629999999999997,"0"]
[null,null,null,null,null,null,null,null,null,null,null,null,null,null,"泣",4.0640000000000001,"0",null,null,null,null,null,null,null,null,null,null,null,null,null,null,null,"泣",4.0640000000000001,"0"]
[null,null,null,null,null,null,null,null,null,null,null,null,null,null,"勇",4.0650000000000004,"0",null,null,null,null,null,null,null,null,null,null,null,null,null,null,null,"勇",4.0650000000000004,"0"]
[null,null,null,null,null,null,null,null,null,null,null,null,null,null,"軍",4.0659999999999998,"0",null,null,null,null,null,null,null,null,null,null,null,null,null,null,null,"軍",4.0659999999999998,"0"]
[null,null,null,null,null,null,null,null,null,null,null,null,null,null,"兵",4.0670000000000002,"0",null,null,null,null,null,null,null,null,null,null,null,null,null,null,null,"兵",4.0670000000000002,"0"]
[null,null,null,null,null,null,null,null,null,null,null,null,null,null,"隊",4.0679999999999996,"0",null,null,null,null,null,null,null,null,null,null,null,null,null,null,null,"隊",4.0679999999999996,"0"]
[null,null,null,null,null,null,null,null,null,null,null,null,null,null,"輪",4.069,"0",null,null,null,null,null,null,null,null,null,null,null,null,null,null,null,"輪",4.069,"0"]
[null,null,null,null,null,null,null,null,null,null,null,null,null,null,"特",4.07,"0",null,null,null,null,null,null,null,null,null,null,null,null,null,null,null,"特",4.07,"0"]
[null,null,null,null,null,null,null,null,null,null,null,null,null,null,"夫",4.0709999999999997,"0",null,null,null,null,null,null,null,null,null,null,null,null,null,null,null,"夫",4.0709999999999997,"0"]
[null,null,null,null,null,null,null,null,null,null,null,null,null,null,"衣",4.0720000000000001,"0",null,null,null,null,null,null,null,null,null,null,null,null,null,null,null,"衣",4.0720000000000001,"0"]
[null,null,null,null,null,null,null,null,null,null,null,null,null,null,"氏",4.0730000000000004,"0",null,null,null,null,null,null,null,null,null,null,null,null,null,null,null,"氏",4.0730000000000004,"0"]
[null,null,null,null,null,null,null,null,null,null,null,null,null,null,"祝",4.0739999999999998,{"$f":"IF(P518>$Q$2,\"0\",\"1\")","v":"0"},null,null,null,null,null,null,null,null,null,null,null,null,null,null,null,"祝",4.0739999999999998,"0"]
[null,null,null,null,null,null,null,null,null,null,null,null,null,null,"徒",4.0750000000000002,"0",null,null,null,null,null,null,null,null,null,null,null,null,null,null,null,"徒",4.0750000000000002,"0"]
[null,null,null,null,null,null,null,null,null,null,null,null,null,null,"競",4.0759999999999996,"0",null,null,null,null,null,null,null,null,null,null,null,null,null,null,null,"競",4.0759999999999996,"0"]
[null,null,null,null,null,null,null,null,null,null,null,null,null,null,"約",4.077,"0",null,null,null,null,null,null,null,null,null,null,null,null,null,null,null,"約",4.077,"0"]
[null,null,null,null,null,null,null,null,null,null,null,null,null,null,"清",4.0780000000000003,"0",null,null,null,null,null,null,null,null,null,null,null,null,null,null,null,"清",4.0780000000000003,"0"]
[null,null,null,null,null,null,null,null,null,null,null,null,null,null,"完",4.0789999999999997,"0",null,null,null,null,null,null,null,null,null,null,null,null,null,null,null,"完",4.0789999999999997,"0"]
[null,null,null,null,null,null,null,null,null,null,null,null,null,null,"法",4.08,"0",null,null,null,null,null,null,null,null,null,null,null,null,null,null,null,"法",4.08,"0"]
[null,null,null,null,null,null,null,null,null,null,null,null,null,null,"滋",4.0810000000000004,"0",null,null,null,null,null,null,null,null,null,null,null,null,null,null,null,"滋",4.0810000000000004,"0"]
[null,null,null,null,null,null,null,null,null,null,null,null,null,null,"阪",4.0819999999999999,"0",null,null,null,null,null,null,null,null,null,null,null,null,null,null,null,"阪",4.0819999999999999,"0"]
[null,null,null,null,null,null,null,null,null,null,null,null,null,null,"徳",4.0830000000000002,"0",null,null,null,null,null,null,null,null,null,null,null,null,null,null,null,"徳",4.0830000000000002,"0"]
[null,null,null,null,null,null,null,null,null,null,null,null,null,null,"香",4.0839999999999996,"0",null,null,null,null,null,null,null,null,null,null,null,null,null,null,null,"香",4.0839999999999996,"0"]
[null,null,null,null,null,null,null,null,null,null,null,null,null,null,"佐",4.085,"0",null,null,null,null,null,null,null,null,null,null,null,null,null,null,null,"佐",4.085,"0"]
[null,null,null,null,null,null,null,null,null,null,null,null,null,null,"賀",4.0860000000000003,"0",null,null,null,null,null,null,null,null,null,null,null,null,null,null,null,"賀",4.0860000000000003,"0"]
[null,null,null,null,null,null,null,null,null,null,null,null,null,null,"崎",4.0869999999999997,"0",null,null,null,null,null,null,null,null,null,null,null,null,null,null,null,"崎",4.0869999999999997,"0"]
[null,null,null,null,null,null,null,null,null,null,null,null,null,null,"熊",4.0880000000000001,"0",null,null,null,null,null,null,null,null,null,null,null,null,null,null,null,"熊",4.0880000000000001,"0"]
[null,null,null,null,null,null,null,null,null,null,null,null,null,null,"沖",4.0890000000000004,"0",null,null,null,null,null,null,null,null,null,null,null,null,null,null,null,"沖",4.0890000000000004,"0"]
[null,null,null,null,null,null,null,null,null,null,null,null,null,null,"縄",4.09,"0",null,null,null,null,null,null,null,null,null,null,null,null,null,null,null,"縄",4.09,"0"]
[null,null,null,null,null,null,null,null,null,null,null,null,null,null,"媛",4.0910000000000002,"0",null,null,null,null,null,null,null,null,null,null,null,null,null,null,null,"媛",4.0910000000000002,"0"]
[null,null,null,null,null,null,null,null,null,null,null,null,null,null,"鹿",4.0919999999999996,"0",null,null,null,null,null,null,null,null,null,null,null,null,null,null,null,"鹿",4.0919999999999996,"0"]
[null,null,null,null,null,null,null,null,null,null,null,null,null,null,"未",4.093,"0",null,null,null,null,null,null,null,null,null,null,null,null,null,null,null,"未",4.093,"0"]
[null,null,null,null,null,null,null,null,null,null,null,null,null,null,"希",4.0940000000000003,"0",null,null,null,null,null,null,null,null,null,null,null,null,null,null,null,"希",4.0940000000000003,"0"]
[null,null,null,null,null,null,null,null,null,null,null,null,null,null,"望",4.0949999999999998,"0",null,null,null,null,null,null,null,null,null,null,null,null,null,null,null,"望",4.0949999999999998,"0"]
[null,null,null,null,null,null,null,null,null,null,null,null,null,null,"民",4.0960000000000001,"0",null,null,null,null,null,null,null,null,null,null,null,null,null,null,null,"民",4.0960000000000001,"0"]
[null,null,null,null,null,null,null,null,null,null,null,null,null,null,"働",4.0970000000000004,"0",null,null,null,null,null,null,null,null,null,null,null,null,null,null,null,"働",4.0970000000000004,"0"]
[null,null,null,null,null,null,null,null,null,null,null,null,null,null,"健",4.0979999999999999,"0",null,null,null,null,null,null,null,null,null,null,null,null,null,null,null,"健",4.0979999999999999,"0"]
[null,null,null,null,null,null,null,null,null,null,null,null,null,null,"康",4.0990000000000002,"0",null,null,null,null,null,null,null,null,null,null,null,null,null,null,null,"康",4.0990000000000002,"0"]
[null,null,null,null,null,null,null,null,null,null,null,null,null,null,"散",4.0999999999999996,"0",null,null,null,null,null,null,null,null,null,null,null,null,null,null,null,"散",4.0999999999999996,"0"]
[null,null,null,null,null,null,null,null,null,null,null,null,null,null,"令",4.101,"0",null,null,null,null,null,null,null,null,null,null,null,null,null,null,null,"令",4.101,"0"]
[null,null,null,null,null,null,null,null,null,null,null,null,null,null,"位",4.1020000000000003,"0",null,null,null,null,null,null,null,null,null,null,null,null,null,null,null,"位",4.1020000000000003,"0"]
[null,null,null,null,null,null,null,null,null,null,null,null,null,null,"置",4.1029999999999998,"0",null,null,null,null,null,null,null,null,null,null,null,null,null,null,null,"置",4.1029999999999998,"0"]
[null,null,null,null,null,null,null,null,null,null,null,null,null,null,"欠",4.1040000000000001,"0",null,null,null,null,null,null,null,null,null,null,null,null,null,null,null,"欠",4.1040000000000001,"0"]
[null,null,null,null,null,null,null,null,null,null,null,null,null,null,"満",4.1050000000000004,"0",null,null,null,null,null,null,null,null,null,null,null,null,null,null,null,"満",4.1050000000000004,"0"]
[null,null,null,null,null,null,null,null,null,null,null,null,null,null,"栄",4.1059999999999999,"0",null,null,null,null,null,null,null,null,null,null,null,null,null,null,null,"栄",4.1059999999999999,"0"]
[null,null,null,null,null,null,null,null,null,null,null,null,null,null,"養",4.1070000000000002,"0",null,null,null,null,null,null,null,null,null,null,null,null,null,null,null,"養",4.1070000000000002,"0"]
[null,null,null,null,null,null,null,null,null,null,null,null,null,null,"卒",4.1079999999999997,"0",null,null,null,null,null,null,null,null,null,null,null,null,null,null,null,"卒",4.1079999999999997,"0"]
[null,null,null,null,null,null,null,null,null,null,null,null,null,null,"単",4.109,"0",null,null,null,null,null,null,null,null,null,null,null,null,null,null,null,"単",4.109,"0"]
[null,null,null,null,null,null,null,null,null,null,null,null,null,null,"結",4.1100000000000003,"0",null,null,null,null,null,null,null,null,null,null,null,null,null,null,null,"結",4.1100000000000003,"0"]
[null,null,null,null,null,null,null,null,null,null,null,null,null,null,"果",4.1109999999999998,"0",null,null,null,null,null,null,null,null,null,null,null,null,null,null,null,"果",4.1109999999999998,"0"]
[null,null,null,null,null,null,null,null,null,null,null,null,null,null,"漁",4.1120000000000001,"0",null,null,null,null,null,null,null,null,null,null,null,null,null,null,null,"漁",4.1120000000000001,"0"]
[null,null,null,null,null,null,null,null,null,null,null,null,null,null,"径",4.1130000000000004,"0",null,null,null,null,null,null,null,null,null,null,null,null,null,null,null,"径",4.1130000000000004,"0"]
[null,null,null,null,null,null,null,null,null,null,null,null,null,null,"副",4.1139999999999999,"0",null,null,null,null,null,null,null,null,null,null,null,null,null,null,null,"副",4.1139999999999999,"0"]
[null,null,null,null,null,null,null,null,null,null,null,null,null,null,"臣",4.1150000000000002,"0",null,null,null,null,null,null,null,null,null,null,null,null,null,null,null,"臣",4.1150000000000002,"0"]
[null,null,null,null,null,null,null,null,null,null,null,null,null,null,"梅",4.1159999999999997,"0",null,null,null,null,null,null,null,null,null,null,null,null,null,null,null,"梅",4.1159999999999997,"0"]
[null,null,null,null,null,null,null,null,null,null,null,null,null,null,"灯",4.117,"0",null,null,null,null,null,null,null,null,null,null,null,null,null,null,null,"灯",4.117,"0"]
[null,null,null,null,null,null,null,null,null,null,null,null,null,null,"貨",4.1180000000000003,"0",null,null,null,null,null,null,null,null,null,null,null,null,null,null,null,"貨",4.1180000000000003,"0"]
[null,null,null,null,null,null,null,null,null,null,null,null,null,null,"変",4.1189999999999998,"0",null,null,null,null,null,null,null,null,null,null,null,null,null,null,null,"変",4.1189999999999998,"0"]
[null,null,null,null,null,null,null,null,null,null,null,null,null,null,"種",4.12,"0",null,null,null,null,null,null,null,null,null,null,null,null,null,null,null,"種",4.12,"0"]
[null,null,null,null,null,null,null,null,null,null,null,null,null,null,"続",4.1210000000000004,"0",null,null,null,null,null,null,null,null,null,null,null,null,null,null,null,"続",4.1210000000000004,"0"]
[null,null,null,null,null,null,null,null,null,null,null,null,null,null,"折",4.1219999999999999,"0",null,null,null,null,null,null,null,null,null,null,null,null,null,null,null,"折",4.1219999999999999,"0"]
[null,null,null,null,null,null,null,null,null,null,null,null,null,null,"積",4.1230000000000002,"0",null,null,null,null,null,null,null,null,null,null,null,null,null,null,null,"積",4.1230000000000002,"0"]
[null,null,null,null,null,null,null,null,null,null,null,null,null,null,"飯",4.1239999999999997,"0",null,null,null,null,null,null,null,null,null,null,null,null,null,null,null,"飯",4.1239999999999997,"0"]
[null,null,null,null,null,null,null,null,null,null,null,null,null,null,"松",4.125,"0",null,null,null,null,null,null,null,null,null,null,null,null,null,null,null,"松",4.125,"0"]
[null,null,null,null,null,null,null,null,null,null,null,null,null,null,"不",4.1260000000000003,"0",null,null,null,null,null,null,null,null,null,null,null,null,null,null,null,"不",4.1260000000000003,"0"]
[null,null,null,null,null,null,null,null,null,null,null,null,null,null,"議",4.1269999999999998,"0",null,null,null,null,null,null,null,null,null,null,null,null,null,null,null,"議",4.1269999999999998,"0"]
[null,null,null,null,null,null,null,null,null,null,null,null,null,null,"差",4.1280000000000001,"0",null,null,null,null,null,null,null,null,null,null,null,null,null,null,null,"差",4.1280000000000001,"0"]
[null,null,null,null,null,null,null,null,null,null,null,null,null,null,"念",4.1289999999999996,"0",null,null,null,null,null,null,null,null,null,null,null,null,null,null,null,"念",4.1289999999999996,"0"]
[null,null,null,null,null,null,null,null,null,null,null,null,null,null,"連",4.13,"0",null,null,null,null,null,null,null,null,null,null,null,null,null,null,null,"連",4.13,"0"]
[null,null,null,null,null,null,null,null,null,null,null,null,null,null,"景",4.1310000000000002,"0",null,null,null,null,null,null,null,null,null,null,null,null,null,null,null,"景",4.1310000000000002,"0"]
[null,null,null,null,null,null,null,null,null,null,null,null,null,null,"末",4.1319999999999997,"0",null,null,null,null,null,null,null,null,null,null,null,null,null,null,null,"末",4.1319999999999997,"0"]
[null,null,null,null,null,null,null,null,null,null,null,null,null,null,"司",4.133,"0",null,null,null,null,null,null,null,null,null,null,null,null,null,null,null,"司",4.133,"0"]
[null,null,null,null,null,null,null,null,null,null,null,null,null,null,"録",4.1340000000000003,"0",null,null,null,null,null,null,null,null,null,null,null,null,null,null,null,"録",4.1340000000000003,"0"]
[null,null,null,null,null,null,null,null,null,null,null,null,null,null,"参",4.1349999999999998,"0",null,null,null,null,null,null,null,null,null,null,null,null,null,null,null,"参",4.1349999999999998,"0"]
[null,null,null,null,null,null,null,null,null,null,null,null,null,null,"加",4.1360000000000001,"0",null,null,null,null,null,null,null,null,null,null,null,null,null,null,null,"加",4.1360000000000001,"0"]
[null,null,null,null,null,null,null,null,null,null,null,null,null,null,"挙",4.1370000000000005,"0",null,null,null,null,null,null,null,null,null,null,null,null,null,null,null,"挙",4.1370000000000005,"0"]
[null,null,null,null,null,null,null,null,null,null,null,null,null,null,"協",4.1379999999999999,{"$f":"IF(P582>$Q$2,\"0\",\"1\")","v":"0"},null,null,null,null,null,null,null,null,null,null,null,null,null,null,null,"協",4.1379999999999999,"0"]
[null,null,null,null,null,null,null,null,null,null,null,null,null,null,"験",4.1390000000000002,"0",null,null,null,null,null,null,null,null,null,null,null,null,null,null,null,"験",4.1390000000000002,"0"]
[null,null,null,null,null,null,null,null,null,null,null,null,null,null,"極",4.1399999999999997,"0",null,null,null,null,null,null,null,null,null,null,null,null,null,null,null,"極",4.1399999999999997,"0"]
[null,null,null,null,null,null,null,null,null,null,null,null,null,null,"芸",4.141,"0",null,null,null,null,null,null,null,null,null,null,null,null,null,null,null,"芸",4.141,"0"]
[null,null,null,null,null,null,null,null,null,null,null,null,null,null,"無",4.1420000000000003,"0",null,null,null,null,null,null,null,null,null,null,null,null,null,null,null,"無",4.1420000000000003,"0"]
[null,null,null,null,null,null,null,null,null,null,null,null,null,null,"械",4.1429999999999998,"0",null,null,null,null,null,null,null,null,null,null,null,null,null,null,null,"械",4.1429999999999998,"0"]
[null,null,null,null,null,null,null,null,null,null,null,null,null,null,"以",4.1440000000000001,"0",null,null,null,null,null,null,null,null,null,null,null,null,null,null,null,"以",4.1440000000000001,"0"]
[null,null,null,null,null,null,null,null,null,null,null,null,null,null,"博",4.1449999999999996,"0",null,null,null,null,null,null,null,null,null,null,null,null,null,null,null,"博",4.1449999999999996,"0"]
[null,null,null,null,null,null,null,null,null,null,null,null,null,null,"管",4.1459999999999999,"0",null,null,null,null,null,null,null,null,null,null,null,null,null,null,null,"管",4.1459999999999999,"0"]
[null,null,null,null,null,null,null,null,null,null,null,null,null,null,"便",4.1470000000000002,"0",null,null,null,null,null,null,null,null,null,null,null,null,null,null,null,"便",4.1470000000000002,"0"]
[null,null,null,null,null,null,null,null,null,null,null,null,null,null,"孫",4.1479999999999997,"0",null,null,null,null,null,null,null,null,null,null,null,null,null,null,null,"孫",4.1479999999999997,"0"]
[null,null,null,null,null,null,null,null,null,null,null,null,null,null,"量",4.149,"0",null,null,null,null,null,null,null,null,null,null,null,null,null,null,null,"量",4.149,"0"]
[null,null,null,null,null,null,null,null,null,null,null,null,null,null,"借",4.1500000000000004,"0",null,null,null,null,null,null,null,null,null,null,null,null,null,null,null,"借",4.1500000000000004,"0"]
[null,null,null,null,null,null,null,null,null,null,null,null,null,null,"仲",4.1509999999999998,"0",null,null,null,null,null,null,null,null,null,null,null,null,null,null,null,"仲",4.1509999999999998,"0"]
[null,null,null,null,null,null,null,null,null,null,null,null,null,null,"底",4.1520000000000001,"0",null,null,null,null,null,null,null,null,null,null,null,null,null,null,null,"底",4.1520000000000001,"0"]
[null,null,null,null,null,null,null,null,null,null,null,null,null,null,"浅",4.1529999999999996,"0",null,null,null,null,null,null,null,null,null,null,null,null,null,null,null,"浅",4.1529999999999996,"0"]
[null,null,null,null,null,null,null,null,null,null,null,null,null,null,"焼",4.1539999999999999,"0",null,null,null,null,null,null,null,null,null,null,null,null,null,null,null,"焼",4.1539999999999999,"0"]
[null,null,null,null,null,null,null,null,null,null,null,null,null,null,"利",4.1550000000000002,"0",null,null,null,null,null,null,null,null,null,null,null,null,null,null,null,"利",4.1550000000000002,"0"]
[null,null,null,null,null,null,null,null,null,null,null,null,null,null,"笑",4.1559999999999997,"0",null,null,null,null,null,null,null,null,null,null,null,null,null,null,null,"笑",4.1559999999999997,"0"]
[null,null,null,null,null,null,null,null,null,null,null,null,null,null,"省",4.157,"0",null,null,null,null,null,null,null,null,null,null,null,null,null,null,null,"省",4.157,"0"]
[null,null,null,null,null,null,null,null,null,null,null,null,null,null,"残",4.1580000000000004,"0",null,null,null,null,null,null,null,null,null,null,null,null,null,null,null,"残",4.1580000000000004,"0"]
[null,null,null,null,null,null,null,null,null,null,null,null,null,null,"周",4.1589999999999998,"0",null,null,null,null,null,null,null,null,null,null,null,null,null,null,null,"周",4.1589999999999998,"0"]
[null,null,null,null,null,null,null,null,null,null,null,null,null,null,"課",4.16,"0",null,null,null,null,null,null,null,null,null,null,null,null,null,null,null,"課",4.16,"0"]
[null,null,null,null,null,null,null,null,null,null,null,null,null,null,"然",4.1609999999999996,"0",null,null,null,null,null,null,null,null,null,null,null,null,null,null,null,"然",4.1609999999999996,"0"]
[null,null,null,null,null,null,null,null,null,null,null,null,null,null,"浴",4.1619999999999999,"0",null,null,null,null,null,null,null,null,null,null,null,null,null,null,null,"浴",4.1619999999999999,"0"]
[null,null,null,null,null,null,null,null,null,null,null,null,null,null,"芽",4.1630000000000003,"0",null,null,null,null,null,null,null,null,null,null,null,null,null,null,null,"芽",4.1630000000000003,"0"]
[null,null,null,null,null,null,null,null,null,null,null,null,null,null,"改",4.1639999999999997,"0",null,null,null,null,null,null,null,null,null,null,null,null,null,null,null,"改",4.1639999999999997,"0"]
[null,null,null,null,null,null,null,null,null,null,null,null,null,null,"共",4.165,"0",null,null,null,null,null,null,null,null,null,null,null,null,null,null,null,"共",4.165,"0"]
[null,null,null,null,null,null,null,null,null,null,null,null,null,null,"願",4.1660000000000004,"0",null,null,null,null,null,null,null,null,null,null,null,null,null,null,null,"願",4.1660000000000004,"0"]
[null,null,null,null,null,null,null,null,null,null,null,null,null,null,"失",4.1669999999999998,"0",null,null,null,null,null,null,null,null,null,null,null,null,null,null,null,"失",4.1669999999999998,"0"]
[null,null,null,null,null,null,null,null,null,null,null,null,null,null,"辺",4.1680000000000001,"0",null,null,null,null,null,null,null,null,null,null,null,null,null,null,null,"辺",4.1680000000000001,"0"]
[null,null,null,null,null,null,null,null,null,null,null,null,null,null,"低",4.1689999999999996,"0",null,null,null,null,null,null,null,null,null,null,null,null,null,null,null,"低",4.1689999999999996,"0"]
[null,null,null,null,null,null,null,null,null,null,null,null,null,null,"敗",4.17,"0",null,null,null,null,null,null,null,null,null,null,null,null,null,null,null,"敗",4.17,"0"]
[null,null,null,null,null,null,null,null,null,null,null,null,null,null,"老",4.1710000000000003,"0",null,null,null,null,null,null,null,null,null,null,null,null,null,null,null,"老",4.1710000000000003,"0"]
[null,null,null,null,null,null,null,null,null,null,null,null,null,null,"束",4.1719999999999997,"0",null,null,null,null,null,null,null,null,null,null,null,null,null,null,null,"束",4.1719999999999997,"0"]
[null,null,null,null,null,null,null,null,null,null,null,null,null,null,"票",4.173,"0",null,null,null,null,null,null,null,null,null,null,null,null,null,null,null,"票",4.173,"0"]
[null,null,null,null,null,null,null,null,null,null,null,null,null,null,"陸",4.1740000000000004,"0",null,null,null,null,null,null,null,null,null,null,null,null,null,null,null,"陸",4.1740000000000004,"0"]
[null,null,null,null,null,null,null,null,null,null,null,null,null,null,"各",4.1749999999999998,"0",null,null,null,null,null,null,null,null,null,null,null,null,null,null,null,"各",4.1749999999999998,"0"]
[null,null,null,null,null,null,null,null,null,null,null,null,null,null,"求",4.1760000000000002,"0",null,null,null,null,null,null,null,null,null,null,null,null,null,null,null,"求",4.1760000000000002,"0"]
[null,null,null,null,null,null,null,null,null,null,null,null,null,null,"付",4.1769999999999996,"0",null,null,null,null,null,null,null,null,null,null,null,null,null,null,null,"付",4.1769999999999996,"0"]
[null,null,null,null,null,null,null,null,null,null,null,null,null,null,"固",4.1779999999999999,"0",null,null,null,null,null,null,null,null,null,null,null,null,null,null,null,"固",4.1779999999999999,"0"]
[null,null,null,null,null,null,null,null,null,null,null,null,null,null,"塩",4.1790000000000003,"0",null,null,null,null,null,null,null,null,null,null,null,null,null,null,null,"塩",4.1790000000000003,"0"]
[null,null,null,null,null,null,null,null,null,null,null,null,null,null,"側",4.18,"0",null,null,null,null,null,null,null,null,null,null,null,null,null,null,null,"側",4.18,"0"]
[null,null,null,null,null,null,null,null,null,null,null,null,null,null,"労",4.181,"0",null,null,null,null,null,null,null,null,null,null,null,null,null,null,null,"労",4.181,"0"]
[null,null,null,null,null,null,null,null,null,null,null,null,null,null,"標",4.1820000000000004,"0",null,null,null,null,null,null,null,null,null,null,null,null,null,null,null,"標",4.1820000000000004,"0"]
[null,null,null,null,null,null,null,null,null,null,null,null,null,null,"官",4.1829999999999998,"0",null,null,null,null,null,null,null,null,null,null,null,null,null,null,null,"官",4.1829999999999998,"0"]
[null,null,null,null,null,null,null,null,null,null,null,null,null,null,"候",4.1840000000000002,"0",null,null,null,null,null,null,null,null,null,null,null,null,null,null,null,"候",4.1840000000000002,"0"]
[null,null,null,null,null,null,null,null,null,null,null,null,null,null,"巣",4.1849999999999996,"0",null,null,null,null,null,null,null,null,null,null,null,null,null,null,null,"巣",4.1849999999999996,"0"]
[null,null,null,null,null,null,null,null,null,null,null,null,null,null,"産",4.1859999999999999,"0",null,null,null,null,null,null,null,null,null,null,null,null,null,null,null,"産",4.1859999999999999,"0"]
[null,null,null,null,null,null,null,null,null,null,null,null,null,null,"察",4.1870000000000003,"0",null,null,null,null,null,null,null,null,null,null,null,null,null,null,null,"察",4.1870000000000003,"0"]
[null,null,null,null,null,null,null,null,null,null,null,null,null,null,"兆",4.1879999999999997,"0",null,null,null,null,null,null,null,null,null,null,null,null,null,null,null,"兆",4.1879999999999997,"0"]
[null,null,null,null,null,null,null,null,null,null,null,null,null,null,"億",4.1890000000000001,"0",null,null,null,null,null,null,null,null,null,null,null,null,null,null,null,"億",4.1890000000000001,"0"]
[null,null,null,null,null,null,null,null,null,null,null,null,null,null,"鏡",4.1900000000000004,"0",null,null,null,null,null,null,null,null,null,null,null,null,null,null,null,"鏡",4.1900000000000004,"0"]
[null,null,null,null,null,null,null,null,null,null,null,null,null,null,"害",4.1909999999999998,"0",null,null,null,null,null,null,null,null,null,null,null,null,null,null,null,"害",4.1909999999999998,"0"]
[null,null,null,null,null,null,null,null,null,null,null,null,null,null,"刷",4.1920000000000002,"0",null,null,null,null,null,null,null,null,null,null,null,null,null,null,null,"刷",4.1920000000000002,"0"]
[null,null,null,null,null,null,null,null,null,null,null,null,null,null,"治",4.1929999999999996,"0",null,null,null,null,null,null,null,null,null,null,null,null,null,null,null,"治",4.1929999999999996,"0"]
[null,null,null,null,null,null,null,null,null,null,null,null,null,null,"努",4.194,"0",null,null,null,null,null,null,null,null,null,null,null,null,null,null,null,"努",4.194,"0"]
[null,null,null,null,null,null,null,null,null,null,null,null,null,null,"倉",4.1950000000000003,"0",null,null,null,null,null,null,null,null,null,null,null,null,null,null,null,"倉",4.1950000000000003,"0"]
[null,null,null,null,null,null,null,null,null,null,null,null,null,null,"札",4.1959999999999997,"0",null,null,null,null,null,null,null,null,null,null,null,null,null,null,null,"札",4.1959999999999997,"0"]
[null,null,null,null,null,null,null,null,null,null,null,null,null,null,"功",4.1970000000000001,"0",null,null,null,null,null,null,null,null,null,null,null,null,null,null,null,"功",4.1970000000000001,"0"]
[null,null,null,null,null,null,null,null,null,null,null,null,null,null,"英",4.1980000000000004,"0",null,null,null,null,null,null,null,null,null,null,null,null,null,null,null,"英",4.1980000000000004,"0"]
[null,null,null,null,null,null,null,null,null,null,null,null,null,null,"器",4.1989999999999998,"0",null,null,null,null,null,null,null,null,null,null,null,null,null,null,null,"器",4.1989999999999998,"0"]
[null,null,null,null,null,null,null,null,null,null,null,null,null,null,"牧",4.2,"0"]
[null,null,null,null,null,null,null,null,null,null,null,null,null,null,"冷",4.2009999999999996,"0"]
[null,null,null,null,null,null,null,null,null,null,null,null,null,null,"唱",4.202,{"$f":"IF(P646>$Q$2,\"0\",\"1\")","v":"0"}]
[null,null,null,null,null,null,null,null,null,null,null,null,null,null,"任",5.0010000000000003,"0"]
[null,null,null,null,null,null,null,null,null,null,null,null,null,null,"現",5.0019999999999998,"0"]
[null,null,null,null,null,null,null,null,null,null,null,null,null,null,"際",5.0030000000000001,"0"]
[null,null,null,null,null,null,null,null,null,null,null,null,null,null,"態",5.0039999999999996,"0"]
[null,null,null,null,null,null,null,null,null,null,null,null,null,null,"飼",5.0049999999999999,"0"]
[null,null,null,null,null,null,null,null,null,null,null,null,null,null,"似",5.0060000000000002,"0"]
[null,null,null,null,null,null,null,null,null,null,null,null,null,null,"格",5.0069999999999997,"0"]
[null,null,null,null,null,null,null,null,null,null,null,null,null,null,"情",5.008,"0"]
[null,null,null,null,null,null,null,null,null,null,null,null,null,null,"像",5.0090000000000003,"0"]
[null,null,null,null,null,null,null,null,null,null,null,null,null,null,"象",5.01,"0"]
[null,null,null,null,null,null,null,null,null,null,null,null,null,null,"解",5.0110000000000001,"0"]
[null,null,null,null,null,null,null,null,null,null,null,null,null,null,"技",5.0119999999999996,"0"]
[null,null,null,null,null,null,null,null,null,null,null,null,null,null,"術",5.0129999999999999,"0"]
[null,null,null,null,null,null,null,null,null,null,null,null,null,null,"複",5.0140000000000002,"0"]
[null,null,null,null,null,null,null,null,null,null,null,null,null,null,"興",5.0149999999999997,"0"]
[null,null,null,null,null,null,null,null,null,null,null,null,null,null,"許",5.016,"0"]
[null,null,null,null,null,null,null,null,null,null,null,null,null,null,"可",5.0170000000000003,"0"]
[null,null,null,null,null,null,null,null,null,null,null,null,null,null,"河",5.0179999999999998,"0"]
[null,null,null,null,null,null,null,null,null,null,null,null,null,null,"銅",5.0190000000000001,"0"]
[null,null,null,null,null,null,null,null,null,null,null,null,null,null,"修",5.0199999999999996,"0"]
[null,null,null,null,null,null,null,null,null,null,null,null,null,null,"復",5.0209999999999999,"0"]
[null,null,null,null,null,null,null,null,null,null,null,null,null,null,"防",5.0220000000000002,"0"]
[null,null,null,null,null,null,null,null,null,null,null,null,null,null,"災",5.0229999999999997,"0"]
[null,null,null,null,null,null,null,null,null,null,null,null,null,null,"検",5.024,"0"]
[null,null,null,null,null,null,null,null,null,null,null,null,null,null,"移",5.0250000000000004,"0"]
[null,null,null,null,null,null,null,null,null,null,null,null,null,null,"賞",5.0259999999999998,"0"]
[null,null,null,null,null,null,null,null,null,null,null,null,null,null,"貿",5.0270000000000001,"0"]
[null,null,null,null,null,null,null,null,null,null,null,null,null,null,"易",5.0279999999999996,"0"]
[null,null,null,null,null,null,null,null,null,null,null,null,null,null,"潔",5.0289999999999999,"0"]
[null,null,null,null,null,null,null,null,null,null,null,null,null,null,"質",5.03,"0"]
[null,null,null,null,null,null,null,null,null,null,null,null,null,null,"報",5.0309999999999997,"0"]
[null,null,null,null,null,null,null,null,null,null,null,null,null,null,"告",5.032,"0"]
[null,null,null,null,null,null,null,null,null,null,null,null,null,null,"確",5.0330000000000004,"0"]
[null,null,null,null,null,null,null,null,null,null,null,null,null,null,"属",5.0339999999999998,"0"]
[null,null,null,null,null,null,null,null,null,null,null,null,null,null,"容",5.0350000000000001,"0"]
[null,null,null,null,null,null,null,null,null,null,null,null,null,null,"識",5.0359999999999996,"0"]
[null,null,null,null,null,null,null,null,null,null,null,null,null,null,"準",5.0369999999999999,"0"]
[null,null,null,null,null,null,null,null,null,null,null,null,null,null,"備",5.0380000000000003,"0"]
[null,null,null,null,null,null,null,null,null,null,null,null,null,null,"応",5.0389999999999997,"0"]
[null,null,null,null,null,null,null,null,null,null,null,null,null,null,"因",5.04,"0"]
[null,null,null,null,null,null,null,null,null,null,null,null,null,null,"述",5.0410000000000004,"0"]
[null,null,null,null,null,null,null,null,null,null,null,null,null,null,"在",5.0419999999999998,"0"]
[null,null,null,null,null,null,null,null,null,null,null,null,null,null,"支",5.0430000000000001,"0"]
[null,null,null,null,null,null,null,null,null,null,null,null,null,null,"留",5.0439999999999996,"0"]
[null,null,null,null,null,null,null,null,null,null,null,null,null,null,"適",5.0449999999999999,"0"]
[null,null,null,null,null,null,null,null,null,null,null,null,null,null,"構",5.0460000000000003,"0"]
[null,null,null,null,null,null,null,null,null,null,null,null,null,null,"接",5.0469999999999997,"0"]
[null,null,null,null,null,null,null,null,null,null,null,null,null,null,"過",5.048,"0"]
[null,null,null,null,null,null,null,null,null,null,null,null,null,null,"幹",5.0490000000000004,"0"]
[null,null,null,null,null,null,null,null,null,null,null,null,null,null,"混",5.05,"0"]
[null,null,null,null,null,null,null,null,null,null,null,null,null,null,"雑",5.0510000000000002,"0"]
[null,null,null,null,null,null,null,null,null,null,null,null,null,null,"略",5.0519999999999996,"0"]
[null,null,null,null,null,null,null,null,null,null,null,null,null,null,"測",5.0529999999999999,"0"]
[null,null,null,null,null,null,null,null,null,null,null,null,null,null,"禁",5.0540000000000003,"0"]
[null,null,null,null,null,null,null,null,null,null,null,null,null,null,"貸",5.0549999999999997,"0"]
[null,null,null,null,null,null,null,null,null,null,null,null,null,null,"能",5.056,"0"]
[null,null,null,null,null,null,null,null,null,null,null,null,null,null,"句",5.0570000000000004,"0"]
[null,null,null,null,null,null,null,null,null,null,null,null,null,null,"常",5.0579999999999998,"0"]
[null,null,null,null,null,null,null,null,null,null,null,null,null,null,"桜",5.0590000000000002,"0"]
[null,null,null,null,null,null,null,null,null,null,null,null,null,null,"序",5.0599999999999996,"0"]
[null,null,null,null,null,null,null,null,null,null,null,null,null,null,"資",5.0609999999999999,"0"]
[null,null,null,null,null,null,null,null,null,null,null,null,null,null,"酸",5.0620000000000003,"0"]
[null,null,null,null,null,null,null,null,null,null,null,null,null,null,"素",5.0629999999999997,"0"]
[null,null,null,null,null,null,null,null,null,null,null,null,null,null,"査",5.0640000000000001,{"$f":"IF(P710>$Q$2,\"0\",\"1\")","v":"0"}]
[null,null,null,null,null,null,null,null,null,null,null,null,null,null,"設",5.0650000000000004,"0"]
[null,null,null,null,null,null,null,null,null,null,null,null,null,null,"停",5.0659999999999998,"0"]
[null,null,null,null,null,null,null,null,null,null,null,null,null,null,"総",5.0670000000000002,"0"]
[null,null,null,null,null,null,null,null,null,null,null,null,null,null,"厚",5.0679999999999996,"0"]
[null,null,null,null,null,null,null,null,null,null,null,null,null,null,"武",5.069,"0"]
[null,null,null,null,null,null,null,null,null,null,null,null,null,null,"士",5.07,"0"]
[null,null,null,null,null,null,null,null,null,null,null,null,null,null,"舎",5.0709999999999997,"0"]
[null,null,null,null,null,null,null,null,null,null,null,null,null,null,"往",5.0720000000000001,"0"]
[null,null,null,null,null,null,null,null,null,null,null,null,null,null,"肥",5.0730000000000004,"0"]
[null,null,null,null,null,null,null,null,null,null,null,null,null,null,"演",5.0739999999999998,"0"]
[null,null,null,null,null,null,null,null,null,null,null,null,null,null,"刊",5.0750000000000002,"0"]
[null,null,null,null,null,null,null,null,null,null,null,null,null,null,"暴",5.0759999999999996,"0"]
[null,null,null,null,null,null,null,null,null,null,null,null,null,null,"績",5.077,"0"]
[null,null,null,null,null,null,null,null,null,null,null,null,null,null,"鉱",5.0780000000000003,"0"]
[null,null,null,null,null,null,null,null,null,null,null,null,null,null,"製",5.0789999999999997,"0"]
[null,null,null,null,null,null,null,null,null,null,null,null,null,null,"航",5.08,"0"]
[null,null,null,null,null,null,null,null,null,null,null,null,null,null,"非",5.0810000000000004,"0"]
[null,null,null,null,null,null,null,null,null,null,null,null,null,null,"編",5.0819999999999999,"0"]
[null,null,null,null,null,null,null,null,null,null,null,null,null,null,"絶",5.0830000000000002,"0"]
[null,null,null,null,null,null,null,null,null,null,null,null,null,null,"張",5.0839999999999996,"0"]
[null,null,null,null,null,null,null,null,null,null,null,null,null,null,"破",5.085,"0"]
[null,null,null,null,null,null,null,null,null,null,null,null,null,null,"得",5.0860000000000003,"0"]
[null,null,null,null,null,null,null,null,null,null,null,null,null,null,"居",5.0869999999999997,"0"]
[null,null,null,null,null,null,null,null,null,null,null,null,null,null,"弁",5.0880000000000001,"0"]
[null,null,null,null,null,null,null,null,null,null,null,null,null,null,"政",5.0890000000000004,"0"]
[null,null,null,null,null,null,null,null,null,null,null,null,null,null,"経",5.09,"0"]
[null,null,null,null,null,null,null,null,null,null,null,null,null,null,"示",5.0910000000000002,"0"]
[null,null,null,null,null,null,null,null,null,null,null,null,null,null,"逆",5.0919999999999996,"0"]
[null,null,null,null,null,null,null,null,null,null,null,null,null,null,"比",5.093,"0"]
[null,null,null,null,null,null,null,null,null,null,null,null,null,null,"囲",5.0940000000000003,"0"]
[null,null,null,null,null,null,null,null,null,null,null,null,null,null,"勢",5.0949999999999998,"0"]
[null,null,null,null,null,null,null,null,null,null,null,null,null,null,"職",5.0960000000000001,"0"]
[null,null,null,null,null,null,null,null,null,null,null,null,null,null,"歴",5.0970000000000004,"0"]
[null,null,null,null,null,null,null,null,null,null,null,null,null,null,"史",5.0979999999999999,"0"]
[null,null,null,null,null,null,null,null,null,null,null,null,null,null,"招",5.0990000000000002,"0"]
[null,null,null,null,null,null,null,null,null,null,null,null,null,null,"迷",5.0999999999999996,"0"]
[null,null,null,null,null,null,null,null,null,null,null,null,null,null,"夢",5.101,"0"]
[null,null,null,null,null,null,null,null,null,null,null,null,null,null,"独",5.1020000000000003,"0"]
[null,null,null,null,null,null,null,null,null,null,null,null,null,null,"個",5.1029999999999998,"0"]
[null,null,null,null,null,null,null,null,null,null,null,null,null,null,"提",5.1040000000000001,"0"]
[null,null,null,null,null,null,null,null,null,null,null,null,null,null,"寄",5.1050000000000004,"0"]
[null,null,null,null,null,null,null,null,null,null,null,null,null,null,"余",5.1059999999999999,"0"]
[null,null,null,null,null,null,null,null,null,null,null,null,null,null,"仏",5.1070000000000002,"0"]
[null,null,null,null,null,null,null,null,null,null,null,null,null,null,"眼",5.1079999999999997,"0"]
[null,null,null,null,null,null,null,null,null,null,null,null,null,null,"財",5.109,"0"]
[null,null,null,null,null,null,null,null,null,null,null,null,null,null,"祖",5.1100000000000003,"0"]
[null,null,null,null,null,null,null,null,null,null,null,null,null,null,"謝",5.1109999999999998,"0"]
[null,null,null,null,null,null,null,null,null,null,null,null,null,null,"罪",5.1120000000000001,"0"]
[null,null,null,null,null,null,null,null,null,null,null,null,null,null,"志",5.1130000000000004,"0"]
[null,null,null,null,null,null,null,null,null,null,null,null,null,null,"永",5.1139999999999999,"0"]
[null,null,null,null,null,null,null,null,null,null,null,null,null,null,"久",5.1150000000000002,"0"]
[null,null,null,null,null,null,null,null,null,null,null,null,null,null,"毒",5.1159999999999997,"0"]
[null,null,null,null,null,null,null,null,null,null,null,null,null,null,"営",5.117,"0"]
[null,null,null,null,null,null,null,null,null,null,null,null,null,null,"妻",5.1180000000000003,"0"]
[null,null,null,null,null,null,null,null,null,null,null,null,null,null,"精",5.1189999999999998,"0"]
[null,null,null,null,null,null,null,null,null,null,null,null,null,null,"保",5.12,"0"]
[null,null,null,null,null,null,null,null,null,null,null,null,null,null,"状",5.1210000000000004,"0"]
[null,null,null,null,null,null,null,null,null,null,null,null,null,null,"条",5.1219999999999999,"0"]
[null,null,null,null,null,null,null,null,null,null,null,null,null,null,"件",5.1230000000000002,"0"]
[null,null,null,null,null,null,null,null,null,null,null,null,null,null,"程",5.1239999999999997,"0"]
[null,null,null,null,null,null,null,null,null,null,null,null,null,null,"評",5.125,"0"]
[null,null,null,null,null,null,null,null,null,null,null,null,null,null,"価",5.1260000000000003,"0"]
[null,null,null,null,null,null,null,null,null,null,null,null,null,null,"判",5.1269999999999998,"0"]
[null,null,null,null,null,null,null,null,null,null,null,null,null,null,"断",5.1280000000000001,{"$f":"IF(P774>$Q$2,\"0\",\"1\")","v":"0"}]
[null,null,null,null,null,null,null,null,null,null,null,null,null,null,"賛",5.1289999999999996,"0"]
[null,null,null,null,null,null,null,null,null,null,null,null,null,null,"効",5.13,"0"]
[null,null,null,null,null,null,null,null,null,null,null,null,null,null,"統",5.1310000000000002,"0"]
[null,null,null,null,null,null,null,null,null,null,null,null,null,null,"境",5.1319999999999997,"0"]
[null,null,null,null,null,null,null,null,null,null,null,null,null,null,"布",5.133,"0"]
[null,null,null,null,null,null,null,null,null,null,null,null,null,null,"減",5.1340000000000003,"0"]
[null,null,null,null,null,null,null,null,null,null,null,null,null,null,"護",5.1349999999999998,"0"]
[null,null,null,null,null,null,null,null,null,null,null,null,null,null,"再",5.1360000000000001,"0"]
[null,null,null,null,null,null,null,null,null,null,null,null,null,null,"増",5.1370000000000005,"0"]
[null,null,null,null,null,null,null,null,null,null,null,null,null,null,"証",5.1379999999999999,"0"]
[null,null,null,null,null,null,null,null,null,null,null,null,null,null,"限",5.1390000000000002,"0"]
[null,null,null,null,null,null,null,null,null,null,null,null,null,null,"責",5.14,"0"]
[null,null,null,null,null,null,null,null,null,null,null,null,null,null,"均",5.141,"0"]
[null,null,null,null,null,null,null,null,null,null,null,null,null,null,"授",5.1420000000000003,"0"]
[null,null,null,null,null,null,null,null,null,null,null,null,null,null,"紀",5.1429999999999998,"0"]
[null,null,null,null,null,null,null,null,null,null,null,null,null,null,"脈",5.1440000000000001,"0"]
[null,null,null,null,null,null,null,null,null,null,null,null,null,null,"織",5.1449999999999996,"0"]
[null,null,null,null,null,null,null,null,null,null,null,null,null,null,"築",5.1459999999999999,"0"]
[null,null,null,null,null,null,null,null,null,null,null,null,null,null,"圧",5.1470000000000002,"0"]
[null,null,null,null,null,null,null,null,null,null,null,null,null,null,"仮",5.1479999999999997,"0"]
[null,null,null,null,null,null,null,null,null,null,null,null,null,null,"基",5.149,"0"]
[null,null,null,null,null,null,null,null,null,null,null,null,null,null,"額",5.15,"0"]
[null,null,null,null,null,null,null,null,null,null,null,null,null,null,"故",5.1509999999999998,"0"]
[null,null,null,null,null,null,null,null,null,null,null,null,null,null,"旧",5.1520000000000001,"0"]
[null,null,null,null,null,null,null,null,null,null,null,null,null,null,"規",5.1529999999999996,"0"]
[null,null,null,null,null,null,null,null,null,null,null,null,null,null,"則",5.1539999999999999,"0"]
[null,null,null,null,null,null,null,null,null,null,null,null,null,null,"貯",5.1550000000000002,"0"]
[null,null,null,null,null,null,null,null,null,null,null,null,null,null,"液",5.1559999999999997,"0"]
[null,null,null,null,null,null,null,null,null,null,null,null,null,null,"婦",5.157,"0"]
[null,null,null,null,null,null,null,null,null,null,null,null,null,null,"救",5.1580000000000004,"0"]
[null,null,null,null,null,null,null,null,null,null,null,null,null,null,"墓",5.1589999999999998,"0"]
[null,null,null,null,null,null,null,null,null,null,null,null,null,null,"義",5.16,"0"]
[null,null,null,null,null,null,null,null,null,null,null,null,null,null,"殺",5.1609999999999996,"0"]
[null,null,null,null,null,null,null,null,null,null,null,null,null,null,"貧",5.1619999999999999,"0"]
[null,null,null,null,null,null,null,null,null,null,null,null,null,null,"版",5.1630000000000003,"0"]
[null,null,null,null,null,null,null,null,null,null,null,null,null,null,"犯",5.1639999999999997,"0"]
[null,null,null,null,null,null,null,null,null,null,null,null,null,null,"講",5.165,"0"]
[null,null,null,null,null,null,null,null,null,null,null,null,null,null,"師",5.1660000000000004,"0"]
[null,null,null,null,null,null,null,null,null,null,null,null,null,null,"慣",5.1669999999999998,"0"]
[null,null,null,null,null,null,null,null,null,null,null,null,null,null,"性",5.1680000000000001,"0"]
[null,null,null,null,null,null,null,null,null,null,null,null,null,null,"益",5.1689999999999996,"0"]
[null,null,null,null,null,null,null,null,null,null,null,null,null,null,"制",5.17,"0"]
[null,null,null,null,null,null,null,null,null,null,null,null,null,null,"造",5.1710000000000003,"0"]
[null,null,null,null,null,null,null,null,null,null,null,null,null,null,"型",5.1719999999999997,"0"]
[null,null,null,null,null,null,null,null,null,null,null,null,null,null,"綿",5.173,"0"]
[null,null,null,null,null,null,null,null,null,null,null,null,null,null,"枝",5.1740000000000004,"0"]
[null,null,null,null,null,null,null,null,null,null,null,null,null,null,"費",5.1749999999999998,"0"]
[null,null,null,null,null,null,null,null,null,null,null,null,null,null,"税",5.1760000000000002,"0"]
[null,null,null,null,null,null,null,null,null,null,null,null,null,null,"輸",5.1769999999999996,"0"]
[null,null,null,null,null,null,null,null,null,null,null,null,null,null,"衛",5.1779999999999999,"0"]
[null,null,null,null,null,null,null,null,null,null,null,null,null,null,"団",5.1790000000000003,"0"]
[null,null,null,null,null,null,null,null,null,null,null,null,null,null,"耕",5.18,"0"]
[null,null,null,null,null,null,null,null,null,null,null,null,null,null,"損",5.181,"0"]
[null,null,null,null,null,null,null,null,null,null,null,null,null,null,"険",5.1820000000000004,"0"]
[null,null,null,null,null,null,null,null,null,null,null,null,null,null,"務",5.1829999999999998,"0"]
[null,null,null,null,null,null,null,null,null,null,null,null,null,null,"粉",5.1840000000000002,"0"]
[null,null,null,null,null,null,null,null,null,null,null,null,null,null,"採",5.1849999999999996,"0"]
[null,null,null,null,null,null,null,null,null,null,null,null,null,null,"豊",5.1859999999999999,"0"]
[null,null,null,null,null,null,null,null,null,null,null,null,null,null,"快",5.1870000000000003,"0"]
[null,null,null,null,null,null,null,null,null,null,null,null,null,null,"燃",5.1879999999999997,"0"]
[null,null,null,null,null,null,null,null,null,null,null,null,null,null,"率",5.1890000000000001,"0"]
[null,null,null,null,null,null,null,null,null,null,null,null,null,null,"領",5.19,"0"]
[null,null,null,null,null,null,null,null,null,null,null,null,null,null,"喜",5.1909999999999998,"0"]
[null,null,null,null,null,null,null,null,null,null,null,null,null,null,"導",5.1920000000000002,{"$f":"IF(P838>$Q$2,\"0\",\"1\")","v":"0"}]
[null,null,null,null,null,null,null,null,null,null,null,null,null,null,"堂",5.1929999999999996,"0"]
[null,null,null,null,null,null,null,null,null,null,null,null,null,null,"敬",6,"0"]
[null,null,null,null,null,null,null,null,null,null,null,null,null,null,"警",6,"0"]
[null,null,null,null,null,null,null,null,null,null,null,null,null,null,"劇",6,"0"]
[null,null,null,null,null,null,null,null,null,null,null,null,null,null,"系　",6,"0"]
[null,null,null,null,null,null,null,null,null,null,null,null,null,null,"視",6.0010000000000003,"0"]
[null,null,null,null,null,null,null,null,null,null,null,null,null,null,"穴",6.0019999999999998,"0"]
[null,null,null,null,null,null,null,null,null,null,null,null,null,null,"砂",6.0030000000000001,"0"]
[null,null,null,null,null,null,null,null,null,null,null,null,null,null,"腹",6.0039999999999996,"0"]
[null,null,null,null,null,null,null,null,null,null,null,null,null,null,"段",6.0049999999999999,"0"]
[null,null,null,null,null,null,null,null,null,null,null,null,null,null,"並",6.0060000000000002,"0"]
[null,null,null,null,null,null,null,null,null,null,null,null,null,null,"降",6.0069999999999997,"0"]
[null,null,null,null,null,null,null,null,null,null,null,null,null,null,"認",6.008,"0"]
[null,null,null,null,null,null,null,null,null,null,null,null,null,null,"洗",6.0090000000000003,"0"]
[null,null,null,null,null,null,null,null,null,null,null,null,null,null,"異",6.01,"0"]
[null,null,null,null,null,null,null,null,null,null,null,null,null,null,"純",6.0110000000000001,"0"]
[null,null,null,null,null,null,null,null,null,null,null,null,null,null,"射",6.0119999999999996,"0"]
[null,null,null,null,null,null,null,null,null,null,null,null,null,null,"背",6.0129999999999999,"0"]
[null,null,null,null,null,null,null,null,null,null,null,null,null,null,"舌",6.0140000000000002,"0"]
[null,null,null,null,null,null,null,null,null,null,null,null,null,null,"乱",6.0149999999999997,"0"]
[null,null,null,null,null,null,null,null,null,null,null,null,null,null,"域",6.016,"0"]
[null,null,null,null,null,null,null,null,null,null,null,null,null,null,"蔵",6.0170000000000003,"0"]
[null,null,null,null,null,null,null,null,null,null,null,null,null,null,"展",6.0179999999999998,"0"]
[null,null,null,null,null,null,null,null,null,null,null,null,null,null,"訪",6.0190000000000001,"0"]
[null,null,null,null,null,null,null,null,null,null,null,null,null,null,"我",6.02,"0"]
[null,null,null,null,null,null,null,null,null,null,null,null,null,null,"承",6.0209999999999999,"0"]
[null,null,null,null,null,null,null,null,null,null,null,null,null,null,"蒸",6.0220000000000002,"0"]
[null,null,null,null,null,null,null,null,null,null,null,null,null,null,"処",6.0229999999999997,"0"]
[null,null,null,null,null,null,null,null,null,null,null,null,null,null,"就",6.024,"0"]
[null,null,null,null,null,null,null,null,null,null,null,null,null,null,"干",6.0250000000000004,"0"]
[null,null,null,null,null,null,null,null,null,null,null,null,null,null,"層",6.0259999999999998,"0"]
[null,null,null,null,null,null,null,null,null,null,null,null,null,null,"恩",6.0270000000000001,"0"]
[null,null,null,null,null,null,null,null,null,null,null,null,null,null,"裁",6.0279999999999996,"0"]
[null,null,null,null,null,null,null,null,null,null,null,null,null,null,"律",6.0289999999999999,"0"]
[null,null,null,null,null,null,null,null,null,null,null,null,null,null,"脳",6.03,"0"]
[null,null,null,null,null,null,null,null,null,null,null,null,null,null,"臓",6.0309999999999997,"0"]
[null,null,null,null,null,null,null,null,null,null,null,null,null,null,"肺",6.032,"0"]
[null,null,null,null,null,null,null,null,null,null,null,null,null,null,"胃",6.0330000000000004,"0"]
[null,null,null,null,null,null,null,null,null,null,null,null,null,null,"腸",6.0339999999999998,"0"]
[null,null,null,null,null,null,null,null,null,null,null,null,null,null,"映",6.0350000000000001,"0"]
[null,null,null,null,null,null,null,null,null,null,null,null,null,null,"幕",6.0359999999999996,"0"]
[null,null,null,null,null,null,null,null,null,null,null,null,null,null,"補",6.0369999999999999,"0"]
[null,null,null,null,null,null,null,null,null,null,null,null,null,null,"裏",6.0380000000000003,"0"]
[null,null,null,null,null,null,null,null,null,null,null,null,null,null,"沿",6.0389999999999997,"0"]
[null,null,null,null,null,null,null,null,null,null,null,null,null,null,"私",6.04,"0"]
[null,null,null,null,null,null,null,null,null,null,null,null,null,null,"密",6.0410000000000004,"0"]
[null,null,null,null,null,null,null,null,null,null,null,null,null,null,"呼",6.0419999999999998,"0"]
[null,null,null,null,null,null,null,null,null,null,null,null,null,null,"吸",6.0430000000000001,"0"]
[null,null,null,null,null,null,null,null,null,null,null,null,null,null,"存",6.0439999999999996,"0"]
[null,null,null,null,null,null,null,null,null,null,null,null,null,null,"刻",6.0449999999999999,"0"]
[null,null,null,null,null,null,null,null,null,null,null,null,null,null,"激",6.0460000000000003,"0"]
[null,null,null,null,null,null,null,null,null,null,null,null,null,null,"簡",6.0469999999999997,"0"]
[null,null,null,null,null,null,null,null,null,null,null,null,null,null,"机",6.048,"0"]
[null,null,null,null,null,null,null,null,null,null,null,null,null,null,"難",6.0490000000000004,"0"]
[null,null,null,null,null,null,null,null,null,null,null,null,null,null,"疑",6.05,"0"]
[null,null,null,null,null,null,null,null,null,null,null,null,null,null,"卵",6.0510000000000002,"0"]
[null,null,null,null,null,null,null,null,null,null,null,null,null,null,"乳",6.0519999999999996,"0"]
[null,null,null,null,null,null,null,null,null,null,null,null,null,null,"創",6.0529999999999999,"0"]
[null,null,null,null,null,null,null,null,null,null,null,null,null,null,"敬　",6.0540000000000003,"0"]
[null,null,null,null,null,null,null,null,null,null,null,null,null,null,"除",6.0549999999999997,"0"]
[null,null,null,null,null,null,null,null,null,null,null,null,null,null,"誤",6.056,"0"]
[null,null,null,null,null,null,null,null,null,null,null,null,null,null,"暮",6.0570000000000004,"0"]
[null,null,null,null,null,null,null,null,null,null,null,null,null,null,"探",6.0579999999999998,"0"]
[null,null,null,null,null,null,null,null,null,null,null,null,null,null,"座",6.0590000000000002,{"$f":"IF(P902>$Q$2,\"0\",\"1\")","v":"0"}]
[null,null,null,null,null,null,null,null,null,null,null,null,null,null,"券",6.06,"0"]
[null,null,null,null,null,null,null,null,null,null,null,null,null,null,"障",6.0609999999999999,"0"]
[null,null,null,null,null,null,null,null,null,null,null,null,null,null,"派",6.0620000000000003,"0"]
[null,null,null,null,null,null,null,null,null,null,null,null,null,null,"警　",6.0629999999999997,"0"]
[null,null,null,null,null,null,null,null,null,null,null,null,null,null,"署",6.0640000000000001,"0"]
[null,null,null,null,null,null,null,null,null,null,null,null,null,null,"銭",6.0650000000000004,"0"]
[null,null,null,null,null,null,null,null,null,null,null,null,null,null,"庁",6.0659999999999998,"0"]
[null,null,null,null,null,null,null,null,null,null,null,null,null,null,"訳",6.0670000000000002,"0"]
[null,null,null,null,null,null,null,null,null,null,null,null,null,null,"源",6.0679999999999996,"0"]
[null,null,null,null,null,null,null,null,null,null,null,null,null,null,"策",6.069,"0"]
[null,null,null,null,null,null,null,null,null,null,null,null,null,null,"忘",6.07,"0"]
[null,null,null,null,null,null,null,null,null,null,null,null,null,null,"討",6.0709999999999997,"0"]
[null,null,null,null,null,null,null,null,null,null,null,null,null,null,"供",6.0720000000000001,"0"]
[null,null,null,null,null,null,null,null,null,null,null,null,null,null,"模",6.0730000000000004,"0"]
[null,null,null,null,null,null,null,null,null,null,null,null,null,null,"冊",6.0739999999999998,"0"]
[null,null,null,null,null,null,null,null,null,null,null,null,null,null,"宅",6.0750000000000002,"0"]
[null,null,null,null,null,null,null,null,null,null,null,null,null,null,"推",6.0759999999999996,"0"]
[null,null,null,null,null,null,null,null,null,null,null,null,null,null,"宇",6.077,"0"]
[null,null,null,null,null,null,null,null,null,null,null,null,null,null,"宙",6.0780000000000003,"0"]
[null,null,null,null,null,null,null,null,null,null,null,null,null,null,"装",6.0789999999999997,"0"]
[null,null,null,null,null,null,null,null,null,null,null,null,null,null,"姿",6.08,"0"]
[null,null,null,null,null,null,null,null,null,null,null,null,null,null,"潮",6.0810000000000004,"0"]
[null,null,null,null,null,null,null,null,null,null,null,null,null,null,"樹",6.0819999999999999,"0"]
[null,null,null,null,null,null,null,null,null,null,null,null,null,null,"割",6.0830000000000002,"0"]
[null,null,null,null,null,null,null,null,null,null,null,null,null,null,"垂",6.0839999999999996,"0"]
[null,null,null,null,null,null,null,null,null,null,null,null,null,null,"胸",6.085,"0"]
[null,null,null,null,null,null,null,null,null,null,null,null,null,null,"骨",6.0860000000000003,"0"]
[null,null,null,null,null,null,null,null,null,null,null,null,null,null,"厳",6.0869999999999997,"0"]
[null,null,null,null,null,null,null,null,null,null,null,null,null,null,"勤",6.0880000000000001,"0"]
[null,null,null,null,null,null,null,null,null,null,null,null,null,null,"誌",6.0890000000000004,"0"]
[null,null,null,null,null,null,null,null,null,null,null,null,null,null,"延",6.09,"0"]
[null,null,null,null,null,null,null,null,null,null,null,null,null,null,"幼",6.0910000000000002,"0"]
[null,null,null,null,null,null,null,null,null,null,null,null,null,null,"熟",6.0919999999999996,"0"]
[null,null,null,null,null,null,null,null,null,null,null,null,null,null,"収",6.093,"0"]
[null,null,null,null,null,null,null,null,null,null,null,null,null,null,"納",6.0940000000000003,"0"]
[null,null,null,null,null,null,null,null,null,null,null,null,null,null,"頂",6.0949999999999998,"0"]
[null,null,null,null,null,null,null,null,null,null,null,null,null,null,"忠",6.0960000000000001,"0"]
[null,null,null,null,null,null,null,null,null,null,null,null,null,null,"誠",6.0970000000000004,"0"]
[null,null,null,null,null,null,null,null,null,null,null,null,null,null,"縦",6.0979999999999999,"0"]
[null,null,null,null,null,null,null,null,null,null,null,null,null,null,"敵",6.0990000000000002,"0"]
[null,null,null,null,null,null,null,null,null,null,null,null,null,null,"蚕",6.1,"0"]
[null,null,null,null,null,null,null,null,null,null,null,null,null,null,"仁",6.101,"0"]
[null,null,null,null,null,null,null,null,null,null,null,null,null,null,"泉",6.1020000000000003,"0"]
[null,null,null,null,null,null,null,null,null,null,null,null,null,null,"系",6.1029999999999998,"0"]
[null,null,null,null,null,null,null,null,null,null,null,null,null,null,"盟",6.1040000000000001,"0"]
[null,null,null,null,null,null,null,null,null,null,null,null,null,null,"臨",6.1050000000000004,"0"]
[null,null,null,null,null,null,null,null,null,null,null,null,null,null,"枚",6.1059999999999999,"0"]
[null,null,null,null,null,null,null,null,null,null,null,null,null,null,"縮",6.1070000000000002,"0"]
[null,null,null,null,null,null,null,null,null,null,null,null,null,null,"棒",6.1079999999999997,"0"]
[null,null,null,null,null,null,null,null,null,null,null,null,null,null,"寸",6.109,"0"]
[null,null,null,null,null,null,null,null,null,null,null,null,null,null,"暖",6.11,"0"]
[null,null,null,null,null,null,null,null,null,null,null,null,null,null,"揮",6.1109999999999998,"0"]
[null,null,null,null,null,null,null,null,null,null,null,null,null,null,"晩",6.1120000000000001,"0"]
[null,null,null,null,null,null,null,null,null,null,null,null,null,null,"痛",6.1130000000000004,"0"]
[null,null,null,null,null,null,null,null,null,null,null,null,null,null,"批",6.1139999999999999,"0"]
[null,null,null,null,null,null,null,null,null,null,null,null,null,null,"傷",6.1150000000000002,"0"]
[null,null,null,null,null,null,null,null,null,null,null,null,null,null,"若",6.1159999999999997,"0"]
[null,null,null,null,null,null,null,null,null,null,null,null,null,null,"劇　　",6.117,"0"]
[null,null,null,null,null,null,null,null,null,null,null,null,null,null,"閉",6.1180000000000003,"0"]
[null,null,null,null,null,null,null,null,null,null,null,null,null,null,"遺",6.1189999999999998,"0"]
[null,null,null,null,null,null,null,null,null,null,null,null,null,null,"翌",6.12,"0"]
[null,null,null,null,null,null,null,null,null,null,null,null,null,null,"論",6.1210000000000004,"0"]
[null,null,null,null,null,null,null,null,null,null,null,null,null,null,"班",6.1219999999999999,"0"]
[null,null,null,null,null,null,null,null,null,null,null,null,null,null,"危",6.1230000000000002,{"$f":"IF(P966>$Q$2,\"0\",\"1\")","v":"0"}]
[null,null,null,null,null,null,null,null,null,null,null,null,null,null,"優",6.1239999999999997,"0"]
[null,null,null,null,null,null,null,null,null,null,null,null,null,null,"善",6.125,"0"]
[null,null,null,null,null,null,null,null,null,null,null,null,null,null,"否",6.1260000000000003,"0"]
[null,null,null,null,null,null,null,null,null,null,null,null,null,null,"専",6.1269999999999998,"0"]
[null,null,null,null,null,null,null,null,null,null,null,null,null,null,"捨",6.1280000000000001,"0"]
[null,null,null,null,null,null,null,null,null,null,null,null,null,null,"窓",6.1289999999999996,"0"]
[null,null,null,null,null,null,null,null,null,null,null,null,null,null,"至",6.13,"0"]
[null,null,null,null,null,null,null,null,null,null,null,null,null,null,"糖",6.13,"0"]
[null,null,null,null,null,null,null,null,null,null,null,null,null,null,"紅",6.1310000000000002,"0"]
[null,null,null,null,null,null,null,null,null,null,null,null,null,null,"筋",6.1319999999999997,"0"]
[null,null,null,null,null,null,null,null,null,null,null,null,null,null,"盛",6.133,"0"]
[null,null,null,null,null,null,null,null,null,null,null,null,null,null,"巻　　　　　　",6.1340000000000003,"0"]
[null,null,null,null,null,null,null,null,null,null,null,null,null,null,"宝",6.1349999999999998,"0"]
[null,null,null,null,null,null,null,null,null,null,null,null,null,null,"貴",6.1360000000000001,"0"]
[null,null,null,null,null,null,null,null,null,null,null,null,null,null,"著",6.1370000000000005,"0"]
[null,null,null,null,null,null,null,null,null,null,null,null,null,null,"権",6.1379999999999999,"0"]
[null,null,null,null,null,null,null,null,null,null,null,null,null,null,"尊",6.1390000000000002,"0"]
[null,null,null,null,null,null,null,null,null,null,null,null,null,null,"担",6.14,"0"]
[null,null,null,null,null,null,null,null,null,null,null,null,null,null,"秘",6.141,"0"]
[null,null,null,null,null,null,null,null,null,null,null,null,null,null,"従",6.1420000000000003,"0"]
[null,null,null,null,null,null,null,null,null,null,null,null,null,null,"奏",6.1429999999999998,"0"]
[null,null,null,null,null,null,null,null,null,null,null,null,null,null,"郵",6.1440000000000001,"0"]
[null,null,null,null,null,null,null,null,null,null,null,null,null,null,"拡",6.1449999999999996,"0"]
[null,null,null,null,null,null,null,null,null,null,null,null,null,null,"操",6.1459999999999999,"0"]
[null,null,null,null,null,null,null,null,null,null,null,null,null,null,"絹",6.1470000000000002,"0"]
[null,null,null,null,null,null,null,null,null,null,null,null,null,null,"俵",6.1479999999999997,"0"]
[null,null,null,null,null,null,null,null,null,null,null,null,null,null,"拝",6.149,"0"]
[null,null,null,null,null,null,null,null,null,null,null,null,null,null,"聖",6.15,"0"]
[null,null,null,null,null,null,null,null,null,null,null,null,null,null,"賃",6.1509999999999998,"0"]
[null,null,null,null,null,null,null,null,null,null,null,null,null,null,"孝",6.1520000000000001,"0"]
[null,null,null,null,null,null,null,null,null,null,null,null,null,null,"預",6.1529999999999996,"0"]
[null,null,null,null,null,null,null,null,null,null,null,null,null,null,"覧",6.1539999999999999,"0"]
[null,null,null,null,null,null,null,null,null,null,null,null,null,null,"鋼",6.1550000000000002,"0"]
[null,null,null,null,null,null,null,null,null,null,null,null,null,null,"亡",6.1559999999999997,"0"]
[null,null,null,null,null,null,null,null,null,null,null,null,null,null,"己",6.157,"0"]
[null,null,null,null,null,null,null,null,null,null,null,null,null,null,"届",6.1580000000000004,"0"]
[null,null,null,null,null,null,null,null,null,null,null,null,null,null,"困",6.1589999999999998,"0"]
[null,null,null,null,null,null,null,null,null,null,null,null,null,null,"看",6.16,"0"]
[null,null,null,null,null,null,null,null,null,null,null,null,null,null,"尺",6.1609999999999996,"0"]
[null,null,null,null,null,null,null,null,null,null,null,null,null,null,"染",6.1619999999999999,"0"]
[null,null,null,null,null,null,null,null,null,null,null,null,null,null,"退",6.1630000000000003,"0"]
[null,null,null,null,null,null,null,null,null,null,null,null,null,null,"朗",6.1639999999999997,"0"]
[null,null,null,null,null,null,null,null,null,null,null,null,null,null,"片",6.165,"0"]
[null,null,null,null,null,null,null,null,null,null,null,null,null,null,"欲",6.1660000000000004,"0"]
[null,null,null,null,null,null,null,null,null,null,null,null,null,null,"誕",6.1669999999999998,"0"]
[null,null,null,null,null,null,null,null,null,null,null,null,null,null,"穀",6.1680000000000001,"0"]
[null,null,null,null,null,null,null,null,null,null,null,null,null,null,"郷",6.1689999999999996,"0"]
[null,null,null,null,null,null,null,null,null,null,null,null,null,null,"株",6.17,"0"]
[null,null,null,null,null,null,null,null,null,null,null,null,null,null,"諸",6.1710000000000003,"0"]
[null,null,null,null,null,null,null,null,null,null,null,null,null,null,"衆",6.1719999999999997,"0"]
[null,null,null,null,null,null,null,null,null,null,null,null,null,null,"磁",6.173,"0"]
[null,null,null,null,null,null,null,null,null,null,null,null,null,null,"皇",6.1740000000000004,"0"]
[null,null,null,null,null,null,null,null,null,null,null,null,null,null,"后　",6.1749999999999998,"0"]
[null,null,null,null,null,null,null,null,null,null,null,null,null,null,"陛",6.1760000000000002,"0"]
[null,null,null,null,null,null,null,null,null,null,null,null,null,null,"憲",6.1769999999999996,"0"]
[null,null,null,null,null,null,null,null,null,null,null,null,null,null,"党",6.1779999999999999,"0"]
[null,null,null,null,null,null,null,null,null,null,null,null,null,null,"閣",6.1790000000000003,"0"]
[null,null,null,null,null,null,null,null,null,null,null,null,null,null,"革",6.18,"0"]
[null,null,null,null,null,null,null,null,null,null,null,null,null,null,"宗",6.181,"0"]
[null,null,null,null,null,null,null,null,null,null,null,null,null,null,"詞",6.1820000000000004,"0"]
[null,null,null,null,null,null,null,null,null,null,null,null,null,null,"宣",6.1829999999999998,"0"]
[null,null,null,null,null,null,null,null,null,null,null,null,null,null,"値",6.1840000000000002,"0"]
[null,null,null,null,null,null,null,null,null,null,null,null,null,null,"俳",6.1849999999999996,"0"]
[null,null,null,null,null,null,null,null,null,null,null,null,null,null,"将",6.1859999999999999,{"$f":"IF(P1030>$Q$2,\"0\",\"1\")","v":"0"}]
[null,null,null,null,null,null,null,null,null,null,null,null,null,null,"針",6.1870000000000003,{"$f":"IF(P1031>$Q$2,\"0\",\"1\")","v":"0"}]
[null,null,null,null,null,null,null,null,null,null,null,null,null,null,"灰",6.1879999999999997,{"$f":"IF(P1032>$Q$2,\"0\",\"1\")","v":"0"}]
[null,null,null,null,null,null,null,null,null,null,null,null,null,null,"奮",6.1890000000000001,{"$f":"IF(P1033>$Q$2,\"0\",\"1\")","v":"0"}]
[null,null,null,null,null,null,null,null,null,null,null,null,null,null,"済",6.19,{"$f":"IF(P1034>$Q$2,\"0\",\"1\")","v":"0"}]

{"sheet":"合体クイズ","index":1,"n_rows":55,"n_cols":69,"rows_kept":55,"cut":false,"hidden":false,"merged":[[54,3,54,34],[56,1,61,6],[56,7,61,12],[56,13,61,18],[56,19,61,24],[56,25,61,30],[56,31,61,36],[33,44,38,49],[33,50,38,55],[33,56,38,61],[33,68,38,72],[39,44,44,49],[39,50,44,55],[39,56,44,61],[39,62,44,67],[39,68,44,72],[33,62,38,67],[40,1,45,6],[40,29,45,34],[47,10,52,15],[47,18,52,23],[26,29,31,34],[33,1,38,6],[33,29,38,34],[21,56,26,61],[21,62,26,67],[21,68,26,72],[26,1,31,6],[27,44,32,49],[27,50,32,55],[27,56,32,61],[27,62,32,67],[27,68,32,72],[19,1,24,6],[19,29,24,34],[21,44,26,49],[21,50,26,55],[7,50,12,55],[7,56,12,61],[7,62,12,67],[7,68,12,72],[11,11,17,16],[11,19,17,24],[13,44,20,49],[13,50,20,55],[13,56,20,61],[13,62,20,67],[7,44,12,49],[13,68,20,72],[0,2,3,28],[0,29,3,34],[0,35,3,37],[5,6,8,11],[5,12,8,38]]}
[null,null,"漢字合体クイズ　"]
[]
[]
[]
[]
[null,null,null,null,null,null,{"$f":"①漢字入力!C2","v":"2年"},null,null,null,null,null,"名前　（　　　　　　　　　　　　　　）"]
[]
[null,null,null,null,null,null,null,null,null,null,null,null,null,null,null,null,null,null,null,null,null,null,null,null,null,null,null,null,null,null,null,null,null,null,null,null,null,null,null,null,null,null,null,null,{"$f":"①漢字入力!$E$6","v":"止"},null,null,null,null,null,"＋",null,null,null,null,null,{"$f":"①漢字入力!$H$6","v":"少"},null,null,null,null,null,"＝",null,null,null,null,null,{"$f":"①漢字入力!B6","v":"歩"}]
[]
[]
[]
[null,null,null,null,null,null,null,null,null,null,null,{"$f":"編集!$I$5","v":"タ"},null,null,null,null,null,null,null,{"$f":"編集!$I$4","v":"刀"}]
[]
[null,null,null,null,null,null,null,null,null,null,null,null,null,null,null,null,null,null,null,null,null,null,null,null,null,null,null,null,null,null,null,null,null,null,null,null,null,null,null,null,null,null,null,null,{"$f":"①漢字入力!$E$7","v":"女"},null,null,null,null,null,"＋",null,null,null,null,null,{"$f":"①漢字入力!$H$7","v":"市"},null,null,null,null,null,"＝",null,null,null,null,null,{"$f":"①漢字入力!B7","v":"姉"}]
[]
[]
[]
[]
[]
[null,{"$f":"編集!H6","v":"イ"},null,null,null,null,null,null,null,null,null,null,null,null,null,null,null,null,null,null,null,null,null,null,null,null,null,null,null,{"$f":"編集!$H$4","v":"七"}]
[]
[null,null,null,null,null,null,null,null,null,null,null,null,null,null,null,null,null,null,null,null,null,null,null,null,null,null,null,null,null,null,null,null,null,null,null,null,null,null,null,null,null,null,null,null,{"$f":"①漢字入力!$E$8","v":"七"},null,null,null,null,null,"＋",null,null,null,null,null,{"$f":"①漢字入力!$H$8","v":"刀"},null,null,null,null,null,"＝",null,null,null,null,null,{"$f":"①漢字入力!B8","v":"切"}]
[]
[]
[]
[]
[null,{"$f":"編集!$I$2","v":"市"},null,null,null,null,null,null,null,null,null,null,null,null,null,null,null,null,null,null,null,null,null,null,null,null,null,null,null,{"$f":"編集!$I$6","v":"本"}]
[null,null,null,null,null,null,null,null,null,null,null,null,null,null,null,null,null,null,null,null,null,null,null,null,null,null,null,null,null,null,null,null,null,null,null,null,null,null,null,null,null,null,null,null,{"$f":"①漢字入力!$E$9","v":"ネ"},null,null,null,null,null,"＋",null,null,null,null,null,{"$f":"①漢字入力!$H$9","v":"土"},null,null,null,null,null,"＝",null,null,null,null,null,{"$f":"①漢字入力!B9","v":"社"}]
[]
[]
[]
[]
[]
[null,{"$f":"編集!H5","v":"タ"},null,null,null,null,null,null,null,null,null,null,null,null,null,null,null,null,null,null,null,null,null,null,null,null,null,null,null,{"$f":"編集!H2","v":"女"},null,null,null,null,null,null,null,null,null,null,null,null,null,null,{"$f":"①漢字入力!$E$10","v":"イ"},null,null,null,null,null,"＋",null,null,null,null,null,{"$f":"①漢字入力!$H$10","v":"本"},null,null,null,null,null,"＝",null,null,null,null,null,{"$f":"①漢字入力!B10","v":"体"}]
[]
[]
[]
[]
[]
[null,null,null,null,null,null,null,null,null,null,null,null,null,null,null,null,null,null,null,null,null,null,null,null,null,null,null,null,null,null,null,null,null,null,null,null,null,null,null,null,null,null,null,null,{"$f":"①漢字入力!$E$11","v":"タ"},null,null,null,null,null,"＋",null,null,null,null,null,{"$f":"①漢字入力!$H$11","v":"タ"},null,null,null,null,null,"＝",null,null,null,null,null,{"$f":"①漢字入力!B11","v":"多"}]
[null,{"$f":"編集!$I$3","v":"少"},null,null,null,null,null,null,null,null,null,null,null,null,null,null,null,null,null,null,null,null,null,null,null,null,null,null,null,{"$f":"編集!$I$1","v":"土"}]
[]
[]
[]
[]
[]
[]
[null,null,null,null,null,null,null,null,null,null,{"$f":"編集!H3","v":"止"},null,null,null,null,null,null,null,{"$f":"編集!H1","v":"ネ"}]
[]
[]
[]
[]
[]
[]
[null,null,null,"２つ合わせた漢字を書きましょう。"]

{"sheet":"迷路１","index":2,"n_rows":34,"n_cols":26,"rows_kept":34,"cut":false,"hidden":false,"merged":[[40,2,46,7],[40,8,46,13],[40,14,46,19],[40,20,46,25],[40,26,46,31],[17,37,20,37],[33,1,37,5],[33,7,37,11],[33,13,37,17],[33,19,37,23],[33,25,37,29],[1,1,1,34],[8,1,12,5],[8,7,12,11],[8,13,12,17],[8,19,12,23],[8,25,12,29]]}
[]
[null,"漢字おもしろクイズ　名前（　　　　　　　　　）　"]
[]
[]
[null,null,"２つの漢字を合わせると、どんな漢字になるかな？"]
[]
[]
[]
[null,{"$f":"編集!$H$1","v":"ネ"},null,null,null,null,null,{"$f":"編集!$H$2","v":"女"},null,null,null,null,null,{"$f":"編集!$H$3","v":"止"},null,null,null,null,null,{"$f":"編集!$H$4","v":"七"},null,null,null,null,null,{"$f":"編集!$H$5","v":"タ"}]
[]
[]
[]
[]
[]
[]
[]
[]
[]
[]
[]
[]
[]
[]
[]
[]
[]
[]
[]
[]
[]
[]
[]
[]
[null,{"$f":"編集!$I$1","v":"土"},null,null,null,null,null,{"$f":"編集!$I$5","v":"タ"},null,null,null,null,null,{"$f":"編集!$I$2","v":"市"},null,null,null,null,null,{"$f":"編集!$I$4","v":"刀"},null,null,null,null,null,{"$f":"編集!$I$3","v":"少"}]

{"sheet":"迷路２","index":3,"n_rows":14,"n_cols":22,"rows_kept":14,"cut":false,"hidden":false,"merged":[[0,11,0,15],[13,6,13,7],[13,8,13,9],[13,10,13,11],[13,12,13,13],[13,14,13,15],[14,6,14,7],[14,8,14,9],[14,10,14,11],[14,12,14,13],[14,14,14,15]]}
[null,null,null,null,null,"漢字合体迷路",null,null,null,{"$f":"①漢字入力!C2","v":"2年"},{"$f":"U2","v":"A①"},{"$f":"V2","v":"名前（　　　　　）"}]
[null,null,null,null,null,null,null,null,null,null,null,null,null,null,null,null,null,"漢字合わせ　",null,"３年","A①","名前（　　　　　）"]
[null,{"$f":"#REF!","v":{"$error":"#REF!"}},{"$f":"#REF!","v":{"$error":"#REF!"}},"①",null,null,null,null,null,null,null,{"$f":"編集!$H$1","v":"ネ"},null,null,null,null,null,"⑤"]
[null,{"$f":"#REF!","v":{"$error":"#REF!"}},{"$f":"#REF!","v":{"$error":"#REF!"}},null,null,null,null,null,null,null,null,null,{"$f":"編集!$H$5","v":"タ"},{"$f":"編集!$I$2","v":"市"}]
[null,{"$f":"#REF!","v":{"$error":"#REF!"}},{"$f":"#REF!","v":{"$error":"#REF!"}}]
[null,{"$f":"#REF!","v":{"$error":"#REF!"}},{"$f":"#REF!","v":{"$error":"#REF!"}},"②"]
[null,{"$f":"#REF!","v":{"$error":"#REF!"}},{"$f":"#REF!","v":{"$error":"#REF!"}},null,null,null,{"$f":"編集!$H$2","v":"女"}]
[null,null,null,null,null,null,{"$f":"編集!$I$1","v":"土"}]
[]
[null,null,null,null,null,null,null,null,null,null,{"$f":"編集!$I$3","v":"少"},{"$f":"編集!$I$4","v":"刀"},null,null,{"$f":"編集!$I$5","v":"タ"}]
[null,null,null,null,null,null,null,null,{"$f":"編集!$H$3","v":"止"},{"$f":"編集!H$4","v":"七"}]
[null,null,null,"③",null,null,null,null,null,null,null,null,null,null,null,null,null,"④"]
[]
[null,null,null,null,null,null,"⑤",null,"④",null,"③",null,"②",null,"①"]

{"sheet":"迷路3","index":4,"n_rows":36,"n_cols":32,"rows_kept":36,"cut":false,"hidden":false,"merged":[[5,4,7,6],[5,10,7,12],[5,16,7,18],[5,23,7,25],[5,31,7,33],[35,6,37,8],[35,13,37,15],[35,17,37,19],[35,23,37,25],[35,31,37,33],[41,4,46,8],[41,10,46,14],[41,16,46,20],[41,22,46,26],[41,28,46,32]]}
[]
[null,null,null,"漢字おもしろクイズ　　　　　（　　　　　　　　）",null,null,null,null,null,null,null,null,null,null,null,null,{"$f":"①漢字入力!C2","v":"2年"},null,null,null,"名前（　　　　　　　）"]
[]
[]
[]
[null,null,null,null,{"$f":"編集!$H$1","v":"ネ"},null,null,null,null,null,{"$f":"編集!$H$2","v":"女"},null,null,null,null,null,{"$f":"編集!$H$3","v":"止"},null,null,null,null,null,null,{"$f":"編集!$H$4","v":"七"},null,null,null,null,null,null,null,{"$f":"編集!$H$5","v":"タ"}]
[]
[]
[]
[]
[]
[]
[]
[]
[]
[]
[]
[]
[]
[]
[]
[]
[]
[]
[]
[]
[]
[]
[]
[]
[]
[]
[]
[]
[]
[null,null,null,null,null,null,{"$f":"編集!$I$5","v":"タ"},null,null,null,null,null,null,{"$f":"編集!$I$3","v":"少"},null,null,null,{"$f":"編集!$I$4","v":"刀"},null,null,null,null,null,{"$f":"編集!$I$1","v":"土"},null,null,null,null,null,null,null,{"$f":"編集!$I$2","v":"市"}]

{"sheet":"編集","index":5,"n_rows":13,"n_cols":15,"rows_kept":13,"cut":false,"hidden":false,"merged":[]}
[null,null,null,null,null,null,1,{"$f":"IF($G1=\"\",\"\",VLOOKUP($G1,$D$2:$F$7,2,0))","v":"ネ"},{"$f":"IF($G1=\"\",\"\",VLOOKUP($G1,$D$2:$F$7,3,0))","v":"土"},null,null,null,"３年"]
[null,{"$f":"M2","v":"止"},{"$f":"RAND()","v":0.83813943114129386},{"$f":"RANK(C2,C$2:C$7)","v":3},{"$f":"B2","v":"止"},{"$f":"B8","v":"少"},2,"女","市",null,null,null,{"$f":"①漢字入力!E6","v":"止"},"＋",{"$f":"①漢字入力!H6","v":"少"}]
[null,"女",0.84928268530227924,2,"女","市",3,"止","少",null,null,null,{"$f":"①漢字入力!E7","v":"女"},"＋",{"$f":"①漢字入力!H7","v":"市"}]
[null,"七",0.47624043439381947,4,"七","刀",4,"七","刀",null,null,null,{"$f":"①漢字入力!E8","v":"七"},"＋",{"$f":"①漢字入力!H8","v":"刀"}]
[null,"ネ",0.9944691186927056,1,"ネ","土",5,"タ","タ",null,null,null,{"$f":"①漢字入力!E9","v":"ネ"},"＋",{"$f":"①漢字入力!H9","v":"土"}]
[null,"イ",0.24811723462675184,6,"イ","本",6,"イ","本",null,null,null,{"$f":"①漢字入力!E10","v":"イ"},"＋",{"$f":"①漢字入力!H10","v":"本"}]
[null,"タ",0.31206751330605398,5,"タ","タ",null,null,null,null,null,null,{"$f":"①漢字入力!E11","v":"タ"},"＋",{"$f":"①漢字入力!H11","v":"タ"}]
[null,{"$f":"O2","v":"少"},null,{"$f":"D2","v":3}]
[null,"市",null,2]
[null,"刀",null,4]
[null,"土",null,1]
[null,"本",null,6]
[null,"タ",null,5]

{"sheet":"②漢字データ","index":6,"n_rows":1030,"n_cols":36,"rows_kept":1030,"cut":false,"hidden":false,"merged":[]}
["通し番号","整理番号","漢字","読み","音訓","問題","送り仮名",null,null,null,null,null,null,{"$f":"①漢字入力!Q2","v":2.0459999999999998}]
[{"$f":"B2*1000","v":1000.9999999999999},1.0009999999999999,"木",1,null,null,null,null,null,null,null,null,null,null,null,{"$f":"IF(B2>N$1,0,D2)","v":1},{"$f":"IF(P2=2,B2,0)","v":0}]
[1002,1.002,"大",1,null,null,null,null,null,null,null,null,null,null,null,1,0,null,null,2045.9999999999998,2.0459999999999998,"歩",2,null,"止","+","少",null,null,null,"＝","歩",null,null,2,2.0459999999999998]
[1002.9999999999999,1.0029999999999999,"小",1,null,null,null,null,null,null,null,null,null,null,null,1,0,null,null,2040,2.04,"姉",2,null,"女","+","市",null,null,null,"＝","姉",null,null,2,2.04]
[1004,1.004,"一",1,null,null,null,null,null,null,null,null,null,null,null,1,0,null,null,2037,2.0369999999999999,"切",2,null,"七","+","刀",null,null,null,"＝","切",null,null,2,2.0369999999999999]
[1004.9999999999999,1.0049999999999999,"二",1,null,null,null,null,null,null,null,null,null,null,null,1,0,null,null,2035.0000000000002,2.0350000000000001,"社",2,null,"ネ","+","土",null,null,null,"＝","社",null,null,2,2.0350000000000001]
[1006,1.006,"三",1,null,null,null,null,null,null,null,null,null,null,null,1,0,null,null,2029.9999999999998,2.0299999999999998,"体",2,null,"イ","+","本",null,null,null,"＝","体",null,null,2,2.0299999999999998]
[1006.9999999999999,1.0069999999999999,"四",1,null,null,null,null,null,null,null,null,null,null,null,1,0,null,null,2025.9999999999998,2.0259999999999998,"多",2,null,"タ","+","タ",null,null,null,"＝","多",null,null,2,2.0259999999999998]
[1008,1.008,"五",1,null,null,null,null,null,null,null,null,null,null,null,1,0,null,null,2025,2.0249999999999999,"晴",2,null,"日","+","青",null,null,null,"＝","晴",null,null,2,2.0249999999999999]
[1008.9999999999999,1.0089999999999999,"六",1,null,null,null,null,null,null,null,null,null,null,null,1,0,null,null,2012,2.012,"思",2,null,"田","+","心",null,null,null,"＝","思",null,null,2,2.012]
[1010,1.01,"七",1,null,null,null,null,null,null,null,null,null,null,null,1,0,null,null,2009,2.0089999999999999,"分",2,null,"八","+","刀",null,null,null,"＝","分",null,null,2,2.0089999999999999]
[1010.9999999999999,1.0109999999999999,"八",1,null,null,null,null,null,null,null,null,null,null,null,1,0,null,null,2007.0000000000002,2.0070000000000001,"絵",2,null,"糸","+","会",null,null,null,"＝","絵",null,null,2,2.0070000000000001]
[1012,1.012,"九",1,null,null,null,null,null,null,null,null,null,null,null,1,0,null,null,2001,2.0009999999999999,"読",2,null,"言","+","売",null,null,null,"＝","読",null,null,2,2.0009999999999999]
[1012.9999999999999,1.0129999999999999,"十",1,null,null,null,null,null,null,null,null,null,null,null,1,0,null,null,1075,1.075,"林",2,null,"木","+","木",null,null,null,"＝","林",null,null,2,1.075]
[1014,1.014,"子",1,null,null,null,null,null,null,null,null,null,null,null,1,0,null,null,1074,1.0740000000000001,"貝",2,null,"目","+","八",null,null,null,"＝","貝",null,null,2,1.0740000000000001]
[1014.9999999999999,1.0149999999999999,"空",1,null,null,null,null,null,null,null,null,null,null,null,1,0,null,null,1073,1.073,"早",2,null,"日","+","十",null,null,null,"＝","早",null,null,2,1.073]
[1016,1.016,"男",2,null,"田","+","力",null,null,null,"＝",{"$f":"C17","v":"男"},null,null,2,1.016,null,null,1062,1.0620000000000001,"音",2,null,"立","+","日",null,null,null,"＝","音",null,null,2,1.0620000000000001]
[1016.9999999999999,1.0169999999999999,"女",1,null,null,null,null,null,null,null,null,null,null,null,1,0,null,null,1053,1.0529999999999999,"休",2,null,"イ","+","木",null,null,null,"＝","休",null,null,2,1.0529999999999999]
[1018,1.018,"手",1,null,null,null,null,null,null,null,null,null,null,null,1,0,null,null,1050,1.05,"百",2,null,"一","+","白",null,null,null,"＝","百",null,null,2,1.05]
[1018.9999999999999,1.0189999999999999,"天",2,null,"一","+","大",null,null,null,"＝",{"$f":"C20","v":"天"},null,null,2,1.0189999999999999,null,null,1048,1.048,"名",2,null,"夕","+","口",null,null,null,"＝","名",null,null,2,1.048]
[1020,1.02,"青",1,null,null,null,null,null,null,null,null,null,null,null,1,0,null,null,1043,1.0429999999999999,"森",2,null,"木","+","林",null,null,null,"＝","森",null,null,2,1.0429999999999999]
[1020.9999999999999,1.0209999999999999,"見",1,null,null,null,null,null,null,null,null,null,null,null,1,0,null,null,1042,1.042,"本",2,null,"木","+","一",null,null,null,"＝","本",null,null,2,1.042]
[1022,1.022,"学",1,null,null,null,null,null,null,null,null,null,null,null,1,0,null,null,1018.9999999999999,1.0189999999999999,"天",2,null,"一","+","大",null,null,null,"＝","天",null,null,2,1.0189999999999999]
[1022.9999999999999,1.0229999999999999,"校",1,null,null,null,null,null,null,null,null,null,null,null,1,0,null,null,1016,1.016,"男",2,null,"田","+","力",null,null,null,"＝","男",null,null,2,1.016]
[1024,1.024,"虫",1,null,null,null,null,null,null,null,null,null,null,null,1,0,null,null,1000.9999999999999,1.0009999999999999,"木",1,null,null,null,null,null,null,null,null,null,null,null,1,0]
[1025,1.0249999999999999,"文",1,null,null,null,null,null,null,null,null,null,null,null,1,0,null,null,1002,1.002,"大",1,null,null,null,null,null,null,null,null,null,null,null,1,0]
[1026,1.026,"正",1,null,null,null,null,null,null,null,null,null,null,null,1,0,null,null,1002.9999999999999,1.0029999999999999,"小",1,null,null,null,null,null,null,null,null,null,null,null,1,0]
[1027,1.0269999999999999,"字",1,null,null,null,null,null,null,null,null,null,null,null,1,0,null,null,1004,1.004,"一",1,null,null,null,null,null,null,null,null,null,null,null,1,0]
[1028,1.028,"山",1,null,null,null,null,null,null,null,null,null,null,null,1,0,null,null,1004.9999999999999,1.0049999999999999,"二",1,null,null,null,null,null,null,null,null,null,null,null,1,0]
[1029,1.0289999999999999,"水",1,null,null,null,null,null,null,null,null,null,null,null,1,0,null,null,1006,1.006,"三",1,null,null,null,null,null,null,null,null,null,null,null,1,0]
[1030,1.03,"雨",1,null,null,null,null,null,null,null,null,null,null,null,1,0,null,null,1006.9999999999999,1.0069999999999999,"四",1,null,null,null,null,null,null,null,null,null,null,null,1,0]
[1031,1.0309999999999999,"上",1,null,null,null,null,null,null,null,null,null,null,null,1,0,null,null,1008,1.008,"五",1,null,null,null,null,null,null,null,null,null,null,null,1,0]
[1032,1.032,"下",1,null,null,null,null,null,null,null,null,null,null,null,1,0,null,null,1008.9999999999999,1.0089999999999999,"六",1,null,null,null,null,null,null,null,null,null,null,null,1,0]
[1033,1.0329999999999999,"日",1,null,null,null,null,null,null,null,null,null,null,null,1,0,null,null,1010,1.01,"七",1,null,null,null,null,null,null,null,null,null,null,null,1,0]
[1034,1.034,"火",1,null,null,null,null,null,null,null,null,null,null,null,1,0,null,null,1010.9999999999999,1.0109999999999999,"八",1,null,null,null,null,null,null,null,null,null,null,null,1,0]
[1035,1.0349999999999999,"田",1,null,null,null,null,null,null,null,null,null,null,null,1,0,null,null,1012,1.012,"九",1,null,null,null,null,null,null,null,null,null,null,null,1,0]
[1036,1.036,"川",1,null,null,null,null,null,null,null,null,null,null,null,1,0,null,null,1012.9999999999999,1.0129999999999999,"十",1,null,null,null,null,null,null,null,null,null,null,null,1,0]
[1037,1.0369999999999999,"竹",1,null,null,null,null,null,null,null,null,null,null,null,1,0,null,null,1014,1.014,"子",1,null,null,null,null,null,null,null,null,null,null,null,1,0]
[1038,1.038,"月",1,null,null,null,null,null,null,null,null,null,null,null,1,0,null,null,1014.9999999999999,1.0149999999999999,"空",1,null,null,null,null,null,null,null,null,null,null,null,1,0]
[1039,1.0389999999999999,"車",1,null,null,null,null,null,null,null,null,null,null,null,1,0,null,null,1016.9999999999999,1.0169999999999999,"女",1,null,null,null,null,null,null,null,null,null,null,null,1,0]
[1040,1.04,"人",1,null,null,null,null,null,null,null,null,null,null,null,1,0,null,null,1018,1.018,"手",1,null,null,null,null,null,null,null,null,null,null,null,1,0]
[1041,1.0409999999999999,"気",1,null,null,null,null,null,null,null,null,null,null,null,1,0,null,null,1020,1.02,"青",1,null,null,null,null,null,null,null,null,null,null,null,1,0]
[1042,1.042,"本",2,null,"木","+","一",null,null,null,"＝",{"$f":"C43","v":"本"},null,null,2,1.042,null,null,1020.9999999999999,1.0209999999999999,"見",1,null,null,null,null,null,null,null,null,null,null,null,1,0]
[1043,1.0429999999999999,"森",2,null,"木","+","林",null,null,null,"＝",{"$f":"C44","v":"森"},null,null,2,1.0429999999999999,null,null,1022,1.022,"学",1,null,null,null,null,null,null,null,null,null,null,null,1,0]
[1044,1.044,"出",1,null,null,null,null,null,null,null,null,null,null,null,1,0,null,null,1022.9999999999999,1.0229999999999999,"校",1,null,null,null,null,null,null,null,null,null,null,null,1,0]
[1045,1.0449999999999999,"中",1,null,null,null,null,null,null,null,null,null,null,null,1,0,null,null,1024,1.024,"虫",1,null,null,null,null,null,null,null,null,null,null,null,1,0]
[1046,1.046,"町",1,null,null,null,null,null,null,null,null,null,null,null,1,0,null,null,1025,1.0249999999999999,"文",1,null,null,null,null,null,null,null,null,null,null,null,1,0]
[1047,1.0469999999999999,"入",1,null,null,null,null,null,null,null,null,null,null,null,1,0,null,null,1026,1.026,"正",1,null,null,null,null,null,null,null,null,null,null,null,1,0]
[1048,1.048,"名",2,null,"夕","+","口",null,null,null,"＝",{"$f":"C49","v":"名"},null,null,2,1.048,null,null,1027,1.0269999999999999,"字",1,null,null,null,null,null,null,null,null,null,null,null,1,0]
[1049,1.0489999999999999,"夕",1,null,null,null,null,null,null,null,null,null,null,null,1,0,null,null,1028,1.028,"山",1,null,null,null,null,null,null,null,null,null,null,null,1,0]
[1050,1.05,"百",2,null,"一","+","白",null,null,null,"＝",{"$f":"C51","v":"百"},null,null,2,1.05,null,null,1029,1.0289999999999999,"水",1,null,null,null,null,null,null,null,null,null,null,null,1,0]
[1051,1.0509999999999999,"円",1,null,null,null,null,null,null,null,null,null,null,null,1,0,null,null,1030,1.03,"雨",1,null,null,null,null,null,null,null,null,null,null,null,1,0]
[1052,1.052,"花",1,null,null,null,null,null,null,null,null,null,null,null,1,0,null,null,1031,1.0309999999999999,"上",1,null,null,null,null,null,null,null,null,null,null,null,1,0]
[1053,1.0529999999999999,"休",2,null,"イ","+","木",null,null,null,"＝",{"$f":"C54","v":"休"},null,null,2,1.0529999999999999,null,null,1032,1.032,"下",1,null,null,null,null,null,null,null,null,null,null,null,1,0]
[1054,1.054,"金",1,null,null,null,null,null,null,null,null,null,null,null,1,0,null,null,1033,1.0329999999999999,"日",1,null,null,null,null,null,null,null,null,null,null,null,1,0]
[1055,1.0549999999999999,"土",1,null,null,null,null,null,null,null,null,null,null,null,1,0,null,null,1034,1.034,"火",1,null,null,null,null,null,null,null,null,null,null,null,1,0]
[1056,1.056,"千",1,null,null,null,null,null,null,null,null,null,null,null,1,0,null,null,1035,1.0349999999999999,"田",1,null,null,null,null,null,null,null,null,null,null,null,1,0]
[1057,1.0569999999999999,"糸",1,null,null,null,null,null,null,null,null,null,null,null,1,0,null,null,1036,1.036,"川",1,null,null,null,null,null,null,null,null,null,null,null,1,0]
[1058,1.0580000000000001,"目",1,null,null,null,null,null,null,null,null,null,null,null,1,0,null,null,1037,1.0369999999999999,"竹",1,null,null,null,null,null,null,null,null,null,null,null,1,0]
[1059,1.0589999999999999,"玉",1,null,null,null,null,null,null,null,null,null,null,null,1,0,null,null,1038,1.038,"月",1,null,null,null,null,null,null,null,null,null,null,null,1,0]
[1060,1.06,"村",1,null,null,null,null,null,null,null,null,null,null,null,1,0,null,null,1039,1.0389999999999999,"車",1,null,null,null,null,null,null,null,null,null,null,null,1,0]
[1061,1.0609999999999999,"白",1,null,null,null,null,null,null,null,null,null,null,null,1,0,null,null,1040,1.04,"人",1,null,null,null,null,null,null,null,null,null,null,null,1,0]
[1062,1.0620000000000001,"音",2,null,"立","+","日",null,null,null,"＝",{"$f":"C63","v":"音"},null,null,2,1.0620000000000001,null,null,1041,1.0409999999999999,"気",1,null,null,null,null,null,null,null,null,null,null,null,1,0]
[1063,1.0629999999999999,"赤",1,null,null,null,null,null,null,null,null,null,null,null,1,0,null,null,1044,1.044,"出",1,null,null,null,null,null,null,null,null,null,null,null,1,0]
[1064,1.0640000000000001,"生",1,null,null,null,null,null,null,null,null,null,null,null,1,0,null,null,1045,1.0449999999999999,"中",1,null,null,null,null,null,null,null,null,null,null,null,1,0]
[{"$f":"B66*1000","v":1065},1.0649999999999999,"耳",1,null,null,null,null,null,null,null,null,null,null,null,{"$f":"IF(B66>N$1,0,D66)","v":1},{"$f":"IF(P66=2,B66,0)","v":0},null,null,1046,1.046,"町",1,null,null,null,null,null,null,null,null,null,null,null,1,0]
[1066,1.0660000000000001,"王",1,null,null,null,null,null,null,null,null,null,null,null,1,0,null,null,1047,1.0469999999999999,"入",1,null,null,null,null,null,null,null,null,null,null,null,1,0]
[1067,1.0669999999999999,"口",1,null,null,null,null,null,null,null,null,null,null,null,1,0,null,null,1049,1.0489999999999999,"夕",1,null,null,null,null,null,null,null,null,null,null,null,1,0]
[1068,1.0680000000000001,"年",1,null,null,null,null,null,null,null,null,null,null,null,1,0,null,null,1051,1.0509999999999999,"円",1,null,null,null,null,null,null,null,null,null,null,null,1,0]
[1069,1.069,"立",1,null,null,null,null,null,null,null,null,null,null,null,1,0,null,null,1052,1.052,"花",1,null,null,null,null,null,null,null,null,null,null,null,1,0]
[1070,1.07,"草",1,null,null,null,null,null,null,null,null,null,null,null,1,0,null,null,1054,1.054,"金",1,null,null,null,null,null,null,null,null,null,null,null,1,0]
[1071,1.071,"先",1,null,null,null,null,null,null,null,null,null,null,null,1,0,null,null,1055,1.0549999999999999,"土",1,null,null,null,null,null,null,null,null,null,null,null,1,0]
[1072,1.0720000000000001,"犬",1,null,null,null,null,null,null,null,null,null,null,null,1,0,null,null,1056,1.056,"千",1,null,null,null,null,null,null,null,null,null,null,null,1,0]
[1073,1.073,"早",2,null,"日","+","十",null,null,null,"＝",{"$f":"C74","v":"早"},null,null,2,1.073,null,null,1057,1.0569999999999999,"糸",1,null,null,null,null,null,null,null,null,null,null,null,1,0]
[1074,1.0740000000000001,"貝",2,null,"目","+","八",null,null,null,"＝",{"$f":"C75","v":"貝"},null,null,2,1.0740000000000001,null,null,1058,1.0580000000000001,"目",1,null,null,null,null,null,null,null,null,null,null,null,1,0]
[1075,1.075,"林",2,null,"木","+","木",null,null,null,"＝",{"$f":"C76","v":"林"},null,null,2,1.075,null,null,1059,1.0589999999999999,"玉",1,null,null,null,null,null,null,null,null,null,null,null,1,0]
[1076,1.0760000000000001,"右",1,null,null,null,null,null,null,null,null,null,null,null,1,0,null,null,1060,1.06,"村",1,null,null,null,null,null,null,null,null,null,null,null,1,0]
[1077,1.077,"足",1,null,null,null,null,null,null,null,null,null,null,null,1,0,null,null,1061,1.0609999999999999,"白",1,null,null,null,null,null,null,null,null,null,null,null,1,0]
[1078,1.0780000000000001,"石",1,null,null,null,null,null,null,null,null,null,null,null,1,0,null,null,1063,1.0629999999999999,"赤",1,null,null,null,null,null,null,null,null,null,null,null,1,0]
[1079,1.079,"左",1,null,null,null,null,null,null,null,null,null,null,null,1,0,null,null,1064,1.0640000000000001,"生",1,null,null,null,null,null,null,null,null,null,null,null,1,0]
[1080,1.08,"力",1,null,null,null,null,null,null,null,null,null,null,null,1,0,null,null,1065,1.0649999999999999,"耳",1,null,null,null,null,null,null,null,null,null,null,null,1,0]
[2001,2.0009999999999999,"読",2,null,"言","+","売",null,null,null,"＝",{"$f":"C82","v":"読"},null,null,2,2.0009999999999999,null,null,1066,1.0660000000000001,"王",1,null,null,null,null,null,null,null,null,null,null,null,1,0]
[2001.9999999999998,2.0019999999999998,"雪",1,null,null,null,null,null,null,null,null,null,null,null,1,0,null,null,1067,1.0669999999999999,"口",1,null,null,null,null,null,null,null,null,null,null,null,1,0]
[2003,2.0030000000000001,"言",1,null,null,null,null,null,null,null,null,null,null,null,1,0,null,null,1068,1.0680000000000001,"年",1,null,null,null,null,null,null,null,null,null,null,null,1,0]
[2004,2.004,"行",1,null,null,null,null,null,null,null,null,null,null,null,1,0,null,null,1069,1.069,"立",1,null,null,null,null,null,null,null,null,null,null,null,1,0]
[2005,2.0049999999999999,"南",1,null,null,null,null,null,null,null,null,null,null,"水",1,0,null,null,1070,1.07,"草",1,null,null,null,null,null,null,null,null,null,null,null,1,0]
[2005.9999999999998,2.0059999999999998,"書",1,null,null,null,null,null,null,null,null,null,null,null,1,0,null,null,1071,1.071,"先",1,null,null,null,null,null,null,null,null,null,null,null,1,0]
[2007.0000000000002,2.0070000000000001,"絵",2,null,"糸","+","会",null,null,null,"＝",{"$f":"C88","v":"絵"},null,null,2,2.0070000000000001,null,null,1072,1.0720000000000001,"犬",1,null,null,null,null,null,null,null,null,null,null,null,1,0]
[2008,2.008,"図",1,null,null,null,null,null,null,null,null,null,null,null,1,0,null,null,1076,1.0760000000000001,"右",1,null,null,null,null,null,null,null,null,null,null,null,1,0]
[2009,2.0089999999999999,"分",2,null,"八","+","刀",null,null,null,"＝",{"$f":"C90","v":"分"},null,null,2,2.0089999999999999,null,null,1077,1.077,"足",1,null,null,null,null,null,null,null,null,null,null,null,1,0]
[2009.9999999999998,2.0099999999999998,"方",1,null,null,null,null,null,null,null,null,null,null,null,1,0,null,null,1078,1.0780000000000001,"石",1,null,null,null,null,null,null,null,null,null,null,null,1,0]
[2011.0000000000002,2.0110000000000001,"春",1,null,null,null,null,null,null,null,null,null,null,null,1,0,null,null,1079,1.079,"左",1,null,null,null,null,null,null,null,null,null,null,null,1,0]
[2012,2.012,"思",2,null,"田","+","心",null,null,null,"＝",{"$f":"C93","v":"思"},null,null,2,2.012,null,null,1080,1.08,"力",1,null,null,null,null,null,null,null,null,null,null,null,1,0]
[2013,2.0129999999999999,"記",1,null,null,null,null,null,null,null,null,null,null,null,1,0,null,null,2001.9999999999998,2.0019999999999998,"雪",1,null,null,null,null,null,null,null,null,null,null,null,1,0]
[2013.9999999999998,2.0139999999999998,"曜",1,null,null,null,null,null,null,null,null,null,null,null,1,0,null,null,2003,2.0030000000000001,"言",1,null,null,null,null,null,null,null,null,null,null,null,1,0]
[2015.0000000000002,2.0150000000000001,"肉",1,null,null,null,null,null,null,null,null,null,null,null,1,0,null,null,2004,2.004,"行",1,null,null,null,null,null,null,null,null,null,null,null,1,0]
[2016,2.016,"話",4,null,"言","+","舌",null,null,null,"＝",{"$f":"C97","v":"話"},null,null,4,0,null,null,2005,2.0049999999999999,"南",1,null,null,null,null,null,null,null,null,null,null,"水",1,0]
[2017,2.0169999999999999,"聞",1,null,null,null,null,null,null,null,null,null,null,null,1,0,null,null,2005.9999999999998,2.0059999999999998,"書",1,null,null,null,null,null,null,null,null,null,null,null,1,0]
[2017.9999999999998,2.0179999999999998,"黄",1,null,null,null,null,null,null,null,null,null,null,null,1,0,null,null,2008,2.008,"図",1,null,null,null,null,null,null,null,null,null,null,null,1,0]
[2019.0000000000002,2.0190000000000001,"色",1,null,null,null,null,null,null,null,null,null,null,null,1,0,null,null,2009.9999999999998,2.0099999999999998,"方",1,null,null,null,null,null,null,null,null,null,null,null,1,0]
[2020,2.02,"黒",1,null,null,null,null,null,null,null,null,null,null,null,1,0,null,null,2011.0000000000002,2.0110000000000001,"春",1,null,null,null,null,null,null,null,null,null,null,null,1,0]
[2021,2.0209999999999999,"太",1,null,null,null,null,null,null,null,null,null,null,null,1,0,null,null,2013,2.0129999999999999,"記",1,null,null,null,null,null,null,null,null,null,null,null,1,0]
[2021.9999999999998,2.0219999999999998,"毛",1,null,null,null,null,null,null,null,null,null,null,null,1,0,null,null,2013.9999999999998,2.0139999999999998,"曜",1,null,null,null,null,null,null,null,null,null,null,null,1,0]
[2023.0000000000002,2.0230000000000001,"高",1,null,null,null,null,null,null,null,null,null,null,null,1,0,null,null,2015.0000000000002,2.0150000000000001,"肉",1,null,null,null,null,null,null,null,null,null,null,null,1,0]
[2024,2.024,"風",1,null,null,null,null,null,null,null,null,null,null,null,1,0,null,null,2016,2.016,"話",4,null,"言","+","舌",null,null,null,"＝","話",null,null,4,0]
[2025,2.0249999999999999,"晴",2,null,"日","+","青",null,null,null,"＝",{"$f":"C106","v":"晴"},null,null,2,2.0249999999999999,null,null,2017,2.0169999999999999,"聞",1,null,null,null,null,null,null,null,null,null,null,null,1,0]
[2025.9999999999998,2.0259999999999998,"多",2,null,"タ","+","タ",null,null,null,"＝",{"$f":"C107","v":"多"},null,null,2,2.0259999999999998,null,null,2017.9999999999998,2.0179999999999998,"黄",1,null,null,null,null,null,null,null,null,null,null,null,1,0]
[2027.0000000000002,2.0270000000000001,"形",1,null,null,null,null,null,null,null,null,null,null,null,1,0,null,null,2019.0000000000002,2.0190000000000001,"色",1,null,null,null,null,null,null,null,null,null,null,null,1,0]
[2028,2.028,"長",1,null,null,null,null,null,null,null,null,null,null,null,1,0,null,null,2020,2.02,"黒",1,null,null,null,null,null,null,null,null,null,null,null,1,0]
[2029,2.0289999999999999,"数",1,null,null,null,null,null,null,null,null,null,null,null,1,0,null,null,2021,2.0209999999999999,"太",1,null,null,null,null,null,null,null,null,null,null,null,1,0]
[2029.9999999999998,2.0299999999999998,"体",2,null,"イ","+","本",null,null,null,"＝",{"$f":"C111","v":"体"},null,null,2,2.0299999999999998,null,null,2021.9999999999998,2.0219999999999998,"毛",1,null,null,null,null,null,null,null,null,null,null,null,1,0]
[2031.0000000000002,2.0310000000000001,"近",1,null,null,null,null,null,null,null,null,null,null,null,1,0,null,null,2023.0000000000002,2.0230000000000001,"高",1,null,null,null,null,null,null,null,null,null,null,null,1,0]
[2032,2.032,"同",1,null,null,null,null,null,null,null,null,null,null,null,1,0,null,null,2024,2.024,"風",1,null,null,null,null,null,null,null,null,null,null,null,1,0]
[2033,2.0329999999999999,"今",1,null,null,null,null,null,null,null,null,null,null,null,1,0,null,null,2027.0000000000002,2.0270000000000001,"形",1,null,null,null,null,null,null,null,null,null,null,null,1,0]
[2033.9999999999998,2.0339999999999998,"会",1,null,null,null,null,null,null,null,null,null,null,null,1,0,null,null,2028,2.028,"長",1,null,null,null,null,null,null,null,null,null,null,null,1,0]
[2035.0000000000002,2.0350000000000001,"社",2,null,"ネ","+","土",null,null,null,"＝",{"$f":"C116","v":"社"},null,null,2,2.0350000000000001,null,null,2029,2.0289999999999999,"数",1,null,null,null,null,null,null,null,null,null,null,null,1,0]
[2036,2.036,"刀",1,null,null,null,null,null,null,null,null,null,null,null,1,0,null,null,2031.0000000000002,2.0310000000000001,"近",1,null,null,null,null,null,null,null,null,null,null,null,1,0]
[2037,2.0369999999999999,"切",2,null,"七","+","刀",null,null,null,"＝",{"$f":"C118","v":"切"},null,null,2,2.0369999999999999,null,null,2032,2.032,"同",1,null,null,null,null,null,null,null,null,null,null,null,1,0]
[2037.9999999999998,2.0379999999999998,"内",1,null,null,null,null,null,null,null,null,null,null,null,1,0,null,null,2033,2.0329999999999999,"今",1,null,null,null,null,null,null,null,null,null,null,null,1,0]
[2039.0000000000002,2.0390000000000001,"店",1,null,null,null,null,null,null,null,null,null,null,null,1,0,null,null,2033.9999999999998,2.0339999999999998,"会",1,null,null,null,null,null,null,null,null,null,null,null,1,0]
[2040,2.04,"姉",2,null,"女","+","市",null,null,null,"＝",{"$f":"C121","v":"姉"},null,null,2,2.04,null,null,2036,2.036,"刀",1,null,null,null,null,null,null,null,null,null,null,null,1,0]
[2041,2.0409999999999999,"妹",4,null,"女","+","未",null,null,null,"＝",{"$f":"C122","v":"妹"},null,null,4,0,null,null,2037.9999999999998,2.0379999999999998,"内",1,null,null,null,null,null,null,null,null,null,null,null,1,0]
[2041.9999999999998,2.0419999999999998,"線",3,null,"糸","+","白","＋","水",null,"＝",{"$f":"C123","v":"線"},null,null,3,0,null,null,2039.0000000000002,2.0390000000000001,"店",1,null,null,null,null,null,null,null,null,null,null,null,1,0]
[2043.0000000000002,2.0430000000000001,"汽",1,null,null,null,null,null,null,null,null,null,null,null,1,0,null,null,2041,2.0409999999999999,"妹",4,null,"女","+","未",null,null,null,"＝","妹",null,null,4,0]
[2044,2.044,"海",1,null,null,null,null,null,null,null,null,null,null,null,1,0,null,null,2041.9999999999998,2.0419999999999998,"線",3,null,"糸","+","白","＋","水",null,"＝","線",null,null,3,0]
[2045,2.0449999999999999,"回",1,null,null,null,null,null,null,null,null,null,null,null,1,0,null,null,2043.0000000000002,2.0430000000000001,"汽",1,null,null,null,null,null,null,null,null,null,null,null,1,0]
[2045.9999999999998,2.0459999999999998,"歩",2,null,"止","+","少",null,null,null,"＝",{"$f":"C127","v":"歩"},null,null,2,2.0459999999999998,null,null,2044,2.044,"海",1,null,null,null,null,null,null,null,null,null,null,null,1,0]
[2047.0000000000002,2.0470000000000002,"魚",1,null,null,null,null,null,null,null,null,null,null,null,0,0,null,null,2045,2.0449999999999999,"回",1,null,null,null,null,null,null,null,null,null,null,null,1,0]
[2048,2.048,"広",1,null,null,null,null,null,null,null,null,null,null,null,0,0,null,null,2047.0000000000002,2.0470000000000002,"魚",1,null,null,null,null,null,null,null,null,null,null,null,0,0]
[{"$f":"B130*1000","v":2049},2.0489999999999999,"前",1,null,null,null,null,null,null,null,null,null,null,null,{"$f":"IF(B130>N$1,0,D130)","v":0},{"$f":"IF(P130=2,B130,0)","v":0},null,null,2048,2.048,"広",1,null,null,null,null,null,null,null,null,null,null,null,0,0]
[2050,2.0499999999999998,"元",1,null,null,null,null,null,null,null,null,null,null,null,0,0,null,null,2049,2.0489999999999999,"前",1,null,null,null,null,null,null,null,null,null,null,null,0,0]
[2051,2.0510000000000002,"岩",2,null,"山","+","石",null,null,null,"＝",{"$f":"C132","v":"岩"},null,null,0,0,null,null,2050,2.0499999999999998,"元",1,null,null,null,null,null,null,null,null,null,null,null,0,0]
[2052,2.052,"教",1,null,null,null,null,null,null,null,null,null,null,null,0,0,null,null,2051,2.0510000000000002,"岩",2,null,"山","+","石",null,null,null,"＝","岩",null,null,0,0]
[2053,2.0529999999999999,"光",1,null,null,null,null,null,null,null,null,null,null,null,0,0,null,null,2052,2.052,"教",1,null,null,null,null,null,null,null,null,null,null,null,0,0]
[2054,2.0539999999999998,"知",2,null,"矢","+","口",null,null,null,"＝",{"$f":"C135","v":"知"},null,null,0,0,null,null,2053,2.0529999999999999,"光",1,null,null,null,null,null,null,null,null,null,null,null,0,0]
[2055,2.0550000000000002,"考",1,null,null,null,null,null,null,null,null,null,null,null,0,0,null,null,2054,2.0539999999999998,"知",2,null,"矢","+","口",null,null,null,"＝","知",null,null,0,0]
[2056,2.056,"室",1,null,null,null,null,null,null,null,null,null,null,null,0,0,null,null,2055,2.0550000000000002,"考",1,null,null,null,null,null,null,null,null,null,null,null,0,0]
[2057,2.0569999999999999,"組",1,null,null,null,null,null,null,null,null,null,null,null,0,0,null,null,2056,2.056,"室",1,null,null,null,null,null,null,null,null,null,null,null,0,0]
[2058,2.0579999999999998,"後",1,null,null,null,null,null,null,null,null,null,null,null,0,0,null,null,2057,2.0569999999999999,"組",1,null,null,null,null,null,null,null,null,null,null,null,0,0]
[2059,2.0590000000000002,"丸",1,null,null,null,null,null,null,null,null,null,null,null,0,0,null,null,2058,2.0579999999999998,"後",1,null,null,null,null,null,null,null,null,null,null,null,0,0]
[2060,2.06,"点",1,null,null,null,null,null,null,null,null,null,null,null,0,0,null,null,2059,2.0590000000000002,"丸",1,null,null,null,null,null,null,null,null,null,null,null,0,0]
[2061,2.0609999999999999,"買",1,null,null,null,null,null,null,null,null,null,null,null,0,0,null,null,2060,2.06,"点",1,null,null,null,null,null,null,null,null,null,null,null,0,0]
[2062,2.0619999999999998,"友",1,null,null,null,null,null,null,null,null,null,null,"見",0,0,null,null,2061,2.0609999999999999,"買",1,null,null,null,null,null,null,null,null,null,null,null,0,0]
[2063,2.0630000000000002,"羽",1,null,null,null,null,null,null,null,null,null,null,null,0,0,null,null,2062,2.0619999999999998,"友",1,null,null,null,null,null,null,null,null,null,null,"見",0,0]
[2064,2.0640000000000001,"雲",1,null,null,null,null,null,null,null,null,null,null,null,0,0,null,null,2063,2.0630000000000002,"羽",1,null,null,null,null,null,null,null,null,null,null,null,0,0]
[2065,2.0649999999999999,"夏",1,null,null,null,null,null,null,null,null,null,null,null,0,0,null,null,2064,2.0640000000000001,"雲",1,null,null,null,null,null,null,null,null,null,null,null,0,0]
[2066,2.0659999999999998,"公",2,null,"八","+","ム",null,null,null,"＝",{"$f":"C147","v":"公"},null,null,0,0,null,null,2065,2.0649999999999999,"夏",1,null,null,null,null,null,null,null,null,null,null,null,0,0]
[2067,2.0670000000000002,"園",1,null,null,null,null,null,null,null,null,null,null,null,0,0,null,null,2066,2.0659999999999998,"公",2,null,"八","+","ム",null,null,null,"＝","公",null,null,0,0]
[2068,2.0680000000000001,"通",1,null,null,null,null,null,null,null,null,null,null,null,0,0,null,null,2067,2.0670000000000002,"園",1,null,null,null,null,null,null,null,null,null,null,null,0,0]
[2069,2.069,"万",1,null,null,null,null,null,null,null,null,null,null,null,0,0,null,null,2068,2.0680000000000001,"通",1,null,null,null,null,null,null,null,null,null,null,null,0,0]
[2070,2.0699999999999998,"頭",1,null,null,null,null,null,null,null,null,null,null,null,0,0,null,null,2069,2.069,"万",1,null,null,null,null,null,null,null,null,null,null,null,0,0]
[2071,2.0710000000000002,"鳥",1,null,null,null,null,null,null,null,null,null,null,"口",0,0,null,null,2070,2.0699999999999998,"頭",1,null,null,null,null,null,null,null,null,null,null,null,0,0]
[2072,2.0720000000000001,"朝　",3,null,"十","+","早","+","月",null,"＝",{"$f":"C153","v":"朝　"},null,null,0,0,null,null,2071,2.0710000000000002,"鳥",1,null,null,null,null,null,null,null,null,null,null,"口",0,0]
[2073,2.073,"顔",1,null,null,null,null,null,null,null,null,null,null,null,0,0,null,null,2072,2.0720000000000001,"朝　",3,null,"十","+","早","+","月",null,"＝","朝　",null,null,0,0]
[2074,2.0739999999999998,"毎",1,null,null,null,null,null,null,null,null,null,null,null,0,0,null,null,2073,2.073,"顔",1,null,null,null,null,null,null,null,null,null,null,null,0,0]
[2075,2.0750000000000002,"家",1,null,null,null,null,null,null,null,null,null,null,null,0,0,null,null,2074,2.0739999999999998,"毎",1,null,null,null,null,null,null,null,null,null,null,null,0,0]
[2076,2.0760000000000001,"当",1,null,null,null,null,null,null,null,null,null,null,null,0,0,null,null,2075,2.0750000000000002,"家",1,null,null,null,null,null,null,null,null,null,null,null,0,0]
[2077,2.077,"間",2,null,"門","+","日",null,null,null,"＝",{"$f":"C158","v":"間"},null,null,0,0,null,null,2076,2.0760000000000001,"当",1,null,null,null,null,null,null,null,null,null,null,null,0,0]
[2078,2.0779999999999998,"昼",1,null,null,null,null,null,null,null,null,null,null,null,0,0,null,null,2077,2.077,"間",2,null,"門","+","日",null,null,null,"＝","間",null,null,0,0]
[2079,2.0790000000000002,"半",1,null,null,null,null,null,null,null,null,null,null,null,0,0,null,null,2078,2.0779999999999998,"昼",1,null,null,null,null,null,null,null,null,null,null,null,0,0]
[2080,2.08,"電",1,null,null,null,null,null,null,null,null,null,null,null,0,0,null,null,2079,2.0790000000000002,"半",1,null,null,null,null,null,null,null,null,null,null,null,0,0]
[2081,2.081,"外",2,null,"タ","+","ト",null,null,null,"＝",{"$f":"C162","v":"外"},null,null,0,0,null,null,2080,2.08,"電",1,null,null,null,null,null,null,null,null,null,null,null,0,0]
[2082,2.0819999999999999,"声",1,null,null,null,null,null,null,null,null,null,null,null,0,0,null,null,2081,2.081,"外",2,null,"タ","+","ト",null,null,null,"＝","外",null,null,0,0]
[2083,2.0830000000000002,"楽",1,null,null,null,null,null,null,null,null,null,null,null,0,0,null,null,2082,2.0819999999999999,"声",1,null,null,null,null,null,null,null,null,null,null,null,0,0]
[2084,2.0840000000000001,"親",3,null,"立","+","木","+","見",null,"　",{"$f":"C165","v":"親"},null,null,0,0,null,null,2083,2.0830000000000002,"楽",1,null,null,null,null,null,null,null,null,null,null,null,0,0]
[2085,2.085,"父",1,null,null,null,null,null,null,null,null,null,null,null,0,0,null,null,2084,2.0840000000000001,"親",3,null,"立","+","木","+","見",null,"　","親",null,null,0,0]
[2086,2.0859999999999999,"母",1,null,null,null,null,null,null,null,null,null,null,null,0,0,null,null,2085,2.085,"父",1,null,null,null,null,null,null,null,null,null,null,null,0,0]
[2087,2.0870000000000002,"兄",1,null,null,null,null,null,null,null,null,null,null,null,0,0,null,null,2086,2.0859999999999999,"母",1,null,null,null,null,null,null,null,null,null,null,null,0,0]
[2088,2.0880000000000001,"弟",1,null,null,null,null,null,null,null,null,null,null,null,0,0,null,null,2087,2.0870000000000002,"兄",1,null,null,null,null,null,null,null,null,null,null,null,0,0]
[2089,2.089,"午",1,null,null,null,null,null,null,null,null,null,null,null,0,0,null,null,2088,2.0880000000000001,"弟",1,null,null,null,null,null,null,null,null,null,null,null,0,0]
[2090,2.09,"夜",1,null,null,null,null,null,null,null,null,null,null,null,0,0,null,null,2089,2.089,"午",1,null,null,null,null,null,null,null,null,null,null,null,0,0]
[2091,2.0910000000000002,"国",1,null,null,null,null,null,null,null,null,null,null,null,0,0,null,null,2090,2.09,"夜",1,null,null,null,null,null,null,null,null,null,null,null,0,0]
[2092,2.0920000000000001,"語",3,null,"言","+","五","+","口",null,null,{"$f":"C173","v":"語"},null,null,0,0,null,null,2091,2.0910000000000002,"国",1,null,null,null,null,null,null,null,null,null,null,null,0,0]
[2093,2.093,"算",1,null,null,null,null,null,null,null,null,null,null,null,0,0,null,null,2092,2.0920000000000001,"語",3,null,"言","+","五","+","口",null,null,"語",null,null,0,0]
[2094,2.0939999999999999,"紙",4,null,"糸","+","氏",null,null,null,"＝",{"$f":"C175","v":"紙"},null,null,0,0,null,null,2093,2.093,"算",1,null,null,null,null,null,null,null,null,null,null,null,0,0]
[2095,2.0950000000000002,"来",1,null,null,null,null,null,null,null,null,null,null,null,0,0,null,null,2094,2.0939999999999999,"紙",4,null,"糸","+","氏",null,null,null,"＝","紙",null,null,0,0]
[2096,2.0960000000000001,"時",2,null,"日","+","寺",null,null,null,"＝",{"$f":"C177","v":"時"},null,null,0,0,null,null,2095,2.0950000000000002,"来",1,null,null,null,null,null,null,null,null,null,null,null,0,0]
[2097,2.097,"帰",1,null,null,null,null,null,null,null,null,null,null,null,0,0,null,null,2096,2.0960000000000001,"時",2,null,"日","+","寺",null,null,null,"＝","時",null,null,0,0]
[2098,2.0979999999999999,"何",1,null,null,null,null,null,null,null,null,null,null,null,0,0,null,null,2097,2.097,"帰",1,null,null,null,null,null,null,null,null,null,null,null,0,0]
[2099,2.0990000000000002,"里",1,null,null,null,null,null,null,null,null,null,null,null,0,0,null,null,2098,2.0979999999999999,"何",1,null,null,null,null,null,null,null,null,null,null,null,0,0]
[2100,2.1,"食",1,null,null,null,null,null,null,null,null,null,null,null,0,0,null,null,2099,2.0990000000000002,"里",1,null,null,null,null,null,null,null,null,null,null,null,0,0]
[2101,2.101,"明",2,null,"日","+","月",null,null,null,"＝",{"$f":"C182","v":"明"},null,null,0,0,null,null,2100,2.1,"食",1,null,null,null,null,null,null,null,null,null,null,null,0,0]
[2102,2.1019999999999999,"池",1,null,null,null,null,null,null,null,null,null,null,null,0,0,null,null,2101,2.101,"明",2,null,"日","+","月",null,null,null,"＝","明",null,null,0,0]
[2103,2.1030000000000002,"週",1,null,null,null,null,null,null,null,null,null,null,null,0,0,null,null,2102,2.1019999999999999,"池",1,null,null,null,null,null,null,null,null,null,null,null,0,0]
[2104,2.1040000000000001,"番",3,null,"ノ","+","米","+","田",null,"＝",{"$f":"C185","v":"番"},null,null,0,0,null,null,2103,2.1030000000000002,"週",1,null,null,null,null,null,null,null,null,null,null,null,0,0]
[2105,2.105,"東",1,null,null,null,null,null,null,null,null,null,null,null,0,0,null,null,2104,2.1040000000000001,"番",3,null,"ノ","+","米","+","田",null,"＝","番",null,null,0,0]
[2106,2.1059999999999999,"京",1,null,null,null,null,null,null,null,null,null,null,null,0,0,null,null,2105,2.105,"東",1,null,null,null,null,null,null,null,null,null,null,null,0,0]
[2107,2.1070000000000002,"古",2,null,"十","+","口",null,null,null,"＝",{"$f":"C188","v":"古"},null,null,0,0,null,null,2106,2.1059999999999999,"京",1,null,null,null,null,null,null,null,null,null,null,null,0,0]
[2108,2.1080000000000001,"寺",1,null,null,null,null,null,null,null,null,null,null,null,0,0,null,null,2107,2.1070000000000002,"古",2,null,"十","+","口",null,null,null,"＝","古",null,null,0,0]
[2109,2.109,"西",1,null,null,null,null,null,null,null,null,null,null,null,0,0,null,null,2108,2.1080000000000001,"寺",1,null,null,null,null,null,null,null,null,null,null,null,0,0]
[2110,2.11,"止",1,null,null,null,null,null,null,null,null,null,null,null,0,0,null,null,2109,2.109,"西",1,null,null,null,null,null,null,null,null,null,null,null,0,0]
[2111,2.1110000000000002,"道",1,null,null,null,null,null,null,null,null,null,null,null,0,0,null,null,2110,2.11,"止",1,null,null,null,null,null,null,null,null,null,null,null,0,0]
[2112,2.1120000000000001,"場",1,null,null,null,null,null,null,null,null,null,null,null,0,0,null,null,2111,2.1110000000000002,"道",1,null,null,null,null,null,null,null,null,null,null,null,0,0]
[{"$f":"B194*1000","v":2113},2.113,"台",2,null,"ム","+","口",null,null,null,"＝",{"$f":"C194","v":"台"},null,null,{"$f":"IF(B194>N$1,0,D194)","v":0},{"$f":"IF(P194=2,B194,0)","v":0},null,null,2112,2.1120000000000001,"場",1,null,null,null,null,null,null,null,null,null,null,null,0,0]
[2114,2.1139999999999999,"新",1,null,null,null,null,null,null,null,null,null,null,null,0,0,null,null,2113,2.113,"台",2,null,"ム","+","口",null,null,null,"＝","台",null,null,0,0]
[2115,2.1150000000000002,"船",1,null,null,null,null,null,null,null,null,null,null,null,0,0,null,null,2114,2.1139999999999999,"新",1,null,null,null,null,null,null,null,null,null,null,null,0,0]
[2116,2.1160000000000001,"米",1,null,null,null,null,null,null,null,null,null,null,null,0,0,null,null,2115,2.1150000000000002,"船",1,null,null,null,null,null,null,null,null,null,null,null,0,0]
[2117,2.117,"秋",3,null,"ノ","+","木","+","火",null,"＝",{"$f":"C198","v":"秋"},null,null,0,0,null,null,2116,2.1160000000000001,"米",1,null,null,null,null,null,null,null,null,null,null,null,0,0]
[2118,2.1179999999999999,"合",1,null,null,null,null,null,null,null,null,null,null,null,0,0,null,null,2117,2.117,"秋",3,null,"ノ","+","木","+","火",null,"＝","秋",null,null,0,0]
[2119,2.1189999999999998,"活",1,null,null,null,null,null,null,null,null,null,null,null,0,0,null,null,2118,2.1179999999999999,"合",1,null,null,null,null,null,null,null,null,null,null,null,0,0]
[2120,2.12,"理",2,null,"王","+","里",null,null,null,"＝",{"$f":"C201","v":"理"},null,null,0,0,null,null,2119,2.1189999999999998,"活",1,null,null,null,null,null,null,null,null,null,null,null,0,0]
[2121,2.121,"作",1,null,null,null,null,null,null,null,null,null,null,null,0,0,null,null,2120,2.12,"理",2,null,"王","+","里",null,null,null,"＝","理",null,null,0,0]
[2122,2.1219999999999999,"馬",1,null,null,null,null,null,null,null,null,null,null,null,0,0,null,null,2121,2.121,"作",1,null,null,null,null,null,null,null,null,null,null,null,0,0]
[2123,2.1230000000000002,"画",1,null,null,null,null,null,null,null,null,null,null,null,0,0,null,null,2122,2.1219999999999999,"馬",1,null,null,null,null,null,null,null,null,null,null,null,0,0]
[2124,2.1240000000000001,"用",1,null,null,null,null,null,null,null,null,null,null,null,0,0,null,null,2123,2.1230000000000002,"画",1,null,null,null,null,null,null,null,null,null,null,null,0,0]
[2125,2.125,"首",1,null,null,null,null,null,null,null,null,null,null,null,0,0,null,null,2124,2.1240000000000001,"用",1,null,null,null,null,null,null,null,null,null,null,null,0,0]
[2126,2.1259999999999999,"細",2,null,"糸","+","田",null,null,null,"＝",{"$f":"C207","v":"細"},null,null,0,0,null,null,2125,2.125,"首",1,null,null,null,null,null,null,null,null,null,null,null,0,0]
[2127,2.1269999999999998,"角",1,null,null,null,null,null,null,null,null,null,null,null,0,0,null,null,2126,2.1259999999999999,"細",2,null,"糸","+","田",null,null,null,"＝","細",null,null,0,0]
[2128,2.1280000000000001,"工",1,null,null,null,null,null,null,null,null,null,null,null,0,0,null,null,2127,2.1269999999999998,"角",1,null,null,null,null,null,null,null,null,null,null,null,0,0]
[2129,2.129,"科",1,null,null,null,null,null,null,null,null,null,null,null,0,0,null,null,2128,2.1280000000000001,"工",1,null,null,null,null,null,null,null,null,null,null,null,0,0]
[2130,2.13,"鳴",2,null,"口","+","鳥",null,null,null,"＝",{"$f":"C211","v":"鳴"},null,null,0,0,null,null,2129,2.129,"科",1,null,null,null,null,null,null,null,null,null,null,null,0,0]
[2131,2.1310000000000002,"戸",1,null,null,null,null,null,null,null,null,null,null,null,0,0,null,null,2130,2.13,"鳴",2,null,"口","+","鳥",null,null,null,"＝","鳴",null,null,0,0]
[2132,2.1320000000000001,"麦",1,null,null,null,null,null,null,null,null,null,null,null,0,0,null,null,2131,2.1310000000000002,"戸",1,null,null,null,null,null,null,null,null,null,null,null,0,0]
[2133,2.133,"茶",1,null,null,null,null,null,null,null,null,null,null,null,0,0,null,null,2132,2.1320000000000001,"麦",1,null,null,null,null,null,null,null,null,null,null,null,0,0]
[2134,2.1339999999999999,"地",1,null,null,null,null,null,null,null,null,null,null,null,0,0,null,null,2133,2.133,"茶",1,null,null,null,null,null,null,null,null,null,null,null,0,0]
[2135,2.1349999999999998,"市",1,null,null,null,null,null,null,null,null,null,null,null,0,0,null,null,2134,2.1339999999999999,"地",1,null,null,null,null,null,null,null,null,null,null,null,0,0]
[2136,2.1360000000000001,"自",1,null,null,null,null,null,null,null,null,null,null,null,0,0,null,null,2135,2.1349999999999998,"市",1,null,null,null,null,null,null,null,null,null,null,null,0,0]
[2137,2.137,"歌",1,null,null,null,null,null,null,null,null,null,null,null,0,0,null,null,2136,2.1360000000000001,"自",1,null,null,null,null,null,null,null,null,null,null,null,0,0]
[2138,2.1379999999999999,"心",1,null,null,null,null,null,null,null,null,null,null,null,0,0,null,null,2137,2.137,"歌",1,null,null,null,null,null,null,null,null,null,null,null,0,0]
[2139.0000000000005,2.1390000000000002,"答",2,null,"竹","+","合",null,null,null,"＝",{"$f":"C220","v":"答"},null,null,0,0,null,null,2138,2.1379999999999999,"心",1,null,null,null,null,null,null,null,null,null,null,null,0,0]
[2140,2.14,"野",2,null,"里","+","予",null,null,null,"＝",{"$f":"C221","v":"野"},null,null,0,0,null,null,2139.0000000000005,2.1390000000000002,"答",2,null,"竹","+","合",null,null,null,"＝","答",null,null,0,0]
[2141,2.141,"原",1,null,null,null,null,null,null,null,null,null,null,null,0,0,null,null,2140,2.14,"野",2,null,"里","+","予",null,null,null,"＝","野",null,null,0,0]
[2142,2.1419999999999999,"冬",1,null,null,null,null,null,null,null,null,null,null,null,0,0,null,null,2141,2.141,"原",1,null,null,null,null,null,null,null,null,null,null,null,0,0]
[2143,2.1429999999999998,"星",2,null,"日","+","生",null,null,null,"＝",{"$f":"C224","v":"星"},null,null,0,0,null,null,2142,2.1419999999999999,"冬",1,null,null,null,null,null,null,null,null,null,null,null,0,0]
[2144,2.1440000000000001,"少",2,null,"小","+","ノ",null,null,null,"＝",{"$f":"C225","v":"少"},null,null,0,0,null,null,2143,2.1429999999999998,"星",2,null,"日","+","生",null,null,null,"＝","星",null,null,0,0]
[2145,2.145,"走",1,null,null,null,null,null,null,null,null,null,null,null,0,0,null,null,2144,2.1440000000000001,"少",2,null,"小","+","ノ",null,null,null,"＝","少",null,null,0,0]
[2146,2.1459999999999999,"交",1,null,null,null,null,null,null,null,null,null,null,"虫",0,0,null,null,2145,2.145,"走",1,null,null,null,null,null,null,null,null,null,null,null,0,0]
[2147,2.1469999999999998,"遠",1,null,null,null,null,null,null,null,null,null,null,null,0,0,null,null,2146,2.1459999999999999,"交",1,null,null,null,null,null,null,null,null,null,null,"虫",0,0]
[2148,2.1480000000000001,"強",3,null,"弓","+","ム","+","虫",null,null,{"$f":"C229","v":"強"},null,null,0,0,null,null,2147,2.1469999999999998,"遠",1,null,null,null,null,null,null,null,null,null,null,null,0,0]
[2149,2.149,"才",1,null,null,null,null,null,null,null,null,null,null,null,0,0,null,null,2148,2.1480000000000001,"強",3,null,"弓","+","ム","+","虫",null,null,"強",null,null,0,0]
[2150,2.15,"門",1,null,null,null,null,null,null,null,null,null,null,null,0,0,null,null,2149,2.149,"才",1,null,null,null,null,null,null,null,null,null,null,null,0,0]
[2151,2.1509999999999998,"弓",1,null,null,null,null,null,null,null,null,null,null,null,0,0,null,null,2150,2.15,"門",1,null,null,null,null,null,null,null,null,null,null,null,0,0]
[2152,2.1520000000000001,"矢",1,null,null,null,null,null,null,null,null,null,null,null,0,0,null,null,2151,2.1509999999999998,"弓",1,null,null,null,null,null,null,null,null,null,null,null,0,0]
[2153,2.153,"谷",1,null,null,null,null,null,null,null,null,null,null,null,0,0,null,null,2152,2.1520000000000001,"矢",1,null,null,null,null,null,null,null,null,null,null,null,0,0]
[2154,2.1539999999999999,"北",1,null,null,null,null,null,null,null,null,null,null,null,0,0,null,null,2153,2.153,"谷",1,null,null,null,null,null,null,null,null,null,null,null,0,0]
[2155,2.1549999999999998,"牛",1,null,null,null,null,null,null,null,null,null,null,null,0,0,null,null,2154,2.1539999999999999,"北",1,null,null,null,null,null,null,null,null,null,null,null,0,0]
[2156,2.1560000000000001,"引",1,null,null,null,null,null,null,null,null,null,null,null,0,0,null,null,2155,2.1549999999999998,"牛",1,null,null,null,null,null,null,null,null,null,null,null,0,0]
[2157,2.157,"売",1,null,null,null,null,null,null,null,null,null,null,null,0,0,null,null,2156,2.1560000000000001,"引",1,null,null,null,null,null,null,null,null,null,null,null,0,0]
[2158,2.1579999999999999,"弱",1,null,null,null,null,null,null,null,null,null,null,null,0,0,null,null,2157,2.157,"売",1,null,null,null,null,null,null,null,null,null,null,null,0,0]
[2159,2.1589999999999998,"計",2,null,"言","+","十",null,null,null,"＝",{"$f":"C240","v":"計"},null,null,0,0,null,null,2158,2.1579999999999999,"弱",1,null,null,null,null,null,null,null,null,null,null,null,0,0]
[2160,2.16,"直　",1,null,null,"+",null,null,null,null,"＝",null,null,null,0,0,null,null,2159,2.1589999999999998,"計",2,null,"言","+","十",null,null,null,"＝","計",null,null,0,0]
[3001,3.0009999999999999,"詩",2,null,"言","+","寺",null,null,null,"＝",{"$f":"C242","v":"詩"},null,null,0,0,null,null,2160,2.16,"直　",1,null,null,"+",null,null,null,null,"＝",null,null,null,0,0]
[3002,3.0019999999999998,"習",2,null,"羽","+","白",null,null,null,"＝",{"$f":"C243","v":"習"},null,null,0,0,null,null,3001,3.0009999999999999,"詩",2,null,"言","+","寺",null,null,null,"＝","詩",null,null,0,0]
[3003,3.0030000000000001,"商",1,null,null,"+",null,null,null,null,"＝",null,null,null,0,0,null,null,3002,3.0019999999999998,"習",2,null,"羽","+","白",null,null,null,"＝","習",null,null,0,0]
[3004,3.004,"動",4,null,"重","+","力",null,null,null,"＝",{"$f":"C245","v":"動"},null,null,0,0,null,null,3003,3.0030000000000001,"商",1,null,null,"+",null,null,null,null,"＝",null,null,null,0,0]
[3005,3.0049999999999999,"物",1,null,null,"+",null,null,null,null,"＝",null,null,null,0,0,null,null,3004,3.004,"動",4,null,"重","+","力",null,null,null,"＝","動",null,null,0,0]
[3006,3.0059999999999998,"開",1,null,null,"+",null,null,null,null,"＝",null,null,null,0,0,null,null,3005,3.0049999999999999,"物",1,null,null,"+",null,null,null,null,"＝",null,null,null,0,0]
[3007,3.0070000000000001,"族",1,null,null,"+",null,null,null,null,"＝",null,null,null,0,0,null,null,3006,3.0059999999999998,"開",1,null,null,"+",null,null,null,null,"＝",null,null,null,0,0]
[3008,3.008,"葉",1,null,null,"+",null,null,null,null,"＝",null,null,null,0,0,null,null,3007,3.0070000000000001,"族",1,null,null,"+",null,null,null,null,"＝",null,null,null,0,0]
[3009,3.0089999999999999,"実",1,null,null,"+",null,null,null,null,"＝",null,null,null,0,0,null,null,3008,3.008,"葉",1,null,null,"+",null,null,null,null,"＝",null,null,null,0,0]
[3010,3.01,"所",1,null,null,"+",null,null,null,null,"＝",null,null,null,0,0,null,null,3009,3.0089999999999999,"実",1,null,null,"+",null,null,null,null,"＝",null,null,null,0,0]
[3011,3.0110000000000001,"面",1,null,null,"+",null,null,null,null,"＝",null,null,null,0,0,null,null,3010,3.01,"所",1,null,null,"+",null,null,null,null,"＝",null,null,null,0,0]
[3012,3.012,"登",1,null,null,"+",null,null,null,null,"＝",null,null,null,0,0,null,null,3011,3.0110000000000001,"面",1,null,null,"+",null,null,null,null,"＝",null,null,null,0,0]
[3013,3.0129999999999999,"事",1,null,null,"+",null,null,null,null,"＝",null,null,null,0,0,null,null,3012,3.012,"登",1,null,null,"+",null,null,null,null,"＝",null,null,null,0,0]
[3014,3.0139999999999998,"館",1,null,null,"+",null,null,null,null,"＝",null,null,null,0,0,null,null,3013,3.0129999999999999,"事",1,null,null,"+",null,null,null,null,"＝",null,null,null,0,0]
[3015,3.0150000000000001,"号",1,null,null,"+",null,null,null,null,"＝",null,null,null,0,0,null,null,3014,3.0139999999999998,"館",1,null,null,"+",null,null,null,null,"＝",null,null,null,0,0]
[3016,3.016,"使",1,null,null,"+",null,null,null,null,"＝",null,null,null,0,0,null,null,3015,3.0150000000000001,"号",1,null,null,"+",null,null,null,null,"＝",null,null,null,0,0]
[{"$f":"B258*1000","v":3017},3.0169999999999999,"深",1,null,null,"+",null,null,null,null,"＝",null,null,null,{"$f":"IF(B258>N$1,0,D258)","v":0},{"$f":"IF(P258=2,B258,0)","v":0},null,null,3016,3.016,"使",1,null,null,"+",null,null,null,null,"＝",null,null,null,0,0]
[3018,3.0179999999999998,"意",2,null,"音","+","心",null,null,null,"＝",{"$f":"C259","v":"意"},null,null,0,0,null,null,3017,3.0169999999999999,"深",1,null,null,"+",null,null,null,null,"＝",null,null,null,0,0]
[3019,3.0190000000000001,"味",4,null,"口","+","未",null,null,null,"＝",{"$f":"C260","v":"味"},null,null,0,0,null,null,3018,3.0179999999999998,"意",2,null,"音","+","心",null,null,null,"＝","意",null,null,0,0]
[3020,3.02,"漢",1,null,null,null,null,null,null,null,null,null,null,null,0,0,null,null,3019,3.0190000000000001,"味",4,null,"口","+","未",null,null,null,"＝","味",null,null,0,0]
[3021,3.0209999999999999,"調",4,null,"言","+","周",null,null,null,"＝",{"$f":"C262","v":"調"},null,null,0,0,null,null,3020,3.02,"漢",1,null,null,null,null,null,null,null,null,null,null,null,0,0]
[3022,3.0219999999999998,"由",1,null,null,null,null,null,null,null,null,null,null,null,0,0,null,null,3021,3.0209999999999999,"調",4,null,"言","+","周",null,null,null,"＝","調",null,null,0,0]
[3023,3.0230000000000001,"温",1,null,null,null,null,null,null,null,null,null,null,null,0,0,null,null,3022,3.0219999999999998,"由",1,null,null,null,null,null,null,null,null,null,null,null,0,0]
[3024,3.024,"酒",1,null,null,null,null,null,null,null,null,null,null,null,0,0,null,null,3023,3.0230000000000001,"温",1,null,null,null,null,null,null,null,null,null,null,null,0,0]
[3025,3.0249999999999999,"問",2,null,"門","+","口",null,null,null,"＝",{"$f":"C266","v":"問"},null,null,0,0,null,null,3024,3.024,"酒",1,null,null,null,null,null,null,null,null,null,null,null,0,0]
[3026,3.0259999999999998,"題",1,null,null,null,null,null,null,null,null,null,null,null,0,0,null,null,3025,3.0249999999999999,"問",2,null,"門","+","口",null,null,null,"＝","問",null,null,0,0]
[3027,3.0270000000000001,"章",2,null,"立","+","早",null,null,null,"＝",{"$f":"C268","v":"章"},null,null,0,0,null,null,3026,3.0259999999999998,"題",1,null,null,null,null,null,null,null,null,null,null,null,0,0]
[3028,3.028,"平",1,null,null,null,null,null,null,null,null,null,null,null,0,0,null,null,3027,3.0270000000000001,"章",2,null,"立","+","早",null,null,null,"＝","章",null,null,0,0]
[3029,3.0289999999999999,"次",1,null,null,null,null,null,null,null,null,null,null,null,0,0,null,null,3028,3.028,"平",1,null,null,null,null,null,null,null,null,null,null,null,0,0]
[3030,3.03,"昔",1,null,null,null,null,null,null,null,null,null,null,null,0,0,null,null,3029,3.0289999999999999,"次",1,null,null,null,null,null,null,null,null,null,null,null,0,0]
[3031,3.0310000000000001,"表",1,null,null,null,null,null,null,null,null,null,null,null,0,0,null,null,3030,3.03,"昔",1,null,null,null,null,null,null,null,null,null,null,null,0,0]
[3032,3.032,"発",1,null,null,null,null,null,null,null,null,null,null,null,0,0,null,null,3031,3.0310000000000001,"表",1,null,null,null,null,null,null,null,null,null,null,null,0,0]
[3033,3.0329999999999999,"県",1,null,null,null,null,null,null,null,null,null,null,null,0,0,null,null,3032,3.032,"発",1,null,null,null,null,null,null,null,null,null,null,null,0,0]
[3034,3.0339999999999998,"有",1,null,null,null,null,null,null,null,null,null,null,null,0,0,null,null,3033,3.0329999999999999,"県",1,null,null,null,null,null,null,null,null,null,null,null,0,0]
[3035,3.0350000000000001,"氷",1,null,null,null,null,null,null,null,null,null,null,null,0,0,null,null,3034,3.0339999999999998,"有",1,null,null,null,null,null,null,null,null,null,null,null,0,0]
[3036,3.036,"秒",3,null,"ノ","+","木","+","少",null,"＝",{"$f":"C277","v":"秒"},null,null,0,0,null,null,3035,3.0350000000000001,"氷",1,null,null,null,null,null,null,null,null,null,null,null,0,0]
[3037,3.0369999999999999,"農",1,null,null,null,null,null,null,null,null,null,null,null,0,0,null,null,3036,3.036,"秒",3,null,"ノ","+","木","+","少",null,"＝","秒",null,null,0,0]
[3038,3.0379999999999998,"球",4,null,"王","+","求",null,null,null,"＝",{"$f":"C279","v":"球"},null,null,0,0,null,null,3037,3.0369999999999999,"農",1,null,null,null,null,null,null,null,null,null,null,null,0,0]
[3039,3.0390000000000001,"局",1,null,null,null,null,null,null,null,null,null,null,null,0,0,null,null,3038,3.0379999999999998,"球",4,null,"王","+","求",null,null,null,"＝","球",null,null,0,0]
[3040,3.04,"決",1,null,null,null,null,null,null,null,null,null,null,null,0,0,null,null,3039,3.0390000000000001,"局",1,null,null,null,null,null,null,null,null,null,null,null,0,0]
[3041,3.0409999999999999,"整",1,null,null,null,null,null,null,null,null,null,null,null,0,0,null,null,3040,3.04,"決",1,null,null,null,null,null,null,null,null,null,null,null,0,0]
[3042,3.0419999999999998,"相",2,null,"木","+","目",null,null,null,"＝",{"$f":"C283","v":"相"},null,null,0,0,null,null,3041,3.0409999999999999,"整",1,null,null,null,null,null,null,null,null,null,null,null,0,0]
[3043,3.0430000000000001,"落",1,null,null,null,null,null,null,null,null,null,null,null,0,0,null,null,3042,3.0419999999999998,"相",2,null,"木","+","目",null,null,null,"＝","相",null,null,0,0]
[3044,3.044,"着",1,null,null,null,null,null,null,null,null,null,null,null,0,0,null,null,3043,3.0430000000000001,"落",1,null,null,null,null,null,null,null,null,null,null,null,0,0]
[3045,3.0449999999999999,"洋",1,null,null,null,null,null,null,null,null,null,null,null,0,0,null,null,3044,3.044,"着",1,null,null,null,null,null,null,null,null,null,null,null,0,0]
[3046,3.0459999999999998,"服",1,null,null,null,null,null,null,null,null,null,null,null,0,0,null,null,3045,3.0449999999999999,"洋",1,null,null,null,null,null,null,null,null,null,null,null,0,0]
[3047,3.0470000000000002,"遊",1,null,null,null,null,null,null,null,null,null,null,null,0,0,null,null,3046,3.0459999999999998,"服",1,null,null,null,null,null,null,null,null,null,null,null,0,0]
[3048,3.048,"全",1,null,null,null,null,null,null,null,null,null,null,null,0,0,null,null,3047,3.0470000000000002,"遊",1,null,null,null,null,null,null,null,null,null,null,null,0,0]
[3049,3.0489999999999999,"短",4,null,"矢","+","豆",null,null,null,"＝",{"$f":"C290","v":"短"},null,null,0,0,null,null,3048,3.048,"全",1,null,null,null,null,null,null,null,null,null,null,null,0,0]
[3050,3.05,"世",1,null,null,null,null,null,null,null,null,null,null,null,0,0,null,null,3049,3.0489999999999999,"短",4,null,"矢","+","豆",null,null,null,"＝","短",null,null,0,0]
[3051,3.0510000000000002,"界",1,null,null,null,null,null,null,null,null,null,null,null,0,0,null,null,3050,3.05,"世",1,null,null,null,null,null,null,null,null,null,null,null,0,0]
[3052,3.052,"横",2,null,"木","+","黄",null,null,null,"＝",{"$f":"C293","v":"横"},null,null,0,0,null,null,3051,3.0510000000000002,"界",1,null,null,null,null,null,null,null,null,null,null,null,0,0]
[3053,3.0529999999999999,"指",1,null,null,null,null,null,null,null,null,null,null,null,0,0,null,null,3052,3.052,"横",2,null,"木","+","黄",null,null,null,"＝","横",null,null,0,0]
[3054,3.0539999999999998,"鉄",4,null,"金","+","失",null,null,null,"＝",{"$f":"C295","v":"鉄"},null,null,0,0,null,null,3053,3.0529999999999999,"指",1,null,null,null,null,null,null,null,null,null,null,null,0,0]
[3055,3.0550000000000002,"安",1,null,null,null,null,null,null,null,null,null,null,null,0,0,null,null,3054,3.0539999999999998,"鉄",4,null,"金","+","失",null,null,null,"＝","鉄",null,null,0,0]
[3056,3.056,"定",1,null,null,null,null,null,null,null,null,null,null,null,0,0,null,null,3055,3.0550000000000002,"安",1,null,null,null,null,null,null,null,null,null,null,null,0,0]
[3057,3.0569999999999999,"様",1,null,null,null,null,null,null,null,null,null,null,null,0,0,null,null,3056,3.056,"定",1,null,null,null,null,null,null,null,null,null,null,null,0,0]
[3058,3.0579999999999998,"運",1,null,null,null,null,null,null,null,null,null,null,null,0,0,null,null,3057,3.0569999999999999,"様",1,null,null,null,null,null,null,null,null,null,null,null,0,0]
[3059,3.0590000000000002,"予",1,null,null,null,null,null,null,null,null,null,null,null,0,0,null,null,3058,3.0579999999999998,"運",1,null,null,null,null,null,null,null,null,null,null,null,0,0]
[3060,3.06,"返",1,null,null,null,null,null,null,null,null,null,null,null,0,0,null,null,3059,3.0590000000000002,"予",1,null,null,null,null,null,null,null,null,null,null,null,0,0]
[3061,3.0609999999999999,"緑",1,null,null,null,null,null,null,null,null,null,null,null,0,0,null,null,3060,3.06,"返",1,null,null,null,null,null,null,null,null,null,null,null,0,0]
[3062,3.0619999999999998,"送",1,null,null,null,null,null,null,null,null,null,null,null,0,0,null,null,3061,3.0609999999999999,"緑",1,null,null,null,null,null,null,null,null,null,null,null,0,0]
[3063,3.0630000000000002,"住",2,null,"イ","+","主",null,null,null,"＝",{"$f":"C304","v":"住"},null,null,0,0,null,null,3062,3.0619999999999998,"送",1,null,null,null,null,null,null,null,null,null,null,null,0,0]
[3064,3.0640000000000001,"感",1,null,null,null,null,null,null,null,null,null,null,null,0,0,null,null,3063,3.0630000000000002,"住",2,null,"イ","+","主",null,null,null,"＝","住",null,null,0,0]
[3065,3.0649999999999999,"想",2,null,"相","+","心",null,null,null,"＝",{"$f":"C306","v":"想"},null,null,0,0,null,null,3064,3.0640000000000001,"感",1,null,null,null,null,null,null,null,null,null,null,null,0,0]
[3066,3.0659999999999998,"具",1,null,null,null,null,null,null,null,null,null,null,null,0,0,null,null,3065,3.0649999999999999,"想",2,null,"相","+","心",null,null,null,"＝","想",null,null,0,0]
[3067,3.0670000000000002,"悪",1,null,null,null,null,null,null,null,null,null,null,null,0,0,null,null,3066,3.0659999999999998,"具",1,null,null,null,null,null,null,null,null,null,null,null,0,0]
[3068,3.0680000000000001,"拾　　",1,null,null,null,null,null,null,null,null,null,null,null,0,0,null,null,3067,3.0670000000000002,"悪",1,null,null,null,null,null,null,null,null,null,null,null,0,0]
[3069,3.069,"持",1,null,null,null,null,null,null,null,null,null,null,null,0,0,null,null,3068,3.0680000000000001,"拾　　",1,null,null,null,null,null,null,null,null,null,null,null,0,0]
[3070,3.07,"向",1,null,null,null,null,null,null,null,null,null,null,null,0,0,null,null,3069,3.069,"持",1,null,null,null,null,null,null,null,null,null,null,null,0,0]
[3071,3.0710000000000002,"坂",2,null,"土","+","反",null,null,null,"＝",{"$f":"C312","v":"坂"},null,null,0,0,null,null,3070,3.07,"向",1,null,null,null,null,null,null,null,null,null,null,null,0,0]
[3072,3.0720000000000001,"悲",4,null,"非","+","心",null,null,null,"＝",{"$f":"C313","v":"悲"},null,null,0,0,null,null,3071,3.0710000000000002,"坂",2,null,"土","+","反",null,null,null,"＝","坂",null,null,0,0]
[3075,3.0750000000000002,"岸",1,null,null,"+",null,null,null,null,"＝",null,null,null,0,0,null,null,3072,3.0720000000000001,"悲",4,null,"非","+","心",null,null,null,"＝","悲",null,null,0,0]
[3076,3.0760000000000001,"路",1,null,null,"+",null,null,null,null,"＝",null,null,null,0,0,null,null,3075,3.0750000000000002,"岸",1,null,null,"+",null,null,null,null,"＝",null,null,null,0,0]
[3076,3.0760000000000001,"陽",1,null,null,"+",null,null,null,null,"＝",null,null,null,0,0,null,null,3076,3.0760000000000001,"路",1,null,null,"+",null,null,null,null,"＝",null,null,null,0,0]
[3077,3.077,"泳",1,null,null,"+",null,null,null,null,"＝",null,null,null,0,0,null,null,3076,3.0760000000000001,"陽",1,null,null,"+",null,null,null,null,"＝",null,null,null,0,0]
[3077,3.077,"区",1,null,null,"+",null,null,null,null,"＝",null,null,null,0,0,null,null,3077,3.077,"泳",1,null,null,"+",null,null,null,null,"＝",null,null,null,0,0]
[3078,3.0779999999999998,"練",2,null,"糸","+","東",null,null,null,"＝",{"$f":"C319","v":"練"},null,null,0,0,null,null,3077,3.077,"区",1,null,null,"+",null,null,null,null,"＝",null,null,null,0,0]
[3079,3.0790000000000002,"助",1,null,null,null,null,null,null,null,null,null,null,null,0,0,null,null,3078,3.0779999999999998,"練",2,null,"糸","+","東",null,null,null,"＝","練",null,null,0,0]
[3080,3.08,"童",2,null,"立","+","里",null,null,null,"＝",{"$f":"C321","v":"童"},null,null,0,0,null,null,3079,3.0790000000000002,"助",1,null,null,null,null,null,null,null,null,null,null,null,0,0]
[{"$f":"B322*1000","v":3081},3.081,"申",1,null,null,null,null,null,null,null,null,null,null,null,{"$f":"IF(B322>N$1,0,D322)","v":0},{"$f":"IF(P322=2,B322,0)","v":0},null,null,3080,3.08,"童",2,null,"立","+","里",null,null,null,"＝","童",null,null,0,0]
[3082,3.0819999999999999,"仕",1,null,null,null,null,null,null,null,null,null,null,null,0,0,null,null,3081,3.081,"申",1,null,null,null,null,null,null,null,null,null,null,null,0,0]
[3083,3.0830000000000002,"身",1,null,null,null,null,null,null,null,null,null,null,null,0,0,null,null,3082,3.0819999999999999,"仕",1,null,null,null,null,null,null,null,null,null,null,null,0,0]
[3084,3.0840000000000001,"品",1,null,null,null,null,null,null,null,null,null,null,null,0,0,null,null,3083,3.0830000000000002,"身",1,null,null,null,null,null,null,null,null,null,null,null,0,0]
[3085,3.085,"客",1,null,null,null,null,null,null,null,null,null,null,null,0,0,null,null,3084,3.0840000000000001,"品",1,null,null,null,null,null,null,null,null,null,null,null,0,0]
[3086,3.0859999999999999,"終　　　",2,null,"糸","+","冬",null,null,null,"＝",{"$f":"C327","v":"終　　　"},null,null,0,0,null,null,3085,3.085,"客",1,null,null,null,null,null,null,null,null,null,null,null,0,0]
[3087,3.0870000000000002,"銀",1,null,null,null,null,null,null,null,null,null,null,null,0,0,null,null,3086,3.0859999999999999,"終　　　",2,null,"糸","+","冬",null,null,null,"＝","終　　　",null,null,0,0]
[3088,3.0880000000000001,"去",2,null,"土","+","ム",null,null,null,"＝",{"$f":"C329","v":"去"},null,null,0,0,null,null,3087,3.0870000000000002,"銀",1,null,null,null,null,null,null,null,null,null,null,null,0,0]
[3089,3.089,"筆",1,null,null,null,null,null,null,null,null,"　",null,null,0,0,null,null,3088,3.0880000000000001,"去",2,null,"土","+","ム",null,null,null,"＝","去",null,null,0,0]
[3090,3.09,"式",1,null,null,null,null,null,null,null,null,null,null,null,0,0,null,null,3089,3.089,"筆",1,null,null,null,null,null,null,null,null,"　",null,null,0,0]
[3091,3.0910000000000002,"植",5,null,"木","+","直",null,null,null,"＝",{"$f":"C332","v":"植"},null,null,0,0,null,null,3090,3.09,"式",1,null,null,null,null,null,null,null,null,null,null,null,0,0]
[3092,3.0920000000000001,"集　",1,null,null,"+",null,null,null,null,"＝",null,null,null,0,0,null,null,3091,3.0910000000000002,"植",5,null,"木","+","直",null,null,null,"＝","植",null,null,0,0]
[3093,3.093,"化",2,null,"イ","+","ヒ",null,null,null,"＝",{"$f":"C334","v":"化"},null,null,0,0,null,null,3092,3.0920000000000001,"集　",1,null,null,"+",null,null,null,null,"＝",null,null,null,0,0]
[3094,3.0939999999999999,"死",1,null,null,"+",null,null,null,null,"＝",null,null,null,0,0,null,null,3093,3.093,"化",2,null,"イ","+","ヒ",null,null,null,"＝","化",null,null,0,0]
[3095,3.0950000000000002,"都",1,null,null,"+",null,null,null,null,"＝",null,null,null,0,0,null,null,3094,3.0939999999999999,"死",1,null,null,"+",null,null,null,null,"＝",null,null,null,0,0]
[3096,3.0960000000000001,"両",1,null,null,"+",null,null,null,null,"＝",null,null,null,0,0,null,null,3095,3.0950000000000002,"都",1,null,null,"+",null,null,null,null,"＝",null,null,null,0,0]
[3097,3.097,"負",1,null,null,null,null,null,null,null,"＝",null,null,null,0,0,null,null,3096,3.0960000000000001,"両",1,null,null,"+",null,null,null,null,"＝",null,null,null,0,0]
[3098,3.0979999999999999,"対",1,null,null,null,null,null,null,null,null,null,null,null,0,0,null,null,3097,3.097,"負",1,null,null,null,null,null,null,null,"＝",null,null,null,0,0]
[3099,3.0990000000000002,"屋",1,null,null,null,null,null,null,null,null,null,null,null,0,0,null,null,3098,3.0979999999999999,"対",1,null,null,null,null,null,null,null,null,null,null,null,0,0]
[3100,3.1,"員",2,null,"口","+","貝",null,null,null,"＝",{"$f":"C341","v":"員"},null,null,0,0,null,null,3099,3.0990000000000002,"屋",1,null,null,null,null,null,null,null,null,null,null,null,0,0]
[3101,3.101,"写",1,null,null,null,null,null,null,null,null,null,null,null,0,0,null,null,3100,3.1,"員",2,null,"口","+","貝",null,null,null,"＝","員",null,null,0,0]
[3102,3.1019999999999999,"真",1,null,null,null,null,null,null,null,null,null,null,null,0,0,null,null,3101,3.101,"写",1,null,null,null,null,null,null,null,null,null,null,null,0,0]
[3103,3.1030000000000002,"祭",1,null,null,null,null,null,null,null,null,null,null,null,0,0,null,null,3102,3.1019999999999999,"真",1,null,null,null,null,null,null,null,null,null,null,null,0,0]
[3104,3.1040000000000001,"部",1,null,null,null,null,null,null,null,null,null,null,null,0,0,null,null,3103,3.1030000000000002,"祭",1,null,null,null,null,null,null,null,null,null,null,null,0,0]
[3105,3.105,"係",1,null,null,null,null,null,null,null,null,null,null,null,0,0,null,null,3104,3.1040000000000001,"部",1,null,null,null,null,null,null,null,null,null,null,null,0,0]
[3106,3.1059999999999999,"板",1,null,null,null,null,null,null,null,null,null,null,null,0,0,null,null,3105,3.105,"係",1,null,null,null,null,null,null,null,null,null,null,null,0,0]
[3107,3.1070000000000002,"柱",2,null,"木","+","主",null,null,null,"＝",{"$f":"C348","v":"柱"},null,null,0,0,null,null,3106,3.1059999999999999,"板",1,null,null,null,null,null,null,null,null,null,null,null,0,0]
[3108,3.1080000000000001,"油",1,null,null,null,null,null,null,null,null,null,null,null,0,0,null,null,3107,3.1070000000000002,"柱",2,null,"木","+","主",null,null,null,"＝","柱",null,null,0,0]
[3109,3.109,"港",1,null,null,null,null,null,null,null,null,null,null,null,0,0,null,null,3108,3.1080000000000001,"油",1,null,null,null,null,null,null,null,null,null,null,null,0,0]
[3110,3.11,"起",1,null,null,null,null,null,null,null,null,null,null,null,0,0,null,null,3109,3.109,"港",1,null,null,null,null,null,null,null,null,null,null,null,0,0]
[3111,3.1110000000000002,"列",1,null,null,null,null,null,null,null,null,null,null,null,0,0,null,null,3110,3.11,"起",1,null,null,null,null,null,null,null,null,null,null,null,0,0]
[3112,3.1120000000000001,"乗",1,null,null,null,null,null,null,null,null,null,null,null,0,0,null,null,3111,3.1110000000000002,"列",1,null,null,null,null,null,null,null,null,null,null,null,0,0]
[3113,3.113,"急",1,null,null,null,null,null,null,null,null,null,null,null,0,0,null,null,3112,3.1120000000000001,"乗",1,null,null,null,null,null,null,null,null,null,null,null,0,0]
[3114,3.1139999999999999,"追",1,null,null,null,null,null,null,null,null,null,null,null,0,0,null,null,3113,3.113,"急",1,null,null,null,null,null,null,null,null,null,null,null,0,0]
[3115,3.1150000000000002,"血",1,null,null,null,null,null,null,null,null,null,null,null,0,0,null,null,3114,3.1139999999999999,"追",1,null,null,null,null,null,null,null,null,null,null,null,0,0]
[3116,3.1160000000000001,"暗",2,null,"木","+","主",null,null,null,"＝",{"$f":"C357","v":"暗"},null,null,0,0,null,null,3115,3.1150000000000002,"血",1,null,null,null,null,null,null,null,null,null,null,null,0,0]
[3117,3.117,"橋",1,null,null,null,null,null,null,null,null,null,null,null,0,0,null,null,3116,3.1160000000000001,"暗",2,null,"木","+","主",null,null,null,"＝","暗",null,null,0,0]
[3118,3.1179999999999999,"暑",2,null,"日","+","者",null,null,null,"＝",{"$f":"C359","v":"暑"},null,null,0,0,null,null,3117,3.117,"橋",1,null,null,null,null,null,null,null,null,null,null,null,0,0]
[3119,3.1189999999999998,"寒",1,null,null,null,null,null,null,null,null,null,null,null,0,0,null,null,3118,3.1179999999999999,"暑",2,null,"日","+","者",null,null,null,"＝","暑",null,null,0,0]
[3120,3.12,"軽",1,null,null,null,null,null,null,null,null,null,null,null,0,0,null,null,3119,3.1189999999999998,"寒",1,null,null,null,null,null,null,null,null,null,null,null,0,0]
[3121,3.121,"命",1,null,null,null,null,null,null,null,null,null,null,null,0,0,null,null,3120,3.12,"軽",1,null,null,null,null,null,null,null,null,null,null,null,0,0]
[3122,3.1219999999999999,"第",1,null,null,null,null,null,null,null,null,null,null,null,0,0,null,null,3121,3.121,"命",1,null,null,null,null,null,null,null,null,null,null,null,0,0]
[3123,3.1230000000000002,"主",1,null,null,null,null,null,null,null,null,null,null,null,0,0,null,null,3122,3.1219999999999999,"第",1,null,null,null,null,null,null,null,null,null,null,null,0,0]
[3124,3.1240000000000001,"州",1,null,null,null,null,null,null,null,null,null,null,null,0,0,null,null,3123,3.1230000000000002,"主",1,null,null,null,null,null,null,null,null,null,null,null,0,0]
[3125,3.125,"根",1,null,null,null,null,null,null,null,null,null,null,null,0,0,null,null,3124,3.1240000000000001,"州",1,null,null,null,null,null,null,null,null,null,null,null,0,0]
[3126,3.1259999999999999,"流",1,null,null,null,null,null,null,null,null,null,null,null,0,0,null,null,3125,3.125,"根",1,null,null,null,null,null,null,null,null,null,null,null,0,0]
[3127,3.1269999999999998,"荷",1,null,null,null,null,null,null,null,null,null,null,null,0,0,null,null,3126,3.1259999999999999,"流",1,null,null,null,null,null,null,null,null,null,null,null,0,0]
[3128,3.1280000000000001,"君",1,null,null,null,null,null,null,null,null,null,null,null,0,0,null,null,3127,3.1269999999999998,"荷",1,null,null,null,null,null,null,null,null,null,null,null,0,0]
[3129,3.129,"守",1,null,null,null,null,null,null,null,null,null,null,null,0,0,null,null,3128,3.1280000000000001,"君",1,null,null,null,null,null,null,null,null,null,null,null,0,0]
[3130,3.13,"進",1,null,null,null,null,null,null,null,null,null,null,null,0,0,null,null,3129,3.129,"守",1,null,null,null,null,null,null,null,null,null,null,null,0,0]
[3131,3.1310000000000002,"役",1,null,null,null,null,null,null,null,null,null,null,null,0,0,null,null,3130,3.13,"進",1,null,null,null,null,null,null,null,null,null,null,null,0,0]
[3132,3.1320000000000001,"他",1,null,null,null,null,null,null,null,null,null,null,null,0,0,null,null,3131,3.1310000000000002,"役",1,null,null,null,null,null,null,null,null,null,null,null,0,0]
[3133,3.133,"豆",1,null,null,null,null,null,null,null,null,null,null,null,0,0,null,null,3132,3.1320000000000001,"他",1,null,null,null,null,null,null,null,null,null,null,null,0,0]
[3134,3.1339999999999999,"者",1,null,null,null,null,null,null,null,null,null,null,null,0,0,null,null,3133,3.133,"豆",1,null,null,null,null,null,null,null,null,null,null,null,0,0]
[3135,3.1349999999999998,"育",1,null,null,null,null,null,null,null,null,null,null,null,0,0,null,null,3134,3.1339999999999999,"者",1,null,null,null,null,null,null,null,null,null,null,null,0,0]
[3136,3.1360000000000001,"消",1,null,null,null,null,null,null,null,null,null,null,null,0,0,null,null,3135,3.1349999999999998,"育",1,null,null,null,null,null,null,null,null,null,null,null,0,0]
[3137,3.137,"取",1,null,null,null,null,null,null,null,null,null,null,null,0,0,null,null,3136,3.1360000000000001,"消",1,null,null,null,null,null,null,null,null,null,null,null,0,0]
[3138,3.1379999999999999,"期",1,null,null,null,null,null,null,null,null,null,null,null,0,0,null,null,3137,3.137,"取",1,null,null,null,null,null,null,null,null,null,null,null,0,0]
[3139.0000000000005,3.1390000000000002,"畑",2,null,"火","+","田",null,null,null,"＝",{"$f":"C380","v":"畑"},null,null,0,0,null,null,3138,3.1379999999999999,"期",1,null,null,null,null,null,null,null,null,null,null,null,0,0]
[3140,3.14,"福",1,null,null,null,null,null,null,null,null,null,null,null,0,0,null,null,3139.0000000000005,3.1390000000000002,"畑",2,null,"火","+","田",null,null,null,"＝","畑",null,null,0,0]
[3141,3.141,"苦",1,null,null,null,null,null,null,null,null,null,null,null,0,0,null,null,3140,3.14,"福",1,null,null,null,null,null,null,null,null,null,null,null,0,0]
[3142,3.1419999999999999,"倍",1,null,null,null,null,null,null,null,null,null,null,null,0,0,null,null,3141,3.141,"苦",1,null,null,null,null,null,null,null,null,null,null,null,0,0]
[3143,3.1429999999999998,"談",3,null,"言","+","火","+","火",null,"＝",{"$f":"C384","v":"談"},null,null,0,0,null,null,3142,3.1419999999999999,"倍",1,null,null,null,null,null,null,null,null,null,null,null,0,0]
[3144,3.1440000000000001,"鼻",1,null,null,null,null,null,null,null,null,null,null,null,0,0,null,null,3143,3.1429999999999998,"談",3,null,"言","+","火","+","火",null,"＝","談",null,null,0,0]
[{"$f":"B386*1000","v":3145},3.145,"歯",1,null,null,null,null,null,null,null,null,null,null,null,{"$f":"IF(B386>N$1,0,D386)","v":0},{"$f":"IF(P386=2,B386,0)","v":0},null,null,3144,3.1440000000000001,"鼻",1,null,null,null,null,null,null,null,null,null,null,null,0,0]
[3146,3.1459999999999999,"階",1,null,null,null,null,null,null,null,null,null,null,null,0,0,null,null,3145,3.145,"歯",1,null,null,null,null,null,null,null,null,null,null,null,0,0]
[3147,3.1469999999999998,"央",1,null,null,null,null,null,null,null,null,null,null,null,0,0,null,null,3146,3.1459999999999999,"階",1,null,null,null,null,null,null,null,null,null,null,null,0,0]
[3148,3.1480000000000001,"旅",1,null,null,null,null,null,null,null,null,null,null,null,0,0,null,null,3147,3.1469999999999998,"央",1,null,null,null,null,null,null,null,null,null,null,null,0,0]
[3149,3.149,"委",3,null,"ノ","+","木","+","女",null,"＝",{"$f":"C390","v":"委"},null,null,0,0,null,null,3148,3.1480000000000001,"旅",1,null,null,null,null,null,null,null,null,null,null,null,0,0]
[3150,3.15,"級",1,null,null,null,null,null,null,null,null,null,null,null,0,0,null,null,3149,3.149,"委",3,null,"ノ","+","木","+","女",null,"＝","委",null,null,0,0]
[3151,3.1509999999999998,"昭",3,null,"日","+","刀","+","口",null,"＝",{"$f":"C392","v":"昭"},null,null,0,0,null,null,3150,3.15,"級",1,null,null,null,null,null,null,null,null,null,null,null,0,0]
[3152,3.1520000000000001,"和",3,null,"ノ","+","木","+","口",null,"＝",{"$f":"C393","v":"和"},null,null,0,0,null,null,3151,3.1509999999999998,"昭",3,null,"日","+","刀","+","口",null,"＝","昭",null,null,0,0]
[3153,3.153,"駅",1,null,null,null,null,null,null,null,null,null,null,null,0,0,null,null,3152,3.1520000000000001,"和",3,null,"ノ","+","木","+","口",null,"＝","和",null,null,0,0]
[3154,3.1539999999999999,"業",1,null,null,null,null,null,null,null,null,null,null,null,0,0,null,null,3153,3.153,"駅",1,null,null,null,null,null,null,null,null,null,null,null,0,0]
[3155,3.1549999999999998,"皮",1,null,null,null,null,null,null,null,null,null,null,null,0,0,null,null,3154,3.1539999999999999,"業",1,null,null,null,null,null,null,null,null,null,null,null,0,0]
[3156,3.1560000000000001,"皿",1,null,null,null,null,null,null,null,null,null,null,null,0,0,null,null,3155,3.1549999999999998,"皮",1,null,null,null,null,null,null,null,null,null,null,null,0,0]
[3157,3.157,"息",2,null,"自","+","心",null,null,null,"＝",{"$f":"C398","v":"息"},null,null,0,0,null,null,3156,3.1560000000000001,"皿",1,null,null,null,null,null,null,null,null,null,null,null,0,0]
[3158,3.1579999999999999,"美",1,null,null,null,null,null,null,null,null,null,null,null,0,0,null,null,3157,3.157,"息",2,null,"自","+","心",null,null,null,"＝","息",null,null,0,0]
[3159,3.1589999999999998,"転",1,null,null,null,null,null,null,null,null,null,null,null,0,0,null,null,3158,3.1579999999999999,"美",1,null,null,null,null,null,null,null,null,null,null,null,0,0]
[3160,3.16,"病",1,null,null,null,null,null,null,null,null,null,null,null,0,0,null,null,3159,3.1589999999999998,"転",1,null,null,null,null,null,null,null,null,null,null,null,0,0]
[3161,3.161,"医",1,null,null,null,null,null,null,null,null,null,null,null,0,0,null,null,3160,3.16,"病",1,null,null,null,null,null,null,null,null,null,null,null,0,0]
[3162,3.1619999999999999,"薬",1,null,null,null,null,null,null,null,null,null,null,null,0,0,null,null,3161,3.161,"医",1,null,null,null,null,null,null,null,null,null,null,null,0,0]
[3163,3.1629999999999998,"飲",1,null,null,null,null,null,null,null,null,null,null,null,0,0,null,null,3162,3.1619999999999999,"薬",1,null,null,null,null,null,null,null,null,null,null,null,0,0]
[3164,3.1640000000000001,"重",1,null,null,null,null,null,null,null,null,null,null,null,0,0,null,null,3163,3.1629999999999998,"飲",1,null,null,null,null,null,null,null,null,null,null,null,0,0]
[3165,3.165,"配",1,null,null,null,null,null,null,null,null,null,null,null,0,0,null,null,3164,3.1640000000000001,"重",1,null,null,null,null,null,null,null,null,null,null,null,0,0]
[3166,3.1659999999999999,"度",1,null,null,null,null,null,null,null,null,null,null,null,0,0,null,null,3165,3.165,"配",1,null,null,null,null,null,null,null,null,null,null,null,0,0]
[3167,3.1669999999999998,"幸",1,null,null,null,null,null,null,null,null,null,null,null,0,0,null,null,3166,3.1659999999999999,"度",1,null,null,null,null,null,null,null,null,null,null,null,0,0]
[3168,3.1680000000000001,"始",2,null,"女","+","台",null,null,null,"＝",{"$f":"C409","v":"始"},null,null,0,0,null,null,3167,3.1669999999999998,"幸",1,null,null,null,null,null,null,null,null,null,null,null,0,0]
[3169,3.169,"島",1,null,null,null,null,null,null,null,null,null,null,null,0,0,null,null,3168,3.1680000000000001,"始",2,null,"女","+","台",null,null,null,"＝","始",null,null,0,0]
[3170,3.17,"待",3,null,"ノ","+","イ","+","寺",null,"＝",{"$f":"C411","v":"待"},null,null,0,0,null,null,3169,3.169,"島",1,null,null,null,null,null,null,null,null,null,null,null,0,0]
[3171,3.1709999999999998,"受",1,null,null,null,null,null,null,null,null,null,null,null,0,0,null,null,3170,3.17,"待",3,null,"ノ","+","イ","+","寺",null,"＝","待",null,null,0,0]
[3172,3.1720000000000002,"代",1,null,null,null,null,null,null,null,null,null,null,null,0,0,null,null,3171,3.1709999999999998,"受",1,null,null,null,null,null,null,null,null,null,null,null,0,0]
[3173,3.173,"曲",1,null,null,null,null,null,null,null,null,null,null,null,0,0,null,null,3172,3.1720000000000002,"代",1,null,null,null,null,null,null,null,null,null,null,null,0,0]
[3174,3.1739999999999999,"投",1,null,null,null,null,null,null,null,null,null,null,null,0,0,null,null,3173,3.173,"曲",1,null,null,null,null,null,null,null,null,null,null,null,0,0]
[3175,3.1749999999999998,"炭",1,null,null,null,null,null,null,null,null,null,null,null,0,0,null,null,3174,3.1739999999999999,"投",1,null,null,null,null,null,null,null,null,null,null,null,0,0]
[3176,3.1760000000000002,"庫",1,null,null,null,null,null,null,null,null,null,null,null,0,0,null,null,3175,3.1749999999999998,"炭",1,null,null,null,null,null,null,null,null,null,null,null,0,0]
[3177,3.177,"羊",1,null,null,null,null,null,null,null,null,null,null,null,0,0,null,null,3176,3.1760000000000002,"庫",1,null,null,null,null,null,null,null,null,null,null,null,0,0]
[3178,3.1779999999999999,"勝",1,null,null,null,null,null,null,null,null,null,null,null,0,0,null,null,3177,3.177,"羊",1,null,null,null,null,null,null,null,null,null,null,null,0,0]
[3179,3.1789999999999998,"宿",1,null,null,null,null,null,null,null,null,null,null,null,0,0,null,null,3178,3.1779999999999999,"勝",1,null,null,null,null,null,null,null,null,null,null,null,0,0]
[3180,3.18,"丁",1,null,null,null,null,null,null,null,null,null,null,null,0,0,null,null,3179,3.1789999999999998,"宿",1,null,null,null,null,null,null,null,null,null,null,null,0,0]
[3181,3.181,"帳",1,null,null,null,null,null,null,null,null,null,null,null,0,0,null,null,3180,3.18,"丁",1,null,null,null,null,null,null,null,null,null,null,null,0,0]
[3182,3.1819999999999999,"宮",1,null,null,null,null,null,null,null,null,null,null,null,0,0,null,null,3181,3.181,"帳",1,null,null,null,null,null,null,null,null,null,null,null,0,0]
[3183,3.1829999999999998,"院",1,null,null,null,null,null,null,null,null,null,null,null,0,0,null,null,3182,3.1819999999999999,"宮",1,null,null,null,null,null,null,null,null,null,null,null,0,0]
[3184,3.1840000000000002,"笛",2,null,"竹","+","由",null,null,null,"＝",{"$f":"C425","v":"笛"},null,null,0,0,null,null,3183,3.1829999999999998,"院",1,null,null,null,null,null,null,null,null,null,null,null,0,0]
[3185,3.1850000000000001,"礼",1,null,null,null,null,null,null,null,null,null,null,null,0,0,null,null,3184,3.1840000000000002,"笛",2,null,"竹","+","由",null,null,null,"＝","笛",null,null,0,0]
[3186,3.1859999999999999,"研",1,null,null,null,null,null,null,null,null,null,null,null,0,0,null,null,3185,3.1850000000000001,"礼",1,null,null,null,null,null,null,null,null,null,null,null,0,0]
[3187,3.1869999999999998,"究",1,null,null,null,null,null,null,null,null,null,null,null,0,0,null,null,3186,3.1859999999999999,"研",1,null,null,null,null,null,null,null,null,null,null,null,0,0]
[3188,3.1880000000000002,"庭",1,null,null,null,null,null,null,null,null,null,null,null,0,0,null,null,3187,3.1869999999999998,"究",1,null,null,null,null,null,null,null,null,null,null,null,0,0]
[3189,3.1890000000000001,"等",2,null,"竹","+","寺",null,null,null,"＝",{"$f":"C430","v":"等"},null,null,0,0,null,null,3188,3.1880000000000002,"庭",1,null,null,null,null,null,null,null,null,null,null,null,0,0]
[3190,3.19,"湖",1,null,null,null,null,null,null,null,null,null,null,null,0,0,null,null,3189,3.1890000000000001,"等",2,null,"竹","+","寺",null,null,null,"＝","等",null,null,0,0]
[3191,3.1909999999999998,"注",1,null,null,null,null,null,null,null,null,null,null,null,0,0,null,null,3190,3.19,"湖",1,null,null,null,null,null,null,null,null,null,null,null,0,0]
[3192,3.1920000000000002,"反",1,null,null,null,null,null,null,null,null,null,null,null,0,0,null,null,3191,3.1909999999999998,"注",1,null,null,null,null,null,null,null,null,null,null,null,0,0]
[3193,3.1930000000000001,"波",1,null,null,null,null,null,null,null,null,null,null,null,0,0,null,null,3192,3.1920000000000002,"反",1,null,null,null,null,null,null,null,null,null,null,null,0,0]
[3194,3.194,"勉",1,null,null,null,null,null,null,null,null,null,null,null,0,0,null,null,3193,3.1930000000000001,"波",1,null,null,null,null,null,null,null,null,null,null,null,0,0]
[3195,3.1949999999999998,"放",1,null,null,null,null,null,null,null,null,null,null,null,0,0,null,null,3194,3.194,"勉",1,null,null,null,null,null,null,null,null,null,null,null,0,0]
[3196,3.1960000000000002,"打",1,null,null,null,null,null,null,null,null,null,null,null,0,0,null,null,3195,3.1949999999999998,"放",1,null,null,null,null,null,null,null,null,null,null,null,0,0]
[3197,3.1970000000000001,"速",1,null,null,null,null,null,null,null,null,null,null,null,0,0,null,null,3196,3.1960000000000002,"打",1,null,null,null,null,null,null,null,null,null,null,null,0,0]
[3198,3.198,"神",1,null,null,null,null,null,null,null,null,null,null,null,0,0,null,null,3197,3.1970000000000001,"速",1,null,null,null,null,null,null,null,null,null,null,null,0,0]
[3199,3.1989999999999998,"箱",2,null,"竹","+","相",null,null,null,"＝",{"$f":"C440","v":"箱"},null,null,0,0,null,null,3198,3.198,"神",1,null,null,null,null,null,null,null,null,null,null,null,0,0]
[3200,3.2,"湯",1,null,null,null,null,null,null,null,null,null,null,null,0,0,null,null,3199,3.1989999999999998,"箱",2,null,"竹","+","相",null,null,null,"＝","箱",null,null,0,0]
[4001.0000000000005,4.0010000000000003,"信",2,null,"イ","+","言",null,null,null,"＝",{"$f":"C442","v":"信"},null,null,0,0,null,4001.0000000000005,3200,3.2,"湯",1,null,null,null,null,null,null,null,null,null,null,null,0,0]
[4002,4.0019999999999998,"達",1,null,null,null,null,null,null,null,null,null,null,null,0,0,null,4002,4001.0000000000005,4.0010000000000003,"信",2,null,"イ","+","言",null,null,null,"＝","信",null,null,0,0]
[4003,4.0030000000000001,"飛",1,null,null,null,null,null,null,null,null,null,null,null,0,0,null,4003,4002,4.0019999999999998,"達",1,null,null,null,null,null,null,null,null,null,null,null,0,0]
[4003.9999999999995,4.0039999999999996,"席",1,null,null,null,null,null,null,null,null,null,null,null,0,0,null,4003.9999999999995,4003,4.0030000000000001,"飛",1,null,null,null,null,null,null,null,null,null,null,null,0,0]
[4005,4.0049999999999999,"建",1,null,null,null,null,null,null,null,null,null,null,null,0,0,null,4005,4003.9999999999995,4.0039999999999996,"席",1,null,null,null,null,null,null,null,null,null,null,null,0,0]
[4006,4.0060000000000002,"菜",1,null,null,null,null,null,null,null,null,null,null,null,0,0,null,4006,4005,4.0049999999999999,"建",1,null,null,null,null,null,null,null,null,null,null,null,0,0]
[4006.9999999999995,4.0069999999999997,"例",2,null,"イ","+","列",null,null,null,"＝",{"$f":"C448","v":"例"},null,null,0,0,null,4006.9999999999995,4006,4.0060000000000002,"菜",1,null,null,null,null,null,null,null,null,null,null,null,0,0]
[4008,4.008,"料",1,null,null,null,null,null,null,null,null,null,null,null,0,0,null,4008,4006.9999999999995,4.0069999999999997,"例",2,null,"イ","+","列",null,null,null,"＝","例",null,null,0,0]
[{"$f":"B450*1000","v":4009.0000000000005},4.0090000000000003,"良",1,null,null,null,null,null,null,null,null,null,null,null,{"$f":"IF(B450>N$1,0,D450)","v":0},{"$f":"IF(P450=2,B450,0)","v":0},null,4009.0000000000005,4008,4.008,"料",1,null,null,null,null,null,null,null,null,null,null,null,0,0]
[4010,4.01,"照",1,null,null,null,null,null,null,null,null,null,null,null,0,0,null,4010,4009.0000000000005,4.0090000000000003,"良",1,null,null,null,null,null,null,null,null,null,null,null,0,0]
[4011,4.0110000000000001,"熱",1,null,null,null,null,null,null,null,null,null,null,null,0,0,null,4011,4010,4.01,"照",1,null,null,null,null,null,null,null,null,null,null,null,0,0]
[4011.9999999999995,4.0119999999999996,"府",1,null,null,null,null,null,null,null,null,null,null,null,0,0,null,4011.9999999999995,4011,4.0110000000000001,"熱",1,null,null,null,null,null,null,null,null,null,null,null,0,0]
[4013,4.0129999999999999,"児",1,null,null,null,null,null,null,null,null,null,null,null,0,0,null,4013,4011.9999999999995,4.0119999999999996,"府",1,null,null,null,null,null,null,null,null,null,null,null,0,0]
[4014.0000000000005,4.0140000000000002,"関",1,null,null,null,null,null,null,null,null,null,null,null,0,0,null,4014.0000000000005,4013,4.0129999999999999,"児",1,null,null,null,null,null,null,null,null,null,null,null,0,0]
[4014.9999999999995,4.0149999999999997,"辞",1,null,null,null,null,null,null,null,null,null,null,null,0,0,null,4014.9999999999995,4014.0000000000005,4.0140000000000002,"関",1,null,null,null,null,null,null,null,null,null,null,null,0,0]
[4016,4.016,"典",1,null,null,null,null,null,null,null,null,null,null,null,0,0,null,4016,4014.9999999999995,4.0149999999999997,"辞",1,null,null,null,null,null,null,null,null,null,null,null,0,0]
[4017.0000000000005,4.0170000000000003,"成",1,null,null,null,null,null,null,null,null,null,null,null,0,0,null,4017.0000000000005,4016,4.016,"典",1,null,null,null,null,null,null,null,null,null,null,null,0,0]
[4018,4.0179999999999998,"訓",2,null,"言","+","川",null,null,null,"＝",{"$f":"C459","v":"訓"},null,null,0,0,null,4018,4017.0000000000005,4.0170000000000003,"成",1,null,null,null,null,null,null,null,null,null,null,null,0,0]
[4019,4.0190000000000001,"類",1,null,null,null,null,null,null,null,null,null,null,null,0,0,null,4019,4018,4.0179999999999998,"訓",2,null,"言","+","川",null,null,null,"＝","訓",null,null,0,0]
[4019.9999999999995,4.0199999999999996,"順",1,null,null,null,null,null,null,null,null,null,null,null,0,0,null,4019.9999999999995,4019,4.0190000000000001,"類",1,null,null,null,null,null,null,null,null,null,null,null,0,0]
[4021,4.0209999999999999,"愛　",1,null,null,null,null,null,null,null,null,null,null,null,0,0,null,4021,4019.9999999999995,4.0199999999999996,"順",1,null,null,null,null,null,null,null,null,null,null,null,0,0]
[4022.0000000000005,4.0220000000000002,"昨",1,null,null,null,null,null,null,null,null,null,null,null,0,0,null,4022.0000000000005,4021,4.0209999999999999,"愛　",1,null,null,null,null,null,null,null,null,null,null,null,0,0]
[4022.9999999999995,4.0229999999999997,"城",2,null,"土","+","成",null,null,null,"＝",{"$f":"C464","v":"城"},null,null,0,0,null,4022.9999999999995,4022.0000000000005,4.0220000000000002,"昨",1,null,null,null,null,null,null,null,null,null,null,null,0,0]
[4024,4.024,"覚",1,null,null,null,null,null,null,null,null,null,null,null,0,0,null,4024,4022.9999999999995,4.0229999999999997,"城",2,null,"土","+","成",null,null,null,"＝","城",null,null,0,0]
[4025.0000000000005,4.0250000000000004,"伝",3,null,"イ","+","二","+","ム",null,"＝",{"$f":"C466","v":"伝"},null,null,0,0,null,4025.0000000000005,4024,4.024,"覚",1,null,null,null,null,null,null,null,null,null,null,null,0,0]
[4026,4.0259999999999998,"説",1,null,null,null,null,null,null,null,null,null,null,null,0,0,null,4026,4025.0000000000005,4.0250000000000004,"伝",3,null,"イ","+","二","+","ム",null,"＝","伝",null,null,0,0]
[4027,4.0270000000000001,"好",2,null,"女","+","子",null,null,null,"＝",{"$f":"C468","v":"好"},null,null,0,0,null,4027,4026,4.0259999999999998,"説",1,null,null,null,null,null,null,null,null,null,null,null,0,0]
[4027.9999999999995,4.0279999999999996,"印",1,null,null,null,null,null,null,null,null,null,null,null,0,0,null,4027.9999999999995,4027,4.0270000000000001,"好",2,null,"女","+","子",null,null,null,"＝","好",null,null,0,0]
[4029,4.0289999999999999,"要",1,null,null,null,null,null,null,null,null,null,null,null,0,0,null,4029,4027.9999999999995,4.0279999999999996,"印",1,null,null,null,null,null,null,null,null,null,null,null,0,0]
[4030.0000000000005,4.03,"的",1,null,null,null,null,null,null,null,null,null,null,null,0,0,null,4030.0000000000005,4029,4.0289999999999999,"要",1,null,null,null,null,null,null,null,null,null,null,null,0,0]
[4030.9999999999995,4.0309999999999997,"必",1,null,null,null,null,null,null,null,null,null,null,null,0,0,null,4030.9999999999995,4030.0000000000005,4.03,"的",1,null,null,null,null,null,null,null,null,null,null,null,0,0]
[4032,4.032,"初",1,null,null,null,null,null,null,null,null,null,null,null,0,0,null,4032,4030.9999999999995,4.0309999999999997,"必",1,null,null,null,null,null,null,null,null,null,null,null,0,0]
[4033.0000000000005,4.0330000000000004,"案",2,null,"安","+","木",null,null,null,"＝",{"$f":"C474","v":"案"},null,null,0,0,null,4033.0000000000005,4032,4.032,"初",1,null,null,null,null,null,null,null,null,null,null,null,0,0]
[4034,4.0339999999999998,"街",1,null,null,null,null,null,null,null,null,null,null,null,0,0,null,4034,4033.0000000000005,4.0330000000000004,"案",2,null,"安","+","木",null,null,null,"＝","案",null,null,0,0]
[4035,4.0350000000000001,"試",2,null,"言","+","式",null,null,null,"＝",{"$f":"C476","v":"試"},null,null,0,0,null,4035,4034,4.0339999999999998,"街",1,null,null,null,null,null,null,null,null,null,null,null,0,0]
[4035.9999999999995,4.0359999999999996,"選",1,null,null,null,null,null,null,null,null,null,null,null,0,0,null,4035.9999999999995,4035,4.0350000000000001,"試",2,null,"言","+","式",null,null,null,"＝","試",null,null,0,0]
[4037,4.0369999999999999,"観",1,null,null,null,null,null,null,null,null,null,null,null,0,0,null,4037,4035.9999999999995,4.0359999999999996,"選",1,null,null,null,null,null,null,null,null,null,null,null,0,0]
[4038.0000000000005,4.0380000000000003,"静",2,null,"青","+","争",null,null,null,"＝",{"$f":"C479","v":"静"},null,null,0,0,null,4038.0000000000005,4037,4.0369999999999999,"観",1,null,null,null,null,null,null,null,null,null,null,null,0,0]
[4038.9999999999995,4.0389999999999997,"旗",1,null,null,null,null,null,null,null,null,null,null,null,0,0,null,4038.9999999999995,4038.0000000000005,4.0380000000000003,"静",2,null,"青","+","争",null,null,null,"＝","静",null,null,0,0]
[4040,4.04,"材",2,null,"木","+","才",null,null,null,"＝",{"$f":"C481","v":"材"},null,null,0,0,null,4040,4038.9999999999995,4.0389999999999997,"旗",1,null,null,null,null,null,null,null,null,null,null,null,0,0]
[4041.0000000000005,4.0410000000000004,"栃",1,null,null,null,null,null,null,null,null,null,null,null,0,0,null,4041.0000000000005,4040,4.04,"材",2,null,"木","+","才",null,null,null,"＝","材",null,null,0,0]
[4042,4.0419999999999998,"群",2,null,"君","+","羊",null,null,null,"＝",{"$f":"C483","v":"群"},null,null,0,0,null,4042,4041.0000000000005,4.0410000000000004,"栃",1,null,null,null,null,null,null,null,null,null,null,null,0,0]
[4043,4.0430000000000001,"埼",1,null,null,null,null,null,null,null,null,null,null,null,0,0,null,4043,4042,4.0419999999999998,"群",2,null,"君","+","羊",null,null,null,"＝","群",null,null,0,0]
[4043.9999999999995,4.0439999999999996,"潟",1,null,null,null,null,null,null,null,null,null,null,null,0,0,null,4043.9999999999995,4043,4.0430000000000001,"埼",1,null,null,null,null,null,null,null,null,null,null,null,0,0]
[4045,4.0449999999999999,"井",1,null,null,null,null,null,null,null,null,null,null,null,0,0,null,4045,4043.9999999999995,4.0439999999999996,"潟",1,null,null,null,null,null,null,null,null,null,null,null,0,0]
[4046.0000000000005,4.0460000000000003,"梨",2,null,"利","+","木",null,null,null,"＝",{"$f":"C487","v":"梨"},null,null,0,0,null,4046.0000000000005,4045,4.0449999999999999,"井",1,null,null,null,null,null,null,null,null,null,null,null,0,0]
[4046.9999999999995,4.0469999999999997,"岡",1,null,null,null,null,null,null,null,null,null,null,null,0,0,null,4046.9999999999995,4046.0000000000005,4.0460000000000003,"梨",2,null,"利","+","木",null,null,null,"＝","梨",null,null,0,0]
[4048,4.048,"茨",1,null,null,null,null,null,null,null,null,null,null,null,0,0,null,4048,4046.9999999999995,4.0469999999999997,"岡",1,null,null,null,null,null,null,null,null,null,null,null,0,0]
[4049.0000000000005,4.0490000000000004,"奈",3,null,"大","+","二","+","小",null,"＝",{"$f":"C490","v":"奈"},null,null,0,0,null,4049.0000000000005,4048,4.048,"茨",1,null,null,null,null,null,null,null,null,null,null,null,0,0]
[4050,4.05,"富",1,null,null,null,null,null,null,null,null,null,null,null,0,0,null,4050,4049.0000000000005,4.0490000000000004,"奈",3,null,"大","+","二","+","小",null,"＝","奈",null,null,0,0]
[4051,4.0510000000000002,"岐",4,null,"山","+","支",null,null,null,"＝",{"$f":"C492","v":"岐"},null,null,0,0,null,4051,4050,4.05,"富",1,null,null,null,null,null,null,null,null,null,null,null,0,0]
[4051.9999999999995,4.0519999999999996,"阜",1,null,null,null,null,null,null,null,null,null,null,null,0,0,null,4051.9999999999995,4051,4.0510000000000002,"岐",4,null,"山","+","支",null,null,null,"＝","岐",null,null,0,0]
[4053,4.0529999999999999,"季",3,null,"ノ","+","木","+","子",null,"＝",{"$f":"C494","v":"季"},null,null,0,0,null,4053,4051.9999999999995,4.0519999999999996,"阜",1,null,null,null,null,null,null,null,null,null,null,null,0,0]
[4054.0000000000005,4.0540000000000003,"節",1,null,null,null,null,null,null,null,null,null,null,null,0,0,null,4054.0000000000005,4053,4.0529999999999999,"季",3,null,"ノ","+","木","+","子",null,"＝","季",null,null,0,0]
[4054.9999999999995,4.0549999999999997,"別",1,null,null,null,null,null,null,null,null,null,null,null,0,0,null,4054.9999999999995,4054.0000000000005,4.0540000000000003,"節",1,null,null,null,null,null,null,null,null,null,null,null,0,0]
[4056,4.056,"郡",1,null,null,null,null,null,null,null,null,null,null,null,0,0,null,4056,4054.9999999999995,4.0549999999999997,"別",1,null,null,null,null,null,null,null,null,null,null,null,0,0]
[4057.0000000000005,4.0570000000000004,"戦",1,null,null,null,null,null,null,null,null,null,null,null,0,0,null,4057.0000000000005,4056,4.056,"郡",1,null,null,null,null,null,null,null,null,null,null,null,0,0]
[4058,4.0579999999999998,"争",1,null,null,null,null,null,null,null,null,null,null,null,0,0,null,4058,4057.0000000000005,4.0570000000000004,"戦",1,null,null,null,null,null,null,null,null,null,null,null,0,0]
[4059,4.0590000000000002,"最",2,null,"日","+","取",null,null,null,"＝",{"$f":"C500","v":"最"},null,null,0,0,null,4059,4058,4.0579999999999998,"争",1,null,null,null,null,null,null,null,null,null,null,null,0,0]
[4059.9999999999995,4.0599999999999996,"給",2,null,"糸","+","合",null,null,null,"＝",{"$f":"C501","v":"給"},null,null,0,0,null,4059.9999999999995,4059,4.0590000000000002,"最",2,null,"日","+","取",null,null,null,"＝","最",null,null,0,0]
[4061,4.0609999999999999,"機",1,null,null,null,null,null,null,null,null,null,null,null,0,0,null,4061,4059.9999999999995,4.0599999999999996,"給",2,null,"糸","+","合",null,null,null,"＝","給",null,null,0,0]
[4062.0000000000005,4.0620000000000003,"包",1,null,null,null,null,null,null,null,null,null,null,null,0,0,null,4062.0000000000005,4061,4.0609999999999999,"機",1,null,null,null,null,null,null,null,null,null,null,null,0,0]
[4062.9999999999995,4.0629999999999997,"帯",1,null,null,null,null,null,null,null,null,null,null,null,0,0,null,4062.9999999999995,4062.0000000000005,4.0620000000000003,"包",1,null,null,null,null,null,null,null,null,null,null,null,0,0]
[4064,4.0640000000000001,"泣",1,null,null,null,null,null,null,null,null,null,null,null,0,0,null,4064,4062.9999999999995,4.0629999999999997,"帯",1,null,null,null,null,null,null,null,null,null,null,null,0,0]
[4065.0000000000005,4.0650000000000004,"勇",2,null,"マ","+","男",null,null,null,"＝",{"$f":"C506","v":"勇"},null,null,0,0,null,4065.0000000000005,4064,4.0640000000000001,"泣",1,null,null,null,null,null,null,null,null,null,null,null,0,0]
[4066,4.0659999999999998,"軍",1,null,null,null,null,null,null,null,null,null,null,null,0,0,null,4066,4065.0000000000005,4.0650000000000004,"勇",2,null,"マ","+","男",null,null,null,"＝","勇",null,null,0,0]
[4067,4.0670000000000002,"兵",1,null,null,null,null,null,null,null,null,null,null,null,0,0,null,4067,4066,4.0659999999999998,"軍",1,null,null,null,null,null,null,null,null,null,null,null,0,0]
[4067.9999999999995,4.0679999999999996,"隊",1,null,null,null,null,null,null,null,null,null,null,null,0,0,null,4067.9999999999995,4067,4.0670000000000002,"兵",1,null,null,null,null,null,null,null,null,null,null,null,0,0]
[4069,4.069,"輪",1,null,null,null,null,null,null,null,null,null,null,null,0,0,null,4069,4067.9999999999995,4.0679999999999996,"隊",1,null,null,null,null,null,null,null,null,null,null,null,0,0]
[4070.0000000000005,4.07,"特",1,null,null,null,null,null,null,null,null,null,null,null,0,0,null,4070.0000000000005,4069,4.069,"輪",1,null,null,null,null,null,null,null,null,null,null,null,0,0]
[4070.9999999999995,4.0709999999999997,"夫",1,null,null,null,null,null,null,null,null,null,null,null,0,0,null,4070.9999999999995,4070.0000000000005,4.07,"特",1,null,null,null,null,null,null,null,null,null,null,null,0,0]
[4072,4.0720000000000001,"衣",1,null,null,null,null,null,null,null,null,null,null,null,0,0,null,4072,4070.9999999999995,4.0709999999999997,"夫",1,null,null,null,null,null,null,null,null,null,null,null,0,0]
[{"$f":"B514*1000","v":4073.0000000000005},4.0730000000000004,"氏",1,null,null,null,null,null,null,null,null,null,null,null,{"$f":"IF(B514>N$1,0,D514)","v":0},{"$f":"IF(P514=2,B514,0)","v":0},null,4073.0000000000005,4072,4.0720000000000001,"衣",1,null,null,null,null,null,null,null,null,null,null,null,0,0]
[4074,4.0739999999999998,"祝",1,null,null,null,null,null,null,null,null,null,null,null,0,0,null,4074,4073.0000000000005,4.0730000000000004,"氏",1,null,null,null,null,null,null,null,null,null,null,null,0,0]
[4075,4.0750000000000002,"徒",3,null,"ノ","+","イ","+","走",null,"＝",{"$f":"C516","v":"徒"},null,null,0,0,null,4075,4074,4.0739999999999998,"祝",1,null,null,null,null,null,null,null,null,null,null,null,0,0]
[4075.9999999999995,4.0759999999999996,"競",1,null,null,null,null,null,null,null,null,null,null,null,0,0,null,4075.9999999999995,4075,4.0750000000000002,"徒",3,null,"ノ","+","イ","+","走",null,"＝","徒",null,null,0,0]
[4077,4.077,"約",1,null,null,null,null,null,null,null,null,null,null,null,0,0,null,4077,4075.9999999999995,4.0759999999999996,"競",1,null,null,null,null,null,null,null,null,null,null,null,0,0]
[4078.0000000000005,4.0780000000000003,"清",1,null,null,null,null,null,null,null,null,null,null,null,0,0,null,4078.0000000000005,4077,4.077,"約",1,null,null,null,null,null,null,null,null,null,null,null,0,0]
[4078.9999999999995,4.0789999999999997,"完",1,null,null,null,null,null,null,null,null,null,null,null,0,0,null,4078.9999999999995,4078.0000000000005,4.0780000000000003,"清",1,null,null,null,null,null,null,null,null,null,null,null,0,0]
[4080,4.08,"法",1,null,null,null,null,null,null,null,null,null,null,null,0,0,null,4080,4078.9999999999995,4.0789999999999997,"完",1,null,null,null,null,null,null,null,null,null,null,null,0,0]
[4081.0000000000005,4.0810000000000004,"滋",1,null,null,null,null,null,null,null,null,null,null,null,0,0,null,4081.0000000000005,4080,4.08,"法",1,null,null,null,null,null,null,null,null,null,null,null,0,0]
[4082,4.0819999999999999,"阪",1,null,null,null,null,null,null,null,null,null,null,null,0,0,null,4082,4081.0000000000005,4.0810000000000004,"滋",1,null,null,null,null,null,null,null,null,null,null,null,0,0]
[4083,4.0830000000000002,"徳",1,null,null,null,null,null,null,null,null,null,null,null,0,0,null,4083,4082,4.0819999999999999,"阪",1,null,null,null,null,null,null,null,null,null,null,null,0,0]
[4083.9999999999995,4.0839999999999996,"香",3,null,"マ","+","男",null,null,null,"＝",{"$f":"C525","v":"香"},null,null,0,0,null,4083.9999999999995,4083,4.0830000000000002,"徳",1,null,null,null,null,null,null,null,null,null,null,null,0,0]
[4085,4.085,"佐",2,null,"イ","+","左",null,null,null,"＝",{"$f":"C526","v":"佐"},null,null,0,0,null,4085,4083.9999999999995,4.0839999999999996,"香",3,null,"マ","+","男",null,null,null,"＝","香",null,null,0,0]
[4086.0000000000005,4.0860000000000003,"賀",2,null,"加","+","貝",null,null,null,"＝",{"$f":"C527","v":"賀"},null,null,0,0,null,4086.0000000000005,4085,4.085,"佐",2,null,"イ","+","左",null,null,null,"＝","佐",null,null,0,0]
[4086.9999999999995,4.0869999999999997,"崎",1,null,null,null,null,null,null,null,null,null,null,null,0,0,null,4086.9999999999995,4086.0000000000005,4.0860000000000003,"賀",2,null,"加","+","貝",null,null,null,"＝","賀",null,null,0,0]
[4088,4.0880000000000001,"熊",1,null,null,null,null,null,null,null,null,null,null,null,0,0,null,4088,4086.9999999999995,4.0869999999999997,"崎",1,null,null,null,null,null,null,null,null,null,null,null,0,0]
[4089.0000000000005,4.0890000000000004,"沖",1,null,null,null,null,null,null,null,null,null,null,null,0,0,null,4089.0000000000005,4088,4.0880000000000001,"熊",1,null,null,null,null,null,null,null,null,null,null,null,0,0]
[4090,4.09,"縄",1,null,null,null,null,null,null,null,null,null,null,null,0,0,null,4090,4089.0000000000005,4.0890000000000004,"沖",1,null,null,null,null,null,null,null,null,null,null,null,0,0]
[4091,4.0910000000000002,"媛",1,null,null,null,null,null,null,null,null,null,null,null,0,0,null,4091,4090,4.09,"縄",1,null,null,null,null,null,null,null,null,null,null,null,0,0]
[4091.9999999999995,4.0919999999999996,"鹿",1,null,null,null,null,null,null,null,null,null,null,null,0,0,null,4091.9999999999995,4091,4.0910000000000002,"媛",1,null,null,null,null,null,null,null,null,null,null,null,0,0]
[4093,4.093,"未",1,null,null,null,null,null,null,null,null,null,null,null,0,0,null,4093,4091.9999999999995,4.0919999999999996,"鹿",1,null,null,null,null,null,null,null,null,null,null,null,0,0]
[4094.0000000000005,4.0940000000000003,"希",1,null,null,null,null,null,null,null,null,null,null,null,0,0,null,4094.0000000000005,4093,4.093,"未",1,null,null,null,null,null,null,null,null,null,null,null,0,0]
[4094.9999999999995,4.0949999999999998,"望",1,null,null,null,null,null,null,null,null,null,null,null,0,0,null,4094.9999999999995,4094.0000000000005,4.0940000000000003,"希",1,null,null,null,null,null,null,null,null,null,null,null,0,0]
[4096,4.0960000000000001,"民",1,null,null,null,null,null,null,null,null,null,null,null,0,0,null,4096,4094.9999999999995,4.0949999999999998,"望",1,null,null,null,null,null,null,null,null,null,null,null,0,0]
[4097,4.0970000000000004,"働",2,null,"イ","+","動",null,null,null,"＝",{"$f":"C538","v":"働"},null,null,0,0,null,4097,4096,4.0960000000000001,"民",1,null,null,null,null,null,null,null,null,null,null,null,0,0]
[4098,4.0979999999999999,"健",2,null,"イ","+","建",null,null,null,"＝",{"$f":"C539","v":"健"},null,null,0,0,null,4098,4097,4.0970000000000004,"働",2,null,"イ","+","動",null,null,null,"＝","働",null,null,0,0]
[4099,4.0990000000000002,"康",1,null,null,null,null,null,null,null,null,null,null,null,0,0,null,4099,4098,4.0979999999999999,"健",2,null,"イ","+","建",null,null,null,"＝","健",null,null,0,0]
[4100,4.0999999999999996,"散",1,null,null,null,null,null,null,null,null,null,null,null,0,0,null,4100,4099,4.0990000000000002,"康",1,null,null,null,null,null,null,null,null,null,null,null,0,0]
[4101,4.101,"令",1,null,null,null,null,null,null,null,null,null,null,null,0,0,null,4101,4100,4.0999999999999996,"散",1,null,null,null,null,null,null,null,null,null,null,null,0,0]
[4102,4.1020000000000003,"位",2,null,"イ","+","立",null,null,null,"＝",{"$f":"C543","v":"位"},null,null,0,0,null,4102,4101,4.101,"令",1,null,null,null,null,null,null,null,null,null,null,null,0,0]
[4103,4.1029999999999998,"置",1,null,null,null,null,null,null,null,null,null,null,null,0,0,null,4103,4102,4.1020000000000003,"位",2,null,"イ","+","立",null,null,null,"＝","位",null,null,0,0]
[4104,4.1040000000000001,"欠",1,null,null,null,null,null,null,null,null,null,null,null,0,0,null,4104,4103,4.1029999999999998,"置",1,null,null,null,null,null,null,null,null,null,null,null,0,0]
[4105,4.1050000000000004,"満",1,null,null,null,null,null,null,null,null,null,null,null,0,0,null,4105,4104,4.1040000000000001,"欠",1,null,null,null,null,null,null,null,null,null,null,null,0,0]
[4106,4.1059999999999999,"栄",1,null,null,null,null,null,null,null,null,null,null,null,0,0,null,4106,4105,4.1050000000000004,"満",1,null,null,null,null,null,null,null,null,null,null,null,0,0]
[4107,4.1070000000000002,"養",1,null,null,null,null,null,null,null,null,null,null,null,0,0,null,4107,4106,4.1059999999999999,"栄",1,null,null,null,null,null,null,null,null,null,null,null,0,0]
[4108,4.1079999999999997,"卒",1,null,null,null,null,null,null,null,null,null,null,null,0,0,null,4108,4107,4.1070000000000002,"養",1,null,null,null,null,null,null,null,null,null,null,null,0,0]
[4109,4.109,"単",1,null,null,null,null,null,null,null,null,null,null,null,0,0,null,4109,4108,4.1079999999999997,"卒",1,null,null,null,null,null,null,null,null,null,null,null,0,0]
[4110,4.1100000000000003,"結",4,null,"糸","+","吉",null,null,null,"＝",{"$f":"C551","v":"結"},null,null,0,0,null,4110,4109,4.109,"単",1,null,null,null,null,null,null,null,null,null,null,null,0,0]
[4111,4.1109999999999998,"果",2,null,"日","+","木",null,null,null,"＝",{"$f":"C552","v":"果"},null,null,0,0,null,4111,4110,4.1100000000000003,"結",4,null,"糸","+","吉",null,null,null,"＝","結",null,null,0,0]
[4112,4.1120000000000001,"漁",1,null,null,null,null,null,null,null,null,null,null,null,0,0,null,4112,4111,4.1109999999999998,"果",2,null,"日","+","木",null,null,null,"＝","果",null,null,0,0]
[4113,4.1130000000000004,"径",1,null,null,null,null,null,null,null,null,null,null,null,0,0,null,4113,4112,4.1120000000000001,"漁",1,null,null,null,null,null,null,null,null,null,null,null,0,0]
[4114,4.1139999999999999,"副",1,null,null,null,null,null,null,null,null,null,null,null,0,0,null,4114,4113,4.1130000000000004,"径",1,null,null,null,null,null,null,null,null,null,null,null,0,0]
[4115,4.1150000000000002,"臣",1,null,null,null,null,null,null,null,null,null,null,null,0,0,null,4115,4114,4.1139999999999999,"副",1,null,null,null,null,null,null,null,null,null,null,null,0,0]
[4116,4.1159999999999997,"梅",2,null,"木","+","毎",null,null,null,"＝",{"$f":"C557","v":"梅"},null,null,0,0,null,4116,4115,4.1150000000000002,"臣",1,null,null,null,null,null,null,null,null,null,null,null,0,0]
[4117,4.117,"灯",1,null,null,null,null,null,null,null,null,null,null,null,0,0,null,4117,4116,4.1159999999999997,"梅",2,null,"木","+","毎",null,null,null,"＝","梅",null,null,0,0]
[4118,4.1180000000000003,"貨",2,null,"化","+","貝",null,null,null,"＝",{"$f":"C559","v":"貨"},null,null,0,0,null,4118,4117,4.117,"灯",1,null,null,null,null,null,null,null,null,null,null,null,0,0]
[4119,4.1189999999999998,"変",1,null,null,null,null,null,null,null,null,null,null,null,0,0,null,4119,4118,4.1180000000000003,"貨",2,null,"化","+","貝",null,null,null,"＝","貨",null,null,0,0]
[4120,4.12,"種",3,null,"ノ","+","木","+","重",null,"＝",{"$f":"C561","v":"種"},null,null,0,0,null,4120,4119,4.1189999999999998,"変",1,null,null,null,null,null,null,null,null,null,null,null,0,0]
[4121,4.1210000000000004,"続",2,null,"糸","+","売",null,null,null,"＝",{"$f":"C562","v":"続"},null,null,0,0,null,4121,4120,4.12,"種",3,null,"ノ","+","木","+","重",null,"＝","種",null,null,0,0]
[4122,4.1219999999999999,"折",1,null,null,null,null,null,null,null,null,null,null,null,0,0,null,4122,4121,4.1210000000000004,"続",2,null,"糸","+","売",null,null,null,"＝","続",null,null,0,0]
[4123,4.1230000000000002,"積",1,null,null,null,null,null,null,null,null,null,null,null,0,0,null,4123,4122,4.1219999999999999,"折",1,null,null,null,null,null,null,null,null,null,null,null,0,0]
[4124,4.1239999999999997,"飯",1,null,null,null,null,null,null,null,null,null,null,null,0,0,null,4124,4123,4.1230000000000002,"積",1,null,null,null,null,null,null,null,null,null,null,null,0,0]
[4125,4.125,"松",2,null,"木","+","公",null,null,null,"＝",{"$f":"C566","v":"松"},null,null,0,0,null,4125,4124,4.1239999999999997,"飯",1,null,null,null,null,null,null,null,null,null,null,null,0,0]
[4126,4.1260000000000003,"不",1,null,null,null,null,null,null,null,null,null,null,null,0,0,null,4126,4125,4.125,"松",2,null,"木","+","公",null,null,null,"＝","松",null,null,0,0]
[4127,4.1269999999999998,"議",4,null,"言","+","義",null,null,null,"＝",{"$f":"C568","v":"議"},null,null,0,0,null,4127,4126,4.1260000000000003,"不",1,null,null,null,null,null,null,null,null,null,null,null,0,0]
[4128,4.1280000000000001,"差",1,null,null,null,null,null,null,null,null,null,null,null,0,0,null,4128,4127,4.1269999999999998,"議",4,null,"言","+","義",null,null,null,"＝","議",null,null,0,0]
[4129,4.1289999999999996,"念",2,null,"今","+","心",null,null,null,"＝",{"$f":"C570","v":"念"},null,null,0,0,null,4129,4128,4.1280000000000001,"差",1,null,null,null,null,null,null,null,null,null,null,null,0,0]
[4130,4.13,"連",1,null,null,null,null,null,null,null,null,null,null,null,0,0,null,4130,4129,4.1289999999999996,"念",2,null,"今","+","心",null,null,null,"＝","念",null,null,0,0]
[4131,4.1310000000000002,"景",2,null,"日","+","京",null,null,null,"＝",{"$f":"C572","v":"景"},null,null,0,0,null,4131,4130,4.13,"連",1,null,null,null,null,null,null,null,null,null,null,null,0,0]
[4132,4.1319999999999997,"末",1,null,null,null,null,null,null,null,null,null,null,null,0,0,null,4132,4131,4.1310000000000002,"景",2,null,"日","+","京",null,null,null,"＝","景",null,null,0,0]
[4133,4.133,"司",1,null,null,null,null,null,null,null,null,null,null,null,0,0,null,4133,4132,4.1319999999999997,"末",1,null,null,null,null,null,null,null,null,null,null,null,0,0]
[4134,4.1340000000000003,"録",1,null,null,null,null,null,null,null,null,null,null,null,0,0,null,4134,4133,4.133,"司",1,null,null,null,null,null,null,null,null,null,null,null,0,0]
[4135,4.1349999999999998,"参",1,null,null,null,null,null,null,null,null,null,null,null,0,0,null,4135,4134,4.1340000000000003,"録",1,null,null,null,null,null,null,null,null,null,null,null,0,0]
[4136,4.1360000000000001,"加",2,null,"力","+","口",null,null,null,"＝",{"$f":"C577","v":"加"},null,null,0,0,null,4136,4135,4.1349999999999998,"参",1,null,null,null,null,null,null,null,null,null,null,null,0,0]
[{"$f":"B578*1000","v":4137},4.1370000000000005,"挙",1,null,null,null,null,null,null,null,null,null,null,null,{"$f":"IF(B578>N$1,0,D578)","v":0},{"$f":"IF(P578=2,B578,0)","v":0},null,4137,4136,4.1360000000000001,"加",2,null,"力","+","口",null,null,null,"＝","加",null,null,0,0]
[4138,4.1379999999999999,"協",1,null,null,null,null,null,null,null,null,null,null,null,0,0,null,4138,4137,4.1370000000000005,"挙",1,null,null,null,null,null,null,null,null,null,null,null,0,0]
[4139,4.1390000000000002,"験",1,null,null,null,null,null,null,null,null,null,null,null,0,0,null,4139,4138,4.1379999999999999,"協",1,null,null,null,null,null,null,null,null,null,null,null,0,0]
[4140,4.1399999999999997,"極",1,null,null,null,null,null,null,null,null,null,null,null,0,0,null,4140,4139,4.1390000000000002,"験",1,null,null,null,null,null,null,null,null,null,null,null,0,0]
[4141,4.141,"芸",1,null,null,null,null,null,null,null,null,null,null,null,0,0,null,4141,4140,4.1399999999999997,"極",1,null,null,null,null,null,null,null,null,null,null,null,0,0]
[4142,4.1420000000000003,"無",1,null,null,null,null,null,null,null,null,null,null,null,0,0,null,4142,4141,4.141,"芸",1,null,null,null,null,null,null,null,null,null,null,null,0,0]
[4143,4.1429999999999998,"械",1,null,null,null,null,null,null,null,null,null,null,null,0,0,null,4143,4142,4.1420000000000003,"無",1,null,null,null,null,null,null,null,null,null,null,null,0,0]
[4144,4.1440000000000001,"以",1,null,null,null,null,null,null,null,null,null,null,null,0,0,null,4144,4143,4.1429999999999998,"械",1,null,null,null,null,null,null,null,null,null,null,null,0,0]
[4145,4.1449999999999996,"博",1,null,null,null,null,null,null,null,null,null,null,null,0,0,null,4145,4144,4.1440000000000001,"以",1,null,null,null,null,null,null,null,null,null,null,null,0,0]
[4146,4.1459999999999999,"管",2,null,"竹","+","官",null,null,null,"＝",{"$f":"C587","v":"管"},null,null,0,0,null,4146,4145,4.1449999999999996,"博",1,null,null,null,null,null,null,null,null,null,null,null,0,0]
[4147,4.1470000000000002,"便",1,null,null,null,null,null,null,null,null,null,null,null,0,0,null,4147,4146,4.1459999999999999,"管",2,null,"竹","+","官",null,null,null,"＝","管",null,null,0,0]
[4148,4.1479999999999997,"孫",1,null,null,null,null,null,null,null,null,null,null,null,0,0,null,4148,4147,4.1470000000000002,"便",1,null,null,null,null,null,null,null,null,null,null,null,0,0]
[4149,4.149,"量",3,null,"日","+","一","+","里",null,"＝",{"$f":"C590","v":"量"},null,null,0,0,null,4149,4148,4.1479999999999997,"孫",1,null,null,null,null,null,null,null,null,null,null,null,0,0]
[4150,4.1500000000000004,"借",2,null,"イ","+","昔",null,null,null,"＝",{"$f":"C591","v":"借"},null,null,0,0,null,4150,4149,4.149,"量",3,null,"日","+","一","+","里",null,"＝","量",null,null,0,0]
[4151,4.1509999999999998,"仲",2,null,"イ","+","中",null,null,null,"＝",{"$f":"C592","v":"仲"},null,null,0,0,null,4151,4150,4.1500000000000004,"借",2,null,"イ","+","昔",null,null,null,"＝","借",null,null,0,0]
[4152,4.1520000000000001,"底",1,null,null,null,null,null,null,null,null,null,null,null,0,0,null,4152,4151,4.1509999999999998,"仲",2,null,"イ","+","中",null,null,null,"＝","仲",null,null,0,0]
[4153,4.1529999999999996,"浅",1,null,null,null,null,null,null,null,null,null,null,null,0,0,null,4153,4152,4.1520000000000001,"底",1,null,null,null,null,null,null,null,null,null,null,null,0,0]
[4154,4.1539999999999999,"焼",1,null,null,null,null,null,null,null,null,null,null,null,0,0,null,4154,4153,4.1529999999999996,"浅",1,null,null,null,null,null,null,null,null,null,null,null,0,0]
[4155,4.1550000000000002,"利",1,null,null,null,null,null,null,null,null,null,null,null,0,0,null,4155,4154,4.1539999999999999,"焼",1,null,null,null,null,null,null,null,null,null,null,null,0,0]
[4156,4.1559999999999997,"笑",3,null,"竹","+","ノ","+","大",null,"＝",{"$f":"C597","v":"笑"},null,null,0,0,null,4156,4155,4.1550000000000002,"利",1,null,null,null,null,null,null,null,null,null,null,null,0,0]
[4157,4.157,"省",2,null,"少","+","目",null,null,null,"＝",{"$f":"C598","v":"省"},null,null,0,0,null,4157,4156,4.1559999999999997,"笑",3,null,"竹","+","ノ","+","大",null,"＝","笑",null,null,0,0]
[4158,4.1580000000000004,"残",1,null,null,null,null,null,null,null,null,null,null,null,0,0,null,4158,4157,4.157,"省",2,null,"少","+","目",null,null,null,"＝","省",null,null,0,0]
[4159,4.1589999999999998,"周",1,null,null,null,null,null,null,null,null,null,null,null,0,0,null,4159,4158,4.1580000000000004,"残",1,null,null,null,null,null,null,null,null,null,null,null,0,0]
[4160,4.16,"課",2,null,"言","+","果",null,null,null,"＝",{"$f":"C601","v":"課"},null,null,0,0,null,4160,4159,4.1589999999999998,"周",1,null,null,null,null,null,null,null,null,null,null,null,0,0]
[4161,4.1609999999999996,"然",1,null,null,null,null,null,null,null,null,null,null,null,0,0,null,4161,4160,4.16,"課",2,null,"言","+","果",null,null,null,"＝","課",null,null,0,0]
[4162,4.1619999999999999,"浴",1,null,null,null,null,null,null,null,null,null,null,null,0,0,null,4162,4161,4.1609999999999996,"然",1,null,null,null,null,null,null,null,null,null,null,null,0,0]
[4163,4.1630000000000003,"芽",1,null,null,null,null,null,null,null,null,null,null,null,0,0,null,4163,4162,4.1619999999999999,"浴",1,null,null,null,null,null,null,null,null,null,null,null,0,0]
[4164,4.1639999999999997,"改",1,null,null,null,null,null,null,null,null,null,null,null,0,0,null,4164,4163,4.1630000000000003,"芽",1,null,null,null,null,null,null,null,null,null,null,null,0,0]
[4165,4.165,"共",1,null,null,null,null,null,null,null,null,null,null,null,0,0,null,4165,4164,4.1639999999999997,"改",1,null,null,null,null,null,null,null,null,null,null,null,0,0]
[4166,4.1660000000000004,"願",1,null,null,null,null,null,null,null,null,null,null,null,0,0,null,4166,4165,4.165,"共",1,null,null,null,null,null,null,null,null,null,null,null,0,0]
[4167,4.1669999999999998,"失",1,null,null,null,null,null,null,null,null,null,null,null,0,0,null,4167,4166,4.1660000000000004,"願",1,null,null,null,null,null,null,null,null,null,null,null,0,0]
[4168,4.1680000000000001,"辺",1,null,null,null,null,null,null,null,null,null,null,null,0,0,null,4168,4167,4.1669999999999998,"失",1,null,null,null,null,null,null,null,null,null,null,null,0,0]
[4169,4.1689999999999996,"低",1,null,null,null,null,null,null,null,null,null,null,null,0,0,null,4169,4168,4.1680000000000001,"辺",1,null,null,null,null,null,null,null,null,null,null,null,0,0]
[4170,4.17,"敗",1,null,null,null,null,null,null,null,null,null,null,null,0,0,null,4170,4169,4.1689999999999996,"低",1,null,null,null,null,null,null,null,null,null,null,null,0,0]
[4171,4.1710000000000003,"老",3,null,"土","+","ノ","+","ヒ",null,"＝",{"$f":"C612","v":"老"},null,null,0,0,null,4171,4170,4.17,"敗",1,null,null,null,null,null,null,null,null,null,null,null,0,0]
[4172,4.1719999999999997,"束",1,null,null,null,null,null,null,null,null,null,null,null,0,0,null,4172,4171,4.1710000000000003,"老",3,null,"土","+","ノ","+","ヒ",null,"＝","老",null,null,0,0]
[4173,4.173,"票",1,null,null,null,null,null,null,null,null,null,null,null,0,0,null,4173,4172,4.1719999999999997,"束",1,null,null,null,null,null,null,null,null,null,null,null,0,0]
[4174,4.1740000000000004,"陸",1,null,null,null,null,null,null,null,null,null,null,null,0,0,null,4174,4173,4.173,"票",1,null,null,null,null,null,null,null,null,null,null,null,0,0]
[4175,4.1749999999999998,"各",1,null,null,null,null,null,null,null,null,null,null,null,0,0,null,4175,4174,4.1740000000000004,"陸",1,null,null,null,null,null,null,null,null,null,null,null,0,0]
[4176,4.1760000000000002,"求",1,null,null,null,null,null,null,null,null,null,null,null,0,0,null,4176,4175,4.1749999999999998,"各",1,null,null,null,null,null,null,null,null,null,null,null,0,0]
[4177,4.1769999999999996,"付",1,null,null,null,null,null,null,null,null,null,null,null,0,0,null,4177,4176,4.1760000000000002,"求",1,null,null,null,null,null,null,null,null,null,null,null,0,0]
[4178,4.1779999999999999,"固",1,null,null,null,null,null,null,null,null,null,null,null,0,0,null,4178,4177,4.1769999999999996,"付",1,null,null,null,null,null,null,null,null,null,null,null,0,0]
[4179,4.1790000000000003,"塩",1,null,null,null,null,null,null,null,null,null,null,null,0,0,null,4179,4178,4.1779999999999999,"固",1,null,null,null,null,null,null,null,null,null,null,null,0,0]
[4180,4.18,"側",4,null,"イ","+","則","+",null,null,"＝",{"$f":"C621","v":"側"},null,null,0,0,null,4180,4179,4.1790000000000003,"塩",1,null,null,null,null,null,null,null,null,null,null,null,0,0]
[4181,4.181,"労",1,null,null,null,null,null,null,null,null,null,null,null,0,0,null,4181,4180,4.18,"側",4,null,"イ","+","則","+",null,null,"＝","側",null,null,0,0]
[4182,4.1820000000000004,"標",2,null,"木","+","票","+",null,null,"＝",{"$f":"C623","v":"標"},null,null,0,0,null,4182,4181,4.181,"労",1,null,null,null,null,null,null,null,null,null,null,null,0,0]
[4183,4.1829999999999998,"官",1,null,null,null,null,null,null,null,null,null,null,null,0,0,null,4183,4182,4.1820000000000004,"標",2,null,"木","+","票","+",null,null,"＝","標",null,null,0,0]
[4184,4.1840000000000002,"候",1,null,null,null,null,null,null,null,null,null,null,null,0,0,null,4184,4183,4.1829999999999998,"官",1,null,null,null,null,null,null,null,null,null,null,null,0,0]
[4185,4.1849999999999996,"巣",1,null,null,null,null,null,null,null,null,null,null,null,0,0,null,4185,4184,4.1840000000000002,"候",1,null,null,null,null,null,null,null,null,null,null,null,0,0]
[4186,4.1859999999999999,"産",1,null,null,null,null,null,null,null,null,null,null,null,0,0,null,4186,4185,4.1849999999999996,"巣",1,null,null,null,null,null,null,null,null,null,null,null,0,0]
[4187,4.1870000000000003,"察",1,null,null,null,null,null,null,null,null,null,null,null,0,0,null,4187,4186,4.1859999999999999,"産",1,null,null,null,null,null,null,null,null,null,null,null,0,0]
[4188,4.1879999999999997,"兆",1,null,null,null,null,null,null,null,null,null,null,null,0,0,null,4188,4187,4.1870000000000003,"察",1,null,null,null,null,null,null,null,null,null,null,null,0,0]
[4189,4.1890000000000001,"億",2,null,"イ","+","意","+",null,null,"＝",{"$f":"C630","v":"億"},null,null,0,0,null,4189,4188,4.1879999999999997,"兆",1,null,null,null,null,null,null,null,null,null,null,null,0,0]
[4190,4.1900000000000004,"鏡",1,null,null,null,null,null,null,null,null,null,null,null,0,0,null,4190,4189,4.1890000000000001,"億",2,null,"イ","+","意","+",null,null,"＝","億",null,null,0,0]
[4191,4.1909999999999998,"害",1,null,null,null,null,null,null,null,null,null,null,null,0,0,null,4191,4190,4.1900000000000004,"鏡",1,null,null,null,null,null,null,null,null,null,null,null,0,0]
[4192,4.1920000000000002,"刷",1,null,null,null,null,null,null,null,null,null,null,null,0,0,null,4192,4191,4.1909999999999998,"害",1,null,null,null,null,null,null,null,null,null,null,null,0,0]
[4193,4.1929999999999996,"治",1,null,null,null,null,null,null,null,null,null,null,null,0,0,null,4193,4192,4.1920000000000002,"刷",1,null,null,null,null,null,null,null,null,null,null,null,0,0]
[4194,4.194,"努",1,null,null,null,null,null,null,null,null,null,null,null,0,0,null,4194,4193,4.1929999999999996,"治",1,null,null,null,null,null,null,null,null,null,null,null,0,0]
[4195,4.1950000000000003,"倉",1,null,null,null,null,null,null,null,null,null,null,null,0,0,null,4195,4194,4.194,"努",1,null,null,null,null,null,null,null,null,null,null,null,0,0]
[4196,4.1959999999999997,"札",1,null,null,null,null,null,null,null,null,null,null,null,0,0,null,4196,4195,4.1950000000000003,"倉",1,null,null,null,null,null,null,null,null,null,null,null,0,0]
[4197,4.1970000000000001,"功",2,null,"工","+","力",null,null,null,"＝",{"$f":"C638","v":"功"},null,null,0,0,null,4197,4196,4.1959999999999997,"札",1,null,null,null,null,null,null,null,null,null,null,null,0,0]
[4198,4.1980000000000004,"英",1,null,null,null,null,null,null,null,null,null,null,null,0,0,null,4198,4197,4.1970000000000001,"功",2,null,"工","+","力",null,null,null,"＝","功",null,null,0,0]
[4199,4.1989999999999998,"器",1,null,null,null,null,null,null,null,null,null,null,null,0,0,null,4199,4198,4.1980000000000004,"英",1,null,null,null,null,null,null,null,null,null,null,null,0,0]
[4200,4.2,"牧",1,null,null,null,null,null,null,null,null,null,null,null,0,0,null,4200,4199,4.1989999999999998,"器",1,null,null,null,null,null,null,null,null,null,null,null,0,0]
[{"$f":"B642*1000","v":4201},4.2009999999999996,"冷",1,null,null,null,null,null,null,null,null,null,null,null,{"$f":"IF(B642>N$1,0,D642)","v":0},{"$f":"IF(P642=2,B642,0)","v":0},null,4201,4200,4.2,"牧",1,null,null,null,null,null,null,null,null,null,null,null,0,0]
[4202,4.202,"唱",3,null,"口","+","日","+","日",null,"＝",{"$f":"C643","v":"唱"},null,null,0,0,null,4202,4201,4.2009999999999996,"冷",1,null,null,null,null,null,null,null,null,null,null,null,0,0]
[5001,5.0010000000000003,"任",1,null,null,null,null,null,null,null,null,null,null,null,0,0,null,null,4202,4.202,"唱",3,null,"口","+","日","+","日",null,"＝","唱",null,null,0,0]
[5002,5.0019999999999998,"現",2,null,"王","+","見",null,null,null,"＝",{"$f":"C645","v":"現"},null,null,0,0,null,null,5001,5.0010000000000003,"任",1,null,null,null,null,null,null,null,null,null,null,null,0,0]
[5003,5.0030000000000001,"際",1,null,null,null,null,null,null,null,null,null,null,null,0,0,null,null,5002,5.0019999999999998,"現",2,null,"王","+","見",null,null,null,"＝","現",null,null,0,0]
[5004,5.0039999999999996,"態",2,null,"能","+","心",null,null,null,"＝",{"$f":"C647","v":"態"},null,null,0,0,null,null,5003,5.0030000000000001,"際",1,null,null,null,null,null,null,null,null,null,null,null,0,0]
[5005,5.0049999999999999,"飼",1,null,null,null,null,null,null,null,null,null,null,null,0,0,null,null,5004,5.0039999999999996,"態",2,null,"能","+","心",null,null,null,"＝","態",null,null,0,0]
[5006,5.0060000000000002,"似",2,null,"イ","+","以",null,null,null,"＝",{"$f":"C649","v":"似"},null,null,0,0,null,null,5005,5.0049999999999999,"飼",1,null,null,null,null,null,null,null,null,null,null,null,0,0]
[5007,5.0069999999999997,"格",2,null,"木","+","各",null,null,null,"＝",{"$f":"C650","v":"格"},null,null,0,0,null,null,5006,5.0060000000000002,"似",2,null,"イ","+","以",null,null,null,"＝","似",null,null,0,0]
[5008,5.008,"情",1,null,null,null,null,null,null,null,null,null,null,null,0,0,null,null,5007,5.0069999999999997,"格",2,null,"木","+","各",null,null,null,"＝","格",null,null,0,0]
[5009,5.0090000000000003,"像",2,null,"イ","+","象",null,null,null,"＝",{"$f":"C652","v":"像"},null,null,0,0,null,null,5008,5.008,"情",1,null,null,null,null,null,null,null,null,null,null,null,0,0]
[5010,5.01,"象",1,null,null,null,null,null,null,null,null,null,null,null,0,0,null,null,5009,5.0090000000000003,"像",2,null,"イ","+","象",null,null,null,"＝","像",null,null,0,0]
[5011,5.0110000000000001,"解",1,null,null,null,null,null,null,null,null,null,null,null,0,0,null,null,5010,5.01,"象",1,null,null,null,null,null,null,null,null,null,null,null,0,0]
[5012,5.0119999999999996,"技",1,null,null,null,null,null,null,null,null,null,null,null,0,0,null,null,5011,5.0110000000000001,"解",1,null,null,null,null,null,null,null,null,null,null,null,0,0]
[5013,5.0129999999999999,"術",1,null,null,null,null,null,null,null,null,null,null,null,0,0,null,null,5012,5.0119999999999996,"技",1,null,null,null,null,null,null,null,null,null,null,null,0,0]
[5014,5.0140000000000002,"複",1,null,null,null,null,null,null,null,null,null,null,null,0,0,null,null,5013,5.0129999999999999,"術",1,null,null,null,null,null,null,null,null,null,null,null,0,0]
[5015,5.0149999999999997,"興",1,null,null,null,null,null,null,null,null,null,null,null,0,0,null,null,5014,5.0140000000000002,"複",1,null,null,null,null,null,null,null,null,null,null,null,0,0]
[5016,5.016,"許",2,null,"言","+","午",null,null,null,"＝",{"$f":"C659","v":"許"},null,null,0,0,null,null,5015,5.0149999999999997,"興",1,null,null,null,null,null,null,null,null,null,null,null,0,0]
[5017,5.0170000000000003,"可",1,null,null,null,null,null,null,null,null,null,null,null,0,0,null,null,5016,5.016,"許",2,null,"言","+","午",null,null,null,"＝","許",null,null,0,0]
[5018,5.0179999999999998,"河",1,null,null,null,null,null,null,null,null,null,null,null,0,0,null,null,5017,5.0170000000000003,"可",1,null,null,null,null,null,null,null,null,null,null,null,0,0]
[5019,5.0190000000000001,"銅",2,null,"金","+","同",null,null,null,"＝",{"$f":"C662","v":"銅"},null,null,0,0,null,null,5018,5.0179999999999998,"河",1,null,null,null,null,null,null,null,null,null,null,null,0,0]
[5020,5.0199999999999996,"修",1,null,null,null,null,null,null,null,null,null,null,null,0,0,null,null,5019,5.0190000000000001,"銅",2,null,"金","+","同",null,null,null,"＝","銅",null,null,0,0]
[5021,5.0209999999999999,"復",1,null,null,null,null,null,null,null,null,null,null,null,0,0,null,null,5020,5.0199999999999996,"修",1,null,null,null,null,null,null,null,null,null,null,null,0,0]
[5022,5.0220000000000002,"防",1,null,null,null,null,null,null,null,null,null,null,null,0,0,null,null,5021,5.0209999999999999,"復",1,null,null,null,null,null,null,null,null,null,null,null,0,0]
[5023,5.0229999999999997,"災",1,null,null,null,null,null,null,null,null,null,null,null,0,0,null,null,5022,5.0220000000000002,"防",1,null,null,null,null,null,null,null,null,null,null,null,0,0]
[5024,5.024,"検",1,null,null,null,null,null,null,null,null,null,null,null,0,0,null,null,5023,5.0229999999999997,"災",1,null,null,null,null,null,null,null,null,null,null,null,0,0]
[5025,5.0250000000000004,"移",3,null,"ノ","+","木","+","多",null,"＝",{"$f":"C668","v":"移"},null,null,0,0,null,null,5024,5.024,"検",1,null,null,null,null,null,null,null,null,null,null,null,0,0]
[5026,5.0259999999999998,"賞",1,null,null,null,null,null,null,null,null,null,null,null,0,0,null,null,5025,5.0250000000000004,"移",3,null,"ノ","+","木","+","多",null,"＝","移",null,null,0,0]
[5027,5.0270000000000001,"貿",1,null,null,null,null,null,null,null,null,null,null,null,0,0,null,null,5026,5.0259999999999998,"賞",1,null,null,null,null,null,null,null,null,null,null,null,0,0]
[5028,5.0279999999999996,"易",1,null,null,null,null,null,null,null,null,null,null,null,0,0,null,null,5027,5.0270000000000001,"貿",1,null,null,null,null,null,null,null,null,null,null,null,0,0]
[5029,5.0289999999999999,"潔",1,null,null,null,null,null,null,null,null,null,null,null,0,0,null,null,5028,5.0279999999999996,"易",1,null,null,null,null,null,null,null,null,null,null,null,0,0]
[5030,5.03,"質",1,null,null,null,null,null,null,null,null,null,null,null,0,0,null,null,5029,5.0289999999999999,"潔",1,null,null,null,null,null,null,null,null,null,null,null,0,0]
[5031,5.0309999999999997,"報",1,null,null,null,null,null,null,null,null,null,null,null,0,0,null,null,5030,5.03,"質",1,null,null,null,null,null,null,null,null,null,null,null,0,0]
[5032,5.032,"告",3,null,"ノ","+","土","+","口",null,"＝",{"$f":"C675","v":"告"},null,null,0,0,null,null,5031,5.0309999999999997,"報",1,null,null,null,null,null,null,null,null,null,null,null,0,0]
[5033,5.0330000000000004,"確",1,null,null,null,null,null,null,null,null,null,null,null,0,0,null,null,5032,5.032,"告",3,null,"ノ","+","土","+","口",null,"＝","告",null,null,0,0]
[5034,5.0339999999999998,"属",1,null,null,null,null,null,null,null,null,null,null,null,0,0,null,null,5033,5.0330000000000004,"確",1,null,null,null,null,null,null,null,null,null,null,null,0,0]
[5035,5.0350000000000001,"容",1,null,null,null,null,null,null,null,null,null,null,null,0,0,null,null,5034,5.0339999999999998,"属",1,null,null,null,null,null,null,null,null,null,null,null,0,0]
[5036,5.0359999999999996,"識",1,null,null,null,null,null,null,null,null,null,null,null,0,0,null,null,5035,5.0350000000000001,"容",1,null,null,null,null,null,null,null,null,null,null,null,0,0]
[5037,5.0369999999999999,"準",1,null,null,null,null,null,null,null,null,null,null,null,0,0,null,null,5036,5.0359999999999996,"識",1,null,null,null,null,null,null,null,null,null,null,null,0,0]
[5038,5.0380000000000003,"備",1,null,null,null,null,null,null,null,null,null,null,null,0,0,null,null,5037,5.0369999999999999,"準",1,null,null,null,null,null,null,null,null,null,null,null,0,0]
[5039,5.0389999999999997,"応",1,null,null,null,null,null,null,null,null,null,null,null,0,0,null,null,5038,5.0380000000000003,"備",1,null,null,null,null,null,null,null,null,null,null,null,0,0]
[5040,5.04,"因",1,null,null,null,null,null,null,null,null,null,null,null,0,0,null,null,5039,5.0389999999999997,"応",1,null,null,null,null,null,null,null,null,null,null,null,0,0]
[5041,5.0410000000000004,"述",1,null,null,null,null,null,null,null,null,null,null,null,0,0,null,null,5040,5.04,"因",1,null,null,null,null,null,null,null,null,null,null,null,0,0]
[5042,5.0419999999999998,"在",1,null,null,null,null,null,null,null,null,null,null,null,0,0,null,null,5041,5.0410000000000004,"述",1,null,null,null,null,null,null,null,null,null,null,null,0,0]
[5043,5.0430000000000001,"支",1,null,null,null,null,null,null,null,null,null,null,null,0,0,null,null,5042,5.0419999999999998,"在",1,null,null,null,null,null,null,null,null,null,null,null,0,0]
[5044,5.0439999999999996,"留",1,null,null,null,null,null,null,null,null,null,null,null,0,0,null,null,5043,5.0430000000000001,"支",1,null,null,null,null,null,null,null,null,null,null,null,0,0]
[5045,5.0449999999999999,"適",1,null,null,null,null,null,null,null,null,null,null,null,0,0,null,null,5044,5.0439999999999996,"留",1,null,null,null,null,null,null,null,null,null,null,null,0,0]
[5046,5.0460000000000003,"構",1,null,null,null,null,null,null,null,null,null,null,null,0,0,null,null,5045,5.0449999999999999,"適",1,null,null,null,null,null,null,null,null,null,null,null,0,0]
[5047,5.0469999999999997,"接",1,null,null,null,null,null,null,null,null,null,null,null,0,0,null,null,5046,5.0460000000000003,"構",1,null,null,null,null,null,null,null,null,null,null,null,0,0]
[5048,5.048,"過",1,null,null,null,null,null,null,null,null,null,null,null,0,0,null,null,5047,5.0469999999999997,"接",1,null,null,null,null,null,null,null,null,null,null,null,0,0]
[5049,5.0490000000000004,"幹",1,null,null,null,null,null,null,null,null,null,null,null,0,0,null,null,5048,5.048,"過",1,null,null,null,null,null,null,null,null,null,null,null,0,0]
[5050,5.05,"混",1,null,null,null,null,null,null,null,null,null,null,null,0,0,null,null,5049,5.0490000000000004,"幹",1,null,null,null,null,null,null,null,null,null,null,null,0,0]
[5051,5.0510000000000002,"雑",1,null,null,null,null,null,null,null,null,null,null,null,0,0,null,null,5050,5.05,"混",1,null,null,null,null,null,null,null,null,null,null,null,0,0]
[5052,5.0519999999999996,"略",2,null,"田","+","各",null,null,null,"＝",{"$f":"C695","v":"略"},null,null,0,0,null,null,5051,5.0510000000000002,"雑",1,null,null,null,null,null,null,null,null,null,null,null,0,0]
[5053,5.0529999999999999,"測",1,null,null,null,null,null,null,null,null,null,null,null,0,0,null,null,5052,5.0519999999999996,"略",2,null,"田","+","各",null,null,null,"＝","略",null,null,0,0]
[5054,5.0540000000000003,"禁",3,null,"木","+","示",null,null,null,"＝",{"$f":"C697","v":"禁"},null,null,0,0,null,null,5053,5.0529999999999999,"測",1,null,null,null,null,null,null,null,null,null,null,null,0,0]
[5055,5.0549999999999997,"貸",2,null,"代","+","貝",null,null,null,"＝",{"$f":"C698","v":"貸"},null,null,0,0,null,null,5054,5.0540000000000003,"禁",3,null,"木","+","示",null,null,null,"＝","禁",null,null,0,0]
[5056,5.056,"能",1,null,null,null,null,null,null,null,null,null,null,null,0,0,null,null,5055,5.0549999999999997,"貸",2,null,"代","+","貝",null,null,null,"＝","貸",null,null,0,0]
[5057,5.0570000000000004,"句",1,null,null,null,null,null,null,null,null,null,null,null,0,0,null,null,5056,5.056,"能",1,null,null,null,null,null,null,null,null,null,null,null,0,0]
[5058,5.0579999999999998,"常",1,null,null,null,null,null,null,null,null,null,null,null,0,0,null,null,5057,5.0570000000000004,"句",1,null,null,null,null,null,null,null,null,null,null,null,0,0]
[5059,5.0590000000000002,"桜",3,null,"木","+","ツ","+","女",null,"＝",{"$f":"C702","v":"桜"},null,null,0,0,null,null,5058,5.0579999999999998,"常",1,null,null,null,null,null,null,null,null,null,null,null,0,0]
[5060,5.0599999999999996,"序",1,null,null,null,null,null,null,null,null,null,null,null,0,0,null,null,5059,5.0590000000000002,"桜",3,null,"木","+","ツ","+","女",null,"＝","桜",null,null,0,0]
[5061,5.0609999999999999,"資",2,null,"次","+","貝",null,null,null,"＝",{"$f":"C704","v":"資"},null,null,0,0,null,null,5060,5.0599999999999996,"序",1,null,null,null,null,null,null,null,null,null,null,null,0,0]
[5062,5.0620000000000003,"酸",1,null,null,null,null,null,null,null,null,null,null,null,0,0,null,null,5061,5.0609999999999999,"資",2,null,"次","+","貝",null,null,null,"＝","資",null,null,0,0]
[{"$f":"B706*1000","v":5063},5.0629999999999997,"素",1,null,null,null,null,null,null,null,null,null,null,null,{"$f":"IF(B706>N$1,0,D706)","v":0},{"$f":"IF(P706=2,B706,0)","v":0},null,null,5062,5.0620000000000003,"酸",1,null,null,null,null,null,null,null,null,null,null,null,0,0]
[5064,5.0640000000000001,"査",1,null,null,null,null,null,null,null,null,null,null,null,0,0,null,null,5063,5.0629999999999997,"素",1,null,null,null,null,null,null,null,null,null,null,null,0,0]
[5065,5.0650000000000004,"設",1,null,null,null,null,null,null,null,null,null,null,null,0,0,null,null,5064,5.0640000000000001,"査",1,null,null,null,null,null,null,null,null,null,null,null,0,0]
[5066,5.0659999999999998,"停",1,null,null,null,null,null,null,null,null,null,null,null,0,0,null,null,5065,5.0650000000000004,"設",1,null,null,null,null,null,null,null,null,null,null,null,0,0]
[5067,5.0670000000000002,"総",3,null,"糸","+","公","+","心",null,"＝",{"$f":"C710","v":"総"},null,null,0,0,null,null,5066,5.0659999999999998,"停",1,null,null,null,null,null,null,null,null,null,null,null,0,0]
[5068,5.0679999999999996,"厚",1,null,null,null,null,null,null,null,null,null,null,null,0,0,null,null,5067,5.0670000000000002,"総",3,null,"糸","+","公","+","心",null,"＝","総",null,null,0,0]
[5069,5.069,"武",1,null,null,null,null,null,null,null,null,null,null,null,0,0,null,null,5068,5.0679999999999996,"厚",1,null,null,null,null,null,null,null,null,null,null,null,0,0]
[5070,5.07,"士",1,null,null,null,null,null,null,null,null,null,null,null,0,0,null,null,5069,5.069,"武",1,null,null,null,null,null,null,null,null,null,null,null,0,0]
[5071,5.0709999999999997,"舎",1,null,null,null,null,null,null,null,null,null,null,null,0,0,null,null,5070,5.07,"士",1,null,null,null,null,null,null,null,null,null,null,null,0,0]
[5072,5.0720000000000001,"往",1,null,null,null,null,null,null,null,null,null,null,null,0,0,null,null,5071,5.0709999999999997,"舎",1,null,null,null,null,null,null,null,null,null,null,null,0,0]
[5073,5.0730000000000004,"肥",1,null,null,null,null,null,null,null,null,null,null,null,0,0,null,null,5072,5.0720000000000001,"往",1,null,null,null,null,null,null,null,null,null,null,null,0,0]
[5074,5.0739999999999998,"演",1,null,null,null,null,null,null,null,null,null,null,null,0,0,null,null,5073,5.0730000000000004,"肥",1,null,null,null,null,null,null,null,null,null,null,null,0,0]
[5075,5.0750000000000002,"刊",1,null,null,null,null,null,null,null,null,null,null,null,0,0,null,null,5074,5.0739999999999998,"演",1,null,null,null,null,null,null,null,null,null,null,null,0,0]
[5076,5.0759999999999996,"暴",1,null,null,null,null,null,null,null,null,null,null,null,0,0,null,null,5075,5.0750000000000002,"刊",1,null,null,null,null,null,null,null,null,null,null,null,0,0]
[5077,5.077,"績",2,null,"糸","+","責","+",null,null,"＝",{"$f":"C720","v":"績"},null,null,0,0,null,null,5076,5.0759999999999996,"暴",1,null,null,null,null,null,null,null,null,null,null,null,0,0]
[5078,5.0780000000000003,"鉱",2,null,"金","+","広","+",null,null,"＝",{"$f":"C721","v":"鉱"},null,null,0,0,null,null,5077,5.077,"績",2,null,"糸","+","責","+",null,null,"＝","績",null,null,0,0]
[5079,5.0789999999999997,"製",2,null,"制","+","衣","+",null,null,"＝",{"$f":"C722","v":"製"},null,null,0,0,null,null,5078,5.0780000000000003,"鉱",2,null,"金","+","広","+",null,null,"＝","鉱",null,null,0,0]
[5080,5.08,"航",1,null,null,null,null,null,null,null,null,null,null,null,0,0,null,null,5079,5.0789999999999997,"製",2,null,"制","+","衣","+",null,null,"＝","製",null,null,0,0]
[5081,5.0810000000000004,"非",1,null,null,null,null,null,null,null,null,null,null,null,0,0,null,null,5080,5.08,"航",1,null,null,null,null,null,null,null,null,null,null,null,0,0]
[5082,5.0819999999999999,"編",1,null,null,null,null,null,null,null,null,null,null,null,0,0,null,null,5081,5.0810000000000004,"非",1,null,null,null,null,null,null,null,null,null,null,null,0,0]
[5083,5.0830000000000002,"絶",2,null,"糸","+","色","+",null,null,"＝",{"$f":"C726","v":"絶"},null,null,0,0,null,null,5082,5.0819999999999999,"編",1,null,null,null,null,null,null,null,null,null,null,null,0,0]
[5084,5.0839999999999996,"張",2,null,"弓","+","長","+",null,null,"＝",{"$f":"C727","v":"張"},null,null,0,0,null,null,5083,5.0830000000000002,"絶",2,null,"糸","+","色","+",null,null,"＝","絶",null,null,0,0]
[5085,5.085,"破",2,null,"石","+","皮","+",null,null,"＝",{"$f":"C728","v":"破"},null,null,0,0,null,null,5084,5.0839999999999996,"張",2,null,"弓","+","長","+",null,null,"＝","張",null,null,0,0]
[5086,5.0860000000000003,"得",1,null,null,null,null,null,null,null,null,null,null,null,0,0,null,null,5085,5.085,"破",2,null,"石","+","皮","+",null,null,"＝","破",null,null,0,0]
[5087,5.0869999999999997,"居",1,null,null,null,null,null,null,null,null,null,null,null,0,0,null,null,5086,5.0860000000000003,"得",1,null,null,null,null,null,null,null,null,null,null,null,0,0]
[5088,5.0880000000000001,"弁",1,null,null,null,null,null,null,null,null,null,null,null,0,0,null,null,5087,5.0869999999999997,"居",1,null,null,null,null,null,null,null,null,null,null,null,0,0]
[5089,5.0890000000000004,"政",1,null,null,null,null,null,null,null,null,null,null,null,0,0,null,null,5088,5.0880000000000001,"弁",1,null,null,null,null,null,null,null,null,null,null,null,0,0]
[5090,5.09,"経",1,null,null,null,null,null,null,null,null,null,null,null,0,0,null,null,5089,5.0890000000000004,"政",1,null,null,null,null,null,null,null,null,null,null,null,0,0]
[5091,5.0910000000000002,"示",2,null,"二","+","小",null,null,null,"＝",{"$f":"C734","v":"示"},null,null,0,0,null,null,5090,5.09,"経",1,null,null,null,null,null,null,null,null,null,null,null,0,0]
[5092,5.0919999999999996,"逆",1,null,null,null,null,null,null,null,null,null,null,null,0,0,null,null,5091,5.0910000000000002,"示",2,null,"二","+","小",null,null,null,"＝","示",null,null,0,0]
[5093,5.093,"比",1,null,null,null,null,null,null,null,null,null,null,null,0,0,null,null,5092,5.0919999999999996,"逆",1,null,null,null,null,null,null,null,null,null,null,null,0,0]
[5094,5.0940000000000003,"囲",1,null,null,null,null,null,null,null,null,null,null,null,0,0,null,null,5093,5.093,"比",1,null,null,null,null,null,null,null,null,null,null,null,0,0]
[5095,5.0949999999999998,"勢",1,null,null,null,null,null,null,null,null,null,null,null,0,0,null,null,5094,5.0940000000000003,"囲",1,null,null,null,null,null,null,null,null,null,null,null,0,0]
[5096,5.0960000000000001,"職",1,null,null,null,null,null,null,null,null,null,null,null,0,0,null,null,5095,5.0949999999999998,"勢",1,null,null,null,null,null,null,null,null,null,null,null,0,0]
[5097,5.0970000000000004,"歴",1,null,null,null,null,null,null,null,null,null,null,null,0,0,null,null,5096,5.0960000000000001,"職",1,null,null,null,null,null,null,null,null,null,null,null,0,0]
[5098,5.0979999999999999,"史",1,null,null,null,null,null,null,null,null,null,null,null,0,0,null,null,5097,5.0970000000000004,"歴",1,null,null,null,null,null,null,null,null,null,null,null,0,0]
[5099,5.0990000000000002,"招",1,null,null,null,null,null,null,null,null,null,null,null,0,0,null,null,5098,5.0979999999999999,"史",1,null,null,null,null,null,null,null,null,null,null,null,0,0]
[5100,5.0999999999999996,"迷",1,null,null,null,null,null,null,null,null,null,null,null,0,0,null,null,5099,5.0990000000000002,"招",1,null,null,null,null,null,null,null,null,null,null,null,0,0]
[5101,5.101,"夢",1,null,null,null,null,null,null,null,null,null,null,null,0,0,null,null,5100,5.0999999999999996,"迷",1,null,null,null,null,null,null,null,null,null,null,null,0,0]
[5102,5.1020000000000003,"独",1,null,null,null,null,null,null,null,null,null,null,null,0,0,null,null,5101,5.101,"夢",1,null,null,null,null,null,null,null,null,null,null,null,0,0]
[5103,5.1029999999999998,"個",2,null,"イ","+","固",null,null,null,"＝",{"$f":"C746","v":"個"},null,null,0,0,null,null,5102,5.1020000000000003,"独",1,null,null,null,null,null,null,null,null,null,null,null,0,0]
[5104,5.1040000000000001,"提",1,null,null,null,null,null,null,null,null,null,null,null,0,0,null,null,5103,5.1029999999999998,"個",2,null,"イ","+","固",null,null,null,"＝","個",null,null,0,0]
[5105,5.1050000000000004,"寄",1,null,null,null,null,null,null,null,null,null,null,null,0,0,null,null,5104,5.1040000000000001,"提",1,null,null,null,null,null,null,null,null,null,null,null,0,0]
[5106,5.1059999999999999,"余",1,null,null,null,null,null,null,null,null,null,null,null,0,0,null,null,5105,5.1050000000000004,"寄",1,null,null,null,null,null,null,null,null,null,null,null,0,0]
[5107,5.1070000000000002,"仏",2,null,"イ","+","ム",null,null,null,"＝",{"$f":"C750","v":"仏"},null,null,0,0,null,null,5106,5.1059999999999999,"余",1,null,null,null,null,null,null,null,null,null,null,null,0,0]
[5108,5.1079999999999997,"眼",1,null,null,null,null,null,null,null,null,null,null,null,0,0,null,null,5107,5.1070000000000002,"仏",2,null,"イ","+","ム",null,null,null,"＝","仏",null,null,0,0]
[5109,5.109,"財",2,null,"貝","+","才",null,null,null,"＝",{"$f":"C752","v":"財"},null,null,0,0,null,null,5108,5.1079999999999997,"眼",1,null,null,null,null,null,null,null,null,null,null,null,0,0]
[5110,5.1100000000000003,"祖",1,null,null,null,null,null,null,null,null,null,null,null,0,0,null,null,5109,5.109,"財",2,null,"貝","+","才",null,null,null,"＝","財",null,null,0,0]
[5111,5.1109999999999998,"謝",4,null,"言","+","射",null,null,null,"＝",{"$f":"C754","v":"謝"},null,null,0,0,null,null,5110,5.1100000000000003,"祖",1,null,null,null,null,null,null,null,null,null,null,null,0,0]
[5112,5.1120000000000001,"罪",1,null,null,null,null,null,null,null,null,null,null,null,0,0,null,null,5111,5.1109999999999998,"謝",4,null,"言","+","射",null,null,null,"＝","謝",null,null,0,0]
[5113,5.1130000000000004,"志",2,null,"士","+","心",null,null,null,"＝",{"$f":"C756","v":"志"},null,null,0,0,null,null,5112,5.1120000000000001,"罪",1,null,null,null,null,null,null,null,null,null,null,null,0,0]
[5114,5.1139999999999999,"永",1,null,null,null,null,null,null,null,null,null,null,null,0,0,null,null,5113,5.1130000000000004,"志",2,null,"士","+","心",null,null,null,"＝","志",null,null,0,0]
[5115,5.1150000000000002,"久",1,null,null,null,null,null,null,null,null,null,null,null,0,0,null,null,5114,5.1139999999999999,"永",1,null,null,null,null,null,null,null,null,null,null,null,0,0]
[5116,5.1159999999999997,"毒",1,null,null,null,null,null,null,null,null,null,null,null,0,0,null,null,5115,5.1150000000000002,"久",1,null,null,null,null,null,null,null,null,null,null,null,0,0]
[5117,5.117,"営",1,null,null,null,null,null,null,null,null,null,null,null,0,0,null,null,5116,5.1159999999999997,"毒",1,null,null,null,null,null,null,null,null,null,null,null,0,0]
[5118,5.1180000000000003,"妻",1,null,null,null,null,null,null,null,null,null,null,null,0,0,null,null,5117,5.117,"営",1,null,null,null,null,null,null,null,null,null,null,null,0,0]
[5119,5.1189999999999998,"精",2,null,"米","+","青",null,null,null,"＝",{"$f":"C762","v":"精"},null,null,0,0,null,null,5118,5.1180000000000003,"妻",1,null,null,null,null,null,null,null,null,null,null,null,0,0]
[5120,5.12,"保",3,null,"イ","+","口","+","木",null,"＝",{"$f":"C763","v":"保"},null,null,0,0,null,null,5119,5.1189999999999998,"精",2,null,"米","+","青",null,null,null,"＝","精",null,null,0,0]
[5121,5.1210000000000004,"状",1,null,null,null,null,null,null,null,null,null,null,null,0,0,null,null,5120,5.12,"保",3,null,"イ","+","口","+","木",null,"＝","保",null,null,0,0]
[5122,5.1219999999999999,"条",1,null,null,null,null,null,null,null,null,null,null,null,0,0,null,null,5121,5.1210000000000004,"状",1,null,null,null,null,null,null,null,null,null,null,null,0,0]
[5123,5.1230000000000002,"件",2,null,"イ","+","牛",null,null,null,"＝",{"$f":"C766","v":"件"},null,null,0,0,null,null,5122,5.1219999999999999,"条",1,null,null,null,null,null,null,null,null,null,null,null,0,0]
[5124,5.1239999999999997,"程",1,null,null,null,null,null,null,null,null,null,null,null,0,0,null,null,5123,5.1230000000000002,"件",2,null,"イ","+","牛",null,null,null,"＝","件",null,null,0,0]
[5125,5.125,"評",2,null,"イ","+","平",null,null,null,"＝",{"$f":"C768","v":"評"},null,null,0,0,null,null,5124,5.1239999999999997,"程",1,null,null,null,null,null,null,null,null,null,null,null,0,0]
[5126,5.1260000000000003,"価",1,null,null,null,null,null,null,null,null,null,null,null,0,0,null,null,5125,5.125,"評",2,null,"イ","+","平",null,null,null,"＝","評",null,null,0,0]
[{"$f":"B770*1000","v":5127},5.1269999999999998,"判",1,null,null,null,null,null,null,null,null,null,null,null,{"$f":"IF(B770>N$1,0,D770)","v":0},{"$f":"IF(P770=2,B770,0)","v":0},null,null,5126,5.1260000000000003,"価",1,null,null,null,null,null,null,null,null,null,null,null,0,0]
[5128,5.1280000000000001,"断",1,null,null,null,null,null,null,null,null,null,null,null,0,0,null,null,5127,5.1269999999999998,"判",1,null,null,null,null,null,null,null,null,null,null,null,0,0]
[5129,5.1289999999999996,"賛",3,null,"夫","+","夫","+","平",null,"＝",{"$f":"C772","v":"賛"},null,null,0,0,null,null,5128,5.1280000000000001,"断",1,null,null,null,null,null,null,null,null,null,null,null,0,0]
[5130,5.13,"効",2,null,"交","+","力",null,null,null,"＝",{"$f":"C773","v":"効"},null,null,0,0,null,null,5129,5.1289999999999996,"賛",3,null,"夫","+","夫","+","平",null,"＝","賛",null,null,0,0]
[5131,5.1310000000000002,"統",1,null,null,null,null,null,null,null,null,null,null,null,0,0,null,null,5130,5.13,"効",2,null,"交","+","力",null,null,null,"＝","効",null,null,0,0]
[5132,5.1319999999999997,"境",1,null,null,null,null,null,null,null,null,null,null,null,0,0,null,null,5131,5.1310000000000002,"統",1,null,null,null,null,null,null,null,null,null,null,null,0,0]
[5133,5.133,"布",1,null,null,null,null,null,null,null,null,null,null,null,0,0,null,null,5132,5.1319999999999997,"境",1,null,null,null,null,null,null,null,null,null,null,null,0,0]
[5134,5.1340000000000003,"減",1,null,null,null,null,null,null,null,null,null,null,null,0,0,null,null,5133,5.133,"布",1,null,null,null,null,null,null,null,null,null,null,null,0,0]
[5135,5.1349999999999998,"護",1,null,null,null,null,null,null,null,null,null,null,null,0,0,null,null,5134,5.1340000000000003,"減",1,null,null,null,null,null,null,null,null,null,null,null,0,0]
[5136,5.1360000000000001,"再",1,null,null,null,null,null,null,null,null,null,null,null,0,0,null,null,5135,5.1349999999999998,"護",1,null,null,null,null,null,null,null,null,null,null,null,0,0]
[5137,5.1370000000000005,"増",1,null,null,null,null,null,null,null,null,null,null,null,0,0,null,null,5136,5.1360000000000001,"再",1,null,null,null,null,null,null,null,null,null,null,null,0,0]
[5138,5.1379999999999999,"証",2,null,"言","+","正",null,null,null,"＝",{"$f":"C781","v":"証"},null,null,0,0,null,null,5137,5.1370000000000005,"増",1,null,null,null,null,null,null,null,null,null,null,null,0,0]
[5139,5.1390000000000002,"限",1,null,null,null,null,null,null,null,null,null,null,null,0,0,null,null,5138,5.1379999999999999,"証",2,null,"言","+","正",null,null,null,"＝","証",null,null,0,0]
[5140,5.14,"責",1,null,null,null,null,null,null,null,null,null,null,null,0,0,null,null,5139,5.1390000000000002,"限",1,null,null,null,null,null,null,null,null,null,null,null,0,0]
[5141,5.141,"均",1,null,null,null,null,null,null,null,null,null,null,null,0,0,null,null,5140,5.14,"責",1,null,null,null,null,null,null,null,null,null,null,null,0,0]
[5142,5.1420000000000003,"授",1,null,null,null,null,null,null,null,null,null,null,null,0,0,null,null,5141,5.141,"均",1,null,null,null,null,null,null,null,null,null,null,null,0,0]
[5143,5.1429999999999998,"紀",1,null,null,null,null,null,null,null,null,null,null,null,0,0,null,null,5142,5.1420000000000003,"授",1,null,null,null,null,null,null,null,null,null,null,null,0,0]
[5144,5.1440000000000001,"脈",1,null,null,null,null,null,null,null,null,null,null,null,0,0,null,null,5143,5.1429999999999998,"紀",1,null,null,null,null,null,null,null,null,null,null,null,0,0]
[5145,5.1449999999999996,"織",1,null,null,null,null,null,null,null,null,null,null,null,0,0,null,null,5144,5.1440000000000001,"脈",1,null,null,null,null,null,null,null,null,null,null,null,0,0]
[5146,5.1459999999999999,"築",1,null,null,null,null,null,null,null,null,null,null,null,0,0,null,null,5145,5.1449999999999996,"織",1,null,null,null,null,null,null,null,null,null,null,null,0,0]
[5147,5.1470000000000002,"圧",1,null,null,null,null,null,null,null,null,null,null,null,0,0,null,null,5146,5.1459999999999999,"築",1,null,null,null,null,null,null,null,null,null,null,null,0,0]
[5148,5.1479999999999997,"仮",2,null,"イ","+","反",null,null,null,"＝",{"$f":"C791","v":"仮"},null,null,0,0,null,null,5147,5.1470000000000002,"圧",1,null,null,null,null,null,null,null,null,null,null,null,0,0]
[5149,5.149,"基",1,null,null,null,null,null,null,null,null,null,null,null,0,0,null,null,5148,5.1479999999999997,"仮",2,null,"イ","+","反",null,null,null,"＝","仮",null,null,0,0]
[5150,5.15,"額",1,null,null,null,null,null,null,null,null,null,null,null,0,0,null,null,5149,5.149,"基",1,null,null,null,null,null,null,null,null,null,null,null,0,0]
[5151,5.1509999999999998,"故",1,null,null,null,null,null,null,null,null,null,null,null,0,0,null,null,5150,5.15,"額",1,null,null,null,null,null,null,null,null,null,null,null,0,0]
[5152,5.1520000000000001,"旧",1,null,null,null,null,null,null,null,null,null,null,null,0,0,null,null,5151,5.1509999999999998,"故",1,null,null,null,null,null,null,null,null,null,null,null,0,0]
[5153,5.1529999999999996,"規",2,null,"夫","+","見",null,null,null,"＝",{"$f":"C796","v":"規"},null,null,0,0,null,null,5152,5.1520000000000001,"旧",1,null,null,null,null,null,null,null,null,null,null,null,0,0]
[5154,5.1539999999999999,"則",1,null,null,null,null,null,null,null,null,null,null,null,0,0,null,null,5153,5.1529999999999996,"規",2,null,"夫","+","見",null,null,null,"＝","規",null,null,0,0]
[5155,5.1550000000000002,"貯",1,null,null,null,null,null,null,null,null,null,null,null,0,0,null,null,5154,5.1539999999999999,"則",1,null,null,null,null,null,null,null,null,null,null,null,0,0]
[5156,5.1559999999999997,"液",1,null,null,null,null,null,null,null,null,null,null,null,0,0,null,null,5155,5.1550000000000002,"貯",1,null,null,null,null,null,null,null,null,null,null,null,0,0]
[5157,5.157,"婦",1,null,null,null,null,null,null,null,null,null,null,null,0,0,null,null,5156,5.1559999999999997,"液",1,null,null,null,null,null,null,null,null,null,null,null,0,0]
[5158,5.1580000000000004,"救",1,null,null,null,null,null,null,null,null,null,null,null,0,0,null,null,5157,5.157,"婦",1,null,null,null,null,null,null,null,null,null,null,null,0,0]
[5159,5.1589999999999998,"墓",1,null,null,null,null,null,null,null,null,null,null,null,0,0,null,null,5158,5.1580000000000004,"救",1,null,null,null,null,null,null,null,null,null,null,null,0,0]
[5160,5.16,"義",1,null,null,null,null,null,null,null,null,null,null,null,0,0,null,null,5159,5.1589999999999998,"墓",1,null,null,null,null,null,null,null,null,null,null,null,0,0]
[5161,5.1609999999999996,"殺",1,null,null,null,null,null,null,null,null,null,null,null,0,0,null,null,5160,5.16,"義",1,null,null,null,null,null,null,null,null,null,null,null,0,0]
[5162,5.1619999999999999,"貧",2,null,"分","+","貝",null,null,null,"＝",{"$f":"C805","v":"貧"},null,null,0,0,null,null,5161,5.1609999999999996,"殺",1,null,null,null,null,null,null,null,null,null,null,null,0,0]
[5163,5.1630000000000003,"版",1,null,null,null,null,null,null,null,null,null,null,null,0,0,null,null,5162,5.1619999999999999,"貧",2,null,"分","+","貝",null,null,null,"＝","貧",null,null,0,0]
[5164,5.1639999999999997,"犯",1,null,null,null,null,null,null,null,null,null,null,null,0,0,null,null,5163,5.1630000000000003,"版",1,null,null,null,null,null,null,null,null,null,null,null,0,0]
[5165,5.165,"講",1,null,null,null,null,null,null,null,null,null,null,null,0,0,null,null,5164,5.1639999999999997,"犯",1,null,null,null,null,null,null,null,null,null,null,null,0,0]
[5166,5.1660000000000004,"師",1,null,null,null,null,null,null,null,null,null,null,null,0,0,null,null,5165,5.165,"講",1,null,null,null,null,null,null,null,null,null,null,null,0,0]
[5167,5.1669999999999998,"慣",1,null,null,null,null,null,null,null,null,null,null,null,0,0,null,null,5166,5.1660000000000004,"師",1,null,null,null,null,null,null,null,null,null,null,null,0,0]
[5168,5.1680000000000001,"性",1,null,null,null,null,null,null,null,null,null,null,null,0,0,null,null,5167,5.1669999999999998,"慣",1,null,null,null,null,null,null,null,null,null,null,null,0,0]
[5169,5.1689999999999996,"益",1,null,null,null,null,null,null,null,null,null,null,null,0,0,null,null,5168,5.1680000000000001,"性",1,null,null,null,null,null,null,null,null,null,null,null,0,0]
[5170,5.17,"制",1,null,null,null,null,null,null,null,null,null,null,null,0,0,null,null,5169,5.1689999999999996,"益",1,null,null,null,null,null,null,null,null,null,null,null,0,0]
[5171,5.1710000000000003,"造",1,null,null,null,null,null,null,null,null,null,null,null,0,0,null,null,5170,5.17,"制",1,null,null,null,null,null,null,null,null,null,null,null,0,0]
[5172,5.1719999999999997,"型",1,null,null,null,null,null,null,null,null,null,null,null,0,0,null,null,5171,5.1710000000000003,"造",1,null,null,null,null,null,null,null,null,null,null,null,0,0]
[5173,5.173,"綿",1,null,null,null,null,null,null,null,null,null,null,null,0,0,null,null,5172,5.1719999999999997,"型",1,null,null,null,null,null,null,null,null,null,null,null,0,0]
[5174,5.1740000000000004,"枝",1,null,null,null,null,null,null,null,null,null,null,null,0,0,null,null,5173,5.173,"綿",1,null,null,null,null,null,null,null,null,null,null,null,0,0]
[5175,5.1749999999999998,"費",1,null,null,null,null,null,null,null,null,null,null,null,0,0,null,null,5174,5.1740000000000004,"枝",1,null,null,null,null,null,null,null,null,null,null,null,0,0]
[5176,5.1760000000000002,"税",1,null,null,null,null,null,null,null,null,null,null,null,0,0,null,null,5175,5.1749999999999998,"費",1,null,null,null,null,null,null,null,null,null,null,null,0,0]
[5177,5.1769999999999996,"輸",1,null,null,null,null,null,null,null,null,null,null,null,0,0,null,null,5176,5.1760000000000002,"税",1,null,null,null,null,null,null,null,null,null,null,null,0,0]
[5178,5.1779999999999999,"衛",1,null,null,null,null,null,null,null,null,null,null,null,0,0,null,null,5177,5.1769999999999996,"輸",1,null,null,null,null,null,null,null,null,null,null,null,0,0]
[5179,5.1790000000000003,"団",1,null,null,null,null,null,null,null,null,null,null,null,0,0,null,null,5178,5.1779999999999999,"衛",1,null,null,null,null,null,null,null,null,null,null,null,0,0]
[5180,5.18,"耕",1,null,null,null,null,null,null,null,null,null,null,null,0,0,null,null,5179,5.1790000000000003,"団",1,null,null,null,null,null,null,null,null,null,null,null,0,0]
[5181,5.181,"損",1,null,null,null,null,null,null,null,null,null,null,null,0,0,null,null,5180,5.18,"耕",1,null,null,null,null,null,null,null,null,null,null,null,0,0]
[5182,5.1820000000000004,"険",1,null,null,null,null,null,null,null,null,null,null,null,0,0,null,null,5181,5.181,"損",1,null,null,null,null,null,null,null,null,null,null,null,0,0]
[5183,5.1829999999999998,"務",1,null,null,null,null,null,null,null,null,null,null,null,0,0,null,null,5182,5.1820000000000004,"険",1,null,null,null,null,null,null,null,null,null,null,null,0,0]
[5184,5.1840000000000002,"粉",2,null,"米","+","分",null,null,null,"＝",{"$f":"C827","v":"粉"},null,null,0,0,null,null,5183,5.1829999999999998,"務",1,null,null,null,null,null,null,null,null,null,null,null,0,0]
[5185,5.1849999999999996,"採",1,null,null,null,null,null,null,null,null,null,null,null,0,0,null,null,5184,5.1840000000000002,"粉",2,null,"米","+","分",null,null,null,"＝","粉",null,null,0,0]
[5186,5.1859999999999999,"豊",2,null,"曲","+","豊",null,null,null,"＝",{"$f":"C829","v":"豊"},null,null,0,0,null,null,5185,5.1849999999999996,"採",1,null,null,null,null,null,null,null,null,null,null,null,0,0]
[5187,5.1870000000000003,"快",1,null,null,null,null,null,null,null,null,null,null,null,0,0,null,null,5186,5.1859999999999999,"豊",2,null,"曲","+","豊",null,null,null,"＝","豊",null,null,0,0]
[5188,5.1879999999999997,"燃",1,null,null,null,null,null,null,null,null,null,null,null,0,0,null,null,5187,5.1870000000000003,"快",1,null,null,null,null,null,null,null,null,null,null,null,0,0]
[5189,5.1890000000000001,"率",1,null,null,null,null,null,null,null,null,null,null,null,0,0,null,null,5188,5.1879999999999997,"燃",1,null,null,null,null,null,null,null,null,null,null,null,0,0]
[5190,5.19,"領",1,null,null,null,null,null,null,null,null,null,null,null,0,0,null,null,5189,5.1890000000000001,"率",1,null,null,null,null,null,null,null,null,null,null,null,0,0]
[{"$f":"B834*1000","v":5191},5.1909999999999998,"喜",1,null,null,null,null,null,null,null,null,null,null,null,{"$f":"IF(B834>N$1,0,D834)","v":0},{"$f":"IF(P834=2,B834,0)","v":0},null,null,5190,5.19,"領",1,null,null,null,null,null,null,null,null,null,null,null,0,0]
[5192,5.1920000000000002,"導",2,null,"道","+","寸",null,null,null,"＝",{"$f":"C835","v":"導"},null,null,0,0,null,null,5191,5.1909999999999998,"喜",1,null,null,null,null,null,null,null,null,null,null,null,0,0]
[5193,5.1929999999999996,"堂",1,null,null,null,null,null,null,null,null,null,null,null,0,0,null,null,5192,5.1920000000000002,"導",2,null,"道","+","寸",null,null,null,"＝","導",null,null,0,0]
[6001,6.0010000000000003,"視",2,null,"　ネ","+","見",null,null,null,"＝",{"$f":"C837","v":"視"},null,null,0,0,null,null,5193,5.1929999999999996,"堂",1,null,null,null,null,null,null,null,null,null,null,null,0,0]
[6002,6.0019999999999998,"穴",1,null,null,null,null,null,null,null,null,null,null,null,0,0,null,null,6001,6.0010000000000003,"視",2,null,"　ネ","+","見",null,null,null,"＝","視",null,null,0,0]
[6003,6.0030000000000001,"砂",2,null,"石","+","少",null,null,null,"＝",{"$f":"C839","v":"砂"},null,null,0,0,null,null,6002,6.0019999999999998,"穴",1,null,null,null,null,null,null,null,null,null,null,null,0,0]
[6004,6.0039999999999996,"腹",1,null,null,null,null,null,null,null,null,null,null,null,0,0,null,null,6003,6.0030000000000001,"砂",2,null,"石","+","少",null,null,null,"＝","砂",null,null,0,0]
[6005,6.0049999999999999,"段",1,null,null,null,null,null,null,null,null,null,null,null,0,0,null,null,6004,6.0039999999999996,"腹",1,null,null,null,null,null,null,null,null,null,null,null,0,0]
[6006,6.0060000000000002,"並",1,null,null,null,null,null,null,null,null,null,null,null,0,0,null,null,6005,6.0049999999999999,"段",1,null,null,null,null,null,null,null,null,null,null,null,0,0]
[6007,6.0069999999999997,"降",1,null,null,null,null,null,null,null,null,null,null,null,0,0,null,null,6006,6.0060000000000002,"並",1,null,null,null,null,null,null,null,null,null,null,null,0,0]
[6008,6.008,"認",4,null,"言","+","忍",null,null,null,"＝",{"$f":"C844","v":"認"},null,null,0,0,null,null,6007,6.0069999999999997,"降",1,null,null,null,null,null,null,null,null,null,null,null,0,0]
[6009,6.0090000000000003,"洗",1,null,null,null,null,null,null,null,null,null,null,null,0,0,null,null,6008,6.008,"認",4,null,"言","+","忍",null,null,null,"＝","認",null,null,0,0]
[6010,6.01,"異",2,null,"田","+","共",null,null,null,"＝",{"$f":"C846","v":"異"},null,null,0,0,null,null,6009,6.0090000000000003,"洗",1,null,null,null,null,null,null,null,null,null,null,null,0,0]
[6011,6.0110000000000001,"純",1,null,null,null,null,null,null,null,null,null,null,null,0,0,null,null,6010,6.01,"異",2,null,"田","+","共",null,null,null,"＝","異",null,null,0,0]
[6012,6.0119999999999996,"射",2,null,"身","+","寸",null,null,null,"＝",{"$f":"C848","v":"射"},null,null,0,0,null,null,6011,6.0110000000000001,"純",1,null,null,null,null,null,null,null,null,null,null,null,0,0]
[6013,6.0129999999999999,"背",2,null,"北","+","月",null,null,null,"＝",{"$f":"C849","v":"背"},null,null,0,0,null,null,6012,6.0119999999999996,"射",2,null,"身","+","寸",null,null,null,"＝","射",null,null,0,0]
[6014,6.0140000000000002,"舌",2,null,"ノ","+","古",null,null,null,"＝",{"$f":"C850","v":"舌"},null,null,0,0,null,null,6013,6.0129999999999999,"背",2,null,"北","+","月",null,null,null,"＝","背",null,null,0,0]
[6015,6.0149999999999997,"乱",1,null,null,null,null,null,null,null,null,null,null,null,0,0,null,null,6014,6.0140000000000002,"舌",2,null,"ノ","+","古",null,null,null,"＝","舌",null,null,0,0]
[6016,6.016,"域",1,null,null,null,null,null,null,null,null,null,null,null,0,0,null,null,6015,6.0149999999999997,"乱",1,null,null,null,null,null,null,null,null,null,null,null,0,0]
[6017,6.0170000000000003,"蔵",1,null,null,null,null,null,null,null,null,null,null,null,0,0,null,null,6016,6.016,"域",1,null,null,null,null,null,null,null,null,null,null,null,0,0]
[6018,6.0179999999999998,"展",1,null,null,null,null,null,null,null,null,null,null,null,0,0,null,null,6017,6.0170000000000003,"蔵",1,null,null,null,null,null,null,null,null,null,null,null,0,0]
[6019,6.0190000000000001,"訪",2,null,"言","+","方",null,null,null,"＝",{"$f":"C855","v":"訪"},null,null,0,0,null,null,6018,6.0179999999999998,"展",1,null,null,null,null,null,null,null,null,null,null,null,0,0]
[6020,6.02,"我",1,null,null,null,null,null,null,null,null,null,null,null,0,0,null,null,6019,6.0190000000000001,"訪",2,null,"言","+","方",null,null,null,"＝","訪",null,null,0,0]
[6021,6.0209999999999999,"承",1,null,null,null,null,null,null,null,null,null,null,null,0,0,null,null,6020,6.02,"我",1,null,null,null,null,null,null,null,null,null,null,null,0,0]
[6022,6.0220000000000002,"蒸",1,null,null,null,null,null,null,null,null,null,null,null,0,0,null,null,6021,6.0209999999999999,"承",1,null,null,null,null,null,null,null,null,null,null,null,0,0]
[6022,6.0220000000000002,"裁",1,null,null,null,null,null,null,null,null,null,null,null,0,0,null,null,6022,6.0220000000000002,"蒸",1,null,null,null,null,null,null,null,null,null,null,null,0,0]
[6023,6.0229999999999997,"処",1,null,null,null,null,null,null,null,null,null,null,null,0,0,null,null,6022,6.0220000000000002,"裁",1,null,null,null,null,null,null,null,null,null,null,null,0,0]
[6023,6.0229999999999997,"律",1,null,null,null,null,null,null,null,null,null,null,null,0,0,null,null,6023,6.0229999999999997,"処",1,null,null,null,null,null,null,null,null,null,null,null,0,0]
[6024,6.024,"就",1,null,null,null,null,null,null,null,null,null,null,null,0,0,null,null,6023,6.0229999999999997,"律",1,null,null,null,null,null,null,null,null,null,null,null,0,0]
[6025,6.0250000000000004,"干",1,null,null,null,null,null,null,null,null,null,null,null,0,0,null,null,6024,6.024,"就",1,null,null,null,null,null,null,null,null,null,null,null,0,0]
[6026,6.0259999999999998,"層",1,null,null,null,null,null,null,null,null,null,null,null,0,0,null,null,6025,6.0250000000000004,"干",1,null,null,null,null,null,null,null,null,null,null,null,0,0]
[6027,6.0270000000000001,"恩",2,null,"因","+","心",null,null,null,"＝",{"$f":"C865","v":"恩"},null,null,0,0,null,null,6026,6.0259999999999998,"層",1,null,null,null,null,null,null,null,null,null,null,null,0,0]
[6030,6.03,"脳",1,null,null,null,null,null,null,null,null,null,null,null,0,0,null,null,6027,6.0270000000000001,"恩",2,null,"因","+","心",null,null,null,"＝","恩",null,null,0,0]
[6031,6.0309999999999997,"臓",2,null,"月","+","蔵",null,null,null,"＝",{"$f":"C867","v":"臓"},null,null,0,0,null,null,6030,6.03,"脳",1,null,null,null,null,null,null,null,null,null,null,null,0,0]
[6032,6.032,"肺",2,null,"月","+","市",null,null,null,"＝",{"$f":"C868","v":"肺"},null,null,0,0,null,null,6031,6.0309999999999997,"臓",2,null,"月","+","蔵",null,null,null,"＝","臓",null,null,0,0]
[6033,6.0330000000000004,"胃",2,null,"田","+","月",null,null,null,"＝",{"$f":"C869","v":"胃"},null,null,0,0,null,null,6032,6.032,"肺",2,null,"月","+","市",null,null,null,"＝","肺",null,null,0,0]
[6034,6.0339999999999998,"腸",1,null,null,null,null,null,null,null,null,null,null,null,0,0,null,null,6033,6.0330000000000004,"胃",2,null,"田","+","月",null,null,null,"＝","胃",null,null,0,0]
[6035,6.0350000000000001,"映",2,null,"日","+","央",null,null,null,"＝",{"$f":"C871","v":"映"},null,null,0,0,null,null,6034,6.0339999999999998,"腸",1,null,null,null,null,null,null,null,null,null,null,null,0,0]
[6036,6.0359999999999996,"幕",1,null,null,null,null,null,null,null,null,null,null,null,0,0,null,null,6035,6.0350000000000001,"映",2,null,"日","+","央",null,null,null,"＝","映",null,null,0,0]
[6037,6.0369999999999999,"補",1,null,null,null,null,null,null,null,null,null,null,null,0,0,null,null,6036,6.0359999999999996,"幕",1,null,null,null,null,null,null,null,null,null,null,null,0,0]
[6038,6.0380000000000003,"裏",1,null,null,null,null,null,null,null,null,null,null,null,0,0,null,null,6037,6.0369999999999999,"補",1,null,null,null,null,null,null,null,null,null,null,null,0,0]
[6039,6.0389999999999997,"沿",1,null,null,null,null,null,null,null,null,null,null,null,0,0,null,null,6038,6.0380000000000003,"裏",1,null,null,null,null,null,null,null,null,null,null,null,0,0]
[6040,6.04,"私",3,null,"ノ","+","木","+","ム",null,"＝",{"$f":"C876","v":"私"},null,null,0,0,null,null,6039,6.0389999999999997,"沿",1,null,null,null,null,null,null,null,null,null,null,null,0,0]
[6041,6.0410000000000004,"密",1,null,null,null,null,null,null,null,null,null,null,null,0,0,null,null,6040,6.04,"私",3,null,"ノ","+","木","+","ム",null,"＝","私",null,null,0,0]
[6042,6.0419999999999998,"呼",1,null,null,null,null,null,null,null,null,null,null,null,0,0,null,null,6041,6.0410000000000004,"密",1,null,null,null,null,null,null,null,null,null,null,null,0,0]
[6043,6.0430000000000001,"吸",1,null,null,null,null,null,null,null,null,null,null,null,0,0,null,null,6042,6.0419999999999998,"呼",1,null,null,null,null,null,null,null,null,null,null,null,0,0]
[6044,6.0439999999999996,"存",1,null,null,null,null,null,null,null,null,null,null,null,0,0,null,null,6043,6.0430000000000001,"吸",1,null,null,null,null,null,null,null,null,null,null,null,0,0]
[6045,6.0449999999999999,"刻",1,null,null,null,null,null,null,null,null,null,null,null,0,0,null,null,6044,6.0439999999999996,"存",1,null,null,null,null,null,null,null,null,null,null,null,0,0]
[6046,6.0460000000000003,"激",1,null,null,null,null,null,null,null,null,null,null,"◎",0,0,null,null,6045,6.0449999999999999,"刻",1,null,null,null,null,null,null,null,null,null,null,null,0,0]
[6047,6.0469999999999997,"簡",2,null,"竹","+","間",null,null,null,"＝",{"$f":"C883","v":"簡"},null,null,0,0,null,null,6046,6.0460000000000003,"激",1,null,null,null,null,null,null,null,null,null,null,"◎",0,0]
[6048,6.048,"机",1,null,null,null,null,null,null,null,null,null,null,null,0,0,null,null,6047,6.0469999999999997,"簡",2,null,"竹","+","間",null,null,null,"＝","簡",null,null,0,0]
[6049,6.0490000000000004,"難",1,null,null,null,null,null,null,null,null,null,null,null,0,0,null,null,6048,6.048,"机",1,null,null,null,null,null,null,null,null,null,null,null,0,0]
[6050,6.05,"疑",1,null,null,null,null,null,null,null,null,null,null,null,0,0,null,null,6049,6.0490000000000004,"難",1,null,null,null,null,null,null,null,null,null,null,null,0,0]
[6051,6.0510000000000002,"卵",1,null,null,null,null,null,null,null,null,null,null,null,0,0,null,null,6050,6.05,"疑",1,null,null,null,null,null,null,null,null,null,null,null,0,0]
[6052,6.0519999999999996,"乳",1,null,null,null,null,null,null,null,null,null,null,null,0,0,null,null,6051,6.0510000000000002,"卵",1,null,null,null,null,null,null,null,null,null,null,null,0,0]
[6053,6.0529999999999999,"創",1,null,null,null,null,null,null,null,null,null,null,null,0,0,null,null,6052,6.0519999999999996,"乳",1,null,null,null,null,null,null,null,null,null,null,null,0,0]
[6054,6.0540000000000003,"敬　",1,null,null,null,null,null,null,null,null,null,null,null,0,0,null,null,6053,6.0529999999999999,"創",1,null,null,null,null,null,null,null,null,null,null,null,0,0]
[6055,6.0549999999999997,"除",1,null,null,null,null,null,null,null,null,null,null,null,0,0,null,null,6054,6.0540000000000003,"敬　",1,null,null,null,null,null,null,null,null,null,null,null,0,0]
[6056,6.056,"誤",4,null,"竹","+","呉",null,null,null,"＝",{"$f":"C892","v":"誤"},null,null,0,0,null,null,6055,6.0549999999999997,"除",1,null,null,null,null,null,null,null,null,null,null,null,0,0]
[6057,6.0570000000000004,"暮",1,null,null,null,null,null,null,null,null,null,null,null,0,0,null,null,6056,6.056,"誤",4,null,"竹","+","呉",null,null,null,"＝","誤",null,null,0,0]
[6058,6.0579999999999998,"探",1,null,null,null,null,null,null,null,null,null,null,null,0,0,null,null,6057,6.0570000000000004,"暮",1,null,null,null,null,null,null,null,null,null,null,null,0,0]
[6059,6.0590000000000002,"座",1,null,null,null,null,null,null,null,null,null,null,null,0,0,null,null,6058,6.0579999999999998,"探",1,null,null,null,null,null,null,null,null,null,null,null,0,0]
[6060,6.06,"券",1,null,null,null,null,null,null,null,null,null,null,null,0,0,null,null,6059,6.0590000000000002,"座",1,null,null,null,null,null,null,null,null,null,null,null,0,0]
[6061,6.0609999999999999,"障",1,null,null,null,null,null,null,null,null,null,null,null,0,0,null,null,6060,6.06,"券",1,null,null,null,null,null,null,null,null,null,null,null,0,0]
[{"$f":"B898*1000","v":6062},6.0620000000000003,"派",1,null,null,null,null,null,null,null,null,null,null,null,{"$f":"IF(B898>N$1,0,D898)","v":0},{"$f":"IF(P898=2,B898,0)","v":0},null,null,6061,6.0609999999999999,"障",1,null,null,null,null,null,null,null,null,null,null,null,0,0]
[6063,6.0629999999999997,"警　",2,null,"敬","+","言",null,null,null,"＝",{"$f":"C899","v":"警　"},null,null,0,0,null,null,6062,6.0620000000000003,"派",1,null,null,null,null,null,null,null,null,null,null,null,0,0]
[6064,6.0640000000000001,"署",1,null,null,null,null,null,null,null,null,null,null,null,0,0,null,null,6063,6.0629999999999997,"警　",2,null,"敬","+","言",null,null,null,"＝","警　",null,null,0,0]
[6065,6.0650000000000004,"銭",1,null,null,null,null,null,null,null,null,null,null,null,0,0,null,null,6064,6.0640000000000001,"署",1,null,null,null,null,null,null,null,null,null,null,null,0,0]
[6066,6.0659999999999998,"庁",1,null,null,null,null,null,null,null,null,null,null,null,0,0,null,null,6065,6.0650000000000004,"銭",1,null,null,null,null,null,null,null,null,null,null,null,0,0]
[6067,6.0670000000000002,"訳",2,null,"言","+","尺",null,null,null,"＝",{"$f":"C903","v":"訳"},null,null,0,0,null,null,6066,6.0659999999999998,"庁",1,null,null,null,null,null,null,null,null,null,null,null,0,0]
[6068,6.0679999999999996,"源",1,null,null,null,null,null,null,null,null,null,null,null,0,0,null,null,6067,6.0670000000000002,"訳",2,null,"言","+","尺",null,null,null,"＝","訳",null,null,0,0]
[6069,6.069,"策",1,null,null,null,null,null,null,null,null,null,null,null,0,0,null,null,6068,6.0679999999999996,"源",1,null,null,null,null,null,null,null,null,null,null,null,0,0]
[6070,6.07,"忘",1,null,null,null,null,null,null,null,null,null,null,null,0,0,null,null,6069,6.069,"策",1,null,null,null,null,null,null,null,null,null,null,null,0,0]
[6071,6.0709999999999997,"討",2,null,"言","+","寸",null,null,null,"＝",{"$f":"C907","v":"討"},null,null,0,0,null,null,6070,6.07,"忘",1,null,null,null,null,null,null,null,null,null,null,null,0,0]
[6072,6.0720000000000001,"供",2,null,"イ","+","共",null,null,null,"＝",{"$f":"C908","v":"供"},null,null,0,0,null,null,6071,6.0709999999999997,"討",2,null,"言","+","寸",null,null,null,"＝","討",null,null,0,0]
[6073,6.0730000000000004,"模",1,null,null,null,null,null,null,null,null,null,null,null,0,0,null,null,6072,6.0720000000000001,"供",2,null,"イ","+","共",null,null,null,"＝","供",null,null,0,0]
[6074,6.0739999999999998,"冊",1,null,null,null,null,null,null,null,null,null,null,null,0,0,null,null,6073,6.0730000000000004,"模",1,null,null,null,null,null,null,null,null,null,null,null,0,0]
[6075,6.0750000000000002,"宅",1,null,null,null,null,null,null,null,null,null,null,null,0,0,null,null,6074,6.0739999999999998,"冊",1,null,null,null,null,null,null,null,null,null,null,null,0,0]
[6076,6.0759999999999996,"推",1,null,null,null,null,null,null,null,null,null,null,null,0,0,null,null,6075,6.0750000000000002,"宅",1,null,null,null,null,null,null,null,null,null,null,null,0,0]
[6077,6.077,"宇",1,null,null,null,null,null,null,null,null,null,null,null,0,0,null,null,6076,6.0759999999999996,"推",1,null,null,null,null,null,null,null,null,null,null,null,0,0]
[6078,6.0780000000000003,"宙",1,null,null,null,null,null,null,null,null,null,null,null,0,0,null,null,6077,6.077,"宇",1,null,null,null,null,null,null,null,null,null,null,null,0,0]
[6079,6.0789999999999997,"装",1,null,null,null,null,null,null,null,null,null,null,null,0,0,null,null,6078,6.0780000000000003,"宙",1,null,null,null,null,null,null,null,null,null,null,null,0,0]
[6080,6.08,"姿",2,null,"次","+","女",null,null,null,"＝",{"$f":"C916","v":"姿"},null,null,0,0,null,null,6079,6.0789999999999997,"装",1,null,null,null,null,null,null,null,null,null,null,null,0,0]
[6081,6.0810000000000004,"潮",1,null,null,null,null,null,null,null,null,null,null,null,0,0,null,null,6080,6.08,"姿",2,null,"次","+","女",null,null,null,"＝","姿",null,null,0,0]
[6082,6.0819999999999999,"樹",1,null,null,null,null,null,null,null,null,null,null,null,0,0,null,null,6081,6.0810000000000004,"潮",1,null,null,null,null,null,null,null,null,null,null,null,0,0]
[6083,6.0830000000000002,"割",1,null,null,null,null,null,null,null,null,null,null,null,0,0,null,null,6082,6.0819999999999999,"樹",1,null,null,null,null,null,null,null,null,null,null,null,0,0]
[6084,6.0839999999999996,"垂",1,null,null,null,null,null,null,null,null,null,null,null,0,0,null,null,6083,6.0830000000000002,"割",1,null,null,null,null,null,null,null,null,null,null,null,0,0]
[6085,6.085,"胸",1,null,null,null,null,null,null,null,null,null,null,null,0,0,null,null,6084,6.0839999999999996,"垂",1,null,null,null,null,null,null,null,null,null,null,null,0,0]
[6086,6.0860000000000003,"骨",1,null,null,null,null,null,null,null,null,null,null,null,0,0,null,null,6085,6.085,"胸",1,null,null,null,null,null,null,null,null,null,null,null,0,0]
[6087,6.0869999999999997,"厳",1,null,null,null,null,null,null,null,null,null,null,null,0,0,null,null,6086,6.0860000000000003,"骨",1,null,null,null,null,null,null,null,null,null,null,null,0,0]
[6088,6.0880000000000001,"勤",1,null,null,null,null,null,null,null,null,null,null,null,0,0,null,null,6087,6.0869999999999997,"厳",1,null,null,null,null,null,null,null,null,null,null,null,0,0]
[6089,6.0890000000000004,"誌",2,null,"言","+","志",null,null,null,"＝",{"$f":"C925","v":"誌"},null,null,0,0,null,null,6088,6.0880000000000001,"勤",1,null,null,null,null,null,null,null,null,null,null,null,0,0]
[6090,6.09,"延",1,null,null,null,null,null,null,null,null,null,null,null,0,0,null,null,6089,6.0890000000000004,"誌",2,null,"言","+","志",null,null,null,"＝","誌",null,null,0,0]
[6091,6.0910000000000002,"幼",1,null,null,null,null,null,null,null,null,null,null,null,0,0,null,null,6090,6.09,"延",1,null,null,null,null,null,null,null,null,null,null,null,0,0]
[6092,6.0919999999999996,"熟",1,null,null,null,null,null,null,null,null,null,null,null,0,0,null,null,6091,6.0910000000000002,"幼",1,null,null,null,null,null,null,null,null,null,null,null,0,0]
[6093,6.093,"収",1,null,null,null,null,null,null,null,null,null,null,null,0,0,null,null,6092,6.0919999999999996,"熟",1,null,null,null,null,null,null,null,null,null,null,null,0,0]
[6094,6.0940000000000003,"納",2,null,"糸","+","内",null,null,null,"＝",{"$f":"C930","v":"納"},null,null,0,0,null,null,6093,6.093,"収",1,null,null,null,null,null,null,null,null,null,null,null,0,0]
[6095,6.0949999999999998,"頂",1,null,null,null,null,null,null,null,null,null,null,null,0,0,null,null,6094,6.0940000000000003,"納",2,null,"糸","+","内",null,null,null,"＝","納",null,null,0,0]
[6096,6.0960000000000001,"忠",2,null,"中","+","心",null,null,null,"＝",{"$f":"C932","v":"忠"},null,null,0,0,null,null,6095,6.0949999999999998,"頂",1,null,null,null,null,null,null,null,null,null,null,null,0,0]
[6097,6.0970000000000004,"誠",2,null,"言","+","成",null,null,null,"＝",{"$f":"C933","v":"誠"},null,null,0,0,null,null,6096,6.0960000000000001,"忠",2,null,"中","+","心",null,null,null,"＝","忠",null,null,0,0]
[6098,6.0979999999999999,"縦",2,null,"糸","+","従",null,null,null,"＝",{"$f":"C934","v":"縦"},null,null,0,0,null,null,6097,6.0970000000000004,"誠",2,null,"言","+","成",null,null,null,"＝","誠",null,null,0,0]
[6099,6.0990000000000002,"敵",1,null,null,null,null,null,null,null,null,null,null,null,0,0,null,null,6098,6.0979999999999999,"縦",2,null,"糸","+","従",null,null,null,"＝","縦",null,null,0,0]
[6100,6.1,"蚕",2,null,"天","+","虫",null,null,null,"＝",{"$f":"C936","v":"蚕"},null,null,0,0,null,null,6099,6.0990000000000002,"敵",1,null,null,null,null,null,null,null,null,null,null,null,0,0]
[6101,6.101,"仁",2,null,"イ","+","二",null,null,null,"＝",{"$f":"C937","v":"仁"},null,null,0,0,null,null,6100,6.1,"蚕",2,null,"天","+","虫",null,null,null,"＝","蚕",null,null,0,0]
[6102,6.1020000000000003,"泉",2,null,"白","+","水",null,null,null,"＝",{"$f":"C938","v":"泉"},null,null,0,0,null,null,6101,6.101,"仁",2,null,"イ","+","二",null,null,null,"＝","仁",null,null,0,0]
[6103,6.1029999999999998,"系",2,null,"ノ","+","糸",null,null,null,"＝",{"$f":"C939","v":"系"},null,null,0,0,null,null,6102,6.1020000000000003,"泉",2,null,"白","+","水",null,null,null,"＝","泉",null,null,0,0]
[6104,6.1040000000000001,"盟",2,null,"明","+","皿",null,null,null,"＝",{"$f":"C940","v":"盟"},null,null,0,0,null,null,6103,6.1029999999999998,"系",2,null,"ノ","+","糸",null,null,null,"＝","系",null,null,0,0]
[6105,6.1050000000000004,"臨",1,null,null,null,null,null,null,null,null,null,null,null,0,0,null,null,6104,6.1040000000000001,"盟",2,null,"明","+","皿",null,null,null,"＝","盟",null,null,0,0]
[6106,6.1059999999999999,"枚",1,null,null,null,null,null,null,null,null,null,null,null,0,0,null,null,6105,6.1050000000000004,"臨",1,null,null,null,null,null,null,null,null,null,null,null,0,0]
[6107,6.1070000000000002,"縮",2,null,"糸","+","宿",null,null,null,"＝",{"$f":"C943","v":"縮"},null,null,0,0,null,null,6106,6.1059999999999999,"枚",1,null,null,null,null,null,null,null,null,null,null,null,0,0]
[6108,6.1079999999999997,"棒",1,null,null,null,null,null,null,null,null,null,null,null,0,0,null,null,6107,6.1070000000000002,"縮",2,null,"糸","+","宿",null,null,null,"＝","縮",null,null,0,0]
[6109,6.109,"寸",1,null,null,null,null,null,null,null,null,null,null,null,0,0,null,null,6108,6.1079999999999997,"棒",1,null,null,null,null,null,null,null,null,null,null,null,0,0]
[6110,6.11,"暖",1,null,null,null,null,null,null,null,null,null,null,null,0,0,null,null,6109,6.109,"寸",1,null,null,null,null,null,null,null,null,null,null,null,0,0]
[6111,6.1109999999999998,"揮",1,null,null,null,null,null,null,null,null,null,null,null,0,0,null,null,6110,6.11,"暖",1,null,null,null,null,null,null,null,null,null,null,null,0,0]
[6112,6.1120000000000001,"晩",4,null,"日","+","免",null,null,null,"＝",{"$f":"C948","v":"晩"},null,null,0,0,null,null,6111,6.1109999999999998,"揮",1,null,null,null,null,null,null,null,null,null,null,null,0,0]
[6113,6.1130000000000004,"痛",1,null,null,null,null,null,null,null,null,null,null,null,0,0,null,null,6112,6.1120000000000001,"晩",4,null,"日","+","免",null,null,null,"＝","晩",null,null,0,0]
[6114,6.1139999999999999,"批",1,null,null,null,null,null,null,null,null,null,null,null,0,0,null,null,6113,6.1130000000000004,"痛",1,null,null,null,null,null,null,null,null,null,null,null,0,0]
[6115,6.1150000000000002,"傷",1,null,null,null,null,null,null,null,null,null,null,null,0,0,null,null,6114,6.1139999999999999,"批",1,null,null,null,null,null,null,null,null,null,null,null,0,0]
[6116,6.1159999999999997,"若",1,null,null,null,null,null,null,null,null,null,null,null,0,0,null,null,6115,6.1150000000000002,"傷",1,null,null,null,null,null,null,null,null,null,null,null,0,0]
[6117,6.117,"劇　　",1,null,null,null,null,null,null,null,null,null,null,null,0,0,null,null,6116,6.1159999999999997,"若",1,null,null,null,null,null,null,null,null,null,null,null,0,0]
[6118,6.1180000000000003,"閉",2,null,"門","+","才",null,null,null,"＝",{"$f":"C954","v":"閉"},null,null,0,0,null,null,6117,6.117,"劇　　",1,null,null,null,null,null,null,null,null,null,null,null,0,0]
[6119,6.1189999999999998,"遺",1,null,null,null,null,null,null,null,null,null,null,null,0,0,null,null,6118,6.1180000000000003,"閉",2,null,"門","+","才",null,null,null,"＝","閉",null,null,0,0]
[6120,6.12,"翌",2,null,"羽","+","立",null,null,null,"＝",{"$f":"C956","v":"翌"},null,null,0,0,null,null,6119,6.1189999999999998,"遺",1,null,null,null,null,null,null,null,null,null,null,null,0,0]
[6121,6.1210000000000004,"論",1,null,null,null,null,null,null,null,null,null,null,null,0,0,null,null,6120,6.12,"翌",2,null,"羽","+","立",null,null,null,"＝","翌",null,null,0,0]
[6122,6.1219999999999999,"班",3,null,"王","+","リ","+","王",null,"＝",{"$f":"C958","v":"班"},null,null,0,0,null,null,6121,6.1210000000000004,"論",1,null,null,null,null,null,null,null,null,null,null,null,0,0]
[6123,6.1230000000000002,"危",1,null,null,null,null,null,null,null,null,null,null,null,0,0,null,null,6122,6.1219999999999999,"班",3,null,"王","+","リ","+","王",null,"＝","班",null,null,0,0]
[6124,6.1239999999999997,"優",1,null,null,null,null,null,null,null,null,null,null,null,0,0,null,null,6123,6.1230000000000002,"危",1,null,null,null,null,null,null,null,null,null,null,null,0,0]
[6125,6.125,"善",1,null,null,null,null,null,null,null,null,null,null,null,0,0,null,null,6124,6.1239999999999997,"優",1,null,null,null,null,null,null,null,null,null,null,null,0,0]
[{"$f":"B962*1000","v":6126},6.1260000000000003,"否",2,null,"不","+","口",null,null,null,"＝",{"$f":"C962","v":"否"},null,null,{"$f":"IF(B962>N$1,0,D962)","v":0},{"$f":"IF(P962=2,B962,0)","v":0},null,null,6125,6.125,"善",1,null,null,null,null,null,null,null,null,null,null,null,0,0]
[6127,6.1269999999999998,"専",1,null,null,null,null,null,null,null,null,null,null,null,0,0,null,null,6126,6.1260000000000003,"否",2,null,"不","+","口",null,null,null,"＝","否",null,null,0,0]
[6128,6.1280000000000001,"捨",1,null,null,null,null,null,null,null,null,null,null,null,0,0,null,null,6127,6.1269999999999998,"専",1,null,null,null,null,null,null,null,null,null,null,null,0,0]
[6129,6.1289999999999996,"窓",1,null,null,null,null,null,null,null,null,null,null,null,0,0,null,null,6128,6.1280000000000001,"捨",1,null,null,null,null,null,null,null,null,null,null,null,0,0]
[6130,6.13,"至",3,null,"一","+","ム","+","土",null,"＝",{"$f":"C966","v":"至"},null,null,0,0,null,null,6129,6.1289999999999996,"窓",1,null,null,null,null,null,null,null,null,null,null,null,0,0]
[6130,6.13,"糖",1,null,null,null,null,null,null,null,null,null,null,null,0,0,null,null,6130,6.13,"至",3,null,"一","+","ム","+","土",null,"＝","至",null,null,0,0]
[6131,6.1310000000000002,"紅",2,null,"糸","+","工",null,null,null,"＝",{"$f":"C968","v":"紅"},null,null,0,0,null,null,6130,6.13,"糖",1,null,null,null,null,null,null,null,null,null,null,null,0,0]
[6132,6.1319999999999997,"筋",3,null,"竹","+","月","+","力",null,"＝",{"$f":"C969","v":"筋"},null,null,0,0,null,null,6131,6.1310000000000002,"紅",2,null,"糸","+","工",null,null,null,"＝","紅",null,null,0,0]
[6133,6.133,"盛",2,null,"成","+","皿",null,null,null,"＝",{"$f":"C970","v":"盛"},null,null,0,0,null,null,6132,6.1319999999999997,"筋",3,null,"竹","+","月","+","力",null,"＝","筋",null,null,0,0]
[6134,6.1340000000000003,"巻　　　　　　",1,null,null,null,null,null,null,null,null,null,null,null,0,0,null,null,6133,6.133,"盛",2,null,"成","+","皿",null,null,null,"＝","盛",null,null,0,0]
[6135,6.1349999999999998,"宝",1,null,null,null,null,null,null,null,null,null,null,null,0,0,null,null,6134,6.1340000000000003,"巻　　　　　　",1,null,null,null,null,null,null,null,null,null,null,null,0,0]
[6136,6.1360000000000001,"貴",1,null,null,null,null,null,null,null,null,null,null,null,0,0,null,null,6135,6.1349999999999998,"宝",1,null,null,null,null,null,null,null,null,null,null,null,0,0]
[6137,6.1370000000000005,"著",1,null,null,null,null,null,null,null,null,null,null,null,0,0,null,null,6136,6.1360000000000001,"貴",1,null,null,null,null,null,null,null,null,null,null,null,0,0]
[6138,6.1379999999999999,"権",1,null,null,null,null,null,null,null,null,null,null,null,0,0,null,null,6137,6.1370000000000005,"著",1,null,null,null,null,null,null,null,null,null,null,null,0,0]
[6139,6.1390000000000002,"尊",1,null,null,null,null,null,null,null,null,null,null,null,0,0,null,null,6138,6.1379999999999999,"権",1,null,null,null,null,null,null,null,null,null,null,null,0,0]
[6140,6.14,"担",1,null,null,null,null,null,null,null,null,null,null,null,0,0,null,null,6139,6.1390000000000002,"尊",1,null,null,null,null,null,null,null,null,null,null,null,0,0]
[6141,6.141,"秘",3,null,"ノ","+","木","+","必",null,"＝",{"$f":"C978","v":"秘"},null,null,0,0,null,null,6140,6.14,"担",1,null,null,null,null,null,null,null,null,null,null,null,0,0]
[6142,6.1420000000000003,"従",1,null,null,null,null,null,null,null,null,null,null,null,0,0,null,null,6141,6.141,"秘",3,null,"ノ","+","木","+","必",null,"＝","秘",null,null,0,0]
[6143,6.1429999999999998,"奏",1,null,null,null,null,null,null,null,null,null,null,null,0,0,null,null,6142,6.1420000000000003,"従",1,null,null,null,null,null,null,null,null,null,null,null,0,0]
[6144,6.1440000000000001,"郵",1,null,null,null,null,null,null,null,null,null,null,null,0,0,null,null,6143,6.1429999999999998,"奏",1,null,null,null,null,null,null,null,null,null,null,null,0,0]
[6145,6.1449999999999996,"拡",1,null,null,null,null,null,null,null,null,null,null,null,0,0,null,null,6144,6.1440000000000001,"郵",1,null,null,null,null,null,null,null,null,null,null,null,0,0]
[6146,6.1459999999999999,"操",1,null,null,null,null,null,null,null,null,null,null,null,0,0,null,null,6145,6.1449999999999996,"拡",1,null,null,null,null,null,null,null,null,null,null,null,0,0]
[6147,6.1470000000000002,"絹",3,null,"糸","+","口","+","月",null,"＝",{"$f":"C984","v":"絹"},null,null,0,0,null,null,6146,6.1459999999999999,"操",1,null,null,null,null,null,null,null,null,null,null,null,0,0]
[6148,6.1479999999999997,"俵",2,null,"イ","+","表",null,null,null,"＝",{"$f":"C985","v":"俵"},null,null,0,0,null,null,6147,6.1470000000000002,"絹",3,null,"糸","+","口","+","月",null,"＝","絹",null,null,0,0]
[6149,6.149,"拝",1,null,null,null,null,null,null,null,null,null,null,null,0,0,null,null,6148,6.1479999999999997,"俵",2,null,"イ","+","表",null,null,null,"＝","俵",null,null,0,0]
[6150,6.15,"聖",3,null,"耳","+","口","+","王",null,"＝",{"$f":"C987","v":"聖"},null,null,0,0,null,null,6149,6.149,"拝",1,null,null,null,null,null,null,null,null,null,null,null,0,0]
[6151,6.1509999999999998,"賃",2,null,"任","+","貝",null,null,null,"＝",{"$f":"C988","v":"賃"},null,null,0,0,null,null,6150,6.15,"聖",3,null,"耳","+","口","+","王",null,"＝","聖",null,null,0,0]
[6152,6.1520000000000001,"孝",1,null,null,null,null,null,null,null,null,null,null,null,0,0,null,null,6151,6.1509999999999998,"賃",2,null,"任","+","貝",null,null,null,"＝","賃",null,null,0,0]
[6153,6.1529999999999996,"預",1,null,null,null,null,null,null,null,null,null,null,null,0,0,null,null,6152,6.1520000000000001,"孝",1,null,null,null,null,null,null,null,null,null,null,null,0,0]
[6154,6.1539999999999999,"覧",1,null,null,null,null,null,null,null,null,null,null,null,0,0,null,null,6153,6.1529999999999996,"預",1,null,null,null,null,null,null,null,null,null,null,null,0,0]
[6155,6.1550000000000002,"鋼",2,null,"金","+","岡",null,null,null,"＝",{"$f":"C992","v":"鋼"},null,null,0,0,null,null,6154,6.1539999999999999,"覧",1,null,null,null,null,null,null,null,null,null,null,null,0,0]
[6156,6.1559999999999997,"亡",1,null,null,null,null,null,null,null,null,null,null,null,0,0,null,null,6155,6.1550000000000002,"鋼",2,null,"金","+","岡",null,null,null,"＝","鋼",null,null,0,0]
[6157,6.157,"己",1,null,null,null,null,null,null,null,null,null,null,null,0,0,null,null,6156,6.1559999999999997,"亡",1,null,null,null,null,null,null,null,null,null,null,null,0,0]
[6158,6.1580000000000004,"届",1,null,null,null,null,null,null,null,null,null,null,null,0,0,null,null,6157,6.157,"己",1,null,null,null,null,null,null,null,null,null,null,null,0,0]
[6159,6.1589999999999998,"困",1,null,null,null,null,null,null,null,null,null,null,null,0,0,null,null,6158,6.1580000000000004,"届",1,null,null,null,null,null,null,null,null,null,null,null,0,0]
[6160,6.16,"看",1,null,null,null,null,null,null,null,null,null,null,null,0,0,null,null,6159,6.1589999999999998,"困",1,null,null,null,null,null,null,null,null,null,null,null,0,0]
[6161,6.1609999999999996,"尺",1,null,null,null,null,null,null,null,null,null,null,null,0,0,null,null,6160,6.16,"看",1,null,null,null,null,null,null,null,null,null,null,null,0,0]
[6162,6.1619999999999999,"染",1,null,null,null,null,null,null,null,null,null,null,null,0,0,null,null,6161,6.1609999999999996,"尺",1,null,null,null,null,null,null,null,null,null,null,null,0,0]
[6163,6.1630000000000003,"退",1,null,null,null,null,null,null,null,null,null,null,null,0,0,null,null,6162,6.1619999999999999,"染",1,null,null,null,null,null,null,null,null,null,null,null,0,0]
[6164,6.1639999999999997,"朗",1,null,null,null,null,null,null,null,null,null,null,null,0,0,null,null,6163,6.1630000000000003,"退",1,null,null,null,null,null,null,null,null,null,null,null,0,0]
[6165,6.165,"片",1,null,null,null,null,null,null,null,null,null,null,null,0,0,null,null,6164,6.1639999999999997,"朗",1,null,null,null,null,null,null,null,null,null,null,null,0,0]
[6166,6.1660000000000004,"欲",2,null,"谷","+","欠",null,null,null,"＝",{"$f":"C1003","v":"欲"},null,null,0,0,null,null,6165,6.165,"片",1,null,null,null,null,null,null,null,null,null,null,null,0,0]
[6167,6.1669999999999998,"誕",2,null,"言","+","延",null,null,null,"＝",{"$f":"C1004","v":"誕"},null,null,0,0,null,null,6166,6.1660000000000004,"欲",2,null,"谷","+","欠",null,null,null,"＝","欲",null,null,0,0]
[6168,6.1680000000000001,"穀",1,null,null,null,null,null,null,null,null,null,null,null,0,0,null,null,6167,6.1669999999999998,"誕",2,null,"言","+","延",null,null,null,"＝","誕",null,null,0,0]
[6169,6.1689999999999996,"郷",1,null,null,null,null,null,null,null,null,null,null,null,0,0,null,null,6168,6.1680000000000001,"穀",1,null,null,null,null,null,null,null,null,null,null,null,0,0]
[6170,6.17,"株",4,null,"木","+","朱",null,null,null,"＝",{"$f":"C1007","v":"株"},null,null,0,0,null,null,6169,6.1689999999999996,"郷",1,null,null,null,null,null,null,null,null,null,null,null,0,0]
[6171,6.1710000000000003,"諸",2,null,"言","+","者",null,null,null,"＝",{"$f":"C1008","v":"諸"},null,null,0,0,null,null,6170,6.17,"株",4,null,"木","+","朱",null,null,null,"＝","株",null,null,0,0]
[6172,6.1719999999999997,"衆",1,null,null,null,null,null,null,null,null,null,null,null,0,0,null,null,6171,6.1710000000000003,"諸",2,null,"言","+","者",null,null,null,"＝","諸",null,null,0,0]
[6173,6.173,"磁",1,null,null,null,null,null,null,null,null,null,null,null,0,0,null,null,6172,6.1719999999999997,"衆",1,null,null,null,null,null,null,null,null,null,null,null,0,0]
[6174,6.1740000000000004,"皇",2,null,"白","+","王",null,null,null,"＝",{"$f":"C1011","v":"皇"},null,null,0,0,null,null,6173,6.173,"磁",1,null,null,null,null,null,null,null,null,null,null,null,0,0]
[6175,6.1749999999999998,"后　",1,null,null,null,null,null,null,null,null,null,null,null,0,0,null,null,6174,6.1740000000000004,"皇",2,null,"白","+","王",null,null,null,"＝","皇",null,null,0,0]
[6176,6.1760000000000002,"陛",1,null,null,null,null,null,null,null,null,null,null,null,0,0,null,null,6175,6.1749999999999998,"后　",1,null,null,null,null,null,null,null,null,null,null,null,0,0]
[6177,6.1769999999999996,"憲",1,null,null,null,null,null,null,null,null,null,null,null,0,0,null,null,6176,6.1760000000000002,"陛",1,null,null,null,null,null,null,null,null,null,null,null,0,0]
[6178,6.1779999999999999,"党",1,null,null,null,null,null,null,null,null,null,null,null,0,0,null,null,6177,6.1769999999999996,"憲",1,null,null,null,null,null,null,null,null,null,null,null,0,0]
[6179,6.1790000000000003,"閣",2,null,"門","+","各",null,null,null,"＝",{"$f":"C1016","v":"閣"},null,null,0,0,null,null,6178,6.1779999999999999,"党",1,null,null,null,null,null,null,null,null,null,null,null,0,0]
[6180,6.18,"革",1,null,null,null,null,null,null,null,null,null,null,null,0,0,null,null,6179,6.1790000000000003,"閣",2,null,"門","+","各",null,null,null,"＝","閣",null,null,0,0]
[6181,6.181,"宗",1,null,null,null,null,null,null,null,null,null,null,null,0,0,null,null,6180,6.18,"革",1,null,null,null,null,null,null,null,null,null,null,null,0,0]
[6182,6.1820000000000004,"詞",2,null,"言","+","司",null,null,null,"＝",{"$f":"C1019","v":"詞"},null,null,0,0,null,null,6181,6.181,"宗",1,null,null,null,null,null,null,null,null,null,null,null,0,0]
[6183,6.1829999999999998,"宣",1,null,null,null,null,null,null,null,null,null,null,null,0,0,null,null,6182,6.1820000000000004,"詞",2,null,"言","+","司",null,null,null,"＝","詞",null,null,0,0]
[6184,6.1840000000000002,"値",2,null,"イ","+","直",null,null,null,"＝",{"$f":"C1021","v":"値"},null,null,0,0,null,null,6183,6.1829999999999998,"宣",1,null,null,null,null,null,null,null,null,null,null,null,0,0]
[6185,6.1849999999999996,"俳",2,null,"イ","+","非",null,null,null,"＝",{"$f":"C1022","v":"俳"},null,null,0,0,null,null,6184,6.1840000000000002,"値",2,null,"イ","+","直",null,null,null,"＝","値",null,null,0,0]
[6186,6.1859999999999999,"将",1,null,null,null,null,null,null,null,null,null,null,null,0,0,null,null,6185,6.1849999999999996,"俳",2,null,"イ","+","非",null,null,null,"＝","俳",null,null,0,0]
[6187,6.1870000000000003,"針",2,null,"金","+","十",null,null,null,"＝",{"$f":"C1024","v":"針"},null,null,0,0,null,null,6186,6.1859999999999999,"将",1,null,null,null,null,null,null,null,null,null,null,null,0,0]
[6188,6.1879999999999997,"灰",1,null,null,null,null,null,null,null,null,null,null,null,0,0,null,null,6187,6.1870000000000003,"針",2,null,"金","+","十",null,null,null,"＝","針",null,null,0,0]
[{"$f":"B1026*1000","v":6189},6.1890000000000001,"奮",1,null,null,null,null,null,null,null,null,null,null,null,0,{"$f":"IF(P1026=2,B1026,0)","v":0},null,null,6188,6.1879999999999997,"灰",1,null,null,null,null,null,null,null,null,null,null,null,0,0]
[6190,6.19,"済",1,null,null,null,null,null,null,null,null,null,null,null,0,0,null,null,6189,6.1890000000000001,"奮",1,null,null,null,null,null,null,null,null,null,null,null,0,0]
[1,{"$f":"A1028/1000","v":1E-3},"イ",null,null,null,null,null,null,null,null,null,null,null,null,null,null,null,null,6190,6.19,"済",1,null,null,null,null,null,null,null,null,null,null,null,0,0]
[2,{"$f":"A1029/1000","v":2E-3},"ヒ"]
[3,{"$f":"A1030/1000","v":3.0000000000000001E-3},"ム"]

{"sheet":"Sheet1","index":7,"n_rows":0,"n_cols":0,"rows_kept":0,"cut":false,"hidden":false,"merged":[]}

{"sheet":"データ","index":8,"n_rows":114,"n_cols":14,"rows_kept":114,"cut":false,"hidden":false,"merged":[]}
[null,"木","目","相",{"$f":"INDEX($B$1:$B37,RANK(INDEX($H$1:$H$37,ROW(I1)),$H$1:$H$37))","v":"立"},{"$f":"INDEX($C$1:$C$37,RANK(INDEX($H$1:$H$37,ROW(C1)),$H$1:$H$37))","v":"市"},{"$f":"INDEX($D$1:$D$37,RANK(INDEX($H$1:$H$37,ROW(D1)),$H$1:$H$37))","v":"意"},{"$f":"RAND()/100","v":8.3111772843556878E-3}]
[null,"日","宿","暗",{"$f":"INDEX($B$1:$B38,RANK(INDEX($H$1:$H$37,ROW(I2)),$H$1:$H$37))","v":"音"},"十","章",4.8263997314403964E-3]
[null,"立","市","意",{"$f":"INDEX($B$1:$B39,RANK(INDEX($H$1:$H$37,ROW(I3)),$H$1:$H$37))","v":"糸"},"東","練",3.2453535404428869E-3]
[null,"木","反","板",{"$f":"INDEX($B$1:$B40,RANK(INDEX($H$1:$H$37,ROW(I4)),$H$1:$H$37))","v":"竹"},"寺","等",1.3580111796917026E-3]
[null,"糸","少","終",{"$f":"INDEX($B$1:$B41,RANK(INDEX($H$1:$H$37,ROW(I5)),$H$1:$H$37))","v":"木"},"反","板",7.790760684668897E-3]
[null,"言","女","詩",{"$f":"INDEX($B$1:$B42,RANK(INDEX($H$1:$H$37,ROW(I6)),$H$1:$H$37))","v":"木"},"司","横",7.6232120429391311E-4]
[null,"日","者","暑",{"$f":"INDEX($B$1:$B43,RANK(INDEX($H$1:$H$37,ROW(I7)),$H$1:$H$37))","v":"日"},"宿","暗",9.0307151160368172E-3]
[null,"音","十","章",{"$f":"INDEX($B$1:$B44,RANK(INDEX($H$1:$H$37,ROW(I8)),$H$1:$H$37))","v":"木"},"目","相",9.1249271789540422E-3]
[null,"木","直","植",{"$f":"INDEX($B$1:$B45,RANK(INDEX($H$1:$H$37,ROW(I9)),$H$1:$H$37))","v":"火"},"田","畑",1.9917408183724337E-3]
[null,"相","心","想",{"$f":"INDEX($B$1:$B46,RANK(INDEX($H$1:$H$37,ROW(I10)),$H$1:$H$37))","v":"自"},"心","息",3.7883598906083516E-3]
[null,"自","心","息",{"$f":"INDEX($B$1:$B47,RANK(INDEX($H$1:$H$37,ROW(I11)),$H$1:$H$37))","v":"門"},"口","問",1.1807226292866813E-3]
[null,"羽","心","習",{"$f":"INDEX($B$1:$B48,RANK(INDEX($H$1:$H$37,ROW(I12)),$H$1:$H$37))","v":"木"},"直","植",4.4575897018962881E-3]
[null,"糸","東","練",{"$f":"INDEX($B$1:$B49,RANK(INDEX($H$1:$H$37,ROW(I13)),$H$1:$H$37))","v":"立"},"里","童",6.2122832453251559E-4]
[null,"竹","相","箱",{"$f":"INDEX($B$1:$B50,RANK(INDEX($H$1:$H$37,ROW(I14)),$H$1:$H$37))","v":"相"},"心","想",4.2510483808136075E-3]
[null,"火","田","畑",{"$f":"INDEX($B$1:$B51,RANK(INDEX($H$1:$H$37,ROW(I15)),$H$1:$H$37))","v":"糸"},"少","終",6.9799018012080584E-3]
[null,"竹","寺","等",{"$f":"INDEX($B$1:$B52,RANK(INDEX($H$1:$H$37,ROW(I16)),$H$1:$H$37))","v":"日"},"者","暑",5.2398623768173261E-3]
[null,"門","口","問",{"$f":"INDEX($B$1:$B53,RANK(INDEX($H$1:$H$37,ROW(I17)),$H$1:$H$37))","v":"竹"},"相","箱",1.9983748170329862E-3]
[null,"木","司","横",{"$f":"INDEX($B$1:$B54,RANK(INDEX($H$1:$H$37,ROW(I18)),$H$1:$H$37))","v":"言"},"女","詩",5.6318498068568187E-3]
[null,"立","里","童",{"$f":"INDEX($B$1:$B55,RANK(INDEX($H$1:$H$37,ROW(I19)),$H$1:$H$37))","v":"羽"},"心","習",3.466489163239256E-3]
[]
[null,{"$f":"C21*1000","v":6000},6,"警",null,null,"敬","+","言",null,null,null,"＝",{"$f":"D21","v":"警"}]
[null,6000,6,"系　",null,null,"ノ","+","糸",null,null,null,"＝","系　"]
[null,6001,6.0010000000000003,"視",null,null,"　ネ","+","見",null,null,null,"＝","視"]
[null,6003,6.0030000000000001,"砂",null,null,"石","+","少",null,null,null,"＝","砂"]
[null,6010,6.01,"異",null,null,"田","+","共",null,null,null,"＝","異"]
[null,6013,6.0129999999999999,"背",null,null,"北","+","月",null,null,null,"＝","背"]
[null,6014,6.0140000000000002,"舌",null,null,"ノ","+","古",null,null,null,"＝","舌"]
[null,6019,6.0190000000000001,"訪",null,null,"言","+","方",null,null,null,"＝","訪"]
[null,6027,6.0270000000000001,"恩",null,null,"因","+","心",null,null,null,"＝","恩"]
[null,6031,6.0309999999999997,"臓",null,null,"月","+","蔵",null,null,null,"＝","臓"]
[null,6032,6.032,"肺",null,null,"月","+","市",null,null,null,"＝","肺"]
[null,6033,6.0330000000000004,"胃",null,null,"田","+","月",null,null,null,"＝","胃"]
[null,6035,6.0350000000000001,"映",null,null,"日","+","央",null,null,null,"＝","映"]
[null,6040,6.04,"私",null,null,"ノ","+","木","+","ム",null,"＝","私"]
[null,6047,6.0469999999999997,"簡",null,null,"竹","+","間",null,null,null,"＝","簡"]
[null,6063,6.0629999999999997,"警　",null,null,"敬","+","言",null,null,null,"＝","警　"]
[null,6067,6.0670000000000002,"訳",null,null,"言","+","尺",null,null,null,"＝","訳"]
[null,6071,6.0709999999999997,"討",null,null,"言","+","寸",null,null,null,"＝","討"]
[null,6072,6.0720000000000001,"供",null,null,"イ","+","共",null,null,null,"＝","供"]
[null,6080,6.08,"姿",null,null,"次","+","女",null,null,null,"＝","姿"]
[null,6089,6.0890000000000004,"誌",null,null,"言","+","志",null,null,null,"＝","誌"]
[null,6094,6.0940000000000003,"納",null,null,"次","+","女",null,null,null,"＝","納"]
[null,6096,6.0960000000000001,"忠",null,null,"中","+","心",null,null,null,"＝","忠"]
[null,6097,6.0970000000000004,"誠",null,null,"言","+","成",null,null,null,"＝","誠"]
[null,6098,6.0979999999999999,"縦",null,null,"糸","+","従",null,null,null,"＝","縦"]
[null,6100,6.1,"蚕",null,null,"天","+","虫",null,null,null,"＝","蚕"]
[null,6101,6.101,"仁",null,null,"イ","+","二",null,null,null,"＝","仁"]
[null,6102,6.1020000000000003,"泉",null,null,"白","+","水",null,null,null,"＝","泉"]
[null,6103,6.1029999999999998,"系",null,null,"ノ","+","糸",null,null,null,"＝","系"]
[null,6104,6.1040000000000001,"盟",null,null,"明","+","皿",null,null,null,"＝","盟"]
[null,6107,6.1070000000000002,"縮",null,null,"糸","+","宿",null,null,null,"＝","縮"]
[null,6112,6.1120000000000001,"晩",null,null,"日","+","免",null,null,null,"＝","晩"]
[null,{"$f":"C53*1000","v":6118},6.1180000000000003,"閉",null,null,"門","+","才",null,null,null,"＝",{"$f":"D53","v":"閉"}]
[null,6120,6.12,"翌",null,null,"羽","+","立",null,null,null,"＝","翌"]
[null,6122,6.1219999999999999,"班",null,null,"王","+","リ","+","王",null,"＝","班"]
[null,6126,6.1260000000000003,"否",null,null,"不","+","口",null,null,null,"＝","否"]
[null,6130,6.13,"至",null,null,"一","+","ム","+","土",null,"＝","至"]
[null,6131,6.1310000000000002,"紅",null,null,"糸","+","工",null,null,null,"＝","紅"]
[null,6132,6.1319999999999997,"筋",null,null,"竹","+","月","+","力",null,"＝","筋"]
[null,6133,6.133,"盛",null,null,"成","+","皿",null,null,null,"＝","盛"]
[null,6141,6.141,"秘",null,null,"ノ","+","木","+","必",null,"＝","秘"]
[null,6147,6.1470000000000002,"絹",null,null,"糸","+","口","+","月",null,"＝","絹"]
[null,6148,6.1479999999999997,"俵",null,null,"イ","+","表",null,null,null,"＝","俵"]
[null,6150,6.15,"聖",null,null,"耳","+","口","+","王",null,"＝","聖"]
[null,6151,6.1509999999999998,"賃",null,null,"任","+","貝",null,null,null,"＝","賃"]
[null,6155,6.1550000000000002,"鋼",null,null,"金","+","岡",null,null,null,"＝","鋼"]
[null,6166,6.1660000000000004,"欲",null,null,"谷","+","欠",null,null,null,"＝","欲"]
[null,6167,6.1669999999999998,"誕",null,null,"言","+","延",null,null,null,"＝","誕"]
[null,6171,6.1710000000000003,"諸",null,null,"言","+","者",null,null,null,"＝","諸"]
[null,6174,6.1740000000000004,"皇",null,null,"白","+","王",null,null,null,"＝","皇"]
[null,6179,6.1790000000000003,"閣",null,null,"門","+","各",null,null,null,"＝","閣"]
[null,6182,6.1820000000000004,"詞",null,null,"言","+","司",null,null,null,"＝","詞"]
[null,6184,6.1840000000000002,"値",null,null,"言","+","直",null,null,null,"＝","値"]
[null,6185,6.1849999999999996,"俳",null,null,"イ","+","非",null,null,null,"＝","俳"]
[null,6187,6.1870000000000003,"針",null,null,"金","+","十",null,null,null,"＝","針"]
[null,5002,5.0019999999999998,"現",null,null,"王","+","見",null,null,null,"＝","現"]
[null,5006,5.0060000000000002,"似",null,null,"イ","+","以",null,null,null,"＝","似"]
[null,5007,5.0069999999999997,"格",null,null,"木","+","各",null,null,null,"＝","格"]
[null,5016,5.016,"許",null,null,"言","+","午",null,null,null,"＝","許"]
[null,5019,5.0190000000000001,"銅",null,null,"金","+","同",null,null,null,"＝","銅"]
[null,5025,5.0250000000000004,"移",null,null,"ノ","+","木","+","多",null,"＝","移"]
[null,5032,5.032,"告",null,null,"ノ","+","土","+","口",null,"＝","告"]
[null,5052,5.0519999999999996,"略",null,null,"田","+","各",null,null,null,"＝","略"]
[null,5054,5.0540000000000003,"禁",null,null,"木","+","示",null,null,null,"＝","禁"]
[null,{"$f":"C85*1000","v":5055},5.0549999999999997,"貸",null,null,"代","+","貝",null,null,null,"＝",{"$f":"D85","v":"貸"}]
[null,5059,5.0590000000000002,"桜",null,null,"木","+","ツ","+","女",null,"＝","桜"]
[null,5061,5.0609999999999999,"資",null,null,"次","+","貝",null,null,null,"＝","資"]
[null,5067,5.0670000000000002,"総",null,null,"糸","+","公","+","心",null,"＝","総"]
[null,5077,5.077,"績",null,null,"糸","+","公","+",null,null,"＝","績"]
[null,5078,5.0780000000000003,"鉱",null,null,"金","+","広","+",null,null,"＝","鉱"]
[null,5079,5.0789999999999997,"製",null,null,"制","+","衣","+",null,null,"＝","製"]
[null,5083,5.0830000000000002,"絶",null,null,"制","+","衣","+",null,null,"＝","絶"]
[null,5084,5.0839999999999996,"張",null,null,"弓","+","長","+",null,null,"＝","張"]
[null,5085,5.085,"破",null,null,"石","+","皮","+",null,null,"＝","破"]
[null,5091,5.0910000000000002,"示",null,null,"二","+","小",null,null,null,"＝","示"]
[null,5098,5.0979999999999999,"史",null,null,"口","+","人",null,null,null,"＝","史"]
[null,5103,5.1029999999999998,"個",null,null,"イ","+","固",null,null,null,"＝","個"]
[null,5107,5.1070000000000002,"仏",null,null,"イ","+","ム",null,null,null,"＝","仏"]
[null,5109,5.109,"財",null,null,"貝","+","才",null,null,null,"＝","財"]
[null,5111,5.1109999999999998,"謝",null,null,"言","+","射",null,null,null,"＝","謝"]
[null,5113,5.1130000000000004,"志",null,null,"士","+","心",null,null,null,"＝","志"]
[null,5119,5.1189999999999998,"精",null,null,"米","+","青",null,null,null,"＝","精"]
[null,5120,5.12,"保",null,null,"イ","+","口","+","木",null,"＝","保"]
[null,5123,5.1230000000000002,"件",null,null,"イ","+","牛",null,null,null,"＝","件"]
[null,5125,5.125,"評",null,null,"イ","+","平",null,null,null,"＝","評"]
[null,5129,5.1289999999999996,"賛",null,null,"夫","+","夫","+","平",null,"＝","賛"]
[null,5130,5.13,"効",null,null,"交","+","力",null,null,null,"＝","効"]
[null,5138,5.1379999999999999,"証",null,null,"言","+","正",null,null,null,"＝","証"]
[null,5148,5.1479999999999997,"仮",null,null,"イ","+","反",null,null,null,"＝","仮"]
[null,5153,5.1529999999999996,"規",null,null,"夫","+","見",null,null,null,"＝","規"]
[null,5162,5.1619999999999999,"貧",null,null,"分","+","貝",null,null,null,"＝","貧"]
[null,5184,5.1840000000000002,"粉",null,null,"米","+","分",null,null,null,"＝","粉"]
[null,5186,5.1859999999999999,"豊",null,null,"曲","+","豊",null,null,null,"＝","豊"]
[null,5192,5.1920000000000002,"導",null,null,"道","+","寸",null,null,null,"＝","導"]